Workbook

Sheet Planilha Orçamentária
F2: MINISTÉRIO DA INTEGRAÇÃO E DO DESENVOLVIMENTO REGIONAL - MIDR COMPANHIA DE DESENVOLVIMENTO DOS VALES DO SÃO FRANCISCO E DO PARNAÍBA 3ª SUPERINTENDÊNCIA REGIONAL - PETROLINA - PERNAMBUCO
B3: EXECUÇÃO DOS SERVIÇOS RELATIVOS A IMPLANTAÇÃO DE BIODIGESTORES PARA A PRODUÇÃO DE BIOGÁS EM UNIDADES FAMILIARES LOCALIZADAS EM COMUIDADES RURAIS DE MUNICÍPIOS DO ESTADO DE PERNAMBUCO
B4: PETROLINA/PE | J4: JULHO DE 2023
B5: PLANILHA ORÇAMENTÁRIA | J5: VALOR R$ | K5: =K11+K16+K19+K23+K26+K44+K65+K77+K82+K102 -> 13681.7
B6: TABELAS DE REFERÊNCIA (SEM DESONERAÇÃO): | H6: CODEVASF | I6: FEV/2023 | J6: ORSE | K6: ABR/2023
H7: SEINFRA: | I7: 27 | J7: SINAPI: | K7: JUN/2023
G8: BDI: | H8: SERVIÇOS: | I8: ='BDI''s'!G31 -> 0.2264 | J8: MATERIAIS: | K8: ='BDI''s'!G64 -> 0.1143
B9: ITEM | C9: TIPO | D9: FONTE | E9: CÓDIGO | F9: DISCRIMINAÇÃO DOS SERVIÇOS | G9: UNID. | H9: QUANT. | I9: PREÇO (R$)
I10: SEM BDI | J10: COM BDI | K10: TOTAL
B11: 1 | C11: INSTALAÇÕES PRELIMINARES | K11: =SUM(K12:K15) -> 2012.74
B12: 1.1 | C12: SERVIÇO | D12: ORSE | E12: 51 | F12: =IF(C12="SERVIÇO",IF(D12="SINAPI",VLOOKUP(E12,'SERVIÇOS SINAPI'!$A:$D,2,0),IF(D12="ORSE",VLOOKUP(E12,'SERVIÇOS ORSE'!$A:$D,2,0),IF(D12="SEINFRA",VLOOKUP(E12,'SERVIÇOS SEINFRA'!$A:$D,2,0)))),IF(C12="INSUMO",IF(D12="SINAPI",VLOOKUP(E12,'INSUMOS SINAPI'!$A:$D,2,0),IF(D12="ORSE",VLOOKUP(E12,'INSUMOS ORSE'!$A:$D,2,0),IF(D12="SEINFRA",VLOOKUP(E12,'INSUMOS SEINFRA'!$A:$D,2,0),))))) -> PLACA DE OBRA EM CHAPA AÇO GALVANIZADO, INSTALADA - REV 02_01/2022 | G12: =IF(C12="SERVIÇO",IF(D12="SINAPI",VLOOKUP(E12,'SERVIÇOS SINAPI'!$A:$D,3,0),IF(D12="ORSE",VLOOKUP(E12,'SERVIÇOS ORSE'!$A:$D,3,0),IF(D12="SEINFRA",VLOOKUP(E12,'SERVIÇOS SEINFRA'!$A:$D,3,0)))),IF(C12="INSUMO",IF(D12="SINAPI",VLOOKUP(E12,'INSUMOS SINAPI'!$A:$D,3,0),IF(D12="ORSE",VLOOKUP(E12,'INSUMOS ORSE'!$A:$D,3,0),IF(D12="SEINFRA",VLOOKUP(E12,'INSUMOS SEINFRA'!$A:$D,3,0),))))) -> M² | H12: 1.5 | I12: =IF(C12="SERVIÇO",IF(D12="SINAPI",VLOOKUP(E12,'SERVIÇOS SINAPI'!$A:$D,4,0),IF(D12="ORSE",VLOOKUP(E12,'SERVIÇOS ORSE'!$A:$D,4,0),IF(D12="SEINFRA",VLOOKUP(E12,'SERVIÇOS SEINFRA'!$A:$D,4,0)))),IF(C12="INSUMO",IF(D12="SINAPI",VLOOKUP(E12,'INSUMOS SINAPI'!$A:$D,4,0),IF(D12="ORSE",VLOOKUP(E12,'INSUMOS ORSE'!$A:$D,4,0),IF(D12="SEINFRA",VLOOKUP(E12,'INSUMOS SEINFRA'!$A:$D,4,0),))))) -> 360.98 | J12: =IF(C12="SERVIÇO",I12*(1+$I$8),IF(C12="INSUMO",(I12*(1+$K$8)))) -> 442.71 | K12: =J12*H12 -> 664.07 | L12: 6
B13: 1.2 | C13: SERVIÇO | D13: CODEVASF | E13: =Composições!I3 -> CODV01 | F13: MOBILIZAÇÃO DE EQUIPAMENTOS, MATERIAIS E PESSOAL | G13: =Composições!$I$2 -> UN | H13: 1 | I13: =Composições!I14 -> 243.78 | J13: 298.97 | K13: 298.97 | L13: 6
B14: 1.3 | C14: SERVIÇO | D14: CODEVASF | E14: =Composições!I17 -> CODV02 | F14: DESMOBILIZAÇÃO DE EQUIPAMENTOS, MATERIAIS E PESSOAL | G14: =Composições!$I$16 -> UN | H14: 1 | I14: =Composições!I28 -> 243.78 | J14: 298.97 | K14: 298.97 | L14: 6
B15: 1.4 | C15: SERVIÇO | D15: CODEVASF | E15: =Composições!I31 -> CODV03 | F15: LOCAÇÃO, ADMINISTRAÇÃO E MANUTENÇÃO DE CANTEIRO | G15: =Composições!$I$30 -> UN | H15: 1 | I15: =Composições!I57 -> 612.14 | J15: 750.73 | K15: 750.73 | L15: 1
B16: 2 | C16: LIMPEZA DA ÁREA | K16: =SUM(K17:K18) -> 149.88 | L16: 2
B17: 2.1 | C17: SERVIÇO | D17: SINAPI | E17: 98525 | F17: =IF(C17="SERVIÇO",IF(D17="SINAPI",VLOOKUP(E17,'SERVIÇOS SINAPI'!$A:$D,2,0),IF(D17="ORSE",VLOOKUP(E17,'SERVIÇOS ORSE'!$A:$D,2,0),IF(D17="SEINFRA",VLOOKUP(E17,'SERVIÇOS SEINFRA'!$A:$D,2,0)))),IF(C17="INSUMO",IF(D17="SINAPI",VLOOKUP(E17,'INSUMOS SINAPI'!$A:$D,2,0),IF(D17="ORSE",VLOOKUP(E17,'INSUMOS ORSE'!$A:$D,2,0),IF(D17="SEINFRA",VLOOKUP(E17,'INSUMOS SEINFRA'!$A:$D,2,0),))))) -> LIMPEZA MECANIZADA DE CAMADA VEGETAL, VEGETAÇÃO E PEQUENAS ÁRVORES (DIÂMETRO DE TRONCO MENOR QUE 0,20 M), COM TRATOR DE ESTEIRAS.AF_05/2018 | G17: =IF(C17="SERVIÇO",IF(D17="SINAPI",VLOOKUP(E17,'SERVIÇOS SINAPI'!$A:$D,3,0),IF(D17="ORSE",VLOOKUP(E17,'SERVIÇOS ORSE'!$A:$D,3,0),IF(D17="SEINFRA",VLOOKUP(E17,'SERVIÇOS SEINFRA'!$A:$D,3,0)))),IF(C17="INSUMO",IF(D17="SINAPI",VLOOKUP(E17,'INSUMOS SINAPI'!$A:$D,3,0),IF(D17="ORSE",VLOOKUP(E17,'INSUMOS ORSE'!$A:$D,3,0),IF(D17="SEINFRA",VLOOKUP(E17,'INSUMOS SEINFRA'!$A:$D,3,0),))))) -> M² | H17: =5*5 -> 25 | I17: =IF(C17="SERVIÇO",IF(D17="SINAPI",VLOOKUP(E17,'SERVIÇOS SINAPI'!$A:$D,4,0),IF(D17="ORSE",VLOOKUP(E17,'SERVIÇOS ORSE'!$A:$D,4,0),IF(D17="SEINFRA",VLOOKUP(E17,'SERVIÇOS SEINFRA'!$A:$D,4,0)))),IF(C17="INSUMO",IF(D17="SINAPI",VLOOKUP(E17,'INSUMOS SINAPI'!$A:$D,4,0),IF(D17="ORSE",VLOOKUP(E17,'INSUMOS ORSE'!$A:$D,4,0),IF(D17="SEINFRA",VLOOKUP(E17,'INSUMOS SEINFRA'!$A:$D,4,0),))))) -> 0.39 | J17: =IF(C17="SERVIÇO",I17*(1+$I$8),IF(C17="INSUMO",(I17*(1+$K$8)))) -> 0.48 | K17: =J17*H17 -> 12 | L17: 3 | N17: 11
B18: 2.2 | C18: SERVIÇO | D18: ORSE | E18: 50 | F18: =IF(C18="SERVIÇO",IF(D18="SINAPI",VLOOKUP(E18,'SERVIÇOS SINAPI'!$A:$D,2,0),IF(D18="ORSE",VLOOKUP(E18,'SERVIÇOS ORSE'!$A:$D,2,0),IF(D18="SEINFRA",VLOOKUP(E18,'SERVIÇOS SEINFRA'!$A:$D,2,0)))),IF(C18="INSUMO",IF(D18="SINAPI",VLOOKUP(E18,'INSUMOS SINAPI'!$A:$D,2,0),IF(D18="ORSE",VLOOKUP(E18,'INSUMOS ORSE'!$A:$D,2,0),IF(D18="SEINFRA",VLOOKUP(E18,'INSUMOS SEINFRA'!$A:$D,2,0),))))) -> LOCAÇÃO DE CONSTRUÇÃO DE EDIFICAÇÃO ATÉ 200M2, INCLUSIVE EXECUÇÃO DE GABARIT O DE MADEIRA | G18: =IF(C18="SERVIÇO",IF(D18="SINAPI",VLOOKUP(E18,'SERVIÇOS SINAPI'!$A:$D,3,0),IF(D18="ORSE",VLOOKUP(E18,'SERVIÇOS ORSE'!$A:$D,3,0),IF(D18="SEINFRA",VLOOKUP(E18,'SERVIÇOS SEINFRA'!$A:$D,3,0)))),IF(C18="INSUMO",IF(D18="SINAPI",VLOOKUP(E18,'INSUMOS SINAPI'!$A:$D,3,0),IF(D18="ORSE",VLOOKUP(E18,'INSUMOS ORSE'!$A:$D,3,0),IF(D18="SEINFRA",VLOOKUP(E18,'INSUMOS SEINFRA'!$A:$D,3,0),))))) -> M² | H18: =4*3 -> 12 | I18: =IF(C18="SERVIÇO",IF(D18="SINAPI",VLOOKUP(E18,'SERVIÇOS SINAPI'!$A:$D,4,0),IF(D18="ORSE",VLOOKUP(E18,'SERVIÇOS ORSE'!$A:$D,4,0),IF(D18="SEINFRA",VLOOKUP(E18,'SERVIÇOS SEINFRA'!$A:$D,4,0)))),IF(C18="INSUMO",IF(D18="SINAPI",VLOOKUP(E18,'INSUMOS SINAPI'!$A:$D,4,0),IF(D18="ORSE",VLOOKUP(E18,'INSUMOS ORSE'!$A:$D,4,0),IF(D18="SEINFRA",VLOOKUP(E18,'INSUMOS SEINFRA'!$A:$D,4,0),))))) -> 9.37 | J18: =IF(C18="SERVIÇO",I18*(1+$I$8),IF(C18="INSUMO",(I18*(1+$K$8)))) -> 11.49 | K18: =J18*H18 -> 137.88 | L18: 4
B19: 3 | C19: ESCAVAÇÃO DE SOLO PARA BIODIGESTOR | K19: =SUM(K20:K22) -> 169.35
B20: 3.1 | C20: SERVIÇO | D20: SINAPI | E20: 101233 | F20: =IF(C20="SERVIÇO",IF(D20="SINAPI",VLOOKUP(E20,'SERVIÇOS SINAPI'!$A:$D,2,0),IF(D20="ORSE",VLOOKUP(E20,'SERVIÇOS ORSE'!$A:$D,2,0),IF(D20="SEINFRA",VLOOKUP(E20,'SERVIÇOS SEINFRA'!$A:$D,2,0)))),IF(C20="INSUMO",IF(D20="SINAPI",VLOOKUP(E20,'INSUMOS SINAPI'!$A:$D,2,0),IF(D20="ORSE",VLOOKUP(E20,'INSUMOS ORSE'!$A:$D,2,0),IF(D20="SEINFRA",VLOOKUP(E20,'INSUMOS SEINFRA'!$A:$D,2,0),))))) -> ESCAVAÇÃO VERTICAL PARA INFRAESTRUTURA, COM CARGA, DESCARGA E TRANSPORTE DE SOLO DE 1ª CATEGORIA, COM ESCAVADEIRA HIDRÁULICA (CAÇAMBA: 1,2 M³ / 155 HP), FROTA DE 3 CAMINHÕES BASCULANTES DE 18 M³, DMT ATÉ 1 KM E VELOCIDADE MÉDIA14 KM/H. AF_05/2020 | G20: =IF(C20="SERVIÇO",IF(D20="SINAPI",VLOOKUP(E20,'SERVIÇOS SINAPI'!$A:$D,3,0),IF(D20="ORSE",VLOOKUP(E20,'SERVIÇOS ORSE'!$A:$D,3,0),IF(D20="SEINFRA",VLOOKUP(E20,'SERVIÇOS SEINFRA'!$A:$D,3,0)))),IF(C20="INSUMO",IF(D20="SINAPI",VLOOKUP(E20,'INSUMOS SINAPI'!$A:$D,3,0),IF(D20="ORSE",VLOOKUP(E20,'INSUMOS ORSE'!$A:$D,3,0),IF(D20="SEINFRA",VLOOKUP(E20,'INSUMOS SEINFRA'!$A:$D,3,0),))))) -> M³ | H20: =3.14*((3.5*3.5)/4)*1.5 -> 14.42 | I20: =IF(C20="SERVIÇO",IF(D20="SINAPI",VLOOKUP(E20,'SERVIÇOS SINAPI'!$A:$D,4,0),IF(D20="ORSE",VLOOKUP(E20,'SERVIÇOS ORSE'!$A:$D,4,0),IF(D20="SEINFRA",VLOOKUP(E20,'SERVIÇOS SEINFRA'!$A:$D,4,0)))),IF(C20="INSUMO",IF(D20="SINAPI",VLOOKUP(E20,'INSUMOS SINAPI'!$A:$D,4,0),IF(D20="ORSE",VLOOKUP(E20,'INSUMOS ORSE'!$A:$D,4,0),IF(D20="SEINFRA",VLOOKUP(E20,'INSUMOS SEINFRA'!$A:$D,4,0),))))) -> 7.58 | J20: =IF(C20="SERVIÇO",I20*(1+$I$8),IF(C20="INSUMO",(I20*(1+$K$8)))) -> 9.3 | K20: =J20*H20 -> 134.11 | L20: 1
B21: 3.2 | C21: SERVIÇO | D21: SINAPI | E21: 90091 | F21: =IF(C21="SERVIÇO",IF(D21="SINAPI",VLOOKUP(E21,'SERVIÇOS SINAPI'!$A:$D,2,0),IF(D21="ORSE",VLOOKUP(E21,'SERVIÇOS ORSE'!$A:$D,2,0),IF(D21="SEINFRA",VLOOKUP(E21,'SERVIÇOS SEINFRA'!$A:$D,2,0)))),IF(C21="INSUMO",IF(D21="SINAPI",VLOOKUP(E21,'INSUMOS SINAPI'!$A:$D,2,0),IF(D21="ORSE",VLOOKUP(E21,'INSUMOS ORSE'!$A:$D,2,0),IF(D21="SEINFRA",VLOOKUP(E21,'INSUMOS SEINFRA'!$A:$D,2,0),))))) -> ESCAVAÇÃO MECANIZADA DE VALA COM PROF. ATÉ 1,5 M (MÉDIA MONTANTE E JUSANTE/UMA COMPOSIÇÃO POR TRECHO), ESCAVADEIRA (0,8 M3), LARG. DE 1,5 M A 2,5 M, EM SOLO DE 1A CATEGORIA, LOCAIS COM BAIXO NÍVEL DE INTERFERÊNCIA. AF_02/2021 | G21: =IF(C21="SERVIÇO",IF(D21="SINAPI",VLOOKUP(E21,'SERVIÇOS SINAPI'!$A:$D,3,0),IF(D21="ORSE",VLOOKUP(E21,'SERVIÇOS ORSE'!$A:$D,3,0),IF(D21="SEINFRA",VLOOKUP(E21,'SERVIÇOS SEINFRA'!$A:$D,3,0)))),IF(C21="INSUMO",IF(D21="SINAPI",VLOOKUP(E21,'INSUMOS SINAPI'!$A:$D,3,0),IF(D21="ORSE",VLOOKUP(E21,'INSUMOS ORSE'!$A:$D,3,0),IF(D21="SEINFRA",VLOOKUP(E21,'INSUMOS SEINFRA'!$A:$D,3,0),))))) -> M³ | H21: =3.14*((3.5*3.5)/4)*0.3 -> 2.88 | I21: =IF(C21="SERVIÇO",IF(D21="SINAPI",VLOOKUP(E21,'SERVIÇOS SINAPI'!$A:$D,4,0),IF(D21="ORSE",VLOOKUP(E21,'SERVIÇOS ORSE'!$A:$D,4,0),IF(D21="SEINFRA",VLOOKUP(E21,'SERVIÇOS SEINFRA'!$A:$D,4,0)))),IF(C21="INSUMO",IF(D21="SINAPI",VLOOKUP(E21,'INSUMOS SINAPI'!$A:$D,4,0),IF(D21="ORSE",VLOOKUP(E21,'INSUMOS ORSE'!$A:$D,4,0),IF(D21="SEINFRA",VLOOKUP(E21,'INSUMOS SEINFRA'!$A:$D,4,0),))))) -> 6 | J21: 7.36 | K21: 21.2 | L21: 1
B22: 3.3 | C22: SERVIÇO | D22: SINAPI | E22: 100574 | F22: =IF(C22="SERVIÇO",IF(D22="SINAPI",VLOOKUP(E22,'SERVIÇOS SINAPI'!$A:$D,2,0),IF(D22="ORSE",VLOOKUP(E22,'SERVIÇOS ORSE'!$A:$D,2,0),IF(D22="SEINFRA",VLOOKUP(E22,'SERVIÇOS SEINFRA'!$A:$D,2,0)))),IF(C22="INSUMO",IF(D22="SINAPI",VLOOKUP(E22,'INSUMOS SINAPI'!$A:$D,2,0),IF(D22="ORSE",VLOOKUP(E22,'INSUMOS ORSE'!$A:$D,2,0),IF(D22="SEINFRA",VLOOKUP(E22,'INSUMOS SEINFRA'!$A:$D,2,0),))))) -> ESPALHAMENTO DE MATERIAL COM TRATOR DE ESTEIRAS. AF_11/2019 | G22: =IF(C22="SERVIÇO",IF(D22="SINAPI",VLOOKUP(E22,'SERVIÇOS SINAPI'!$A:$D,3,0),IF(D22="ORSE",VLOOKUP(E22,'SERVIÇOS ORSE'!$A:$D,3,0),IF(D22="SEINFRA",VLOOKUP(E22,'SERVIÇOS SEINFRA'!$A:$D,3,0)))),IF(C22="INSUMO",IF(D22="SINAPI",VLOOKUP(E22,'INSUMOS SINAPI'!$A:$D,3,0),IF(D22="ORSE",VLOOKUP(E22,'INSUMOS ORSE'!$A:$D,3,0),IF(D22="SEINFRA",VLOOKUP(E22,'INSUMOS SEINFRA'!$A:$D,3,0),))))) -> M³ | H22: =(H21+H20)-H24 -> 8.83 | I22: =IF(C22="SERVIÇO",IF(D22="SINAPI",VLOOKUP(E22,'SERVIÇOS SINAPI'!$A:$D,4,0),IF(D22="ORSE",VLOOKUP(E22,'SERVIÇOS ORSE'!$A:$D,4,0),IF(D22="SEINFRA",VLOOKUP(E22,'SERVIÇOS SEINFRA'!$A:$D,4,0)))),IF(C22="INSUMO",IF(D22="SINAPI",VLOOKUP(E22,'INSUMOS SINAPI'!$A:$D,4,0),IF(D22="ORSE",VLOOKUP(E22,'INSUMOS ORSE'!$A:$D,4,0),IF(D22="SEINFRA",VLOOKUP(E22,'INSUMOS SEINFRA'!$A:$D,4,0),))))) -> 1.3 | J22: 1.59 | K22: 14.04 | L22: 1
B23: 4 | C23: ATERRO E COMPACTAÇÃO | K23: =SUM(K24:K25) -> 184.73
B24: 4.1 | C24: SERVIÇO | D24: SINAPI | E24: 93373 | F24: =IF(C24="SERVIÇO",IF(D24="SINAPI",VLOOKUP(E24,'SERVIÇOS SINAPI'!$A:$D,2,0),IF(D24="ORSE",VLOOKUP(E24,'SERVIÇOS ORSE'!$A:$D,2,0),IF(D24="SEINFRA",VLOOKUP(E24,'SERVIÇOS SEINFRA'!$A:$D,2,0)))),IF(C24="INSUMO",IF(D24="SINAPI",VLOOKUP(E24,'INSUMOS SINAPI'!$A:$D,2,0),IF(D24="ORSE",VLOOKUP(E24,'INSUMOS ORSE'!$A:$D,2,0),IF(D24="SEINFRA",VLOOKUP(E24,'INSUMOS SEINFRA'!$A:$D,2,0),))))) -> REATERRO MECANIZADO DE VALA COM ESCAVADEIRA HIDRÁULICA (CAPACIDADE DA CAÇAMBA: 0,8 M³ / POTÊNCIA: 111 HP), LARGURA DE 1,5 A 2,5 M, PROFUNDIDADE DE 4,5 A 6,0 M, COM SOLO (SEM SUBSTITUIÇÃO) DE 1ª CATEGORIA EM LOCAIS COM BAIXO NÍVEL DE INTERFERÊNCIA. AF_04/2016 | G24: =IF(C24="SERVIÇO",IF(D24="SINAPI",VLOOKUP(E24,'SERVIÇOS SINAPI'!$A:$D,3,0),IF(D24="ORSE",VLOOKUP(E24,'SERVIÇOS ORSE'!$A:$D,3,0),IF(D24="SEINFRA",VLOOKUP(E24,'SERVIÇOS SEINFRA'!$A:$D,3,0)))),IF(C24="INSUMO",IF(D24="SINAPI",VLOOKUP(E24,'INSUMOS SINAPI'!$A:$D,3,0),IF(D24="ORSE",VLOOKUP(E24,'INSUMOS ORSE'!$A:$D,3,0),IF(D24="SEINFRA",VLOOKUP(E24,'INSUMOS SEINFRA'!$A:$D,3,0),))))) -> M³ | H24: =(H21+H20)-(3.14*((2.5*2.5)/4)*1.8) -> 8.47 | I24: =IF(C24="SERVIÇO",IF(D24="SINAPI",VLOOKUP(E24,'SERVIÇOS SINAPI'!$A:$D,4,0),IF(D24="ORSE",VLOOKUP(E24,'SERVIÇOS ORSE'!$A:$D,4,0),IF(D24="SEINFRA",VLOOKUP(E24,'SERVIÇOS SEINFRA'!$A:$D,4,0)))),IF(C24="INSUMO",IF(D24="SINAPI",VLOOKUP(E24,'INSUMOS SINAPI'!$A:$D,4,0),IF(D24="ORSE",VLOOKUP(E24,'INSUMOS ORSE'!$A:$D,4,0),IF(D24="SEINFRA",VLOOKUP(E24,'INSUMOS SEINFRA'!$A:$D,4,0),))))) -> 9.23 | J24: =IF(C24="SERVIÇO",I24*(1+$I$8),IF(C24="INSUMO",(I24*(1+$K$8)))) -> 11.32 | K24: =J24*H24 -> 95.88 | L24: 1
B25: 4.2 | C25: SERVIÇO | D25: SINAPI | E25: 96386 | F25: =IF(C25="SERVIÇO",IF(D25="SINAPI",VLOOKUP(E25,'SERVIÇOS SINAPI'!$A:$D,2,0),IF(D25="ORSE",VLOOKUP(E25,'SERVIÇOS ORSE'!$A:$D,2,0),IF(D25="SEINFRA",VLOOKUP(E25,'SERVIÇOS SEINFRA'!$A:$D,2,0)))),IF(C25="INSUMO",IF(D25="SINAPI",VLOOKUP(E25,'INSUMOS SINAPI'!$A:$D,2,0),IF(D25="ORSE",VLOOKUP(E25,'INSUMOS ORSE'!$A:$D,2,0),IF(D25="SEINFRA",VLOOKUP(E25,'INSUMOS SEINFRA'!$A:$D,2,0),))))) -> EXECUÇÃO E COMPACTAÇÃO DE ATERRO COM SOLO PREDOMINANTEMENTE ARENOSO - EXCLUSIVE SOLO, ESCAVAÇÃO, CARGA E TRANSPORTE. AF_11/2019 | G25: =IF(C25="SERVIÇO",IF(D25="SINAPI",VLOOKUP(E25,'SERVIÇOS SINAPI'!$A:$D,3,0),IF(D25="ORSE",VLOOKUP(E25,'SERVIÇOS ORSE'!$A:$D,3,0),IF(D25="SEINFRA",VLOOKUP(E25,'SERVIÇOS SEINFRA'!$A:$D,3,0)))),IF(C25="INSUMO",IF(D25="SINAPI",VLOOKUP(E25,'INSUMOS SINAPI'!$A:$D,3,0),IF(D25="ORSE",VLOOKUP(E25,'INSUMOS ORSE'!$A:$D,3,0),IF(D25="SEINFRA",VLOOKUP(E25,'INSUMOS SEINFRA'!$A:$D,3,0),))))) -> M³ | H25: =H24 -> 8.47 | I25: =IF(C25="SERVIÇO",IF(D25="SINAPI",VLOOKUP(E25,'SERVIÇOS SINAPI'!$A:$D,4,0),IF(D25="ORSE",VLOOKUP(E25,'SERVIÇOS ORSE'!$A:$D,4,0),IF(D25="SEINFRA",VLOOKUP(E25,'SERVIÇOS SEINFRA'!$A:$D,4,0)))),IF(C25="INSUMO",IF(D25="SINAPI",VLOOKUP(E25,'INSUMOS SINAPI'!$A:$D,4,0),IF(D25="ORSE",VLOOKUP(E25,'INSUMOS ORSE'!$A:$D,4,0),IF(D25="SEINFRA",VLOOKUP(E25,'INSUMOS SEINFRA'!$A:$D,4,0),))))) -> 8.55 | J25: 10.49 | K25: 88.85 | L25: 1
B26: 5 | C26: SERVIÇO DE LAJE DE FUNDO, PILARES E CINTA | K26: =K27+K34+K39 -> 1652.2
B27: 5.1 | C27: SERVIÇO DE LAJE DE FUNDO DO BIODIGESTOR | K27: =SUM(K28:K33) -> 1063.44
B28: 5.1.1 | C28: SERVIÇO | D28: SINAPI | E28: 100577 | F28: =IF(C28="SERVIÇO",IF(D28="SINAPI",VLOOKUP(E28,'SERVIÇOS SINAPI'!$A:$D,2,0),IF(D28="ORSE",VLOOKUP(E28,'SERVIÇOS ORSE'!$A:$D,2,0),IF(D28="SEINFRA",VLOOKUP(E28,'SERVIÇOS SEINFRA'!$A:$D,2,0)))),IF(C28="INSUMO",IF(D28="SINAPI",VLOOKUP(E28,'INSUMOS SINAPI'!$A:$D,2,0),IF(D28="ORSE",VLOOKUP(E28,'INSUMOS ORSE'!$A:$D,2,0),IF(D28="SEINFRA",VLOOKUP(E28,'INSUMOS SEINFRA'!$A:$D,2,0),))))) -> REGULARIZAÇÃO E COMPACTAÇÃO DE SUBLEITO DE SOLO PREDOMINANTEMENTE ARENOSO. AF_11/2019 | G28: =IF(C28="SERVIÇO",IF(D28="SINAPI",VLOOKUP(E28,'SERVIÇOS SINAPI'!$A:$D,3,0),IF(D28="ORSE",VLOOKUP(E28,'SERVIÇOS ORSE'!$A:$D,3,0),IF(D28="SEINFRA",VLOOKUP(E28,'SERVIÇOS SEINFRA'!$A:$D,3,0)))),IF(C28="INSUMO",IF(D28="SINAPI",VLOOKUP(E28,'INSUMOS SINAPI'!$A:$D,3,0),IF(D28="ORSE",VLOOKUP(E28,'INSUMOS ORSE'!$A:$D,3,0),IF(D28="SEINFRA",VLOOKUP(E28,'INSUMOS SEINFRA'!$A:$D,3,0),))))) -> M² | H28: =3.14*((3.5*3.5)/4) -> 9.62 | I28: =IF(C28="SERVIÇO",IF(D28="SINAPI",VLOOKUP(E28,'SERVIÇOS SINAPI'!$A:$D,4,0),IF(D28="ORSE",VLOOKUP(E28,'SERVIÇOS ORSE'!$A:$D,4,0),IF(D28="SEINFRA",VLOOKUP(E28,'SERVIÇOS SEINFRA'!$A:$D,4,0)))),IF(C28="INSUMO",IF(D28="SINAPI",VLOOKUP(E28,'INSUMOS SINAPI'!$A:$D,4,0),IF(D28="ORSE",VLOOKUP(E28,'INSUMOS ORSE'!$A:$D,4,0),IF(D28="SEINFRA",VLOOKUP(E28,'INSUMOS SEINFRA'!$A:$D,4,0),))))) -> 1.19 | J28: 1.46 | K28: 14.05 | L28: 1
B29: 5.1.2 | C29: SERVIÇO | D29: SINAPI | E29: 94962 | F29: =IF(C29="SERVIÇO",IF(D29="SINAPI",VLOOKUP(E29,'SERVIÇOS SINAPI'!$A:$D,2,0),IF(D29="ORSE",VLOOKUP(E29,'SERVIÇOS ORSE'!$A:$D,2,0),IF(D29="SEINFRA",VLOOKUP(E29,'SERVIÇOS SEINFRA'!$A:$D,2,0)))),IF(C29="INSUMO",IF(D29="SINAPI",VLOOKUP(E29,'INSUMOS SINAPI'!$A:$D,2,0),IF(D29="ORSE",VLOOKUP(E29,'INSUMOS ORSE'!$A:$D,2,0),IF(D29="SEINFRA",VLOOKUP(E29,'INSUMOS SEINFRA'!$A:$D,2,0),))))) -> CONCRETO MAGRO PARA LASTRO, TRAÇO 1:4,5:4,5 (EM MASSA SECA DE CIMENTO/ AREIA MÉDIA/ BRITA 1) - PREPARO MECÂNICO COM BETONEIRA 400 L. AF_05/2021 | G29: =IF(C29="SERVIÇO",IF(D29="SINAPI",VLOOKUP(E29,'SERVIÇOS SINAPI'!$A:$D,3,0),IF(D29="ORSE",VLOOKUP(E29,'SERVIÇOS ORSE'!$A:$D,3,0),IF(D29="SEINFRA",VLOOKUP(E29,'SERVIÇOS SEINFRA'!$A:$D,3,0)))),IF(C29="INSUMO",IF(D29="SINAPI",VLOOKUP(E29,'INSUMOS SINAPI'!$A:$D,3,0),IF(D29="ORSE",VLOOKUP(E29,'INSUMOS ORSE'!$A:$D,3,0),IF(D29="SEINFRA",VLOOKUP(E29,'INSUMOS SEINFRA'!$A:$D,3,0),))))) -> M³ | H29: =3.14*((3.5*3.5)/4)*0.05 -> 0.48 | I29: =IF(C29="SERVIÇO",IF(D29="SINAPI",VLOOKUP(E29,'SERVIÇOS SINAPI'!$A:$D,4,0),IF(D29="ORSE",VLOOKUP(E29,'SERVIÇOS ORSE'!$A:$D,4,0),IF(D29="SEINFRA",VLOOKUP(E29,'SERVIÇOS SEINFRA'!$A:$D,4,0)))),IF(C29="INSUMO",IF(D29="SINAPI",VLOOKUP(E29,'INSUMOS SINAPI'!$A:$D,4,0),IF(D29="ORSE",VLOOKUP(E29,'INSUMOS ORSE'!$A:$D,4,0),IF(D29="SEINFRA",VLOOKUP(E29,'INSUMOS SEINFRA'!$A:$D,4,0),))))) -> 411.72 | J29: 504.93 | K29: 242.37 | L29: 3
B30: 5.1.3 | C30: SERVIÇO | D30: SINAPI | E30: 92770 | F30: =IF(C30="SERVIÇO",IF(D30="SINAPI",VLOOKUP(E30,'SERVIÇOS SINAPI'!$A:$D,2,0),IF(D30="ORSE",VLOOKUP(E30,'SERVIÇOS ORSE'!$A:$D,2,0),IF(D30="SEINFRA",VLOOKUP(E30,'SERVIÇOS SEINFRA'!$A:$D,2,0)))),IF(C30="INSUMO",IF(D30="SINAPI",VLOOKUP(E30,'INSUMOS SINAPI'!$A:$D,2,0),IF(D30="ORSE",VLOOKUP(E30,'INSUMOS ORSE'!$A:$D,2,0),IF(D30="SEINFRA",VLOOKUP(E30,'INSUMOS SEINFRA'!$A:$D,2,0),))))) -> ARMAÇÃO DE LAJE DE ESTRUTURA CONVENCIONAL DE CONCRETO ARMADO UTILIZANDO AÇO CA-50 DE 8,0 MM - MONTAGEM. AF_06/2022 | G30: =IF(C30="SERVIÇO",IF(D30="SINAPI",VLOOKUP(E30,'SERVIÇOS SINAPI'!$A:$D,3,0),IF(D30="ORSE",VLOOKUP(E30,'SERVIÇOS ORSE'!$A:$D,3,0),IF(D30="SEINFRA",VLOOKUP(E30,'SERVIÇOS SEINFRA'!$A:$D,3,0)))),IF(C30="INSUMO",IF(D30="SINAPI",VLOOKUP(E30,'INSUMOS SINAPI'!$A:$D,3,0),IF(D30="ORSE",VLOOKUP(E30,'INSUMOS ORSE'!$A:$D,3,0),IF(D30="SEINFRA",VLOOKUP(E30,'INSUMOS SEINFRA'!$A:$D,3,0),))))) -> KG | H30: =H32*40 -> 19.6 | I30: =IF(C30="SERVIÇO",IF(D30="SINAPI",VLOOKUP(E30,'SERVIÇOS SINAPI'!$A:$D,4,0),IF(D30="ORSE",VLOOKUP(E30,'SERVIÇOS ORSE'!$A:$D,4,0),IF(D30="SEINFRA",VLOOKUP(E30,'SERVIÇOS SEINFRA'!$A:$D,4,0)))),IF(C30="INSUMO",IF(D30="SINAPI",VLOOKUP(E30,'INSUMOS SINAPI'!$A:$D,4,0),IF(D30="ORSE",VLOOKUP(E30,'INSUMOS ORSE'!$A:$D,4,0),IF(D30="SEINFRA",VLOOKUP(E30,'INSUMOS SEINFRA'!$A:$D,4,0),))))) -> 14.42 | J30: 17.68 | K30: 346.53 | L30: 5
B31: 5.1.4 | C31: SERVIÇO | D31: SINAPI | E31: 92526 | F31: =IF(C31="SERVIÇO",IF(D31="SINAPI",VLOOKUP(E31,'SERVIÇOS SINAPI'!$A:$D,2,0),IF(D31="ORSE",VLOOKUP(E31,'SERVIÇOS ORSE'!$A:$D,2,0),IF(D31="SEINFRA",VLOOKUP(E31,'SERVIÇOS SEINFRA'!$A:$D,2,0)))),IF(C31="INSUMO",IF(D31="SINAPI",VLOOKUP(E31,'INSUMOS SINAPI'!$A:$D,2,0),IF(D31="ORSE",VLOOKUP(E31,'INSUMOS ORSE'!$A:$D,2,0),IF(D31="SEINFRA",VLOOKUP(E31,'INSUMOS SEINFRA'!$A:$D,2,0),))))) -> MONTAGEM E DESMONTAGEM DE FÔRMA DE LAJE MACIÇA, PÉ-DIREITO SIMPLES, EM CHAPA DE MADEIRA COMPENSADA PLASTIFICADA, 10 UTILIZAÇÕES. AF_09/2020 | G31: =IF(C31="SERVIÇO",IF(D31="SINAPI",VLOOKUP(E31,'SERVIÇOS SINAPI'!$A:$D,3,0),IF(D31="ORSE",VLOOKUP(E31,'SERVIÇOS ORSE'!$A:$D,3,0),IF(D31="SEINFRA",VLOOKUP(E31,'SERVIÇOS SEINFRA'!$A:$D,3,0)))),IF(C31="INSUMO",IF(D31="SINAPI",VLOOKUP(E31,'INSUMOS SINAPI'!$A:$D,3,0),IF(D31="ORSE",VLOOKUP(E31,'INSUMOS ORSE'!$A:$D,3,0),IF(D31="SEINFRA",VLOOKUP(E31,'INSUMOS SEINFRA'!$A:$D,3,0),))))) -> M² | H31: =(2*3.14*2.6)*0.15 -> 2.45 | I31: =IF(C31="SERVIÇO",IF(D31="SINAPI",VLOOKUP(E31,'SERVIÇOS SINAPI'!$A:$D,4,0),IF(D31="ORSE",VLOOKUP(E31,'SERVIÇOS ORSE'!$A:$D,4,0),IF(D31="SEINFRA",VLOOKUP(E31,'SERVIÇOS SEINFRA'!$A:$D,4,0)))),IF(C31="INSUMO",IF(D31="SINAPI",VLOOKUP(E31,'INSUMOS SINAPI'!$A:$D,4,0),IF(D31="ORSE",VLOOKUP(E31,'INSUMOS ORSE'!$A:$D,4,0),IF(D31="SEINFRA",VLOOKUP(E31,'INSUMOS SEINFRA'!$A:$D,4,0),))))) -> 47.54 | J31: 58.3 | K31: 142.84 | L31: 3
B32: 5.1.5 | C32: SERVIÇO | D32: SINAPI | E32: 94964 | F32: =IF(C32="SERVIÇO",IF(D32="SINAPI",VLOOKUP(E32,'SERVIÇOS SINAPI'!$A:$D,2,0),IF(D32="ORSE",VLOOKUP(E32,'SERVIÇOS ORSE'!$A:$D,2,0),IF(D32="SEINFRA",VLOOKUP(E32,'SERVIÇOS SEINFRA'!$A:$D,2,0)))),IF(C32="INSUMO",IF(D32="SINAPI",VLOOKUP(E32,'INSUMOS SINAPI'!$A:$D,2,0),IF(D32="ORSE",VLOOKUP(E32,'INSUMOS ORSE'!$A:$D,2,0),IF(D32="SEINFRA",VLOOKUP(E32,'INSUMOS SEINFRA'!$A:$D,2,0),))))) -> CONCRETO FCK = 20MPA, TRAÇO 1:2,7:3 (EM MASSA SECA DE CIMENTO/ AREIA MÉDIA/ BRITA 1) - PREPARO MECÂNICO COM BETONEIRA 400 L. AF_05/2021 | G32: =IF(C32="SERVIÇO",IF(D32="SINAPI",VLOOKUP(E32,'SERVIÇOS SINAPI'!$A:$D,3,0),IF(D32="ORSE",VLOOKUP(E32,'SERVIÇOS ORSE'!$A:$D,3,0),IF(D32="SEINFRA",VLOOKUP(E32,'SERVIÇOS SEINFRA'!$A:$D,3,0)))),IF(C32="INSUMO",IF(D32="SINAPI",VLOOKUP(E32,'INSUMOS SINAPI'!$A:$D,3,0),IF(D32="ORSE",VLOOKUP(E32,'INSUMOS ORSE'!$A:$D,3,0),IF(D32="SEINFRA",VLOOKUP(E32,'INSUMOS SEINFRA'!$A:$D,3,0),))))) -> M³ | H32: =(3.14*((2.5*2.5)/4)*0.1) -> 0.49 | I32: =IF(C32="SERVIÇO",IF(D32="SINAPI",VLOOKUP(E32,'SERVIÇOS SINAPI'!$A:$D,4,0),IF(D32="ORSE",VLOOKUP(E32,'SERVIÇOS ORSE'!$A:$D,4,0),IF(D32="SEINFRA",VLOOKUP(E32,'SERVIÇOS SEINFRA'!$A:$D,4,0)))),IF(C32="INSUMO",IF(D32="SINAPI",VLOOKUP(E32,'INSUMOS SINAPI'!$A:$D,4,0),IF(D32="ORSE",VLOOKUP(E32,'INSUMOS ORSE'!$A:$D,4,0),IF(D32="SEINFRA",VLOOKUP(E32,'INSUMOS SEINFRA'!$A:$D,4,0),))))) -> 488.05 | J32: 598.54 | K32: 293.28 | L32: 3
B33: 5.1.6 | C33: SERVIÇO | D33: SINAPI | E33: 103673 | F33: =IF(C33="SERVIÇO",IF(D33="SINAPI",VLOOKUP(E33,'SERVIÇOS SINAPI'!$A:$D,2,0),IF(D33="ORSE",VLOOKUP(E33,'SERVIÇOS ORSE'!$A:$D,2,0),IF(D33="SEINFRA",VLOOKUP(E33,'SERVIÇOS SEINFRA'!$A:$D,2,0)))),IF(C33="INSUMO",IF(D33="SINAPI",VLOOKUP(E33,'INSUMOS SINAPI'!$A:$D,2,0),IF(D33="ORSE",VLOOKUP(E33,'INSUMOS ORSE'!$A:$D,2,0),IF(D33="SEINFRA",VLOOKUP(E33,'INSUMOS SEINFRA'!$A:$D,2,0),))))) -> LANÇAMENTO COM USO DE BOMBA, ADENSAMENTO E ACABAMENTO DE CONCRETO EM ESTRUTURAS. AF_02/2022 | G33: =IF(C33="SERVIÇO",IF(D33="SINAPI",VLOOKUP(E33,'SERVIÇOS SINAPI'!$A:$D,3,0),IF(D33="ORSE",VLOOKUP(E33,'SERVIÇOS ORSE'!$A:$D,3,0),IF(D33="SEINFRA",VLOOKUP(E33,'SERVIÇOS SEINFRA'!$A:$D,3,0)))),IF(C33="INSUMO",IF(D33="SINAPI",VLOOKUP(E33,'INSUMOS SINAPI'!$A:$D,3,0),IF(D33="ORSE",VLOOKUP(E33,'INSUMOS ORSE'!$A:$D,3,0),IF(D33="SEINFRA",VLOOKUP(E33,'INSUMOS SEINFRA'!$A:$D,3,0),))))) -> M³ | H33: =H32 -> 0.49 | I33: =IF(C33="SERVIÇO",IF(D33="SINAPI",VLOOKUP(E33,'SERVIÇOS SINAPI'!$A:$D,4,0),IF(D33="ORSE",VLOOKUP(E33,'SERVIÇOS ORSE'!$A:$D,4,0),IF(D33="SEINFRA",VLOOKUP(E33,'SERVIÇOS SEINFRA'!$A:$D,4,0)))),IF(C33="INSUMO",IF(D33="SINAPI",VLOOKUP(E33,'INSUMOS SINAPI'!$A:$D,4,0),IF(D33="ORSE",VLOOKUP(E33,'INSUMOS ORSE'!$A:$D,4,0),IF(D33="SEINFRA",VLOOKUP(E33,'INSUMOS SEINFRA'!$A:$D,4,0),))))) -> 40.56 | J33: 49.74 | K33: 24.37 | L33: 3
B34: 5.2 | C34: SERVIÇO DE PILARES | K34: =SUM(K35:K38) -> 95.91
B35: 5.2.1 | C35: SERVIÇO | D35: SINAPI | E35: 92762 | F35: =IF(C35="SERVIÇO",IF(D35="SINAPI",VLOOKUP(E35,'SERVIÇOS SINAPI'!$A:$D,2,0),IF(D35="ORSE",VLOOKUP(E35,'SERVIÇOS ORSE'!$A:$D,2,0),IF(D35="SEINFRA",VLOOKUP(E35,'SERVIÇOS SEINFRA'!$A:$D,2,0)))),IF(C35="INSUMO",IF(D35="SINAPI",VLOOKUP(E35,'INSUMOS SINAPI'!$A:$D,2,0),IF(D35="ORSE",VLOOKUP(E35,'INSUMOS ORSE'!$A:$D,2,0),IF(D35="SEINFRA",VLOOKUP(E35,'INSUMOS SEINFRA'!$A:$D,2,0),))))) -> ARMAÇÃO DE PILAR OU VIGA DE ESTRUTURA CONVENCIONAL DE CONCRETO ARMADO UTILIZANDO AÇO CA-50 DE 10,0 MM - MONTAGEM. AF_06/2022 | G35: =IF(C35="SERVIÇO",IF(D35="SINAPI",VLOOKUP(E35,'SERVIÇOS SINAPI'!$A:$D,3,0),IF(D35="ORSE",VLOOKUP(E35,'SERVIÇOS ORSE'!$A:$D,3,0),IF(D35="SEINFRA",VLOOKUP(E35,'SERVIÇOS SEINFRA'!$A:$D,3,0)))),IF(C35="INSUMO",IF(D35="SINAPI",VLOOKUP(E35,'INSUMOS SINAPI'!$A:$D,3,0),IF(D35="ORSE",VLOOKUP(E35,'INSUMOS ORSE'!$A:$D,3,0),IF(D35="SEINFRA",VLOOKUP(E35,'INSUMOS SEINFRA'!$A:$D,3,0),))))) -> KG | H35: =H37*50 -> 3 | I35: =IF(C35="SERVIÇO",IF(D35="SINAPI",VLOOKUP(E35,'SERVIÇOS SINAPI'!$A:$D,4,0),IF(D35="ORSE",VLOOKUP(E35,'SERVIÇOS ORSE'!$A:$D,4,0),IF(D35="SEINFRA",VLOOKUP(E35,'SERVIÇOS SEINFRA'!$A:$D,4,0)))),IF(C35="INSUMO",IF(D35="SINAPI",VLOOKUP(E35,'INSUMOS SINAPI'!$A:$D,4,0),IF(D35="ORSE",VLOOKUP(E35,'INSUMOS ORSE'!$A:$D,4,0),IF(D35="SEINFRA",VLOOKUP(E35,'INSUMOS SEINFRA'!$A:$D,4,0),))))) -> 13.44 | J35: =IF(C35="SERVIÇO",I35*(1+$I$8),IF(C35="INSUMO",(I35*(1+$K$8)))) -> 16.48 | K35: =J35*H35 -> 49.44 | L35: 5
B36: 5.2.2 | C36: SERVIÇO | D36: SINAPI | E36: 92526 | F36: =IF(C36="SERVIÇO",IF(D36="SINAPI",VLOOKUP(E36,'SERVIÇOS SINAPI'!$A:$D,2,0),IF(D36="ORSE",VLOOKUP(E36,'SERVIÇOS ORSE'!$A:$D,2,0),IF(D36="SEINFRA",VLOOKUP(E36,'SERVIÇOS SEINFRA'!$A:$D,2,0)))),IF(C36="INSUMO",IF(D36="SINAPI",VLOOKUP(E36,'INSUMOS SINAPI'!$A:$D,2,0),IF(D36="ORSE",VLOOKUP(E36,'INSUMOS ORSE'!$A:$D,2,0),IF(D36="SEINFRA",VLOOKUP(E36,'INSUMOS SEINFRA'!$A:$D,2,0),))))) -> MONTAGEM E DESMONTAGEM DE FÔRMA DE LAJE MACIÇA, PÉ-DIREITO SIMPLES, EM CHAPA DE MADEIRA COMPENSADA PLASTIFICADA, 10 UTILIZAÇÕES. AF_09/2020 | G36: =IF(C36="SERVIÇO",IF(D36="SINAPI",VLOOKUP(E36,'SERVIÇOS SINAPI'!$A:$D,3,0),IF(D36="ORSE",VLOOKUP(E36,'SERVIÇOS ORSE'!$A:$D,3,0),IF(D36="SEINFRA",VLOOKUP(E36,'SERVIÇOS SEINFRA'!$A:$D,3,0)))),IF(C36="INSUMO",IF(D36="SINAPI",VLOOKUP(E36,'INSUMOS SINAPI'!$A:$D,3,0),IF(D36="ORSE",VLOOKUP(E36,'INSUMOS ORSE'!$A:$D,3,0),IF(D36="SEINFRA",VLOOKUP(E36,'INSUMOS SEINFRA'!$A:$D,3,0),))))) -> M² | H36: =(0.15*0.15)*1.9*3 -> 0.13 | I36: =IF(C36="SERVIÇO",IF(D36="SINAPI",VLOOKUP(E36,'SERVIÇOS SINAPI'!$A:$D,4,0),IF(D36="ORSE",VLOOKUP(E36,'SERVIÇOS ORSE'!$A:$D,4,0),IF(D36="SEINFRA",VLOOKUP(E36,'SERVIÇOS SEINFRA'!$A:$D,4,0)))),IF(C36="INSUMO",IF(D36="SINAPI",VLOOKUP(E36,'INSUMOS SINAPI'!$A:$D,4,0),IF(D36="ORSE",VLOOKUP(E36,'INSUMOS ORSE'!$A:$D,4,0),IF(D36="SEINFRA",VLOOKUP(E36,'INSUMOS SEINFRA'!$A:$D,4,0),))))) -> 47.54 | J36: 58.3 | K36: 7.58 | L36: 3
B37: 5.2.3 | C37: SERVIÇO | D37: SINAPI | E37: 94964 | F37: =IF(C37="SERVIÇO",IF(D37="SINAPI",VLOOKUP(E37,'SERVIÇOS SINAPI'!$A:$D,2,0),IF(D37="ORSE",VLOOKUP(E37,'SERVIÇOS ORSE'!$A:$D,2,0),IF(D37="SEINFRA",VLOOKUP(E37,'SERVIÇOS SEINFRA'!$A:$D,2,0)))),IF(C37="INSUMO",IF(D37="SINAPI",VLOOKUP(E37,'INSUMOS SINAPI'!$A:$D,2,0),IF(D37="ORSE",VLOOKUP(E37,'INSUMOS ORSE'!$A:$D,2,0),IF(D37="SEINFRA",VLOOKUP(E37,'INSUMOS SEINFRA'!$A:$D,2,0),))))) -> CONCRETO FCK = 20MPA, TRAÇO 1:2,7:3 (EM MASSA SECA DE CIMENTO/ AREIA MÉDIA/ BRITA 1) - PREPARO MECÂNICO COM BETONEIRA 400 L. AF_05/2021 | G37: =IF(C37="SERVIÇO",IF(D37="SINAPI",VLOOKUP(E37,'SERVIÇOS SINAPI'!$A:$D,3,0),IF(D37="ORSE",VLOOKUP(E37,'SERVIÇOS ORSE'!$A:$D,3,0),IF(D37="SEINFRA",VLOOKUP(E37,'SERVIÇOS SEINFRA'!$A:$D,3,0)))),IF(C37="INSUMO",IF(D37="SINAPI",VLOOKUP(E37,'INSUMOS SINAPI'!$A:$D,3,0),IF(D37="ORSE",VLOOKUP(E37,'INSUMOS ORSE'!$A:$D,3,0),IF(D37="SEINFRA",VLOOKUP(E37,'INSUMOS SEINFRA'!$A:$D,3,0),))))) -> M³ | H37: =(0.09*0.12)*1.9*3 -> 0.06 | I37: =IF(C37="SERVIÇO",IF(D37="SINAPI",VLOOKUP(E37,'SERVIÇOS SINAPI'!$A:$D,4,0),IF(D37="ORSE",VLOOKUP(E37,'SERVIÇOS ORSE'!$A:$D,4,0),IF(D37="SEINFRA",VLOOKUP(E37,'SERVIÇOS SEINFRA'!$A:$D,4,0)))),IF(C37="INSUMO",IF(D37="SINAPI",VLOOKUP(E37,'INSUMOS SINAPI'!$A:$D,4,0),IF(D37="ORSE",VLOOKUP(E37,'INSUMOS ORSE'!$A:$D,4,0),IF(D37="SEINFRA",VLOOKUP(E37,'INSUMOS SEINFRA'!$A:$D,4,0),))))) -> 488.05 | J37: 598.54 | K37: 35.91 | L37: 3
B38: 5.2.4 | C38: SERVIÇO | D38: SINAPI | E38: 103673 | F38: =IF(C38="SERVIÇO",IF(D38="SINAPI",VLOOKUP(E38,'SERVIÇOS SINAPI'!$A:$D,2,0),IF(D38="ORSE",VLOOKUP(E38,'SERVIÇOS ORSE'!$A:$D,2,0),IF(D38="SEINFRA",VLOOKUP(E38,'SERVIÇOS SEINFRA'!$A:$D,2,0)))),IF(C38="INSUMO",IF(D38="SINAPI",VLOOKUP(E38,'INSUMOS SINAPI'!$A:$D,2,0),IF(D38="ORSE",VLOOKUP(E38,'INSUMOS ORSE'!$A:$D,2,0),IF(D38="SEINFRA",VLOOKUP(E38,'INSUMOS SEINFRA'!$A:$D,2,0),))))) -> LANÇAMENTO COM USO DE BOMBA, ADENSAMENTO E ACABAMENTO DE CONCRETO EM ESTRUTURAS. AF_02/2022 | G38: =IF(C38="SERVIÇO",IF(D38="SINAPI",VLOOKUP(E38,'SERVIÇOS SINAPI'!$A:$D,3,0),IF(D38="ORSE",VLOOKUP(E38,'SERVIÇOS ORSE'!$A:$D,3,0),IF(D38="SEINFRA",VLOOKUP(E38,'SERVIÇOS SEINFRA'!$A:$D,3,0)))),IF(C38="INSUMO",IF(D38="SINAPI",VLOOKUP(E38,'INSUMOS SINAPI'!$A:$D,3,0),IF(D38="ORSE",VLOOKUP(E38,'INSUMOS ORSE'!$A:$D,3,0),IF(D38="SEINFRA",VLOOKUP(E38,'INSUMOS SEINFRA'!$A:$D,3,0),))))) -> M³ | H38: =H37 -> 0.06 | I38: =IF(C38="SERVIÇO",IF(D38="SINAPI",VLOOKUP(E38,'SERVIÇOS SINAPI'!$A:$D,4,0),IF(D38="ORSE",VLOOKUP(E38,'SERVIÇOS ORSE'!$A:$D,4,0),IF(D38="SEINFRA",VLOOKUP(E38,'SERVIÇOS SEINFRA'!$A:$D,4,0)))),IF(C38="INSUMO",IF(D38="SINAPI",VLOOKUP(E38,'INSUMOS SINAPI'!$A:$D,4,0),IF(D38="ORSE",VLOOKUP(E38,'INSUMOS ORSE'!$A:$D,4,0),IF(D38="SEINFRA",VLOOKUP(E38,'INSUMOS SEINFRA'!$A:$D,4,0),))))) -> 40.56 | J38: 49.74 | K38: 2.98 | L38: 3
B39: 5.3 | C39: SERVIÇO DE CINTA | K39: =SUM(K40:K43) -> 492.85
B40: 5.3.1 | C40: SERVIÇO | D40: SINAPI | E40: 93205 | F40: =IF(C40="SERVIÇO",IF(D40="SINAPI",VLOOKUP(E40,'SERVIÇOS SINAPI'!$A:$D,2,0),IF(D40="ORSE",VLOOKUP(E40,'SERVIÇOS ORSE'!$A:$D,2,0),IF(D40="SEINFRA",VLOOKUP(E40,'SERVIÇOS SEINFRA'!$A:$D,2,0)))),IF(C40="INSUMO",IF(D40="SINAPI",VLOOKUP(E40,'INSUMOS SINAPI'!$A:$D,2,0),IF(D40="ORSE",VLOOKUP(E40,'INSUMOS ORSE'!$A:$D,2,0),IF(D40="SEINFRA",VLOOKUP(E40,'INSUMOS SEINFRA'!$A:$D,2,0),))))) -> CINTA DE AMARRAÇÃO DE ALVENARIA MOLDADA IN LOCO COM UTILIZAÇÃO DE BLOCOS CANALETA. AF_03/2016 | G40: =IF(C40="SERVIÇO",IF(D40="SINAPI",VLOOKUP(E40,'SERVIÇOS SINAPI'!$A:$D,3,0),IF(D40="ORSE",VLOOKUP(E40,'SERVIÇOS ORSE'!$A:$D,3,0),IF(D40="SEINFRA",VLOOKUP(E40,'SERVIÇOS SEINFRA'!$A:$D,3,0)))),IF(C40="INSUMO",IF(D40="SINAPI",VLOOKUP(E40,'INSUMOS SINAPI'!$A:$D,3,0),IF(D40="ORSE",VLOOKUP(E40,'INSUMOS ORSE'!$A:$D,3,0),IF(D40="SEINFRA",VLOOKUP(E40,'INSUMOS SEINFRA'!$A:$D,3,0),))))) -> M | H40: =(3.14*2.5) -> 7.85 | I40: =IF(C40="SERVIÇO",IF(D40="SINAPI",VLOOKUP(E40,'SERVIÇOS SINAPI'!$A:$D,4,0),IF(D40="ORSE",VLOOKUP(E40,'SERVIÇOS ORSE'!$A:$D,4,0),IF(D40="SEINFRA",VLOOKUP(E40,'SERVIÇOS SEINFRA'!$A:$D,4,0)))),IF(C40="INSUMO",IF(D40="SINAPI",VLOOKUP(E40,'INSUMOS SINAPI'!$A:$D,4,0),IF(D40="ORSE",VLOOKUP(E40,'INSUMOS ORSE'!$A:$D,4,0),IF(D40="SEINFRA",VLOOKUP(E40,'INSUMOS SEINFRA'!$A:$D,4,0),))))) -> 38.96 | J40: =IF(C40="SERVIÇO",I40*(1+$I$8),IF(C40="INSUMO",(I40*(1+$K$8)))) -> 47.78 | K40: =J40*H40 -> 375.07 | L40: 5
B41: 5.3.2 | C41: SERVIÇO | D41: SINAPI | E41: 92762 | F41: =IF(C41="SERVIÇO",IF(D41="SINAPI",VLOOKUP(E41,'SERVIÇOS SINAPI'!$A:$D,2,0),IF(D41="ORSE",VLOOKUP(E41,'SERVIÇOS ORSE'!$A:$D,2,0),IF(D41="SEINFRA",VLOOKUP(E41,'SERVIÇOS SEINFRA'!$A:$D,2,0)))),IF(C41="INSUMO",IF(D41="SINAPI",VLOOKUP(E41,'INSUMOS SINAPI'!$A:$D,2,0),IF(D41="ORSE",VLOOKUP(E41,'INSUMOS ORSE'!$A:$D,2,0),IF(D41="SEINFRA",VLOOKUP(E41,'INSUMOS SEINFRA'!$A:$D,2,0),))))) -> ARMAÇÃO DE PILAR OU VIGA DE ESTRUTURA CONVENCIONAL DE CONCRETO ARMADO UTILIZANDO AÇO CA-50 DE 10,0 MM - MONTAGEM. AF_06/2022 | G41: =IF(C41="SERVIÇO",IF(D41="SINAPI",VLOOKUP(E41,'SERVIÇOS SINAPI'!$A:$D,3,0),IF(D41="ORSE",VLOOKUP(E41,'SERVIÇOS ORSE'!$A:$D,3,0),IF(D41="SEINFRA",VLOOKUP(E41,'SERVIÇOS SEINFRA'!$A:$D,3,0)))),IF(C41="INSUMO",IF(D41="SINAPI",VLOOKUP(E41,'INSUMOS SINAPI'!$A:$D,3,0),IF(D41="ORSE",VLOOKUP(E41,'INSUMOS ORSE'!$A:$D,3,0),IF(D41="SEINFRA",VLOOKUP(E41,'INSUMOS SEINFRA'!$A:$D,3,0),))))) -> KG | H41: =H42*50 -> 4 | I41: =IF(C41="SERVIÇO",IF(D41="SINAPI",VLOOKUP(E41,'SERVIÇOS SINAPI'!$A:$D,4,0),IF(D41="ORSE",VLOOKUP(E41,'SERVIÇOS ORSE'!$A:$D,4,0),IF(D41="SEINFRA",VLOOKUP(E41,'SERVIÇOS SEINFRA'!$A:$D,4,0)))),IF(C41="INSUMO",IF(D41="SINAPI",VLOOKUP(E41,'INSUMOS SINAPI'!$A:$D,4,0),IF(D41="ORSE",VLOOKUP(E41,'INSUMOS ORSE'!$A:$D,4,0),IF(D41="SEINFRA",VLOOKUP(E41,'INSUMOS SEINFRA'!$A:$D,4,0),))))) -> 13.44 | J41: 16.48 | K41: 65.92 | L41: 5
B42: 5.3.3 | C42: SERVIÇO | D42: SINAPI | E42: 94964 | F42: =IF(C42="SERVIÇO",IF(D42="SINAPI",VLOOKUP(E42,'SERVIÇOS SINAPI'!$A:$D,2,0),IF(D42="ORSE",VLOOKUP(E42,'SERVIÇOS ORSE'!$A:$D,2,0),IF(D42="SEINFRA",VLOOKUP(E42,'SERVIÇOS SEINFRA'!$A:$D,2,0)))),IF(C42="INSUMO",IF(D42="SINAPI",VLOOKUP(E42,'INSUMOS SINAPI'!$A:$D,2,0),IF(D42="ORSE",VLOOKUP(E42,'INSUMOS ORSE'!$A:$D,2,0),IF(D42="SEINFRA",VLOOKUP(E42,'INSUMOS SEINFRA'!$A:$D,2,0),))))) -> CONCRETO FCK = 20MPA, TRAÇO 1:2,7:3 (EM MASSA SECA DE CIMENTO/ AREIA MÉDIA/ BRITA 1) - PREPARO MECÂNICO COM BETONEIRA 400 L. AF_05/2021 | G42: =IF(C42="SERVIÇO",IF(D42="SINAPI",VLOOKUP(E42,'SERVIÇOS SINAPI'!$A:$D,3,0),IF(D42="ORSE",VLOOKUP(E42,'SERVIÇOS ORSE'!$A:$D,3,0),IF(D42="SEINFRA",VLOOKUP(E42,'SERVIÇOS SEINFRA'!$A:$D,3,0)))),IF(C42="INSUMO",IF(D42="SINAPI",VLOOKUP(E42,'INSUMOS SINAPI'!$A:$D,3,0),IF(D42="ORSE",VLOOKUP(E42,'INSUMOS ORSE'!$A:$D,3,0),IF(D42="SEINFRA",VLOOKUP(E42,'INSUMOS SEINFRA'!$A:$D,3,0),))))) -> M³ | H42: =(3.14*2.5)*0.12*0.08 -> 0.08 | I42: =IF(C42="SERVIÇO",IF(D42="SINAPI",VLOOKUP(E42,'SERVIÇOS SINAPI'!$A:$D,4,0),IF(D42="ORSE",VLOOKUP(E42,'SERVIÇOS ORSE'!$A:$D,4,0),IF(D42="SEINFRA",VLOOKUP(E42,'SERVIÇOS SEINFRA'!$A:$D,4,0)))),IF(C42="INSUMO",IF(D42="SINAPI",VLOOKUP(E42,'INSUMOS SINAPI'!$A:$D,4,0),IF(D42="ORSE",VLOOKUP(E42,'INSUMOS ORSE'!$A:$D,4,0),IF(D42="SEINFRA",VLOOKUP(E42,'INSUMOS SEINFRA'!$A:$D,4,0),))))) -> 488.05 | J42: 598.54 | K42: 47.88 | L42: 3
B43: 5.3.4 | C43: SERVIÇO | D43: SINAPI | E43: 103673 | F43: =IF(C43="SERVIÇO",IF(D43="SINAPI",VLOOKUP(E43,'SERVIÇOS SINAPI'!$A:$D,2,0),IF(D43="ORSE",VLOOKUP(E43,'SERVIÇOS ORSE'!$A:$D,2,0),IF(D43="SEINFRA",VLOOKUP(E43,'SERVIÇOS SEINFRA'!$A:$D,2,0)))),IF(C43="INSUMO",IF(D43="SINAPI",VLOOKUP(E43,'INSUMOS SINAPI'!$A:$D,2,0),IF(D43="ORSE",VLOOKUP(E43,'INSUMOS ORSE'!$A:$D,2,0),IF(D43="SEINFRA",VLOOKUP(E43,'INSUMOS SEINFRA'!$A:$D,2,0),))))) -> LANÇAMENTO COM USO DE BOMBA, ADENSAMENTO E ACABAMENTO DE CONCRETO EM ESTRUTURAS. AF_02/2022 | G43: =IF(C43="SERVIÇO",IF(D43="SINAPI",VLOOKUP(E43,'SERVIÇOS SINAPI'!$A:$D,3,0),IF(D43="ORSE",VLOOKUP(E43,'SERVIÇOS ORSE'!$A:$D,3,0),IF(D43="SEINFRA",VLOOKUP(E43,'SERVIÇOS SEINFRA'!$A:$D,3,0)))),IF(C43="INSUMO",IF(D43="SINAPI",VLOOKUP(E43,'INSUMOS SINAPI'!$A:$D,3,0),IF(D43="ORSE",VLOOKUP(E43,'INSUMOS ORSE'!$A:$D,3,0),IF(D43="SEINFRA",VLOOKUP(E43,'INSUMOS SEINFRA'!$A:$D,3,0),))))) -> M³ | H43: =H42 -> 0.08 | I43: =IF(C43="SERVIÇO",IF(D43="SINAPI",VLOOKUP(E43,'SERVIÇOS SINAPI'!$A:$D,4,0),IF(D43="ORSE",VLOOKUP(E43,'SERVIÇOS ORSE'!$A:$D,4,0),IF(D43="SEINFRA",VLOOKUP(E43,'SERVIÇOS SEINFRA'!$A:$D,4,0)))),IF(C43="INSUMO",IF(D43="SINAPI",VLOOKUP(E43,'INSUMOS SINAPI'!$A:$D,4,0),IF(D43="ORSE",VLOOKUP(E43,'INSUMOS ORSE'!$A:$D,4,0),IF(D43="SEINFRA",VLOOKUP(E43,'INSUMOS SEINFRA'!$A:$D,4,0),))))) -> 40.56 | J43: 49.74 | K43: 3.98 | L43: 3
B44: 6 | C44: SERVIÇO DE ALVENARIA DA CÂMARA DO BIODIGESTOR | K44: =K45+K51+K58 -> 4310.8
B45: 6.1 | C45: CÂMARA DE ARMAZENAMENTO DE GÁS | K45: =SUM(K46:K50) -> 3061.82
B46: 6.1.1 | C46: SERVIÇO | D46: SINAPI | E46: 103322 | F46: =IF(C46="SERVIÇO",IF(D46="SINAPI",VLOOKUP(E46,'SERVIÇOS SINAPI'!$A:$D,2,0),IF(D46="ORSE",VLOOKUP(E46,'SERVIÇOS ORSE'!$A:$D,2,0),IF(D46="SEINFRA",VLOOKUP(E46,'SERVIÇOS SEINFRA'!$A:$D,2,0)))),IF(C46="INSUMO",IF(D46="SINAPI",VLOOKUP(E46,'INSUMOS SINAPI'!$A:$D,2,0),IF(D46="ORSE",VLOOKUP(E46,'INSUMOS ORSE'!$A:$D,2,0),IF(D46="SEINFRA",VLOOKUP(E46,'INSUMOS SEINFRA'!$A:$D,2,0),))))) -> ALVENARIA DE VEDAÇÃO DE BLOCOS CERÂMICOS FURADOS NA VERTICAL DE 9X19X39 CM (ESPESSURA 9 CM) E ARGAMASSA DE ASSENTAMENTO COM PREPARO EM BETONEIRA. AF_12/2021 | G46: =IF(C46="SERVIÇO",IF(D46="SINAPI",VLOOKUP(E46,'SERVIÇOS SINAPI'!$A:$D,3,0),IF(D46="ORSE",VLOOKUP(E46,'SERVIÇOS ORSE'!$A:$D,3,0),IF(D46="SEINFRA",VLOOKUP(E46,'SERVIÇOS SEINFRA'!$A:$D,3,0)))),IF(C46="INSUMO",IF(D46="SINAPI",VLOOKUP(E46,'INSUMOS SINAPI'!$A:$D,3,0),IF(D46="ORSE",VLOOKUP(E46,'INSUMOS ORSE'!$A:$D,3,0),IF(D46="SEINFRA",VLOOKUP(E46,'INSUMOS SEINFRA'!$A:$D,3,0),))))) -> M² | H46: =(3.14*2.5)*2 -> 15.7 | I46: =IF(C46="SERVIÇO",IF(D46="SINAPI",VLOOKUP(E46,'SERVIÇOS SINAPI'!$A:$D,4,0),IF(D46="ORSE",VLOOKUP(E46,'SERVIÇOS ORSE'!$A:$D,4,0),IF(D46="SEINFRA",VLOOKUP(E46,'SERVIÇOS SEINFRA'!$A:$D,4,0)))),IF(C46="INSUMO",IF(D46="SINAPI",VLOOKUP(E46,'INSUMOS SINAPI'!$A:$D,4,0),IF(D46="ORSE",VLOOKUP(E46,'INSUMOS ORSE'!$A:$D,4,0),IF(D46="SEINFRA",VLOOKUP(E46,'INSUMOS SEINFRA'!$A:$D,4,0),))))) -> 47.73 | J46: =IF(C46="SERVIÇO",I46*(1+$I$8),IF(C46="INSUMO",(I46*(1+$K$8)))) -> 58.54 | K46: =J46*H46 -> 919.08 | L46: 2
B47: 6.1.2 | C47: SERVIÇO | D47: SINAPI | E47: 87897 | F47: =IF(C47="SERVIÇO",IF(D47="SINAPI",VLOOKUP(E47,'SERVIÇOS SINAPI'!$A:$D,2,0),IF(D47="ORSE",VLOOKUP(E47,'SERVIÇOS ORSE'!$A:$D,2,0),IF(D47="SEINFRA",VLOOKUP(E47,'SERVIÇOS SEINFRA'!$A:$D,2,0)))),IF(C47="INSUMO",IF(D47="SINAPI",VLOOKUP(E47,'INSUMOS SINAPI'!$A:$D,2,0),IF(D47="ORSE",VLOOKUP(E47,'INSUMOS ORSE'!$A:$D,2,0),IF(D47="SEINFRA",VLOOKUP(E47,'INSUMOS SEINFRA'!$A:$D,2,0),))))) -> CHAPISCO APLICADO EM ALVENARIA (SEM PRESENÇA DE VÃOS) E ESTRUTURAS DE CONCRETO DE FACHADA, COM EQUIPAMENTO DE PROJEÇÃO. ARGAMASSA TRAÇO 1:3 COM PREPARO EM BETONEIRA 400 L. AF_10/2022 | G47: =IF(C47="SERVIÇO",IF(D47="SINAPI",VLOOKUP(E47,'SERVIÇOS SINAPI'!$A:$D,3,0),IF(D47="ORSE",VLOOKUP(E47,'SERVIÇOS ORSE'!$A:$D,3,0),IF(D47="SEINFRA",VLOOKUP(E47,'SERVIÇOS SEINFRA'!$A:$D,3,0)))),IF(C47="INSUMO",IF(D47="SINAPI",VLOOKUP(E47,'INSUMOS SINAPI'!$A:$D,3,0),IF(D47="ORSE",VLOOKUP(E47,'INSUMOS ORSE'!$A:$D,3,0),IF(D47="SEINFRA",VLOOKUP(E47,'INSUMOS SEINFRA'!$A:$D,3,0),))))) -> M² | H47: =H46*2 -> 31.4 | I47: =IF(C47="SERVIÇO",IF(D47="SINAPI",VLOOKUP(E47,'SERVIÇOS SINAPI'!$A:$D,4,0),IF(D47="ORSE",VLOOKUP(E47,'SERVIÇOS ORSE'!$A:$D,4,0),IF(D47="SEINFRA",VLOOKUP(E47,'SERVIÇOS SEINFRA'!$A:$D,4,0)))),IF(C47="INSUMO",IF(D47="SINAPI",VLOOKUP(E47,'INSUMOS SINAPI'!$A:$D,4,0),IF(D47="ORSE",VLOOKUP(E47,'INSUMOS ORSE'!$A:$D,4,0),IF(D47="SEINFRA",VLOOKUP(E47,'INSUMOS SEINFRA'!$A:$D,4,0),))))) -> 4.97 | J47: 6.1 | K47: 191.54 | L47: 2
B48: 6.1.3 | C48: SERVIÇO | D48: SINAPI | E48: 87547 | F48: =IF(C48="SERVIÇO",IF(D48="SINAPI",VLOOKUP(E48,'SERVIÇOS SINAPI'!$A:$D,2,0),IF(D48="ORSE",VLOOKUP(E48,'SERVIÇOS ORSE'!$A:$D,2,0),IF(D48="SEINFRA",VLOOKUP(E48,'SERVIÇOS SEINFRA'!$A:$D,2,0)))),IF(C48="INSUMO",IF(D48="SINAPI",VLOOKUP(E48,'INSUMOS SINAPI'!$A:$D,2,0),IF(D48="ORSE",VLOOKUP(E48,'INSUMOS ORSE'!$A:$D,2,0),IF(D48="SEINFRA",VLOOKUP(E48,'INSUMOS SEINFRA'!$A:$D,2,0),))))) -> MASSA ÚNICA, PARA RECEBIMENTO DE PINTURA, EM ARGAMASSA TRAÇO 1:2:8, PREPARO MECÂNICO COM BETONEIRA 400L, APLICADA MANUALMENTE EM FACES INTERNAS DE PAREDES, ESPESSURA DE 10MM, COM EXECUÇÃO DE TALISCAS. AF_06/2014 | G48: =IF(C48="SERVIÇO",IF(D48="SINAPI",VLOOKUP(E48,'SERVIÇOS SINAPI'!$A:$D,3,0),IF(D48="ORSE",VLOOKUP(E48,'SERVIÇOS ORSE'!$A:$D,3,0),IF(D48="SEINFRA",VLOOKUP(E48,'SERVIÇOS SEINFRA'!$A:$D,3,0)))),IF(C48="INSUMO",IF(D48="SINAPI",VLOOKUP(E48,'INSUMOS SINAPI'!$A:$D,3,0),IF(D48="ORSE",VLOOKUP(E48,'INSUMOS ORSE'!$A:$D,3,0),IF(D48="SEINFRA",VLOOKUP(E48,'INSUMOS SEINFRA'!$A:$D,3,0),))))) -> M² | H48: =H46+H46*0.6 -> 25.12 | I48: =IF(C48="SERVIÇO",IF(D48="SINAPI",VLOOKUP(E48,'SERVIÇOS SINAPI'!$A:$D,4,0),IF(D48="ORSE",VLOOKUP(E48,'SERVIÇOS ORSE'!$A:$D,4,0),IF(D48="SEINFRA",VLOOKUP(E48,'SERVIÇOS SEINFRA'!$A:$D,4,0)))),IF(C48="INSUMO",IF(D48="SINAPI",VLOOKUP(E48,'INSUMOS SINAPI'!$A:$D,4,0),IF(D48="ORSE",VLOOKUP(E48,'INSUMOS ORSE'!$A:$D,4,0),IF(D48="SEINFRA",VLOOKUP(E48,'INSUMOS SEINFRA'!$A:$D,4,0),))))) -> 26.49 | J48: 32.49 | K48: 816.15 | L48: 2
B49: 6.1.4 | C49: SERVIÇO | D49: SINAPI | E49: 94993 | F49: =IF(C49="SERVIÇO",IF(D49="SINAPI",VLOOKUP(E49,'SERVIÇOS SINAPI'!$A:$D,2,0),IF(D49="ORSE",VLOOKUP(E49,'SERVIÇOS ORSE'!$A:$D,2,0),IF(D49="SEINFRA",VLOOKUP(E49,'SERVIÇOS SEINFRA'!$A:$D,2,0)))),IF(C49="INSUMO",IF(D49="SINAPI",VLOOKUP(E49,'INSUMOS SINAPI'!$A:$D,2,0),IF(D49="ORSE",VLOOKUP(E49,'INSUMOS ORSE'!$A:$D,2,0),IF(D49="SEINFRA",VLOOKUP(E49,'INSUMOS SEINFRA'!$A:$D,2,0),))))) -> EXECUÇÃO DE PASSEIO (CALÇADA) OU PISO DE CONCRETO COM CONCRETO MOLDADO IN LOCO, USINADO, ACABAMENTO CONVENCIONAL, ESPESSURA 6 CM, ARMADO. AF_08/2022 | G49: =IF(C49="SERVIÇO",IF(D49="SINAPI",VLOOKUP(E49,'SERVIÇOS SINAPI'!$A:$D,3,0),IF(D49="ORSE",VLOOKUP(E49,'SERVIÇOS ORSE'!$A:$D,3,0),IF(D49="SEINFRA",VLOOKUP(E49,'SERVIÇOS SEINFRA'!$A:$D,3,0)))),IF(C49="INSUMO",IF(D49="SINAPI",VLOOKUP(E49,'INSUMOS SINAPI'!$A:$D,3,0),IF(D49="ORSE",VLOOKUP(E49,'INSUMOS ORSE'!$A:$D,3,0),IF(D49="SEINFRA",VLOOKUP(E49,'INSUMOS SEINFRA'!$A:$D,3,0),))))) -> M² | H49: =((3.14*2.5)*1.5) -> 11.78 | I49: =IF(C49="SERVIÇO",IF(D49="SINAPI",VLOOKUP(E49,'SERVIÇOS SINAPI'!$A:$D,4,0),IF(D49="ORSE",VLOOKUP(E49,'SERVIÇOS ORSE'!$A:$D,4,0),IF(D49="SEINFRA",VLOOKUP(E49,'SERVIÇOS SEINFRA'!$A:$D,4,0)))),IF(C49="INSUMO",IF(D49="SINAPI",VLOOKUP(E49,'INSUMOS SINAPI'!$A:$D,4,0),IF(D49="ORSE",VLOOKUP(E49,'INSUMOS ORSE'!$A:$D,4,0),IF(D49="SEINFRA",VLOOKUP(E49,'INSUMOS SEINFRA'!$A:$D,4,0),))))) -> 72.93 | J49: 89.44 | K49: 1053.6 | L49: 2
B50: 6.1.5 | C50: SERVIÇO | D50: SEINFRA | E50: C0588 | F50: =IF(C50="SERVIÇO",IF(D50="SINAPI",VLOOKUP(E50,'SERVIÇOS SINAPI'!$A:$D,2,0),IF(D50="ORSE",VLOOKUP(E50,'SERVIÇOS ORSE'!$A:$D,2,0),IF(D50="SEINFRA",VLOOKUP(E50,'SERVIÇOS SEINFRA'!$A:$D,2,0)))),IF(C50="INSUMO",IF(D50="SINAPI",VLOOKUP(E50,'INSUMOS SINAPI'!$A:$D,2,0),IF(D50="ORSE",VLOOKUP(E50,'INSUMOS ORSE'!$A:$D,2,0),IF(D50="SEINFRA",VLOOKUP(E50,'INSUMOS SEINFRA'!$A:$D,2,0),))))) -> CAIAÇÃO EM DUAS DEMÃOS COM SUPERCAL | G50: =IF(C50="SERVIÇO",IF(D50="SINAPI",VLOOKUP(E50,'SERVIÇOS SINAPI'!$A:$D,3,0),IF(D50="ORSE",VLOOKUP(E50,'SERVIÇOS ORSE'!$A:$D,3,0),IF(D50="SEINFRA",VLOOKUP(E50,'SERVIÇOS SEINFRA'!$A:$D,3,0)))),IF(C50="INSUMO",IF(D50="SINAPI",VLOOKUP(E50,'INSUMOS SINAPI'!$A:$D,3,0),IF(D50="ORSE",VLOOKUP(E50,'INSUMOS ORSE'!$A:$D,3,0),IF(D50="SEINFRA",VLOOKUP(E50,'INSUMOS SEINFRA'!$A:$D,3,0),))))) -> M² | H50: =(H46*0.6)+H52+H59 -> 13.33 | I50: =IF(C50="SERVIÇO",IF(D50="SINAPI",VLOOKUP(E50,'SERVIÇOS SINAPI'!$A:$D,4,0),IF(D50="ORSE",VLOOKUP(E50,'SERVIÇOS ORSE'!$A:$D,4,0),IF(D50="SEINFRA",VLOOKUP(E50,'SERVIÇOS SEINFRA'!$A:$D,4,0)))),IF(C50="INSUMO",IF(D50="SINAPI",VLOOKUP(E50,'INSUMOS SINAPI'!$A:$D,4,0),IF(D50="ORSE",VLOOKUP(E50,'INSUMOS ORSE'!$A:$D,4,0),IF(D50="SEINFRA",VLOOKUP(E50,'INSUMOS SEINFRA'!$A:$D,4,0),))))) -> 4.98 | J50: 6.11 | K50: 81.45 | L50: 2
B51: 6.2 | C51: CAIXA DE CARGA | K51: =SUM(K52:K57) -> 399.91
B52: 6.2.1 | C52: SERVIÇO | D52: SINAPI | E52: 103322 | F52: =IF(C52="SERVIÇO",IF(D52="SINAPI",VLOOKUP(E52,'SERVIÇOS SINAPI'!$A:$D,2,0),IF(D52="ORSE",VLOOKUP(E52,'SERVIÇOS ORSE'!$A:$D,2,0),IF(D52="SEINFRA",VLOOKUP(E52,'SERVIÇOS SEINFRA'!$A:$D,2,0)))),IF(C52="INSUMO",IF(D52="SINAPI",VLOOKUP(E52,'INSUMOS SINAPI'!$A:$D,2,0),IF(D52="ORSE",VLOOKUP(E52,'INSUMOS ORSE'!$A:$D,2,0),IF(D52="SEINFRA",VLOOKUP(E52,'INSUMOS SEINFRA'!$A:$D,2,0),))))) -> ALVENARIA DE VEDAÇÃO DE BLOCOS CERÂMICOS FURADOS NA VERTICAL DE 9X19X39 CM (ESPESSURA 9 CM) E ARGAMASSA DE ASSENTAMENTO COM PREPARO EM BETONEIRA. AF_12/2021 | G52: =IF(C52="SERVIÇO",IF(D52="SINAPI",VLOOKUP(E52,'SERVIÇOS SINAPI'!$A:$D,3,0),IF(D52="ORSE",VLOOKUP(E52,'SERVIÇOS ORSE'!$A:$D,3,0),IF(D52="SEINFRA",VLOOKUP(E52,'SERVIÇOS SEINFRA'!$A:$D,3,0)))),IF(C52="INSUMO",IF(D52="SINAPI",VLOOKUP(E52,'INSUMOS SINAPI'!$A:$D,3,0),IF(D52="ORSE",VLOOKUP(E52,'INSUMOS ORSE'!$A:$D,3,0),IF(D52="SEINFRA",VLOOKUP(E52,'INSUMOS SEINFRA'!$A:$D,3,0),))))) -> M² | H52: =(3.14*0.5)*0.8 -> 1.26 | I52: =IF(C52="SERVIÇO",IF(D52="SINAPI",VLOOKUP(E52,'SERVIÇOS SINAPI'!$A:$D,4,0),IF(D52="ORSE",VLOOKUP(E52,'SERVIÇOS ORSE'!$A:$D,4,0),IF(D52="SEINFRA",VLOOKUP(E52,'SERVIÇOS SEINFRA'!$A:$D,4,0)))),IF(C52="INSUMO",IF(D52="SINAPI",VLOOKUP(E52,'INSUMOS SINAPI'!$A:$D,4,0),IF(D52="ORSE",VLOOKUP(E52,'INSUMOS ORSE'!$A:$D,4,0),IF(D52="SEINFRA",VLOOKUP(E52,'INSUMOS SEINFRA'!$A:$D,4,0),))))) -> 47.73 | J52: =IF(C52="SERVIÇO",I52*(1+$I$8),IF(C52="INSUMO",(I52*(1+$K$8)))) -> 58.54 | K52: =J52*H52 -> 73.76 | L52: 2
B53: 6.2.2 | C53: SERVIÇO | D53: SINAPI | E53: 87897 | F53: =IF(C53="SERVIÇO",IF(D53="SINAPI",VLOOKUP(E53,'SERVIÇOS SINAPI'!$A:$D,2,0),IF(D53="ORSE",VLOOKUP(E53,'SERVIÇOS ORSE'!$A:$D,2,0),IF(D53="SEINFRA",VLOOKUP(E53,'SERVIÇOS SEINFRA'!$A:$D,2,0)))),IF(C53="INSUMO",IF(D53="SINAPI",VLOOKUP(E53,'INSUMOS SINAPI'!$A:$D,2,0),IF(D53="ORSE",VLOOKUP(E53,'INSUMOS ORSE'!$A:$D,2,0),IF(D53="SEINFRA",VLOOKUP(E53,'INSUMOS SEINFRA'!$A:$D,2,0),))))) -> CHAPISCO APLICADO EM ALVENARIA (SEM PRESENÇA DE VÃOS) E ESTRUTURAS DE CONCRETO DE FACHADA, COM EQUIPAMENTO DE PROJEÇÃO. ARGAMASSA TRAÇO 1:3 COM PREPARO EM BETONEIRA 400 L. AF_10/2022 | G53: =IF(C53="SERVIÇO",IF(D53="SINAPI",VLOOKUP(E53,'SERVIÇOS SINAPI'!$A:$D,3,0),IF(D53="ORSE",VLOOKUP(E53,'SERVIÇOS ORSE'!$A:$D,3,0),IF(D53="SEINFRA",VLOOKUP(E53,'SERVIÇOS SEINFRA'!$A:$D,3,0)))),IF(C53="INSUMO",IF(D53="SINAPI",VLOOKUP(E53,'INSUMOS SINAPI'!$A:$D,3,0),IF(D53="ORSE",VLOOKUP(E53,'INSUMOS ORSE'!$A:$D,3,0),IF(D53="SEINFRA",VLOOKUP(E53,'INSUMOS SEINFRA'!$A:$D,3,0),))))) -> M² | H53: =H52*2 -> 2.52 | I53: =IF(C53="SERVIÇO",IF(D53="SINAPI",VLOOKUP(E53,'SERVIÇOS SINAPI'!$A:$D,4,0),IF(D53="ORSE",VLOOKUP(E53,'SERVIÇOS ORSE'!$A:$D,4,0),IF(D53="SEINFRA",VLOOKUP(E53,'SERVIÇOS SEINFRA'!$A:$D,4,0)))),IF(C53="INSUMO",IF(D53="SINAPI",VLOOKUP(E53,'INSUMOS SINAPI'!$A:$D,4,0),IF(D53="ORSE",VLOOKUP(E53,'INSUMOS ORSE'!$A:$D,4,0),IF(D53="SEINFRA",VLOOKUP(E53,'INSUMOS SEINFRA'!$A:$D,4,0),))))) -> 4.97 | J53: 6.1 | K53: 15.37 | L53: 2
B54: 6.2.3 | C54: SERVIÇO | D54: SINAPI | E54: 87547 | F54: =IF(C54="SERVIÇO",IF(D54="SINAPI",VLOOKUP(E54,'SERVIÇOS SINAPI'!$A:$D,2,0),IF(D54="ORSE",VLOOKUP(E54,'SERVIÇOS ORSE'!$A:$D,2,0),IF(D54="SEINFRA",VLOOKUP(E54,'SERVIÇOS SEINFRA'!$A:$D,2,0)))),IF(C54="INSUMO",IF(D54="SINAPI",VLOOKUP(E54,'INSUMOS SINAPI'!$A:$D,2,0),IF(D54="ORSE",VLOOKUP(E54,'INSUMOS ORSE'!$A:$D,2,0),IF(D54="SEINFRA",VLOOKUP(E54,'INSUMOS SEINFRA'!$A:$D,2,0),))))) -> MASSA ÚNICA, PARA RECEBIMENTO DE PINTURA, EM ARGAMASSA TRAÇO 1:2:8, PREPARO MECÂNICO COM BETONEIRA 400L, APLICADA MANUALMENTE EM FACES INTERNAS DE PAREDES, ESPESSURA DE 10MM, COM EXECUÇÃO DE TALISCAS. AF_06/2014 | G54: =IF(C54="SERVIÇO",IF(D54="SINAPI",VLOOKUP(E54,'SERVIÇOS SINAPI'!$A:$D,3,0),IF(D54="ORSE",VLOOKUP(E54,'SERVIÇOS ORSE'!$A:$D,3,0),IF(D54="SEINFRA",VLOOKUP(E54,'SERVIÇOS SEINFRA'!$A:$D,3,0)))),IF(C54="INSUMO",IF(D54="SINAPI",VLOOKUP(E54,'INSUMOS SINAPI'!$A:$D,3,0),IF(D54="ORSE",VLOOKUP(E54,'INSUMOS ORSE'!$A:$D,3,0),IF(D54="SEINFRA",VLOOKUP(E54,'INSUMOS SEINFRA'!$A:$D,3,0),))))) -> M² | H54: =H52*2 -> 2.52 | I54: =IF(C54="SERVIÇO",IF(D54="SINAPI",VLOOKUP(E54,'SERVIÇOS SINAPI'!$A:$D,4,0),IF(D54="ORSE",VLOOKUP(E54,'SERVIÇOS ORSE'!$A:$D,4,0),IF(D54="SEINFRA",VLOOKUP(E54,'SERVIÇOS SEINFRA'!$A:$D,4,0)))),IF(C54="INSUMO",IF(D54="SINAPI",VLOOKUP(E54,'INSUMOS SINAPI'!$A:$D,4,0),IF(D54="ORSE",VLOOKUP(E54,'INSUMOS ORSE'!$A:$D,4,0),IF(D54="SEINFRA",VLOOKUP(E54,'INSUMOS SEINFRA'!$A:$D,4,0),))))) -> 26.49 | J54: 32.49 | K54: 81.87 | L54: 2
B55: 6.2.4 | C55: SERVIÇO | D55: SINAPI | E55: 94962 | F55: =IF(C55="SERVIÇO",IF(D55="SINAPI",VLOOKUP(E55,'SERVIÇOS SINAPI'!$A:$D,2,0),IF(D55="ORSE",VLOOKUP(E55,'SERVIÇOS ORSE'!$A:$D,2,0),IF(D55="SEINFRA",VLOOKUP(E55,'SERVIÇOS SEINFRA'!$A:$D,2,0)))),IF(C55="INSUMO",IF(D55="SINAPI",VLOOKUP(E55,'INSUMOS SINAPI'!$A:$D,2,0),IF(D55="ORSE",VLOOKUP(E55,'INSUMOS ORSE'!$A:$D,2,0),IF(D55="SEINFRA",VLOOKUP(E55,'INSUMOS SEINFRA'!$A:$D,2,0),))))) -> CONCRETO MAGRO PARA LASTRO, TRAÇO 1:4,5:4,5 (EM MASSA SECA DE CIMENTO/ AREIA MÉDIA/ BRITA 1) - PREPARO MECÂNICO COM BETONEIRA 400 L. AF_05/2021 | G55: =IF(C55="SERVIÇO",IF(D55="SINAPI",VLOOKUP(E55,'SERVIÇOS SINAPI'!$A:$D,3,0),IF(D55="ORSE",VLOOKUP(E55,'SERVIÇOS ORSE'!$A:$D,3,0),IF(D55="SEINFRA",VLOOKUP(E55,'SERVIÇOS SEINFRA'!$A:$D,3,0)))),IF(C55="INSUMO",IF(D55="SINAPI",VLOOKUP(E55,'INSUMOS SINAPI'!$A:$D,3,0),IF(D55="ORSE",VLOOKUP(E55,'INSUMOS ORSE'!$A:$D,3,0),IF(D55="SEINFRA",VLOOKUP(E55,'INSUMOS SEINFRA'!$A:$D,3,0),))))) -> M³ | H55: =(3.14*0.5)*0.1 -> 0.16 | I55: =IF(C55="SERVIÇO",IF(D55="SINAPI",VLOOKUP(E55,'SERVIÇOS SINAPI'!$A:$D,4,0),IF(D55="ORSE",VLOOKUP(E55,'SERVIÇOS ORSE'!$A:$D,4,0),IF(D55="SEINFRA",VLOOKUP(E55,'SERVIÇOS SEINFRA'!$A:$D,4,0)))),IF(C55="INSUMO",IF(D55="SINAPI",VLOOKUP(E55,'INSUMOS SINAPI'!$A:$D,4,0),IF(D55="ORSE",VLOOKUP(E55,'INSUMOS ORSE'!$A:$D,4,0),IF(D55="SEINFRA",VLOOKUP(E55,'INSUMOS SEINFRA'!$A:$D,4,0),))))) -> 411.72 | J55: 504.93 | K55: 80.79 | L55: 5
B56: 6.2.5 | C56: SERVIÇO | D56: SINAPI | E56: 94993 | F56: =IF(C56="SERVIÇO",IF(D56="SINAPI",VLOOKUP(E56,'SERVIÇOS SINAPI'!$A:$D,2,0),IF(D56="ORSE",VLOOKUP(E56,'SERVIÇOS ORSE'!$A:$D,2,0),IF(D56="SEINFRA",VLOOKUP(E56,'SERVIÇOS SEINFRA'!$A:$D,2,0)))),IF(C56="INSUMO",IF(D56="SINAPI",VLOOKUP(E56,'INSUMOS SINAPI'!$A:$D,2,0),IF(D56="ORSE",VLOOKUP(E56,'INSUMOS ORSE'!$A:$D,2,0),IF(D56="SEINFRA",VLOOKUP(E56,'INSUMOS SEINFRA'!$A:$D,2,0),))))) -> EXECUÇÃO DE PASSEIO (CALÇADA) OU PISO DE CONCRETO COM CONCRETO MOLDADO IN LOCO, USINADO, ACABAMENTO CONVENCIONAL, ESPESSURA 6 CM, ARMADO. AF_08/2022 | G56: =IF(C56="SERVIÇO",IF(D56="SINAPI",VLOOKUP(E56,'SERVIÇOS SINAPI'!$A:$D,3,0),IF(D56="ORSE",VLOOKUP(E56,'SERVIÇOS ORSE'!$A:$D,3,0),IF(D56="SEINFRA",VLOOKUP(E56,'SERVIÇOS SEINFRA'!$A:$D,3,0)))),IF(C56="INSUMO",IF(D56="SINAPI",VLOOKUP(E56,'INSUMOS SINAPI'!$A:$D,3,0),IF(D56="ORSE",VLOOKUP(E56,'INSUMOS ORSE'!$A:$D,3,0),IF(D56="SEINFRA",VLOOKUP(E56,'INSUMOS SEINFRA'!$A:$D,3,0),))))) -> M² | H56: =(3.14*0.5)*1 -> 1.57 | I56: =IF(C56="SERVIÇO",IF(D56="SINAPI",VLOOKUP(E56,'SERVIÇOS SINAPI'!$A:$D,4,0),IF(D56="ORSE",VLOOKUP(E56,'SERVIÇOS ORSE'!$A:$D,4,0),IF(D56="SEINFRA",VLOOKUP(E56,'SERVIÇOS SEINFRA'!$A:$D,4,0)))),IF(C56="INSUMO",IF(D56="SINAPI",VLOOKUP(E56,'INSUMOS SINAPI'!$A:$D,4,0),IF(D56="ORSE",VLOOKUP(E56,'INSUMOS ORSE'!$A:$D,4,0),IF(D56="SEINFRA",VLOOKUP(E56,'INSUMOS SEINFRA'!$A:$D,4,0),))))) -> 72.93 | J56: 89.44 | K56: 140.42 | L56: 2
B57: 6.2.6 | C57: SERVIÇO | D57: SEINFRA | E57: C0588 | F57: =IF(C57="SERVIÇO",IF(D57="SINAPI",VLOOKUP(E57,'SERVIÇOS SINAPI'!$A:$D,2,0),IF(D57="ORSE",VLOOKUP(E57,'SERVIÇOS ORSE'!$A:$D,2,0),IF(D57="SEINFRA",VLOOKUP(E57,'SERVIÇOS SEINFRA'!$A:$D,2,0)))),IF(C57="INSUMO",IF(D57="SINAPI",VLOOKUP(E57,'INSUMOS SINAPI'!$A:$D,2,0),IF(D57="ORSE",VLOOKUP(E57,'INSUMOS ORSE'!$A:$D,2,0),IF(D57="SEINFRA",VLOOKUP(E57,'INSUMOS SEINFRA'!$A:$D,2,0),))))) -> CAIAÇÃO EM DUAS DEMÃOS COM SUPERCAL | G57: =IF(C57="SERVIÇO",IF(D57="SINAPI",VLOOKUP(E57,'SERVIÇOS SINAPI'!$A:$D,3,0),IF(D57="ORSE",VLOOKUP(E57,'SERVIÇOS ORSE'!$A:$D,3,0),IF(D57="SEINFRA",VLOOKUP(E57,'SERVIÇOS SEINFRA'!$A:$D,3,0)))),IF(C57="INSUMO",IF(D57="SINAPI",VLOOKUP(E57,'INSUMOS SINAPI'!$A:$D,3,0),IF(D57="ORSE",VLOOKUP(E57,'INSUMOS ORSE'!$A:$D,3,0),IF(D57="SEINFRA",VLOOKUP(E57,'INSUMOS SEINFRA'!$A:$D,3,0),))))) -> M² | H57: =H52 -> 1.26 | I57: =IF(C57="SERVIÇO",IF(D57="SINAPI",VLOOKUP(E57,'SERVIÇOS SINAPI'!$A:$D,4,0),IF(D57="ORSE",VLOOKUP(E57,'SERVIÇOS ORSE'!$A:$D,4,0),IF(D57="SEINFRA",VLOOKUP(E57,'SERVIÇOS SEINFRA'!$A:$D,4,0)))),IF(C57="INSUMO",IF(D57="SINAPI",VLOOKUP(E57,'INSUMOS SINAPI'!$A:$D,4,0),IF(D57="ORSE",VLOOKUP(E57,'INSUMOS ORSE'!$A:$D,4,0),IF(D57="SEINFRA",VLOOKUP(E57,'INSUMOS SEINFRA'!$A:$D,4,0),))))) -> 4.98 | J57: =IF(C57="SERVIÇO",I57*(1+$I$8),IF(C57="INSUMO",(I57*(1+$K$8)))) -> 6.11 | K57: =J57*H57 -> 7.7 | L57: 2
B58: 6.3 | C58: CAIXA DE DESCARGA | K58: =SUM(K59:K64) -> 849.07
B59: 6.3.1 | C59: SERVIÇO | D59: SINAPI | E59: 103322 | F59: =IF(C59="SERVIÇO",IF(D59="SINAPI",VLOOKUP(E59,'SERVIÇOS SINAPI'!$A:$D,2,0),IF(D59="ORSE",VLOOKUP(E59,'SERVIÇOS ORSE'!$A:$D,2,0),IF(D59="SEINFRA",VLOOKUP(E59,'SERVIÇOS SEINFRA'!$A:$D,2,0)))),IF(C59="INSUMO",IF(D59="SINAPI",VLOOKUP(E59,'INSUMOS SINAPI'!$A:$D,2,0),IF(D59="ORSE",VLOOKUP(E59,'INSUMOS ORSE'!$A:$D,2,0),IF(D59="SEINFRA",VLOOKUP(E59,'INSUMOS SEINFRA'!$A:$D,2,0),))))) -> ALVENARIA DE VEDAÇÃO DE BLOCOS CERÂMICOS FURADOS NA VERTICAL DE 9X19X39 CM (ESPESSURA 9 CM) E ARGAMASSA DE ASSENTAMENTO COM PREPARO EM BETONEIRA. AF_12/2021 | G59: =IF(C59="SERVIÇO",IF(D59="SINAPI",VLOOKUP(E59,'SERVIÇOS SINAPI'!$A:$D,3,0),IF(D59="ORSE",VLOOKUP(E59,'SERVIÇOS ORSE'!$A:$D,3,0),IF(D59="SEINFRA",VLOOKUP(E59,'SERVIÇOS SEINFRA'!$A:$D,3,0)))),IF(C59="INSUMO",IF(D59="SINAPI",VLOOKUP(E59,'INSUMOS SINAPI'!$A:$D,3,0),IF(D59="ORSE",VLOOKUP(E59,'INSUMOS ORSE'!$A:$D,3,0),IF(D59="SEINFRA",VLOOKUP(E59,'INSUMOS SEINFRA'!$A:$D,3,0),))))) -> M² | H59: =((0.7+0.7+1+1)*0.5)+((0.7+0.6+0.6)*0.5) -> 2.65 | I59: =IF(C59="SERVIÇO",IF(D59="SINAPI",VLOOKUP(E59,'SERVIÇOS SINAPI'!$A:$D,4,0),IF(D59="ORSE",VLOOKUP(E59,'SERVIÇOS ORSE'!$A:$D,4,0),IF(D59="SEINFRA",VLOOKUP(E59,'SERVIÇOS SEINFRA'!$A:$D,4,0)))),IF(C59="INSUMO",IF(D59="SINAPI",VLOOKUP(E59,'INSUMOS SINAPI'!$A:$D,4,0),IF(D59="ORSE",VLOOKUP(E59,'INSUMOS ORSE'!$A:$D,4,0),IF(D59="SEINFRA",VLOOKUP(E59,'INSUMOS SEINFRA'!$A:$D,4,0),))))) -> 47.73 | J59: 58.54 | K59: 155.13 | L59: 2
B60: 6.3.2 | C60: SERVIÇO | D60: SINAPI | E60: 87897 | F60: =IF(C60="SERVIÇO",IF(D60="SINAPI",VLOOKUP(E60,'SERVIÇOS SINAPI'!$A:$D,2,0),IF(D60="ORSE",VLOOKUP(E60,'SERVIÇOS ORSE'!$A:$D,2,0),IF(D60="SEINFRA",VLOOKUP(E60,'SERVIÇOS SEINFRA'!$A:$D,2,0)))),IF(C60="INSUMO",IF(D60="SINAPI",VLOOKUP(E60,'INSUMOS SINAPI'!$A:$D,2,0),IF(D60="ORSE",VLOOKUP(E60,'INSUMOS ORSE'!$A:$D,2,0),IF(D60="SEINFRA",VLOOKUP(E60,'INSUMOS SEINFRA'!$A:$D,2,0),))))) -> CHAPISCO APLICADO EM ALVENARIA (SEM PRESENÇA DE VÃOS) E ESTRUTURAS DE CONCRETO DE FACHADA, COM EQUIPAMENTO DE PROJEÇÃO. ARGAMASSA TRAÇO 1:3 COM PREPARO EM BETONEIRA 400 L. AF_10/2022 | G60: =IF(C60="SERVIÇO",IF(D60="SINAPI",VLOOKUP(E60,'SERVIÇOS SINAPI'!$A:$D,3,0),IF(D60="ORSE",VLOOKUP(E60,'SERVIÇOS ORSE'!$A:$D,3,0),IF(D60="SEINFRA",VLOOKUP(E60,'SERVIÇOS SEINFRA'!$A:$D,3,0)))),IF(C60="INSUMO",IF(D60="SINAPI",VLOOKUP(E60,'INSUMOS SINAPI'!$A:$D,3,0),IF(D60="ORSE",VLOOKUP(E60,'INSUMOS ORSE'!$A:$D,3,0),IF(D60="SEINFRA",VLOOKUP(E60,'INSUMOS SEINFRA'!$A:$D,3,0),))))) -> M² | H60: =H59*2 -> 5.3 | I60: =IF(C60="SERVIÇO",IF(D60="SINAPI",VLOOKUP(E60,'SERVIÇOS SINAPI'!$A:$D,4,0),IF(D60="ORSE",VLOOKUP(E60,'SERVIÇOS ORSE'!$A:$D,4,0),IF(D60="SEINFRA",VLOOKUP(E60,'SERVIÇOS SEINFRA'!$A:$D,4,0)))),IF(C60="INSUMO",IF(D60="SINAPI",VLOOKUP(E60,'INSUMOS SINAPI'!$A:$D,4,0),IF(D60="ORSE",VLOOKUP(E60,'INSUMOS ORSE'!$A:$D,4,0),IF(D60="SEINFRA",VLOOKUP(E60,'INSUMOS SEINFRA'!$A:$D,4,0),))))) -> 4.97 | J60: 6.1 | K60: 32.33 | L60: 2
B61: 6.3.3 | C61: SERVIÇO | D61: SINAPI | E61: 87547 | F61: =IF(C61="SERVIÇO",IF(D61="SINAPI",VLOOKUP(E61,'SERVIÇOS SINAPI'!$A:$D,2,0),IF(D61="ORSE",VLOOKUP(E61,'SERVIÇOS ORSE'!$A:$D,2,0),IF(D61="SEINFRA",VLOOKUP(E61,'SERVIÇOS SEINFRA'!$A:$D,2,0)))),IF(C61="INSUMO",IF(D61="SINAPI",VLOOKUP(E61,'INSUMOS SINAPI'!$A:$D,2,0),IF(D61="ORSE",VLOOKUP(E61,'INSUMOS ORSE'!$A:$D,2,0),IF(D61="SEINFRA",VLOOKUP(E61,'INSUMOS SEINFRA'!$A:$D,2,0),))))) -> MASSA ÚNICA, PARA RECEBIMENTO DE PINTURA, EM ARGAMASSA TRAÇO 1:2:8, PREPARO MECÂNICO COM BETONEIRA 400L, APLICADA MANUALMENTE EM FACES INTERNAS DE PAREDES, ESPESSURA DE 10MM, COM EXECUÇÃO DE TALISCAS. AF_06/2014 | G61: =IF(C61="SERVIÇO",IF(D61="SINAPI",VLOOKUP(E61,'SERVIÇOS SINAPI'!$A:$D,3,0),IF(D61="ORSE",VLOOKUP(E61,'SERVIÇOS ORSE'!$A:$D,3,0),IF(D61="SEINFRA",VLOOKUP(E61,'SERVIÇOS SEINFRA'!$A:$D,3,0)))),IF(C61="INSUMO",IF(D61="SINAPI",VLOOKUP(E61,'INSUMOS SINAPI'!$A:$D,3,0),IF(D61="ORSE",VLOOKUP(E61,'INSUMOS ORSE'!$A:$D,3,0),IF(D61="SEINFRA",VLOOKUP(E61,'INSUMOS SEINFRA'!$A:$D,3,0),))))) -> M² | H61: =H60 -> 5.3 | I61: =IF(C61="SERVIÇO",IF(D61="SINAPI",VLOOKUP(E61,'SERVIÇOS SINAPI'!$A:$D,4,0),IF(D61="ORSE",VLOOKUP(E61,'SERVIÇOS ORSE'!$A:$D,4,0),IF(D61="SEINFRA",VLOOKUP(E61,'SERVIÇOS SEINFRA'!$A:$D,4,0)))),IF(C61="INSUMO",IF(D61="SINAPI",VLOOKUP(E61,'INSUMOS SINAPI'!$A:$D,4,0),IF(D61="ORSE",VLOOKUP(E61,'INSUMOS ORSE'!$A:$D,4,0),IF(D61="SEINFRA",VLOOKUP(E61,'INSUMOS SEINFRA'!$A:$D,4,0),))))) -> 26.49 | J61: 32.49 | K61: 172.2 | L61: 2
B62: 6.3.4 | C62: SERVIÇO | D62: SINAPI | E62: 94962 | F62: =IF(C62="SERVIÇO",IF(D62="SINAPI",VLOOKUP(E62,'SERVIÇOS SINAPI'!$A:$D,2,0),IF(D62="ORSE",VLOOKUP(E62,'SERVIÇOS ORSE'!$A:$D,2,0),IF(D62="SEINFRA",VLOOKUP(E62,'SERVIÇOS SEINFRA'!$A:$D,2,0)))),IF(C62="INSUMO",IF(D62="SINAPI",VLOOKUP(E62,'INSUMOS SINAPI'!$A:$D,2,0),IF(D62="ORSE",VLOOKUP(E62,'INSUMOS ORSE'!$A:$D,2,0),IF(D62="SEINFRA",VLOOKUP(E62,'INSUMOS SEINFRA'!$A:$D,2,0),))))) -> CONCRETO MAGRO PARA LASTRO, TRAÇO 1:4,5:4,5 (EM MASSA SECA DE CIMENTO/ AREIA MÉDIA/ BRITA 1) - PREPARO MECÂNICO COM BETONEIRA 400 L. AF_05/2021 | G62: =IF(C62="SERVIÇO",IF(D62="SINAPI",VLOOKUP(E62,'SERVIÇOS SINAPI'!$A:$D,3,0),IF(D62="ORSE",VLOOKUP(E62,'SERVIÇOS ORSE'!$A:$D,3,0),IF(D62="SEINFRA",VLOOKUP(E62,'SERVIÇOS SEINFRA'!$A:$D,3,0)))),IF(C62="INSUMO",IF(D62="SINAPI",VLOOKUP(E62,'INSUMOS SINAPI'!$A:$D,3,0),IF(D62="ORSE",VLOOKUP(E62,'INSUMOS ORSE'!$A:$D,3,0),IF(D62="SEINFRA",VLOOKUP(E62,'INSUMOS SEINFRA'!$A:$D,3,0),))))) -> M³ | H62: =((0.9*1.2)*0.05)+((0.9*0.8)*0.05) -> 0.09 | I62: =IF(C62="SERVIÇO",IF(D62="SINAPI",VLOOKUP(E62,'SERVIÇOS SINAPI'!$A:$D,4,0),IF(D62="ORSE",VLOOKUP(E62,'SERVIÇOS ORSE'!$A:$D,4,0),IF(D62="SEINFRA",VLOOKUP(E62,'SERVIÇOS SEINFRA'!$A:$D,4,0)))),IF(C62="INSUMO",IF(D62="SINAPI",VLOOKUP(E62,'INSUMOS SINAPI'!$A:$D,4,0),IF(D62="ORSE",VLOOKUP(E62,'INSUMOS ORSE'!$A:$D,4,0),IF(D62="SEINFRA",VLOOKUP(E62,'INSUMOS SEINFRA'!$A:$D,4,0),))))) -> 411.72 | J62: 504.93 | K62: 45.44 | L62: 5
B63: 6.3.5 | C63: SERVIÇO | D63: SINAPI | E63: 94993 | F63: =IF(C63="SERVIÇO",IF(D63="SINAPI",VLOOKUP(E63,'SERVIÇOS SINAPI'!$A:$D,2,0),IF(D63="ORSE",VLOOKUP(E63,'SERVIÇOS ORSE'!$A:$D,2,0),IF(D63="SEINFRA",VLOOKUP(E63,'SERVIÇOS SEINFRA'!$A:$D,2,0)))),IF(C63="INSUMO",IF(D63="SINAPI",VLOOKUP(E63,'INSUMOS SINAPI'!$A:$D,2,0),IF(D63="ORSE",VLOOKUP(E63,'INSUMOS ORSE'!$A:$D,2,0),IF(D63="SEINFRA",VLOOKUP(E63,'INSUMOS SEINFRA'!$A:$D,2,0),))))) -> EXECUÇÃO DE PASSEIO (CALÇADA) OU PISO DE CONCRETO COM CONCRETO MOLDADO IN LOCO, USINADO, ACABAMENTO CONVENCIONAL, ESPESSURA 6 CM, ARMADO. AF_08/2022 | G63: =IF(C63="SERVIÇO",IF(D63="SINAPI",VLOOKUP(E63,'SERVIÇOS SINAPI'!$A:$D,3,0),IF(D63="ORSE",VLOOKUP(E63,'SERVIÇOS ORSE'!$A:$D,3,0),IF(D63="SEINFRA",VLOOKUP(E63,'SERVIÇOS SEINFRA'!$A:$D,3,0)))),IF(C63="INSUMO",IF(D63="SINAPI",VLOOKUP(E63,'INSUMOS SINAPI'!$A:$D,3,0),IF(D63="ORSE",VLOOKUP(E63,'INSUMOS ORSE'!$A:$D,3,0),IF(D63="SEINFRA",VLOOKUP(E63,'INSUMOS SEINFRA'!$A:$D,3,0),))))) -> M² | H63: =(0.7+1+0.1+0.6+0.7+0.6+0.1+1)*1 -> 4.8 | I63: =IF(C63="SERVIÇO",IF(D63="SINAPI",VLOOKUP(E63,'SERVIÇOS SINAPI'!$A:$D,4,0),IF(D63="ORSE",VLOOKUP(E63,'SERVIÇOS ORSE'!$A:$D,4,0),IF(D63="SEINFRA",VLOOKUP(E63,'SERVIÇOS SEINFRA'!$A:$D,4,0)))),IF(C63="INSUMO",IF(D63="SINAPI",VLOOKUP(E63,'INSUMOS SINAPI'!$A:$D,4,0),IF(D63="ORSE",VLOOKUP(E63,'INSUMOS ORSE'!$A:$D,4,0),IF(D63="SEINFRA",VLOOKUP(E63,'INSUMOS SEINFRA'!$A:$D,4,0),))))) -> 72.93 | J63: 89.44 | K63: 429.31 | L63: 2
B64: 6.3.6 | C64: SERVIÇO | D64: SEINFRA | E64: C0588 | F64: =IF(C64="SERVIÇO",IF(D64="SINAPI",VLOOKUP(E64,'SERVIÇOS SINAPI'!$A:$D,2,0),IF(D64="ORSE",VLOOKUP(E64,'SERVIÇOS ORSE'!$A:$D,2,0),IF(D64="SEINFRA",VLOOKUP(E64,'SERVIÇOS SEINFRA'!$A:$D,2,0)))),IF(C64="INSUMO",IF(D64="SINAPI",VLOOKUP(E64,'INSUMOS SINAPI'!$A:$D,2,0),IF(D64="ORSE",VLOOKUP(E64,'INSUMOS ORSE'!$A:$D,2,0),IF(D64="SEINFRA",VLOOKUP(E64,'INSUMOS SEINFRA'!$A:$D,2,0),))))) -> CAIAÇÃO EM DUAS DEMÃOS COM SUPERCAL | G64: =IF(C64="SERVIÇO",IF(D64="SINAPI",VLOOKUP(E64,'SERVIÇOS SINAPI'!$A:$D,3,0),IF(D64="ORSE",VLOOKUP(E64,'SERVIÇOS ORSE'!$A:$D,3,0),IF(D64="SEINFRA",VLOOKUP(E64,'SERVIÇOS SEINFRA'!$A:$D,3,0)))),IF(C64="INSUMO",IF(D64="SINAPI",VLOOKUP(E64,'INSUMOS SINAPI'!$A:$D,3,0),IF(D64="ORSE",VLOOKUP(E64,'INSUMOS ORSE'!$A:$D,3,0),IF(D64="SEINFRA",VLOOKUP(E64,'INSUMOS SEINFRA'!$A:$D,3,0),))))) -> M² | H64: =(0.7+1+0.1+0.6+0.7+0.6+0.1+1)*0.5 -> 2.4 | I64: =IF(C64="SERVIÇO",IF(D64="SINAPI",VLOOKUP(E64,'SERVIÇOS SINAPI'!$A:$D,4,0),IF(D64="ORSE",VLOOKUP(E64,'SERVIÇOS ORSE'!$A:$D,4,0),IF(D64="SEINFRA",VLOOKUP(E64,'SERVIÇOS SEINFRA'!$A:$D,4,0)))),IF(C64="INSUMO",IF(D64="SINAPI",VLOOKUP(E64,'INSUMOS SINAPI'!$A:$D,4,0),IF(D64="ORSE",VLOOKUP(E64,'INSUMOS ORSE'!$A:$D,4,0),IF(D64="SEINFRA",VLOOKUP(E64,'INSUMOS SEINFRA'!$A:$D,4,0),))))) -> 4.98 | J64: 6.11 | K64: 14.66 | L64: 2
B65: 7 | C65: INSTALAÇÕES HIDRÁULICAS | K65: =SUM(K66+K73) -> 332.61
B66: 7.1 | C66: REDE DE ALIMENTAÇÃO E DESCARGA DO BIODIGESTOR | K66: =SUM(K67:K72) -> 209.09
B67: 7.1.1 | C67: SERVIÇO | D67: SEINFRA | E67: C2875 | F67: =IF(C67="SERVIÇO",IF(D67="SINAPI",VLOOKUP(E67,'SERVIÇOS SINAPI'!$A:$D,2,0),IF(D67="ORSE",VLOOKUP(E67,'SERVIÇOS ORSE'!$A:$D,2,0),IF(D67="SEINFRA",VLOOKUP(E67,'SERVIÇOS SEINFRA'!$A:$D,2,0)))),IF(C67="INSUMO",IF(D67="SINAPI",VLOOKUP(E67,'INSUMOS SINAPI'!$A:$D,2,0),IF(D67="ORSE",VLOOKUP(E67,'INSUMOS ORSE'!$A:$D,2,0),IF(D67="SEINFRA",VLOOKUP(E67,'INSUMOS SEINFRA'!$A:$D,2,0),))))) -> LOCAÇÃO E NIVELAMENTO DE ADUTORA | G67: =IF(C67="SERVIÇO",IF(D67="SINAPI",VLOOKUP(E67,'SERVIÇOS SINAPI'!$A:$D,3,0),IF(D67="ORSE",VLOOKUP(E67,'SERVIÇOS ORSE'!$A:$D,3,0),IF(D67="SEINFRA",VLOOKUP(E67,'SERVIÇOS SEINFRA'!$A:$D,3,0)))),IF(C67="INSUMO",IF(D67="SINAPI",VLOOKUP(E67,'INSUMOS SINAPI'!$A:$D,3,0),IF(D67="ORSE",VLOOKUP(E67,'INSUMOS ORSE'!$A:$D,3,0),IF(D67="SEINFRA",VLOOKUP(E67,'INSUMOS SEINFRA'!$A:$D,3,0),))))) -> M | H67: =H83 -> 12 | I67: =IF(C67="SERVIÇO",IF(D67="SINAPI",VLOOKUP(E67,'SERVIÇOS SINAPI'!$A:$D,4,0),IF(D67="ORSE",VLOOKUP(E67,'SERVIÇOS ORSE'!$A:$D,4,0),IF(D67="SEINFRA",VLOOKUP(E67,'SERVIÇOS SEINFRA'!$A:$D,4,0)))),IF(C67="INSUMO",IF(D67="SINAPI",VLOOKUP(E67,'INSUMOS SINAPI'!$A:$D,4,0),IF(D67="ORSE",VLOOKUP(E67,'INSUMOS ORSE'!$A:$D,4,0),IF(D67="SEINFRA",VLOOKUP(E67,'INSUMOS SEINFRA'!$A:$D,4,0),))))) -> 1.68 | J67: =IF(C67="SERVIÇO",I67*(1+$I$8),IF(C67="INSUMO",(I67*(1+$K$8)))) -> 2.06 | K67: =J67*H67 -> 24.72 | L67: 2
B68: 7.1.2 | C68: SERVIÇO | D68: SINAPI | E68: 102328 | F68: =IF(C68="SERVIÇO",IF(D68="SINAPI",VLOOKUP(E68,'SERVIÇOS SINAPI'!$A:$D,2,0),IF(D68="ORSE",VLOOKUP(E68,'SERVIÇOS ORSE'!$A:$D,2,0),IF(D68="SEINFRA",VLOOKUP(E68,'SERVIÇOS SEINFRA'!$A:$D,2,0)))),IF(C68="INSUMO",IF(D68="SINAPI",VLOOKUP(E68,'INSUMOS SINAPI'!$A:$D,2,0),IF(D68="ORSE",VLOOKUP(E68,'INSUMOS ORSE'!$A:$D,2,0),IF(D68="SEINFRA",VLOOKUP(E68,'INSUMOS SEINFRA'!$A:$D,2,0),))))) -> ESCAVAÇÃO MECANIZADA DE VALA COM PROF. MAIOR QUE 1,5 M ATÉ 3,0 M (MÉDIA MONTANTE E JUSANTE/UMA COMPOSIÇÃO POR TRECHO), RETROESCAV. (0,26 M3),LARG. MENOR QUE 0,8 M, EM SOLO DE 2A CATEGORIA, EM LOCAIS COM BAIXO NÍVEL DE INTERFERÊNCIA. AF_02/2021 | G68: =IF(C68="SERVIÇO",IF(D68="SINAPI",VLOOKUP(E68,'SERVIÇOS SINAPI'!$A:$D,3,0),IF(D68="ORSE",VLOOKUP(E68,'SERVIÇOS ORSE'!$A:$D,3,0),IF(D68="SEINFRA",VLOOKUP(E68,'SERVIÇOS SEINFRA'!$A:$D,3,0)))),IF(C68="INSUMO",IF(D68="SINAPI",VLOOKUP(E68,'INSUMOS SINAPI'!$A:$D,3,0),IF(D68="ORSE",VLOOKUP(E68,'INSUMOS ORSE'!$A:$D,3,0),IF(D68="SEINFRA",VLOOKUP(E68,'INSUMOS SEINFRA'!$A:$D,3,0),))))) -> M³ | H68: =(H83*0.4*0.6)*0.08 -> 0.23 | I68: =IF(C68="SERVIÇO",IF(D68="SINAPI",VLOOKUP(E68,'SERVIÇOS SINAPI'!$A:$D,4,0),IF(D68="ORSE",VLOOKUP(E68,'SERVIÇOS ORSE'!$A:$D,4,0),IF(D68="SEINFRA",VLOOKUP(E68,'SERVIÇOS SEINFRA'!$A:$D,4,0)))),IF(C68="INSUMO",IF(D68="SINAPI",VLOOKUP(E68,'INSUMOS SINAPI'!$A:$D,4,0),IF(D68="ORSE",VLOOKUP(E68,'INSUMOS ORSE'!$A:$D,4,0),IF(D68="SEINFRA",VLOOKUP(E68,'INSUMOS SEINFRA'!$A:$D,4,0),))))) -> 9.43 | J68: 11.56 | K68: 2.66 | L68: 1
B69: 7.1.3 | C69: SERVIÇO | D69: SINAPI | E69: 93358 | F69: =IF(C69="SERVIÇO",IF(D69="SINAPI",VLOOKUP(E69,'SERVIÇOS SINAPI'!$A:$D,2,0),IF(D69="ORSE",VLOOKUP(E69,'SERVIÇOS ORSE'!$A:$D,2,0),IF(D69="SEINFRA",VLOOKUP(E69,'SERVIÇOS SEINFRA'!$A:$D,2,0)))),IF(C69="INSUMO",IF(D69="SINAPI",VLOOKUP(E69,'INSUMOS SINAPI'!$A:$D,2,0),IF(D69="ORSE",VLOOKUP(E69,'INSUMOS ORSE'!$A:$D,2,0),IF(D69="SEINFRA",VLOOKUP(E69,'INSUMOS SEINFRA'!$A:$D,2,0),))))) -> ESCAVAÇÃO MANUAL DE VALA COM PROFUNDIDADE MENOR OU IGUAL A 1,30 M. AF_02/2021 | G69: =IF(C69="SERVIÇO",IF(D69="SINAPI",VLOOKUP(E69,'SERVIÇOS SINAPI'!$A:$D,3,0),IF(D69="ORSE",VLOOKUP(E69,'SERVIÇOS ORSE'!$A:$D,3,0),IF(D69="SEINFRA",VLOOKUP(E69,'SERVIÇOS SEINFRA'!$A:$D,3,0)))),IF(C69="INSUMO",IF(D69="SINAPI",VLOOKUP(E69,'INSUMOS SINAPI'!$A:$D,3,0),IF(D69="ORSE",VLOOKUP(E69,'INSUMOS ORSE'!$A:$D,3,0),IF(D69="SEINFRA",VLOOKUP(E69,'INSUMOS SEINFRA'!$A:$D,3,0),))))) -> M³ | H69: 0.83 | I69: =IF(C69="SERVIÇO",IF(D69="SINAPI",VLOOKUP(E69,'SERVIÇOS SINAPI'!$A:$D,4,0),IF(D69="ORSE",VLOOKUP(E69,'SERVIÇOS ORSE'!$A:$D,4,0),IF(D69="SEINFRA",VLOOKUP(E69,'SERVIÇOS SEINFRA'!$A:$D,4,0)))),IF(C69="INSUMO",IF(D69="SINAPI",VLOOKUP(E69,'INSUMOS SINAPI'!$A:$D,4,0),IF(D69="ORSE",VLOOKUP(E69,'INSUMOS ORSE'!$A:$D,4,0),IF(D69="SEINFRA",VLOOKUP(E69,'INSUMOS SEINFRA'!$A:$D,4,0),))))) -> 84.18 | J69: 103.24 | K69: 85.69 | L69: 1
B70: 7.1.4 | C70: SERVIÇO | D70: SINAPI | E70: 90105 | F70: =IF(C70="SERVIÇO",IF(D70="SINAPI",VLOOKUP(E70,'SERVIÇOS SINAPI'!$A:$D,2,0),IF(D70="ORSE",VLOOKUP(E70,'SERVIÇOS ORSE'!$A:$D,2,0),IF(D70="SEINFRA",VLOOKUP(E70,'SERVIÇOS SEINFRA'!$A:$D,2,0)))),IF(C70="INSUMO",IF(D70="SINAPI",VLOOKUP(E70,'INSUMOS SINAPI'!$A:$D,2,0),IF(D70="ORSE",VLOOKUP(E70,'INSUMOS ORSE'!$A:$D,2,0),IF(D70="SEINFRA",VLOOKUP(E70,'INSUMOS SEINFRA'!$A:$D,2,0),))))) -> ESCAVAÇÃO MECANIZADA DE VALA COM PROFUNDIDADE ATÉ 1,5 M (MÉDIA MONTANTE E JUSANTE/UMA COMPOSIÇÃO POR TRECHO), RETROESCAV. (0,26 M3), LARGURA MENOR QUE 0,8 M, EM SOLO DE 1A CATEGORIA, LOCAIS COM BAIXO NÍVEL DE INTERFERÊNCIA. AF_02/2021 | G70: =IF(C70="SERVIÇO",IF(D70="SINAPI",VLOOKUP(E70,'SERVIÇOS SINAPI'!$A:$D,3,0),IF(D70="ORSE",VLOOKUP(E70,'SERVIÇOS ORSE'!$A:$D,3,0),IF(D70="SEINFRA",VLOOKUP(E70,'SERVIÇOS SEINFRA'!$A:$D,3,0)))),IF(C70="INSUMO",IF(D70="SINAPI",VLOOKUP(E70,'INSUMOS SINAPI'!$A:$D,3,0),IF(D70="ORSE",VLOOKUP(E70,'INSUMOS ORSE'!$A:$D,3,0),IF(D70="SEINFRA",VLOOKUP(E70,'INSUMOS SEINFRA'!$A:$D,3,0),))))) -> M³ | H70: =(H83*0.4*0.6)*0.9 -> 2.59 | I70: =IF(C70="SERVIÇO",IF(D70="SINAPI",VLOOKUP(E70,'SERVIÇOS SINAPI'!$A:$D,4,0),IF(D70="ORSE",VLOOKUP(E70,'SERVIÇOS ORSE'!$A:$D,4,0),IF(D70="SEINFRA",VLOOKUP(E70,'SERVIÇOS SEINFRA'!$A:$D,4,0)))),IF(C70="INSUMO",IF(D70="SINAPI",VLOOKUP(E70,'INSUMOS SINAPI'!$A:$D,4,0),IF(D70="ORSE",VLOOKUP(E70,'INSUMOS ORSE'!$A:$D,4,0),IF(D70="SEINFRA",VLOOKUP(E70,'INSUMOS SEINFRA'!$A:$D,4,0),))))) -> 9 | J70: 11.04 | K70: 28.59 | L70: 1
B71: 7.1.5 | C71: SERVIÇO | D71: ORSE | E71: 5103 | F71: =IF(C71="SERVIÇO",IF(D71="SINAPI",VLOOKUP(E71,'SERVIÇOS SINAPI'!$A:$D,2,0),IF(D71="ORSE",VLOOKUP(E71,'SERVIÇOS ORSE'!$A:$D,2,0),IF(D71="SEINFRA",VLOOKUP(E71,'SERVIÇOS SEINFRA'!$A:$D,2,0)))),IF(C71="INSUMO",IF(D71="SINAPI",VLOOKUP(E71,'INSUMOS SINAPI'!$A:$D,2,0),IF(D71="ORSE",VLOOKUP(E71,'INSUMOS ORSE'!$A:$D,2,0),IF(D71="SEINFRA",VLOOKUP(E71,'INSUMOS SEINFRA'!$A:$D,2,0),))))) -> REGULARIZAÇÃO MANUAL | G71: =IF(C71="SERVIÇO",IF(D71="SINAPI",VLOOKUP(E71,'SERVIÇOS SINAPI'!$A:$D,3,0),IF(D71="ORSE",VLOOKUP(E71,'SERVIÇOS ORSE'!$A:$D,3,0),IF(D71="SEINFRA",VLOOKUP(E71,'SERVIÇOS SEINFRA'!$A:$D,3,0)))),IF(C71="INSUMO",IF(D71="SINAPI",VLOOKUP(E71,'INSUMOS SINAPI'!$A:$D,3,0),IF(D71="ORSE",VLOOKUP(E71,'INSUMOS ORSE'!$A:$D,3,0),IF(D71="SEINFRA",VLOOKUP(E71,'INSUMOS SEINFRA'!$A:$D,3,0),))))) -> M² | H71: =H83*0.4 -> 4.8 | I71: =IF(C71="SERVIÇO",IF(D71="SINAPI",VLOOKUP(E71,'SERVIÇOS SINAPI'!$A:$D,4,0),IF(D71="ORSE",VLOOKUP(E71,'SERVIÇOS ORSE'!$A:$D,4,0),IF(D71="SEINFRA",VLOOKUP(E71,'SERVIÇOS SEINFRA'!$A:$D,4,0)))),IF(C71="INSUMO",IF(D71="SINAPI",VLOOKUP(E71,'INSUMOS SINAPI'!$A:$D,4,0),IF(D71="ORSE",VLOOKUP(E71,'INSUMOS ORSE'!$A:$D,4,0),IF(D71="SEINFRA",VLOOKUP(E71,'INSUMOS SEINFRA'!$A:$D,4,0),))))) -> 4.95 | J71: 6.07 | K71: 29.14 | L71: 1
B72: 7.1.6 | C72: SERVIÇO | D72: SINAPI | E72: 96386 | F72: =IF(C72="SERVIÇO",IF(D72="SINAPI",VLOOKUP(E72,'SERVIÇOS SINAPI'!$A:$D,2,0),IF(D72="ORSE",VLOOKUP(E72,'SERVIÇOS ORSE'!$A:$D,2,0),IF(D72="SEINFRA",VLOOKUP(E72,'SERVIÇOS SEINFRA'!$A:$D,2,0)))),IF(C72="INSUMO",IF(D72="SINAPI",VLOOKUP(E72,'INSUMOS SINAPI'!$A:$D,2,0),IF(D72="ORSE",VLOOKUP(E72,'INSUMOS ORSE'!$A:$D,2,0),IF(D72="SEINFRA",VLOOKUP(E72,'INSUMOS SEINFRA'!$A:$D,2,0),))))) -> EXECUÇÃO E COMPACTAÇÃO DE ATERRO COM SOLO PREDOMINANTEMENTE ARENOSO - EXCLUSIVE SOLO, ESCAVAÇÃO, CARGA E TRANSPORTE. AF_11/2019 | G72: =IF(C72="SERVIÇO",IF(D72="SINAPI",VLOOKUP(E72,'SERVIÇOS SINAPI'!$A:$D,3,0),IF(D72="ORSE",VLOOKUP(E72,'SERVIÇOS ORSE'!$A:$D,3,0),IF(D72="SEINFRA",VLOOKUP(E72,'SERVIÇOS SEINFRA'!$A:$D,3,0)))),IF(C72="INSUMO",IF(D72="SINAPI",VLOOKUP(E72,'INSUMOS SINAPI'!$A:$D,3,0),IF(D72="ORSE",VLOOKUP(E72,'INSUMOS ORSE'!$A:$D,3,0),IF(D72="SEINFRA",VLOOKUP(E72,'INSUMOS SEINFRA'!$A:$D,3,0),))))) -> M³ | H72: =H68+H69+H70 -> 3.65 | I72: =IF(C72="SERVIÇO",IF(D72="SINAPI",VLOOKUP(E72,'SERVIÇOS SINAPI'!$A:$D,4,0),IF(D72="ORSE",VLOOKUP(E72,'SERVIÇOS ORSE'!$A:$D,4,0),IF(D72="SEINFRA",VLOOKUP(E72,'SERVIÇOS SEINFRA'!$A:$D,4,0)))),IF(C72="INSUMO",IF(D72="SINAPI",VLOOKUP(E72,'INSUMOS SINAPI'!$A:$D,4,0),IF(D72="ORSE",VLOOKUP(E72,'INSUMOS ORSE'!$A:$D,4,0),IF(D72="SEINFRA",VLOOKUP(E72,'INSUMOS SEINFRA'!$A:$D,4,0),))))) -> 8.55 | J72: 10.49 | K72: 38.29 | L72: 1
B73: 7.2 | C73: LINHA DE GÁS | K73: =SUM(K74:K76) -> 123.52
B74: 7.2.1 | C74: SERVIÇO | D74: SINAPI | E74: 90105 | F74: =IF(C74="SERVIÇO",IF(D74="SINAPI",VLOOKUP(E74,'SERVIÇOS SINAPI'!$A:$D,2,0),IF(D74="ORSE",VLOOKUP(E74,'SERVIÇOS ORSE'!$A:$D,2,0),IF(D74="SEINFRA",VLOOKUP(E74,'SERVIÇOS SEINFRA'!$A:$D,2,0)))),IF(C74="INSUMO",IF(D74="SINAPI",VLOOKUP(E74,'INSUMOS SINAPI'!$A:$D,2,0),IF(D74="ORSE",VLOOKUP(E74,'INSUMOS ORSE'!$A:$D,2,0),IF(D74="SEINFRA",VLOOKUP(E74,'INSUMOS SEINFRA'!$A:$D,2,0),))))) -> ESCAVAÇÃO MECANIZADA DE VALA COM PROFUNDIDADE ATÉ 1,5 M (MÉDIA MONTANTE E JUSANTE/UMA COMPOSIÇÃO POR TRECHO), RETROESCAV. (0,26 M3), LARGURA MENOR QUE 0,8 M, EM SOLO DE 1A CATEGORIA, LOCAIS COM BAIXO NÍVEL DE INTERFERÊNCIA. AF_02/2021 | G74: =IF(C74="SERVIÇO",IF(D74="SINAPI",VLOOKUP(E74,'SERVIÇOS SINAPI'!$A:$D,3,0),IF(D74="ORSE",VLOOKUP(E74,'SERVIÇOS ORSE'!$A:$D,3,0),IF(D74="SEINFRA",VLOOKUP(E74,'SERVIÇOS SEINFRA'!$A:$D,3,0)))),IF(C74="INSUMO",IF(D74="SINAPI",VLOOKUP(E74,'INSUMOS SINAPI'!$A:$D,3,0),IF(D74="ORSE",VLOOKUP(E74,'INSUMOS ORSE'!$A:$D,3,0),IF(D74="SEINFRA",VLOOKUP(E74,'INSUMOS SEINFRA'!$A:$D,3,0),))))) -> M³ | H74: =H91*0.3*0.3 -> 2.16 | I74: =IF(C74="SERVIÇO",IF(D74="SINAPI",VLOOKUP(E74,'SERVIÇOS SINAPI'!$A:$D,4,0),IF(D74="ORSE",VLOOKUP(E74,'SERVIÇOS ORSE'!$A:$D,4,0),IF(D74="SEINFRA",VLOOKUP(E74,'SERVIÇOS SEINFRA'!$A:$D,4,0)))),IF(C74="INSUMO",IF(D74="SINAPI",VLOOKUP(E74,'INSUMOS SINAPI'!$A:$D,4,0),IF(D74="ORSE",VLOOKUP(E74,'INSUMOS ORSE'!$A:$D,4,0),IF(D74="SEINFRA",VLOOKUP(E74,'INSUMOS SEINFRA'!$A:$D,4,0),))))) -> 9 | J74: =IF(C74="SERVIÇO",I74*(1+$I$8),IF(C74="INSUMO",(I74*(1+$K$8)))) -> 11.04 | K74: =J74*H74 -> 23.85 | L74: 1
B75: 7.2.2 | C75: SERVIÇO | D75: ORSE | E75: 5103 | F75: =IF(C75="SERVIÇO",IF(D75="SINAPI",VLOOKUP(E75,'SERVIÇOS SINAPI'!$A:$D,2,0),IF(D75="ORSE",VLOOKUP(E75,'SERVIÇOS ORSE'!$A:$D,2,0),IF(D75="SEINFRA",VLOOKUP(E75,'SERVIÇOS SEINFRA'!$A:$D,2,0)))),IF(C75="INSUMO",IF(D75="SINAPI",VLOOKUP(E75,'INSUMOS SINAPI'!$A:$D,2,0),IF(D75="ORSE",VLOOKUP(E75,'INSUMOS ORSE'!$A:$D,2,0),IF(D75="SEINFRA",VLOOKUP(E75,'INSUMOS SEINFRA'!$A:$D,2,0),))))) -> REGULARIZAÇÃO MANUAL | G75: =IF(C75="SERVIÇO",IF(D75="SINAPI",VLOOKUP(E75,'SERVIÇOS SINAPI'!$A:$D,3,0),IF(D75="ORSE",VLOOKUP(E75,'SERVIÇOS ORSE'!$A:$D,3,0),IF(D75="SEINFRA",VLOOKUP(E75,'SERVIÇOS SEINFRA'!$A:$D,3,0)))),IF(C75="INSUMO",IF(D75="SINAPI",VLOOKUP(E75,'INSUMOS SINAPI'!$A:$D,3,0),IF(D75="ORSE",VLOOKUP(E75,'INSUMOS ORSE'!$A:$D,3,0),IF(D75="SEINFRA",VLOOKUP(E75,'INSUMOS SEINFRA'!$A:$D,3,0),))))) -> M² | H75: =H91*0.3 -> 7.2 | I75: =IF(C75="SERVIÇO",IF(D75="SINAPI",VLOOKUP(E75,'SERVIÇOS SINAPI'!$A:$D,4,0),IF(D75="ORSE",VLOOKUP(E75,'SERVIÇOS ORSE'!$A:$D,4,0),IF(D75="SEINFRA",VLOOKUP(E75,'SERVIÇOS SEINFRA'!$A:$D,4,0)))),IF(C75="INSUMO",IF(D75="SINAPI",VLOOKUP(E75,'INSUMOS SINAPI'!$A:$D,4,0),IF(D75="ORSE",VLOOKUP(E75,'INSUMOS ORSE'!$A:$D,4,0),IF(D75="SEINFRA",VLOOKUP(E75,'INSUMOS SEINFRA'!$A:$D,4,0),))))) -> 4.95 | J75: 6.07 | K75: 43.7 | L75: 1
B76: 7.2.3 | C76: SERVIÇO | D76: SINAPI | E76: 93379 | F76: =IF(C76="SERVIÇO",IF(D76="SINAPI",VLOOKUP(E76,'SERVIÇOS SINAPI'!$A:$D,2,0),IF(D76="ORSE",VLOOKUP(E76,'SERVIÇOS ORSE'!$A:$D,2,0),IF(D76="SEINFRA",VLOOKUP(E76,'SERVIÇOS SEINFRA'!$A:$D,2,0)))),IF(C76="INSUMO",IF(D76="SINAPI",VLOOKUP(E76,'INSUMOS SINAPI'!$A:$D,2,0),IF(D76="ORSE",VLOOKUP(E76,'INSUMOS ORSE'!$A:$D,2,0),IF(D76="SEINFRA",VLOOKUP(E76,'INSUMOS SEINFRA'!$A:$D,2,0),))))) -> REATERRO MECANIZADO DE VALA COM RETROESCAVADEIRA (CAPACIDADE DA CAÇAMBA DA RETRO: 0,26 M³ / POTÊNCIA: 88 HP), LARGURA DE 0,8 A 1,5 M, PROFUNDIDADE ATÉ 1,5 M, COM SOLO DE 1ª CATEGORIA EM LOCAIS COM BAIXO NÍVEL DE INTERFERÊNCIA. AF_04/2016 | G76: =IF(C76="SERVIÇO",IF(D76="SINAPI",VLOOKUP(E76,'SERVIÇOS SINAPI'!$A:$D,3,0),IF(D76="ORSE",VLOOKUP(E76,'SERVIÇOS ORSE'!$A:$D,3,0),IF(D76="SEINFRA",VLOOKUP(E76,'SERVIÇOS SEINFRA'!$A:$D,3,0)))),IF(C76="INSUMO",IF(D76="SINAPI",VLOOKUP(E76,'INSUMOS SINAPI'!$A:$D,3,0),IF(D76="ORSE",VLOOKUP(E76,'INSUMOS ORSE'!$A:$D,3,0),IF(D76="SEINFRA",VLOOKUP(E76,'INSUMOS SEINFRA'!$A:$D,3,0),))))) -> M³ | H76: =H74 -> 2.16 | I76: =IF(C76="SERVIÇO",IF(D76="SINAPI",VLOOKUP(E76,'SERVIÇOS SINAPI'!$A:$D,4,0),IF(D76="ORSE",VLOOKUP(E76,'SERVIÇOS ORSE'!$A:$D,4,0),IF(D76="SEINFRA",VLOOKUP(E76,'SERVIÇOS SEINFRA'!$A:$D,4,0)))),IF(C76="INSUMO",IF(D76="SINAPI",VLOOKUP(E76,'INSUMOS SINAPI'!$A:$D,4,0),IF(D76="ORSE",VLOOKUP(E76,'INSUMOS ORSE'!$A:$D,4,0),IF(D76="SEINFRA",VLOOKUP(E76,'INSUMOS SEINFRA'!$A:$D,4,0),))))) -> 21.13 | J76: 25.91 | K76: 55.97 | L76: 1
B77: 8 | C77: CÂMARA DE ARMAZENAMENTO DE GÁS | K77: =SUM(K78:K81) -> 2403.15
B78: 8.1 | C78: INSUMO | D78: SINAPI | E78: 43978 | F78: =IF(C78="SERVIÇO",IF(D78="SINAPI",VLOOKUP(E78,'SERVIÇOS SINAPI'!$A:$D,2,0),IF(D78="ORSE",VLOOKUP(E78,'SERVIÇOS ORSE'!$A:$D,2,0),IF(D78="SEINFRA",VLOOKUP(E78,'SERVIÇOS SEINFRA'!$A:$D,2,0)))),IF(C78="INSUMO",IF(D78="SINAPI",VLOOKUP(E78,'INSUMOS SINAPI'!$A:$D,2,0),IF(D78="ORSE",VLOOKUP(E78,'INSUMOS ORSE'!$A:$D,2,0),IF(D78="SEINFRA",VLOOKUP(E78,'INSUMOS SEINFRA'!$A:$D,2,0),))))) -> CAIXA D'AGUA / RESERVATORIO EM POLIESTER REFORCADO COM FIBRA DE VIDRO, 3000 LITROS, COM TAMPA | G78: =IF(C78="SERVIÇO",IF(D78="SINAPI",VLOOKUP(E78,'SERVIÇOS SINAPI'!$A:$D,3,0),IF(D78="ORSE",VLOOKUP(E78,'SERVIÇOS ORSE'!$A:$D,3,0),IF(D78="SEINFRA",VLOOKUP(E78,'SERVIÇOS SEINFRA'!$A:$D,3,0)))),IF(C78="INSUMO",IF(D78="SINAPI",VLOOKUP(E78,'INSUMOS SINAPI'!$A:$D,3,0),IF(D78="ORSE",VLOOKUP(E78,'INSUMOS ORSE'!$A:$D,3,0),IF(D78="SEINFRA",VLOOKUP(E78,'INSUMOS SEINFRA'!$A:$D,3,0),))))) -> UN | H78: 1 | I78: =IF(C78="SERVIÇO",IF(D78="SINAPI",VLOOKUP(E78,'SERVIÇOS SINAPI'!$A:$D,4,0),IF(D78="ORSE",VLOOKUP(E78,'SERVIÇOS ORSE'!$A:$D,4,0),IF(D78="SEINFRA",VLOOKUP(E78,'SERVIÇOS SEINFRA'!$A:$D,4,0)))),IF(C78="INSUMO",IF(D78="SINAPI",VLOOKUP(E78,'INSUMOS SINAPI'!$A:$D,4,0),IF(D78="ORSE",VLOOKUP(E78,'INSUMOS ORSE'!$A:$D,4,0),IF(D78="SEINFRA",VLOOKUP(E78,'INSUMOS SEINFRA'!$A:$D,4,0),))))) -> 1839.64 | J78: =IF(C78="SERVIÇO",I78*(1+$I$8),IF(C78="INSUMO",(I78*(1+$K$8)))) -> 2049.91 | K78: =J78*H78 -> 2049.91 | L78: 4
B79: 8.2 | C79: INSUMO | D79: SINAPI | E79: 1328 | F79: =IF(C79="SERVIÇO",IF(D79="SINAPI",VLOOKUP(E79,'SERVIÇOS SINAPI'!$A:$D,2,0),IF(D79="ORSE",VLOOKUP(E79,'SERVIÇOS ORSE'!$A:$D,2,0),IF(D79="SEINFRA",VLOOKUP(E79,'SERVIÇOS SEINFRA'!$A:$D,2,0)))),IF(C79="INSUMO",IF(D79="SINAPI",VLOOKUP(E79,'INSUMOS SINAPI'!$A:$D,2,0),IF(D79="ORSE",VLOOKUP(E79,'INSUMOS ORSE'!$A:$D,2,0),IF(D79="SEINFRA",VLOOKUP(E79,'INSUMOS SEINFRA'!$A:$D,2,0),))))) -> CHAPA DE ACO FINA A FRIO BITOLA MSG 26, E = 0,45 MM (3,60 KG/M2) | G79: =IF(C79="SERVIÇO",IF(D79="SINAPI",VLOOKUP(E79,'SERVIÇOS SINAPI'!$A:$D,3,0),IF(D79="ORSE",VLOOKUP(E79,'SERVIÇOS ORSE'!$A:$D,3,0),IF(D79="SEINFRA",VLOOKUP(E79,'SERVIÇOS SEINFRA'!$A:$D,3,0)))),IF(C79="INSUMO",IF(D79="SINAPI",VLOOKUP(E79,'INSUMOS SINAPI'!$A:$D,3,0),IF(D79="ORSE",VLOOKUP(E79,'INSUMOS ORSE'!$A:$D,3,0),IF(D79="SEINFRA",VLOOKUP(E79,'INSUMOS SEINFRA'!$A:$D,3,0),))))) -> KG | H79: 8 | I79: =IF(C79="SERVIÇO",IF(D79="SINAPI",VLOOKUP(E79,'SERVIÇOS SINAPI'!$A:$D,4,0),IF(D79="ORSE",VLOOKUP(E79,'SERVIÇOS ORSE'!$A:$D,4,0),IF(D79="SEINFRA",VLOOKUP(E79,'SERVIÇOS SEINFRA'!$A:$D,4,0)))),IF(C79="INSUMO",IF(D79="SINAPI",VLOOKUP(E79,'INSUMOS SINAPI'!$A:$D,4,0),IF(D79="ORSE",VLOOKUP(E79,'INSUMOS ORSE'!$A:$D,4,0),IF(D79="SEINFRA",VLOOKUP(E79,'INSUMOS SEINFRA'!$A:$D,4,0),))))) -> 12.39 | J79: =IF(C79="SERVIÇO",I79*(1+$I$8),IF(C79="INSUMO",(I79*(1+$K$8)))) -> 13.81 | K79: =J79*H79 -> 110.48 | L79: 5
B80: 8.3 | C80: INSUMO | D80: SINAPI | E80: 21012 | F80: =IF(C80="SERVIÇO",IF(D80="SINAPI",VLOOKUP(E80,'SERVIÇOS SINAPI'!$A:$D,2,0),IF(D80="ORSE",VLOOKUP(E80,'SERVIÇOS ORSE'!$A:$D,2,0),IF(D80="SEINFRA",VLOOKUP(E80,'SERVIÇOS SEINFRA'!$A:$D,2,0)))),IF(C80="INSUMO",IF(D80="SINAPI",VLOOKUP(E80,'INSUMOS SINAPI'!$A:$D,2,0),IF(D80="ORSE",VLOOKUP(E80,'INSUMOS ORSE'!$A:$D,2,0),IF(D80="SEINFRA",VLOOKUP(E80,'INSUMOS SEINFRA'!$A:$D,2,0),))))) -> TUBO ACO GALVANIZADO COM COSTURA, CLASSE LEVE, DN 40 MM ( 1 1/2"), E = 3,00 MM, *3,48* KG/M (NBR 5580) | G80: =IF(C80="SERVIÇO",IF(D80="SINAPI",VLOOKUP(E80,'SERVIÇOS SINAPI'!$A:$D,3,0),IF(D80="ORSE",VLOOKUP(E80,'SERVIÇOS ORSE'!$A:$D,3,0),IF(D80="SEINFRA",VLOOKUP(E80,'SERVIÇOS SEINFRA'!$A:$D,3,0)))),IF(C80="INSUMO",IF(D80="SINAPI",VLOOKUP(E80,'INSUMOS SINAPI'!$A:$D,3,0),IF(D80="ORSE",VLOOKUP(E80,'INSUMOS ORSE'!$A:$D,3,0),IF(D80="SEINFRA",VLOOKUP(E80,'INSUMOS SEINFRA'!$A:$D,3,0),))))) -> M | H80: =H84 -> 3.5 | I80: =IF(C80="SERVIÇO",IF(D80="SINAPI",VLOOKUP(E80,'SERVIÇOS SINAPI'!$A:$D,4,0),IF(D80="ORSE",VLOOKUP(E80,'SERVIÇOS ORSE'!$A:$D,4,0),IF(D80="SEINFRA",VLOOKUP(E80,'SERVIÇOS SEINFRA'!$A:$D,4,0)))),IF(C80="INSUMO",IF(D80="SINAPI",VLOOKUP(E80,'INSUMOS SINAPI'!$A:$D,4,0),IF(D80="ORSE",VLOOKUP(E80,'INSUMOS ORSE'!$A:$D,4,0),IF(D80="SEINFRA",VLOOKUP(E80,'INSUMOS SEINFRA'!$A:$D,4,0),))))) -> 46.9 | J80: =IF(C80="SERVIÇO",I80*(1+$I$8),IF(C80="INSUMO",(I80*(1+$K$8)))) -> 52.26 | K80: =J80*H80 -> 182.91 | L80: 4
B81: 8.4 | C81: SERVIÇO | D81: SINAPI | E81: 94964 | F81: =IF(C81="SERVIÇO",IF(D81="SINAPI",VLOOKUP(E81,'SERVIÇOS SINAPI'!$A:$D,2,0),IF(D81="ORSE",VLOOKUP(E81,'SERVIÇOS ORSE'!$A:$D,2,0),IF(D81="SEINFRA",VLOOKUP(E81,'SERVIÇOS SEINFRA'!$A:$D,2,0)))),IF(C81="INSUMO",IF(D81="SINAPI",VLOOKUP(E81,'INSUMOS SINAPI'!$A:$D,2,0),IF(D81="ORSE",VLOOKUP(E81,'INSUMOS ORSE'!$A:$D,2,0),IF(D81="SEINFRA",VLOOKUP(E81,'INSUMOS SEINFRA'!$A:$D,2,0),))))) -> CONCRETO FCK = 20MPA, TRAÇO 1:2,7:3 (EM MASSA SECA DE CIMENTO/ AREIA MÉDIA/ BRITA 1) - PREPARO MECÂNICO COM BETONEIRA 400 L. AF_05/2021 | G81: =IF(C81="SERVIÇO",IF(D81="SINAPI",VLOOKUP(E81,'SERVIÇOS SINAPI'!$A:$D,3,0),IF(D81="ORSE",VLOOKUP(E81,'SERVIÇOS ORSE'!$A:$D,3,0),IF(D81="SEINFRA",VLOOKUP(E81,'SERVIÇOS SEINFRA'!$A:$D,3,0)))),IF(C81="INSUMO",IF(D81="SINAPI",VLOOKUP(E81,'INSUMOS SINAPI'!$A:$D,3,0),IF(D81="ORSE",VLOOKUP(E81,'INSUMOS ORSE'!$A:$D,3,0),IF(D81="SEINFRA",VLOOKUP(E81,'INSUMOS SEINFRA'!$A:$D,3,0),))))) -> M³ | H81: 0.1 | I81: =IF(C81="SERVIÇO",IF(D81="SINAPI",VLOOKUP(E81,'SERVIÇOS SINAPI'!$A:$D,4,0),IF(D81="ORSE",VLOOKUP(E81,'SERVIÇOS ORSE'!$A:$D,4,0),IF(D81="SEINFRA",VLOOKUP(E81,'SERVIÇOS SEINFRA'!$A:$D,4,0)))),IF(C81="INSUMO",IF(D81="SINAPI",VLOOKUP(E81,'INSUMOS SINAPI'!$A:$D,4,0),IF(D81="ORSE",VLOOKUP(E81,'INSUMOS ORSE'!$A:$D,4,0),IF(D81="SEINFRA",VLOOKUP(E81,'INSUMOS SEINFRA'!$A:$D,4,0),))))) -> 488.05 | J81: 598.54 | K81: 59.85 | L81: 3
B82: 9 | C82: MATERIAIS HIDÁULICOS | K82: =SUM(K83:K101) -> 1799.77
B83: 9.1 | C83: SERVIÇO | D83: SINAPI | E83: 89714 | F83: =IF(C83="SERVIÇO",IF(D83="SINAPI",VLOOKUP(E83,'SERVIÇOS SINAPI'!$A:$D,2,0),IF(D83="ORSE",VLOOKUP(E83,'SERVIÇOS ORSE'!$A:$D,2,0),IF(D83="SEINFRA",VLOOKUP(E83,'SERVIÇOS SEINFRA'!$A:$D,2,0)))),IF(C83="INSUMO",IF(D83="SINAPI",VLOOKUP(E83,'INSUMOS SINAPI'!$A:$D,2,0),IF(D83="ORSE",VLOOKUP(E83,'INSUMOS ORSE'!$A:$D,2,0),IF(D83="SEINFRA",VLOOKUP(E83,'INSUMOS SEINFRA'!$A:$D,2,0),))))) -> TUBO PVC, SERIE NORMAL, ESGOTO PREDIAL, DN 100 MM, FORNECIDO E INSTALADO EM RAMAL DE DESCARGA OU RAMAL DE ESGOTO SANITÁRIO. AF_08/2022 | G83: =IF(C83="SERVIÇO",IF(D83="SINAPI",VLOOKUP(E83,'SERVIÇOS SINAPI'!$A:$D,3,0),IF(D83="ORSE",VLOOKUP(E83,'SERVIÇOS ORSE'!$A:$D,3,0),IF(D83="SEINFRA",VLOOKUP(E83,'SERVIÇOS SEINFRA'!$A:$D,3,0)))),IF(C83="INSUMO",IF(D83="SINAPI",VLOOKUP(E83,'INSUMOS SINAPI'!$A:$D,3,0),IF(D83="ORSE",VLOOKUP(E83,'INSUMOS ORSE'!$A:$D,3,0),IF(D83="SEINFRA",VLOOKUP(E83,'INSUMOS SEINFRA'!$A:$D,3,0),))))) -> M | H83: 12 | I83: =IF(C83="SERVIÇO",IF(D83="SINAPI",VLOOKUP(E83,'SERVIÇOS SINAPI'!$A:$D,4,0),IF(D83="ORSE",VLOOKUP(E83,'SERVIÇOS ORSE'!$A:$D,4,0),IF(D83="SEINFRA",VLOOKUP(E83,'SERVIÇOS SEINFRA'!$A:$D,4,0)))),IF(C83="INSUMO",IF(D83="SINAPI",VLOOKUP(E83,'INSUMOS SINAPI'!$A:$D,4,0),IF(D83="ORSE",VLOOKUP(E83,'INSUMOS ORSE'!$A:$D,4,0),IF(D83="SEINFRA",VLOOKUP(E83,'INSUMOS SEINFRA'!$A:$D,4,0),))))) -> 38.08 | J83: 46.7 | K83: 560.4 | L83: 4
B84: 9.2 | C84: SERVIÇO | D84: SINAPI | E84: 89712 | F84: =IF(C84="SERVIÇO",IF(D84="SINAPI",VLOOKUP(E84,'SERVIÇOS SINAPI'!$A:$D,2,0),IF(D84="ORSE",VLOOKUP(E84,'SERVIÇOS ORSE'!$A:$D,2,0),IF(D84="SEINFRA",VLOOKUP(E84,'SERVIÇOS SEINFRA'!$A:$D,2,0)))),IF(C84="INSUMO",IF(D84="SINAPI",VLOOKUP(E84,'INSUMOS SINAPI'!$A:$D,2,0),IF(D84="ORSE",VLOOKUP(E84,'INSUMOS ORSE'!$A:$D,2,0),IF(D84="SEINFRA",VLOOKUP(E84,'INSUMOS SEINFRA'!$A:$D,2,0),))))) -> TUBO PVC, SERIE NORMAL, ESGOTO PREDIAL, DN 50 MM, FORNECIDO E INSTALADO EM RAMAL DE DESCARGA OU RAMAL DE ESGOTO SANITÁRIO. AF_08/2022 | G84: =IF(C84="SERVIÇO",IF(D84="SINAPI",VLOOKUP(E84,'SERVIÇOS SINAPI'!$A:$D,3,0),IF(D84="ORSE",VLOOKUP(E84,'SERVIÇOS ORSE'!$A:$D,3,0),IF(D84="SEINFRA",VLOOKUP(E84,'SERVIÇOS SEINFRA'!$A:$D,3,0)))),IF(C84="INSUMO",IF(D84="SINAPI",VLOOKUP(E84,'INSUMOS SINAPI'!$A:$D,3,0),IF(D84="ORSE",VLOOKUP(E84,'INSUMOS ORSE'!$A:$D,3,0),IF(D84="SEINFRA",VLOOKUP(E84,'INSUMOS SEINFRA'!$A:$D,3,0),))))) -> M | H84: 3.5 | I84: =IF(C84="SERVIÇO",IF(D84="SINAPI",VLOOKUP(E84,'SERVIÇOS SINAPI'!$A:$D,4,0),IF(D84="ORSE",VLOOKUP(E84,'SERVIÇOS ORSE'!$A:$D,4,0),IF(D84="SEINFRA",VLOOKUP(E84,'SERVIÇOS SEINFRA'!$A:$D,4,0)))),IF(C84="INSUMO",IF(D84="SINAPI",VLOOKUP(E84,'INSUMOS SINAPI'!$A:$D,4,0),IF(D84="ORSE",VLOOKUP(E84,'INSUMOS ORSE'!$A:$D,4,0),IF(D84="SEINFRA",VLOOKUP(E84,'INSUMOS SEINFRA'!$A:$D,4,0),))))) -> 27.35 | J84: 33.54 | K84: 117.39 | L84: 4
B85: 9.3 | C85: SERVIÇO | D85: SINAPI | E85: 89450 | F85: =IF(C85="SERVIÇO",IF(D85="SINAPI",VLOOKUP(E85,'SERVIÇOS SINAPI'!$A:$D,2,0),IF(D85="ORSE",VLOOKUP(E85,'SERVIÇOS ORSE'!$A:$D,2,0),IF(D85="SEINFRA",VLOOKUP(E85,'SERVIÇOS SEINFRA'!$A:$D,2,0)))),IF(C85="INSUMO",IF(D85="SINAPI",VLOOKUP(E85,'INSUMOS SINAPI'!$A:$D,2,0),IF(D85="ORSE",VLOOKUP(E85,'INSUMOS ORSE'!$A:$D,2,0),IF(D85="SEINFRA",VLOOKUP(E85,'INSUMOS SEINFRA'!$A:$D,2,0),))))) -> TUBO, PVC, SOLDÁVEL, DN 60MM, INSTALADO EM PRUMADA DE ÁGUA - FORNECIMENTO E INSTALAÇÃO. AF_06/2022 | G85: =IF(C85="SERVIÇO",IF(D85="SINAPI",VLOOKUP(E85,'SERVIÇOS SINAPI'!$A:$D,3,0),IF(D85="ORSE",VLOOKUP(E85,'SERVIÇOS ORSE'!$A:$D,3,0),IF(D85="SEINFRA",VLOOKUP(E85,'SERVIÇOS SEINFRA'!$A:$D,3,0)))),IF(C85="INSUMO",IF(D85="SINAPI",VLOOKUP(E85,'INSUMOS SINAPI'!$A:$D,3,0),IF(D85="ORSE",VLOOKUP(E85,'INSUMOS ORSE'!$A:$D,3,0),IF(D85="SEINFRA",VLOOKUP(E85,'INSUMOS SEINFRA'!$A:$D,3,0),))))) -> M | H85: 1.5 | I85: =IF(C85="SERVIÇO",IF(D85="SINAPI",VLOOKUP(E85,'SERVIÇOS SINAPI'!$A:$D,4,0),IF(D85="ORSE",VLOOKUP(E85,'SERVIÇOS ORSE'!$A:$D,4,0),IF(D85="SEINFRA",VLOOKUP(E85,'SERVIÇOS SEINFRA'!$A:$D,4,0)))),IF(C85="INSUMO",IF(D85="SINAPI",VLOOKUP(E85,'INSUMOS SINAPI'!$A:$D,4,0),IF(D85="ORSE",VLOOKUP(E85,'INSUMOS ORSE'!$A:$D,4,0),IF(D85="SEINFRA",VLOOKUP(E85,'INSUMOS SEINFRA'!$A:$D,4,0),))))) -> 28.56 | J85: 35.03 | K85: 52.55 | L85: 4
B86: 9.4 | C86: SERVIÇO | D86: SINAPI | E86: 94707 | F86: =IF(C86="SERVIÇO",IF(D86="SINAPI",VLOOKUP(E86,'SERVIÇOS SINAPI'!$A:$D,2,0),IF(D86="ORSE",VLOOKUP(E86,'SERVIÇOS ORSE'!$A:$D,2,0),IF(D86="SEINFRA",VLOOKUP(E86,'SERVIÇOS SEINFRA'!$A:$D,2,0)))),IF(C86="INSUMO",IF(D86="SINAPI",VLOOKUP(E86,'INSUMOS SINAPI'!$A:$D,2,0),IF(D86="ORSE",VLOOKUP(E86,'INSUMOS ORSE'!$A:$D,2,0),IF(D86="SEINFRA",VLOOKUP(E86,'INSUMOS SEINFRA'!$A:$D,2,0),))))) -> ADAPTADOR COM FLANGE E ANEL DE VEDAÇÃO, PVC, SOLDÁVEL, DN 60 MM X 2 , INSTALADO EM RESERVAÇÃO DE ÁGUA DE EDIFICAÇÃO QUE POSSUA RESERVATÓRIO DE FIBRA/FIBROCIMENTO FORNECIMENTO E INSTALAÇÃO. AF_06/2016 | G86: =IF(C86="SERVIÇO",IF(D86="SINAPI",VLOOKUP(E86,'SERVIÇOS SINAPI'!$A:$D,3,0),IF(D86="ORSE",VLOOKUP(E86,'SERVIÇOS ORSE'!$A:$D,3,0),IF(D86="SEINFRA",VLOOKUP(E86,'SERVIÇOS SEINFRA'!$A:$D,3,0)))),IF(C86="INSUMO",IF(D86="SINAPI",VLOOKUP(E86,'INSUMOS SINAPI'!$A:$D,3,0),IF(D86="ORSE",VLOOKUP(E86,'INSUMOS ORSE'!$A:$D,3,0),IF(D86="SEINFRA",VLOOKUP(E86,'INSUMOS SEINFRA'!$A:$D,3,0),))))) -> UN | H86: 1 | I86: =IF(C86="SERVIÇO",IF(D86="SINAPI",VLOOKUP(E86,'SERVIÇOS SINAPI'!$A:$D,4,0),IF(D86="ORSE",VLOOKUP(E86,'SERVIÇOS ORSE'!$A:$D,4,0),IF(D86="SEINFRA",VLOOKUP(E86,'SERVIÇOS SEINFRA'!$A:$D,4,0)))),IF(C86="INSUMO",IF(D86="SINAPI",VLOOKUP(E86,'INSUMOS SINAPI'!$A:$D,4,0),IF(D86="ORSE",VLOOKUP(E86,'INSUMOS ORSE'!$A:$D,4,0),IF(D86="SEINFRA",VLOOKUP(E86,'INSUMOS SEINFRA'!$A:$D,4,0),))))) -> 61.37 | J86: 75.26 | K86: 75.26 | L86: 4
B87: 9.5 | C87: SERVIÇO | D87: SINAPI | E87: 89713 | F87: =IF(C87="SERVIÇO",IF(D87="SINAPI",VLOOKUP(E87,'SERVIÇOS SINAPI'!$A:$D,2,0),IF(D87="ORSE",VLOOKUP(E87,'SERVIÇOS ORSE'!$A:$D,2,0),IF(D87="SEINFRA",VLOOKUP(E87,'SERVIÇOS SEINFRA'!$A:$D,2,0)))),IF(C87="INSUMO",IF(D87="SINAPI",VLOOKUP(E87,'INSUMOS SINAPI'!$A:$D,2,0),IF(D87="ORSE",VLOOKUP(E87,'INSUMOS ORSE'!$A:$D,2,0),IF(D87="SEINFRA",VLOOKUP(E87,'INSUMOS SEINFRA'!$A:$D,2,0),))))) -> TUBO PVC, SERIE NORMAL, ESGOTO PREDIAL, DN 75 MM, FORNECIDO E INSTALADO EM RAMAL DE DESCARGA OU RAMAL DE ESGOTO SANITÁRIO. AF_08/2022 | G87: =IF(C87="SERVIÇO",IF(D87="SINAPI",VLOOKUP(E87,'SERVIÇOS SINAPI'!$A:$D,3,0),IF(D87="ORSE",VLOOKUP(E87,'SERVIÇOS ORSE'!$A:$D,3,0),IF(D87="SEINFRA",VLOOKUP(E87,'SERVIÇOS SEINFRA'!$A:$D,3,0)))),IF(C87="INSUMO",IF(D87="SINAPI",VLOOKUP(E87,'INSUMOS SINAPI'!$A:$D,3,0),IF(D87="ORSE",VLOOKUP(E87,'INSUMOS ORSE'!$A:$D,3,0),IF(D87="SEINFRA",VLOOKUP(E87,'INSUMOS SEINFRA'!$A:$D,3,0),))))) -> M | H87: 1 | I87: =IF(C87="SERVIÇO",IF(D87="SINAPI",VLOOKUP(E87,'SERVIÇOS SINAPI'!$A:$D,4,0),IF(D87="ORSE",VLOOKUP(E87,'SERVIÇOS ORSE'!$A:$D,4,0),IF(D87="SEINFRA",VLOOKUP(E87,'SERVIÇOS SEINFRA'!$A:$D,4,0)))),IF(C87="INSUMO",IF(D87="SINAPI",VLOOKUP(E87,'INSUMOS SINAPI'!$A:$D,4,0),IF(D87="ORSE",VLOOKUP(E87,'INSUMOS ORSE'!$A:$D,4,0),IF(D87="SEINFRA",VLOOKUP(E87,'INSUMOS SEINFRA'!$A:$D,4,0),))))) -> 34.22 | J87: 41.97 | K87: 41.97 | L87: 4
B88: 9.6 | C88: INSUMO | D88: SINAPI | E88: 20087 | F88: =IF(C88="SERVIÇO",IF(D88="SINAPI",VLOOKUP(E88,'SERVIÇOS SINAPI'!$A:$D,2,0),IF(D88="ORSE",VLOOKUP(E88,'SERVIÇOS ORSE'!$A:$D,2,0),IF(D88="SEINFRA",VLOOKUP(E88,'SERVIÇOS SEINFRA'!$A:$D,2,0)))),IF(C88="INSUMO",IF(D88="SINAPI",VLOOKUP(E88,'INSUMOS SINAPI'!$A:$D,2,0),IF(D88="ORSE",VLOOKUP(E88,'INSUMOS ORSE'!$A:$D,2,0),IF(D88="SEINFRA",VLOOKUP(E88,'INSUMOS SEINFRA'!$A:$D,2,0),))))) -> CAP PVC, SERIE R, DN 75 MM, PARA ESGOTO PREDIAL | G88: =IF(C88="SERVIÇO",IF(D88="SINAPI",VLOOKUP(E88,'SERVIÇOS SINAPI'!$A:$D,3,0),IF(D88="ORSE",VLOOKUP(E88,'SERVIÇOS ORSE'!$A:$D,3,0),IF(D88="SEINFRA",VLOOKUP(E88,'SERVIÇOS SEINFRA'!$A:$D,3,0)))),IF(C88="INSUMO",IF(D88="SINAPI",VLOOKUP(E88,'INSUMOS SINAPI'!$A:$D,3,0),IF(D88="ORSE",VLOOKUP(E88,'INSUMOS ORSE'!$A:$D,3,0),IF(D88="SEINFRA",VLOOKUP(E88,'INSUMOS SEINFRA'!$A:$D,3,0),))))) -> UN | H88: 1 | I88: =IF(C88="SERVIÇO",IF(D88="SINAPI",VLOOKUP(E88,'SERVIÇOS SINAPI'!$A:$D,4,0),IF(D88="ORSE",VLOOKUP(E88,'SERVIÇOS ORSE'!$A:$D,4,0),IF(D88="SEINFRA",VLOOKUP(E88,'SERVIÇOS SEINFRA'!$A:$D,4,0)))),IF(C88="INSUMO",IF(D88="SINAPI",VLOOKUP(E88,'INSUMOS SINAPI'!$A:$D,4,0),IF(D88="ORSE",VLOOKUP(E88,'INSUMOS ORSE'!$A:$D,4,0),IF(D88="SEINFRA",VLOOKUP(E88,'INSUMOS SEINFRA'!$A:$D,4,0),))))) -> 11.77 | J88: =IF(C88="SERVIÇO",I88*(1+$I$8),IF(C88="INSUMO",(I88*(1+$K$8)))) -> 13.12 | K88: =J88*H88 -> 13.12 | L88: 4
B89: 9.7 | C89: SERVIÇO | D89: SINAPI | E89: 89358 | F89: =IF(C89="SERVIÇO",IF(D89="SINAPI",VLOOKUP(E89,'SERVIÇOS SINAPI'!$A:$D,2,0),IF(D89="ORSE",VLOOKUP(E89,'SERVIÇOS ORSE'!$A:$D,2,0),IF(D89="SEINFRA",VLOOKUP(E89,'SERVIÇOS SEINFRA'!$A:$D,2,0)))),IF(C89="INSUMO",IF(D89="SINAPI",VLOOKUP(E89,'INSUMOS SINAPI'!$A:$D,2,0),IF(D89="ORSE",VLOOKUP(E89,'INSUMOS ORSE'!$A:$D,2,0),IF(D89="SEINFRA",VLOOKUP(E89,'INSUMOS SEINFRA'!$A:$D,2,0),))))) -> JOELHO 90 GRAUS, PVC, SOLDÁVEL, DN 20MM, INSTALADO EM RAMAL OU SUB-RAMAL DE ÁGUA - FORNECIMENTO E INSTALAÇÃO. AF_06/2022 | G89: =IF(C89="SERVIÇO",IF(D89="SINAPI",VLOOKUP(E89,'SERVIÇOS SINAPI'!$A:$D,3,0),IF(D89="ORSE",VLOOKUP(E89,'SERVIÇOS ORSE'!$A:$D,3,0),IF(D89="SEINFRA",VLOOKUP(E89,'SERVIÇOS SEINFRA'!$A:$D,3,0)))),IF(C89="INSUMO",IF(D89="SINAPI",VLOOKUP(E89,'INSUMOS SINAPI'!$A:$D,3,0),IF(D89="ORSE",VLOOKUP(E89,'INSUMOS ORSE'!$A:$D,3,0),IF(D89="SEINFRA",VLOOKUP(E89,'INSUMOS SEINFRA'!$A:$D,3,0),))))) -> UN | H89: 8 | I89: =IF(C89="SERVIÇO",IF(D89="SINAPI",VLOOKUP(E89,'SERVIÇOS SINAPI'!$A:$D,4,0),IF(D89="ORSE",VLOOKUP(E89,'SERVIÇOS ORSE'!$A:$D,4,0),IF(D89="SEINFRA",VLOOKUP(E89,'SERVIÇOS SEINFRA'!$A:$D,4,0)))),IF(C89="INSUMO",IF(D89="SINAPI",VLOOKUP(E89,'INSUMOS SINAPI'!$A:$D,4,0),IF(D89="ORSE",VLOOKUP(E89,'INSUMOS ORSE'!$A:$D,4,0),IF(D89="SEINFRA",VLOOKUP(E89,'INSUMOS SEINFRA'!$A:$D,4,0),))))) -> 7.39 | J89: 9.06 | K89: 72.48 | L89: 4
B90: 9.8 | C90: SERVIÇO | D90: SINAPI | E90: 89393 | F90: =IF(C90="SERVIÇO",IF(D90="SINAPI",VLOOKUP(E90,'SERVIÇOS SINAPI'!$A:$D,2,0),IF(D90="ORSE",VLOOKUP(E90,'SERVIÇOS ORSE'!$A:$D,2,0),IF(D90="SEINFRA",VLOOKUP(E90,'SERVIÇOS SEINFRA'!$A:$D,2,0)))),IF(C90="INSUMO",IF(D90="SINAPI",VLOOKUP(E90,'INSUMOS SINAPI'!$A:$D,2,0),IF(D90="ORSE",VLOOKUP(E90,'INSUMOS ORSE'!$A:$D,2,0),IF(D90="SEINFRA",VLOOKUP(E90,'INSUMOS SEINFRA'!$A:$D,2,0),))))) -> TE, PVC, SOLDÁVEL, DN 20MM, INSTALADO EM RAMAL OU SUB-RAMAL DE ÁGUA - FORNECIMENTO E INSTALAÇÃO. AF_06/2022 | G90: =IF(C90="SERVIÇO",IF(D90="SINAPI",VLOOKUP(E90,'SERVIÇOS SINAPI'!$A:$D,3,0),IF(D90="ORSE",VLOOKUP(E90,'SERVIÇOS ORSE'!$A:$D,3,0),IF(D90="SEINFRA",VLOOKUP(E90,'SERVIÇOS SEINFRA'!$A:$D,3,0)))),IF(C90="INSUMO",IF(D90="SINAPI",VLOOKUP(E90,'INSUMOS SINAPI'!$A:$D,3,0),IF(D90="ORSE",VLOOKUP(E90,'INSUMOS ORSE'!$A:$D,3,0),IF(D90="SEINFRA",VLOOKUP(E90,'INSUMOS SEINFRA'!$A:$D,3,0),))))) -> UN | H90: 3 | I90: =IF(C90="SERVIÇO",IF(D90="SINAPI",VLOOKUP(E90,'SERVIÇOS SINAPI'!$A:$D,4,0),IF(D90="ORSE",VLOOKUP(E90,'SERVIÇOS ORSE'!$A:$D,4,0),IF(D90="SEINFRA",VLOOKUP(E90,'SERVIÇOS SEINFRA'!$A:$D,4,0)))),IF(C90="INSUMO",IF(D90="SINAPI",VLOOKUP(E90,'INSUMOS SINAPI'!$A:$D,4,0),IF(D90="ORSE",VLOOKUP(E90,'INSUMOS ORSE'!$A:$D,4,0),IF(D90="SEINFRA",VLOOKUP(E90,'INSUMOS SEINFRA'!$A:$D,4,0),))))) -> 10.25 | J90: 12.57 | K90: 37.71 | L90: 4
B91: 9.9 | C91: SERVIÇO | D91: SINAPI | E91: 89401 | F91: =IF(C91="SERVIÇO",IF(D91="SINAPI",VLOOKUP(E91,'SERVIÇOS SINAPI'!$A:$D,2,0),IF(D91="ORSE",VLOOKUP(E91,'SERVIÇOS ORSE'!$A:$D,2,0),IF(D91="SEINFRA",VLOOKUP(E91,'SERVIÇOS SEINFRA'!$A:$D,2,0)))),IF(C91="INSUMO",IF(D91="SINAPI",VLOOKUP(E91,'INSUMOS SINAPI'!$A:$D,2,0),IF(D91="ORSE",VLOOKUP(E91,'INSUMOS ORSE'!$A:$D,2,0),IF(D91="SEINFRA",VLOOKUP(E91,'INSUMOS SEINFRA'!$A:$D,2,0),))))) -> TUBO, PVC, SOLDÁVEL, DN 20MM, INSTALADO EM RAMAL DE DISTRIBUIÇÃO DE ÁGUA - FORNECIMENTO E INSTALAÇÃO. AF_06/2022 | G91: =IF(C91="SERVIÇO",IF(D91="SINAPI",VLOOKUP(E91,'SERVIÇOS SINAPI'!$A:$D,3,0),IF(D91="ORSE",VLOOKUP(E91,'SERVIÇOS ORSE'!$A:$D,3,0),IF(D91="SEINFRA",VLOOKUP(E91,'SERVIÇOS SEINFRA'!$A:$D,3,0)))),IF(C91="INSUMO",IF(D91="SINAPI",VLOOKUP(E91,'INSUMOS SINAPI'!$A:$D,3,0),IF(D91="ORSE",VLOOKUP(E91,'INSUMOS ORSE'!$A:$D,3,0),IF(D91="SEINFRA",VLOOKUP(E91,'INSUMOS SEINFRA'!$A:$D,3,0),))))) -> M | H91: 24 | I91: =IF(C91="SERVIÇO",IF(D91="SINAPI",VLOOKUP(E91,'SERVIÇOS SINAPI'!$A:$D,4,0),IF(D91="ORSE",VLOOKUP(E91,'SERVIÇOS ORSE'!$A:$D,4,0),IF(D91="SEINFRA",VLOOKUP(E91,'SERVIÇOS SEINFRA'!$A:$D,4,0)))),IF(C91="INSUMO",IF(D91="SINAPI",VLOOKUP(E91,'INSUMOS SINAPI'!$A:$D,4,0),IF(D91="ORSE",VLOOKUP(E91,'INSUMOS ORSE'!$A:$D,4,0),IF(D91="SEINFRA",VLOOKUP(E91,'INSUMOS SEINFRA'!$A:$D,4,0),))))) -> 10.28 | J91: 12.61 | K91: 302.64 | L91: 4
B92: 9.10 | C92: SERVIÇO | D92: SINAPI | E92: 97426 | F92: =IF(C92="SERVIÇO",IF(D92="SINAPI",VLOOKUP(E92,'SERVIÇOS SINAPI'!$A:$D,2,0),IF(D92="ORSE",VLOOKUP(E92,'SERVIÇOS ORSE'!$A:$D,2,0),IF(D92="SEINFRA",VLOOKUP(E92,'SERVIÇOS SEINFRA'!$A:$D,2,0)))),IF(C92="INSUMO",IF(D92="SINAPI",VLOOKUP(E92,'INSUMOS SINAPI'!$A:$D,2,0),IF(D92="ORSE",VLOOKUP(E92,'INSUMOS ORSE'!$A:$D,2,0),IF(D92="SEINFRA",VLOOKUP(E92,'INSUMOS SEINFRA'!$A:$D,2,0),))))) -> FLANGE EM AÇO, DN 20 MM X 3/4'', INSTALADO EM RESERVAÇÃO DE ÁGUA DE EDIFICAÇÃO QUE POSSUA RESERVATÓRIO DE FIBRA/FIBROCIMENTO - FORNECIMENTO E INSTALAÇÃO. AF_06/2016 | G92: =IF(C92="SERVIÇO",IF(D92="SINAPI",VLOOKUP(E92,'SERVIÇOS SINAPI'!$A:$D,3,0),IF(D92="ORSE",VLOOKUP(E92,'SERVIÇOS ORSE'!$A:$D,3,0),IF(D92="SEINFRA",VLOOKUP(E92,'SERVIÇOS SEINFRA'!$A:$D,3,0)))),IF(C92="INSUMO",IF(D92="SINAPI",VLOOKUP(E92,'INSUMOS SINAPI'!$A:$D,3,0),IF(D92="ORSE",VLOOKUP(E92,'INSUMOS ORSE'!$A:$D,3,0),IF(D92="SEINFRA",VLOOKUP(E92,'INSUMOS SEINFRA'!$A:$D,3,0),))))) -> UN | H92: 3 | I92: =IF(C92="SERVIÇO",IF(D92="SINAPI",VLOOKUP(E92,'SERVIÇOS SINAPI'!$A:$D,4,0),IF(D92="ORSE",VLOOKUP(E92,'SERVIÇOS ORSE'!$A:$D,4,0),IF(D92="SEINFRA",VLOOKUP(E92,'SERVIÇOS SEINFRA'!$A:$D,4,0)))),IF(C92="INSUMO",IF(D92="SINAPI",VLOOKUP(E92,'INSUMOS SINAPI'!$A:$D,4,0),IF(D92="ORSE",VLOOKUP(E92,'INSUMOS ORSE'!$A:$D,4,0),IF(D92="SEINFRA",VLOOKUP(E92,'INSUMOS SEINFRA'!$A:$D,4,0),))))) -> 39.76 | J92: =IF(C92="SERVIÇO",I92*(1+$I$8),IF(C92="INSUMO",(I92*(1+$K$8)))) -> 48.76 | K92: =J92*H92 -> 146.28 | L92: 7
B93: 9.11 | C93: SERVIÇO | D93: SINAPI | E93: 104056 | F93: =IF(C93="SERVIÇO",IF(D93="SINAPI",VLOOKUP(E93,'SERVIÇOS SINAPI'!$A:$D,2,0),IF(D93="ORSE",VLOOKUP(E93,'SERVIÇOS ORSE'!$A:$D,2,0),IF(D93="SEINFRA",VLOOKUP(E93,'SERVIÇOS SEINFRA'!$A:$D,2,0)))),IF(C93="INSUMO",IF(D93="SINAPI",VLOOKUP(E93,'INSUMOS SINAPI'!$A:$D,2,0),IF(D93="ORSE",VLOOKUP(E93,'INSUMOS ORSE'!$A:$D,2,0),IF(D93="SEINFRA",VLOOKUP(E93,'INSUMOS SEINFRA'!$A:$D,2,0),))))) -> REGISTRO ESFERA, PVC, COM ROSCA, 1/2", PARA LIGAÇÃO PREDIAL DE ÁGUA. AF_06/2022 | G93: =IF(C93="SERVIÇO",IF(D93="SINAPI",VLOOKUP(E93,'SERVIÇOS SINAPI'!$A:$D,3,0),IF(D93="ORSE",VLOOKUP(E93,'SERVIÇOS ORSE'!$A:$D,3,0),IF(D93="SEINFRA",VLOOKUP(E93,'SERVIÇOS SEINFRA'!$A:$D,3,0)))),IF(C93="INSUMO",IF(D93="SINAPI",VLOOKUP(E93,'INSUMOS SINAPI'!$A:$D,3,0),IF(D93="ORSE",VLOOKUP(E93,'INSUMOS ORSE'!$A:$D,3,0),IF(D93="SEINFRA",VLOOKUP(E93,'INSUMOS SEINFRA'!$A:$D,3,0),))))) -> UN | H93: 4 | I93: =IF(C93="SERVIÇO",IF(D93="SINAPI",VLOOKUP(E93,'SERVIÇOS SINAPI'!$A:$D,4,0),IF(D93="ORSE",VLOOKUP(E93,'SERVIÇOS ORSE'!$A:$D,4,0),IF(D93="SEINFRA",VLOOKUP(E93,'SERVIÇOS SEINFRA'!$A:$D,4,0)))),IF(C93="INSUMO",IF(D93="SINAPI",VLOOKUP(E93,'INSUMOS SINAPI'!$A:$D,4,0),IF(D93="ORSE",VLOOKUP(E93,'INSUMOS ORSE'!$A:$D,4,0),IF(D93="SEINFRA",VLOOKUP(E93,'INSUMOS SEINFRA'!$A:$D,4,0),))))) -> 26.14 | J93: 32.06 | K93: 128.24 | L93: 4
B94: 9.12 | C94: SERVIÇO | D94: SINAPI | E94: 89375 | F94: =IF(C94="SERVIÇO",IF(D94="SINAPI",VLOOKUP(E94,'SERVIÇOS SINAPI'!$A:$D,2,0),IF(D94="ORSE",VLOOKUP(E94,'SERVIÇOS ORSE'!$A:$D,2,0),IF(D94="SEINFRA",VLOOKUP(E94,'SERVIÇOS SEINFRA'!$A:$D,2,0)))),IF(C94="INSUMO",IF(D94="SINAPI",VLOOKUP(E94,'INSUMOS SINAPI'!$A:$D,2,0),IF(D94="ORSE",VLOOKUP(E94,'INSUMOS ORSE'!$A:$D,2,0),IF(D94="SEINFRA",VLOOKUP(E94,'INSUMOS SEINFRA'!$A:$D,2,0),))))) -> UNIÃO, PVC, SOLDÁVEL, DN 20MM, INSTALADO EM RAMAL OU SUB-RAMAL DE ÁGUA - FORNECIMENTO E INSTALAÇÃO. AF_06/2022 | G94: =IF(C94="SERVIÇO",IF(D94="SINAPI",VLOOKUP(E94,'SERVIÇOS SINAPI'!$A:$D,3,0),IF(D94="ORSE",VLOOKUP(E94,'SERVIÇOS ORSE'!$A:$D,3,0),IF(D94="SEINFRA",VLOOKUP(E94,'SERVIÇOS SEINFRA'!$A:$D,3,0)))),IF(C94="INSUMO",IF(D94="SINAPI",VLOOKUP(E94,'INSUMOS SINAPI'!$A:$D,3,0),IF(D94="ORSE",VLOOKUP(E94,'INSUMOS ORSE'!$A:$D,3,0),IF(D94="SEINFRA",VLOOKUP(E94,'INSUMOS SEINFRA'!$A:$D,3,0),))))) -> UN | H94: 2 | I94: =IF(C94="SERVIÇO",IF(D94="SINAPI",VLOOKUP(E94,'SERVIÇOS SINAPI'!$A:$D,4,0),IF(D94="ORSE",VLOOKUP(E94,'SERVIÇOS ORSE'!$A:$D,4,0),IF(D94="SEINFRA",VLOOKUP(E94,'SERVIÇOS SEINFRA'!$A:$D,4,0)))),IF(C94="INSUMO",IF(D94="SINAPI",VLOOKUP(E94,'INSUMOS SINAPI'!$A:$D,4,0),IF(D94="ORSE",VLOOKUP(E94,'INSUMOS ORSE'!$A:$D,4,0),IF(D94="SEINFRA",VLOOKUP(E94,'INSUMOS SEINFRA'!$A:$D,4,0),))))) -> 11.42 | J94: 14.01 | K94: 28.02 | L94: 4
B95: 9.13 | C95: SERVIÇO | D95: SINAPI | E95: 89376 | F95: =IF(C95="SERVIÇO",IF(D95="SINAPI",VLOOKUP(E95,'SERVIÇOS SINAPI'!$A:$D,2,0),IF(D95="ORSE",VLOOKUP(E95,'SERVIÇOS ORSE'!$A:$D,2,0),IF(D95="SEINFRA",VLOOKUP(E95,'SERVIÇOS SEINFRA'!$A:$D,2,0)))),IF(C95="INSUMO",IF(D95="SINAPI",VLOOKUP(E95,'INSUMOS SINAPI'!$A:$D,2,0),IF(D95="ORSE",VLOOKUP(E95,'INSUMOS ORSE'!$A:$D,2,0),IF(D95="SEINFRA",VLOOKUP(E95,'INSUMOS SEINFRA'!$A:$D,2,0),))))) -> ADAPTADOR CURTO COM BOLSA E ROSCA PARA REGISTRO, PVC, SOLDÁVEL, DN 20MM X 1/2 , INSTALADO EM RAMAL OU SUB-RAMAL DE ÁGUA - FORNECIMENTO E INSTALAÇÃO. AF_06/2022 | G95: =IF(C95="SERVIÇO",IF(D95="SINAPI",VLOOKUP(E95,'SERVIÇOS SINAPI'!$A:$D,3,0),IF(D95="ORSE",VLOOKUP(E95,'SERVIÇOS ORSE'!$A:$D,3,0),IF(D95="SEINFRA",VLOOKUP(E95,'SERVIÇOS SEINFRA'!$A:$D,3,0)))),IF(C95="INSUMO",IF(D95="SINAPI",VLOOKUP(E95,'INSUMOS SINAPI'!$A:$D,3,0),IF(D95="ORSE",VLOOKUP(E95,'INSUMOS ORSE'!$A:$D,3,0),IF(D95="SEINFRA",VLOOKUP(E95,'INSUMOS SEINFRA'!$A:$D,3,0),))))) -> UN | H95: 4 | I95: =IF(C95="SERVIÇO",IF(D95="SINAPI",VLOOKUP(E95,'SERVIÇOS SINAPI'!$A:$D,4,0),IF(D95="ORSE",VLOOKUP(E95,'SERVIÇOS ORSE'!$A:$D,4,0),IF(D95="SEINFRA",VLOOKUP(E95,'SERVIÇOS SEINFRA'!$A:$D,4,0)))),IF(C95="INSUMO",IF(D95="SINAPI",VLOOKUP(E95,'INSUMOS SINAPI'!$A:$D,4,0),IF(D95="ORSE",VLOOKUP(E95,'INSUMOS ORSE'!$A:$D,4,0),IF(D95="SEINFRA",VLOOKUP(E95,'INSUMOS SEINFRA'!$A:$D,4,0),))))) -> 5.27 | J95: 6.46 | K95: 25.84 | L95: 4
B96: 9.14 | C96: SERVIÇO | D96: SINAPI | E96: 89374 | F96: =IF(C96="SERVIÇO",IF(D96="SINAPI",VLOOKUP(E96,'SERVIÇOS SINAPI'!$A:$D,2,0),IF(D96="ORSE",VLOOKUP(E96,'SERVIÇOS ORSE'!$A:$D,2,0),IF(D96="SEINFRA",VLOOKUP(E96,'SERVIÇOS SEINFRA'!$A:$D,2,0)))),IF(C96="INSUMO",IF(D96="SINAPI",VLOOKUP(E96,'INSUMOS SINAPI'!$A:$D,2,0),IF(D96="ORSE",VLOOKUP(E96,'INSUMOS ORSE'!$A:$D,2,0),IF(D96="SEINFRA",VLOOKUP(E96,'INSUMOS SEINFRA'!$A:$D,2,0),))))) -> LUVA COM BUCHA DE LATÃO, PVC, SOLDÁVEL, DN 20MM X 1/2", INSTALADO EM RAMAL OU SUB-RAMAL DE ÁGUA - FORNECIMENTO E INSTALAÇÃO. AF_06/2022 | G96: =IF(C96="SERVIÇO",IF(D96="SINAPI",VLOOKUP(E96,'SERVIÇOS SINAPI'!$A:$D,3,0),IF(D96="ORSE",VLOOKUP(E96,'SERVIÇOS ORSE'!$A:$D,3,0),IF(D96="SEINFRA",VLOOKUP(E96,'SERVIÇOS SEINFRA'!$A:$D,3,0)))),IF(C96="INSUMO",IF(D96="SINAPI",VLOOKUP(E96,'INSUMOS SINAPI'!$A:$D,3,0),IF(D96="ORSE",VLOOKUP(E96,'INSUMOS ORSE'!$A:$D,3,0),IF(D96="SEINFRA",VLOOKUP(E96,'INSUMOS SEINFRA'!$A:$D,3,0),))))) -> UN | H96: 2 | I96: =IF(C96="SERVIÇO",IF(D96="SINAPI",VLOOKUP(E96,'SERVIÇOS SINAPI'!$A:$D,4,0),IF(D96="ORSE",VLOOKUP(E96,'SERVIÇOS ORSE'!$A:$D,4,0),IF(D96="SEINFRA",VLOOKUP(E96,'SERVIÇOS SEINFRA'!$A:$D,4,0)))),IF(C96="INSUMO",IF(D96="SINAPI",VLOOKUP(E96,'INSUMOS SINAPI'!$A:$D,4,0),IF(D96="ORSE",VLOOKUP(E96,'INSUMOS ORSE'!$A:$D,4,0),IF(D96="SEINFRA",VLOOKUP(E96,'INSUMOS SEINFRA'!$A:$D,4,0),))))) -> 9.63 | J96: 11.81 | K96: 23.62 | L96: 4
B97: 9.15 | C97: SERVIÇO | D97: SINAPI | E97: 89448 | F97: =IF(C97="SERVIÇO",IF(D97="SINAPI",VLOOKUP(E97,'SERVIÇOS SINAPI'!$A:$D,2,0),IF(D97="ORSE",VLOOKUP(E97,'SERVIÇOS ORSE'!$A:$D,2,0),IF(D97="SEINFRA",VLOOKUP(E97,'SERVIÇOS SEINFRA'!$A:$D,2,0)))),IF(C97="INSUMO",IF(D97="SINAPI",VLOOKUP(E97,'INSUMOS SINAPI'!$A:$D,2,0),IF(D97="ORSE",VLOOKUP(E97,'INSUMOS ORSE'!$A:$D,2,0),IF(D97="SEINFRA",VLOOKUP(E97,'INSUMOS SEINFRA'!$A:$D,2,0),))))) -> TUBO, PVC, SOLDÁVEL, DN 40MM, INSTALADO EM PRUMADA DE ÁGUA - FORNECIMENTO E INSTALAÇÃO. AF_06/2022 | G97: =IF(C97="SERVIÇO",IF(D97="SINAPI",VLOOKUP(E97,'SERVIÇOS SINAPI'!$A:$D,3,0),IF(D97="ORSE",VLOOKUP(E97,'SERVIÇOS ORSE'!$A:$D,3,0),IF(D97="SEINFRA",VLOOKUP(E97,'SERVIÇOS SEINFRA'!$A:$D,3,0)))),IF(C97="INSUMO",IF(D97="SINAPI",VLOOKUP(E97,'INSUMOS SINAPI'!$A:$D,3,0),IF(D97="ORSE",VLOOKUP(E97,'INSUMOS ORSE'!$A:$D,3,0),IF(D97="SEINFRA",VLOOKUP(E97,'INSUMOS SEINFRA'!$A:$D,3,0),))))) -> M | H97: 0.5 | I97: =IF(C97="SERVIÇO",IF(D97="SINAPI",VLOOKUP(E97,'SERVIÇOS SINAPI'!$A:$D,4,0),IF(D97="ORSE",VLOOKUP(E97,'SERVIÇOS ORSE'!$A:$D,4,0),IF(D97="SEINFRA",VLOOKUP(E97,'SERVIÇOS SEINFRA'!$A:$D,4,0)))),IF(C97="INSUMO",IF(D97="SINAPI",VLOOKUP(E97,'INSUMOS SINAPI'!$A:$D,4,0),IF(D97="ORSE",VLOOKUP(E97,'INSUMOS ORSE'!$A:$D,4,0),IF(D97="SEINFRA",VLOOKUP(E97,'INSUMOS SEINFRA'!$A:$D,4,0),))))) -> 16.1 | J97: 19.75 | K97: 9.88 | L97: 4
B98: 9.16 | C98: INSUMO | D98: SINAPI | E98: 55 | F98: =IF(C98="SERVIÇO",IF(D98="SINAPI",VLOOKUP(E98,'SERVIÇOS SINAPI'!$A:$D,2,0),IF(D98="ORSE",VLOOKUP(E98,'SERVIÇOS ORSE'!$A:$D,2,0),IF(D98="SEINFRA",VLOOKUP(E98,'SERVIÇOS SEINFRA'!$A:$D,2,0)))),IF(C98="INSUMO",IF(D98="SINAPI",VLOOKUP(E98,'INSUMOS SINAPI'!$A:$D,2,0),IF(D98="ORSE",VLOOKUP(E98,'INSUMOS ORSE'!$A:$D,2,0),IF(D98="SEINFRA",VLOOKUP(E98,'INSUMOS SEINFRA'!$A:$D,2,0),))))) -> ADAPTADOR DE COMPRESSAO EM POLIPROPILENO (PP), PARA TUBO EM PEAD, 20 MM X 1/2", PARA LIGACAO PREDIAL DE AGUA (NTS 179) | G98: =IF(C98="SERVIÇO",IF(D98="SINAPI",VLOOKUP(E98,'SERVIÇOS SINAPI'!$A:$D,3,0),IF(D98="ORSE",VLOOKUP(E98,'SERVIÇOS ORSE'!$A:$D,3,0),IF(D98="SEINFRA",VLOOKUP(E98,'SERVIÇOS SEINFRA'!$A:$D,3,0)))),IF(C98="INSUMO",IF(D98="SINAPI",VLOOKUP(E98,'INSUMOS SINAPI'!$A:$D,3,0),IF(D98="ORSE",VLOOKUP(E98,'INSUMOS ORSE'!$A:$D,3,0),IF(D98="SEINFRA",VLOOKUP(E98,'INSUMOS SEINFRA'!$A:$D,3,0),))))) -> UN | H98: 2 | I98: =IF(C98="SERVIÇO",IF(D98="SINAPI",VLOOKUP(E98,'SERVIÇOS SINAPI'!$A:$D,4,0),IF(D98="ORSE",VLOOKUP(E98,'SERVIÇOS ORSE'!$A:$D,4,0),IF(D98="SEINFRA",VLOOKUP(E98,'SERVIÇOS SEINFRA'!$A:$D,4,0)))),IF(C98="INSUMO",IF(D98="SINAPI",VLOOKUP(E98,'INSUMOS SINAPI'!$A:$D,4,0),IF(D98="ORSE",VLOOKUP(E98,'INSUMOS ORSE'!$A:$D,4,0),IF(D98="SEINFRA",VLOOKUP(E98,'INSUMOS SEINFRA'!$A:$D,4,0),))))) -> 4.48 | J98: 4.99 | K98: 9.98 | L98: 4
B99: 9.17 | C99: SERVIÇO | D99: SINAPI | E99: 104357 | F99: =IF(C99="SERVIÇO",IF(D99="SINAPI",VLOOKUP(E99,'SERVIÇOS SINAPI'!$A:$D,2,0),IF(D99="ORSE",VLOOKUP(E99,'SERVIÇOS ORSE'!$A:$D,2,0),IF(D99="SEINFRA",VLOOKUP(E99,'SERVIÇOS SEINFRA'!$A:$D,2,0)))),IF(C99="INSUMO",IF(D99="SINAPI",VLOOKUP(E99,'INSUMOS SINAPI'!$A:$D,2,0),IF(D99="ORSE",VLOOKUP(E99,'INSUMOS ORSE'!$A:$D,2,0),IF(D99="SEINFRA",VLOOKUP(E99,'INSUMOS SEINFRA'!$A:$D,2,0),))))) -> CAP, PVC, SÉRIE NORMAL, ESGOTO PREDIAL, DN 100 MM, JUNTA ELÁSTICA, FORNECIDO E INSTALADO EM SUBCOLETOR AÉREO DE ESGOTO SANITÁRIO. AF_08/2022 | G99: =IF(C99="SERVIÇO",IF(D99="SINAPI",VLOOKUP(E99,'SERVIÇOS SINAPI'!$A:$D,3,0),IF(D99="ORSE",VLOOKUP(E99,'SERVIÇOS ORSE'!$A:$D,3,0),IF(D99="SEINFRA",VLOOKUP(E99,'SERVIÇOS SEINFRA'!$A:$D,3,0)))),IF(C99="INSUMO",IF(D99="SINAPI",VLOOKUP(E99,'INSUMOS SINAPI'!$A:$D,3,0),IF(D99="ORSE",VLOOKUP(E99,'INSUMOS ORSE'!$A:$D,3,0),IF(D99="SEINFRA",VLOOKUP(E99,'INSUMOS SEINFRA'!$A:$D,3,0),))))) -> UN | H99: 2 | I99: =IF(C99="SERVIÇO",IF(D99="SINAPI",VLOOKUP(E99,'SERVIÇOS SINAPI'!$A:$D,4,0),IF(D99="ORSE",VLOOKUP(E99,'SERVIÇOS ORSE'!$A:$D,4,0),IF(D99="SEINFRA",VLOOKUP(E99,'SERVIÇOS SEINFRA'!$A:$D,4,0)))),IF(C99="INSUMO",IF(D99="SINAPI",VLOOKUP(E99,'INSUMOS SINAPI'!$A:$D,4,0),IF(D99="ORSE",VLOOKUP(E99,'INSUMOS ORSE'!$A:$D,4,0),IF(D99="SEINFRA",VLOOKUP(E99,'INSUMOS SEINFRA'!$A:$D,4,0),))))) -> 20.34 | J99: 24.94 | K99: 49.88 | L99: 4
B100: 9.18 | C100: SERVIÇO | D100: SINAPI | E100: 94783 | F100: =IF(C100="SERVIÇO",IF(D100="SINAPI",VLOOKUP(E100,'SERVIÇOS SINAPI'!$A:$D,2,0),IF(D100="ORSE",VLOOKUP(E100,'SERVIÇOS ORSE'!$A:$D,2,0),IF(D100="SEINFRA",VLOOKUP(E100,'SERVIÇOS SEINFRA'!$A:$D,2,0)))),IF(C100="INSUMO",IF(D100="SINAPI",VLOOKUP(E100,'INSUMOS SINAPI'!$A:$D,2,0),IF(D100="ORSE",VLOOKUP(E100,'INSUMOS ORSE'!$A:$D,2,0),IF(D100="SEINFRA",VLOOKUP(E100,'INSUMOS SEINFRA'!$A:$D,2,0),))))) -> ADAPTADOR COM FLANGE E ANEL DE VEDAÇÃO, PVC, SOLDÁVEL, DN 20 MM X 1/2 , INSTALADO EM RESERVAÇÃO DE ÁGUA DE EDIFICAÇÃO QUE POSSUA RESERVATÓRIO DE FIBRA/FIBROCIMENTO FORNECIMENTO E INSTALAÇÃO. AF_06/2016 | G100: =IF(C100="SERVIÇO",IF(D100="SINAPI",VLOOKUP(E100,'SERVIÇOS SINAPI'!$A:$D,3,0),IF(D100="ORSE",VLOOKUP(E100,'SERVIÇOS ORSE'!$A:$D,3,0),IF(D100="SEINFRA",VLOOKUP(E100,'SERVIÇOS SEINFRA'!$A:$D,3,0)))),IF(C100="INSUMO",IF(D100="SINAPI",VLOOKUP(E100,'INSUMOS SINAPI'!$A:$D,3,0),IF(D100="ORSE",VLOOKUP(E100,'INSUMOS ORSE'!$A:$D,3,0),IF(D100="SEINFRA",VLOOKUP(E100,'INSUMOS SEINFRA'!$A:$D,3,0),))))) -> UN | H100: 2 | I100: =IF(C100="SERVIÇO",IF(D100="SINAPI",VLOOKUP(E100,'SERVIÇOS SINAPI'!$A:$D,4,0),IF(D100="ORSE",VLOOKUP(E100,'SERVIÇOS ORSE'!$A:$D,4,0),IF(D100="SEINFRA",VLOOKUP(E100,'SERVIÇOS SEINFRA'!$A:$D,4,0)))),IF(C100="INSUMO",IF(D100="SINAPI",VLOOKUP(E100,'INSUMOS SINAPI'!$A:$D,4,0),IF(D100="ORSE",VLOOKUP(E100,'INSUMOS ORSE'!$A:$D,4,0),IF(D100="SEINFRA",VLOOKUP(E100,'INSUMOS SEINFRA'!$A:$D,4,0),))))) -> 19.25 | J100: 23.61 | K100: 47.22 | L100: 4
B101: 9.19 | C101: SERVIÇO | D101: SINAPI | E101: 103029 | F101: =IF(C101="SERVIÇO",IF(D101="SINAPI",VLOOKUP(E101,'SERVIÇOS SINAPI'!$A:$D,2,0),IF(D101="ORSE",VLOOKUP(E101,'SERVIÇOS ORSE'!$A:$D,2,0),IF(D101="SEINFRA",VLOOKUP(E101,'SERVIÇOS SEINFRA'!$A:$D,2,0)))),IF(C101="INSUMO",IF(D101="SINAPI",VLOOKUP(E101,'INSUMOS SINAPI'!$A:$D,2,0),IF(D101="ORSE",VLOOKUP(E101,'INSUMOS ORSE'!$A:$D,2,0),IF(D101="SEINFRA",VLOOKUP(E101,'INSUMOS SEINFRA'!$A:$D,2,0),))))) -> REGISTRO OU REGULADOR DE GÁS DE COZINHA - FORNECIMENTO E INSTALAÇÃO. AF_08/2021 | G101: =IF(C101="SERVIÇO",IF(D101="SINAPI",VLOOKUP(E101,'SERVIÇOS SINAPI'!$A:$D,3,0),IF(D101="ORSE",VLOOKUP(E101,'SERVIÇOS ORSE'!$A:$D,3,0),IF(D101="SEINFRA",VLOOKUP(E101,'SERVIÇOS SEINFRA'!$A:$D,3,0)))),IF(C101="INSUMO",IF(D101="SINAPI",VLOOKUP(E101,'INSUMOS SINAPI'!$A:$D,3,0),IF(D101="ORSE",VLOOKUP(E101,'INSUMOS ORSE'!$A:$D,3,0),IF(D101="SEINFRA",VLOOKUP(E101,'INSUMOS SEINFRA'!$A:$D,3,0),))))) -> UN | H101: 1 | I101: =IF(C101="SERVIÇO",IF(D101="SINAPI",VLOOKUP(E101,'SERVIÇOS SINAPI'!$A:$D,4,0),IF(D101="ORSE",VLOOKUP(E101,'SERVIÇOS ORSE'!$A:$D,4,0),IF(D101="SEINFRA",VLOOKUP(E101,'SERVIÇOS SEINFRA'!$A:$D,4,0)))),IF(C101="INSUMO",IF(D101="SINAPI",VLOOKUP(E101,'INSUMOS SINAPI'!$A:$D,4,0),IF(D101="ORSE",VLOOKUP(E101,'INSUMOS ORSE'!$A:$D,4,0),IF(D101="SEINFRA",VLOOKUP(E101,'INSUMOS SEINFRA'!$A:$D,4,0),))))) -> 46.71 | J101: 57.29 | K101: 57.29 | L101: 4
B102: 10 | C102: MATERIAIS COMPLEMENTARES | K102: =SUM(K103:K120) -> 666.47
B103: 10.1 | C103: INSUMO | D103: SINAPI | E103: 37460 | F103: =IF(C103="SERVIÇO",IF(D103="SINAPI",VLOOKUP(E103,'SERVIÇOS SINAPI'!$A:$D,2,0),IF(D103="ORSE",VLOOKUP(E103,'SERVIÇOS ORSE'!$A:$D,2,0),IF(D103="SEINFRA",VLOOKUP(E103,'SERVIÇOS SEINFRA'!$A:$D,2,0)))),IF(C103="INSUMO",IF(D103="SINAPI",VLOOKUP(E103,'INSUMOS SINAPI'!$A:$D,2,0),IF(D103="ORSE",VLOOKUP(E103,'INSUMOS ORSE'!$A:$D,2,0),IF(D103="SEINFRA",VLOOKUP(E103,'INSUMOS SEINFRA'!$A:$D,2,0),))))) -> MANGUEIRA CRISTAL TRANCADA, PVC COM REFORCO, PRESSAO DE TRABALHO (PT) 250 LBS/POL2, DE 1" X *3,4* MM | G103: =IF(C103="SERVIÇO",IF(D103="SINAPI",VLOOKUP(E103,'SERVIÇOS SINAPI'!$A:$D,3,0),IF(D103="ORSE",VLOOKUP(E103,'SERVIÇOS ORSE'!$A:$D,3,0),IF(D103="SEINFRA",VLOOKUP(E103,'SERVIÇOS SEINFRA'!$A:$D,3,0)))),IF(C103="INSUMO",IF(D103="SINAPI",VLOOKUP(E103,'INSUMOS SINAPI'!$A:$D,3,0),IF(D103="ORSE",VLOOKUP(E103,'INSUMOS ORSE'!$A:$D,3,0),IF(D103="SEINFRA",VLOOKUP(E103,'INSUMOS SEINFRA'!$A:$D,3,0),))))) -> M | H103: 5 | I103: =IF(C103="SERVIÇO",IF(D103="SINAPI",VLOOKUP(E103,'SERVIÇOS SINAPI'!$A:$D,4,0),IF(D103="ORSE",VLOOKUP(E103,'SERVIÇOS ORSE'!$A:$D,4,0),IF(D103="SEINFRA",VLOOKUP(E103,'SERVIÇOS SEINFRA'!$A:$D,4,0)))),IF(C103="INSUMO",IF(D103="SINAPI",VLOOKUP(E103,'INSUMOS SINAPI'!$A:$D,4,0),IF(D103="ORSE",VLOOKUP(E103,'INSUMOS ORSE'!$A:$D,4,0),IF(D103="SEINFRA",VLOOKUP(E103,'INSUMOS SEINFRA'!$A:$D,4,0),))))) -> 17.06 | J103: =IF(C103="SERVIÇO",I103*(1+$I$8),IF(C103="INSUMO",(I103*(1+$K$8)))) -> 19.01 | K103: =J103*H103 -> 95.05 | L103: 4
B104: 10.2 | C104: INSUMO | D104: SINAPI | E104: 11927 | F104: =IF(C104="SERVIÇO",IF(D104="SINAPI",VLOOKUP(E104,'SERVIÇOS SINAPI'!$A:$D,2,0),IF(D104="ORSE",VLOOKUP(E104,'SERVIÇOS ORSE'!$A:$D,2,0),IF(D104="SEINFRA",VLOOKUP(E104,'SERVIÇOS SEINFRA'!$A:$D,2,0)))),IF(C104="INSUMO",IF(D104="SINAPI",VLOOKUP(E104,'INSUMOS SINAPI'!$A:$D,2,0),IF(D104="ORSE",VLOOKUP(E104,'INSUMOS ORSE'!$A:$D,2,0),IF(D104="SEINFRA",VLOOKUP(E104,'INSUMOS SEINFRA'!$A:$D,2,0),))))) -> ABRACADEIRA, GALVANIZADA/ZINCADA, ROSCA SEM FIM, PARAFUSO INOX, LARGURA FITA *12,6 A *14 MM, D = 2" A 2 1/2" | G104: =IF(C104="SERVIÇO",IF(D104="SINAPI",VLOOKUP(E104,'SERVIÇOS SINAPI'!$A:$D,3,0),IF(D104="ORSE",VLOOKUP(E104,'SERVIÇOS ORSE'!$A:$D,3,0),IF(D104="SEINFRA",VLOOKUP(E104,'SERVIÇOS SEINFRA'!$A:$D,3,0)))),IF(C104="INSUMO",IF(D104="SINAPI",VLOOKUP(E104,'INSUMOS SINAPI'!$A:$D,3,0),IF(D104="ORSE",VLOOKUP(E104,'INSUMOS ORSE'!$A:$D,3,0),IF(D104="SEINFRA",VLOOKUP(E104,'INSUMOS SEINFRA'!$A:$D,3,0),))))) -> UN | H104: 4 | I104: =IF(C104="SERVIÇO",IF(D104="SINAPI",VLOOKUP(E104,'SERVIÇOS SINAPI'!$A:$D,4,0),IF(D104="ORSE",VLOOKUP(E104,'SERVIÇOS ORSE'!$A:$D,4,0),IF(D104="SEINFRA",VLOOKUP(E104,'SERVIÇOS SEINFRA'!$A:$D,4,0)))),IF(C104="INSUMO",IF(D104="SINAPI",VLOOKUP(E104,'INSUMOS SINAPI'!$A:$D,4,0),IF(D104="ORSE",VLOOKUP(E104,'INSUMOS ORSE'!$A:$D,4,0),IF(D104="SEINFRA",VLOOKUP(E104,'INSUMOS SEINFRA'!$A:$D,4,0),))))) -> 10.17 | J104: 11.33 | K104: 45.32 | L104: 7
B105: 10.3 | C105: INSUMO | D105: SINAPI | E105: 119 | F105: =IF(C105="SERVIÇO",IF(D105="SINAPI",VLOOKUP(E105,'SERVIÇOS SINAPI'!$A:$D,2,0),IF(D105="ORSE",VLOOKUP(E105,'SERVIÇOS ORSE'!$A:$D,2,0),IF(D105="SEINFRA",VLOOKUP(E105,'SERVIÇOS SEINFRA'!$A:$D,2,0)))),IF(C105="INSUMO",IF(D105="SINAPI",VLOOKUP(E105,'INSUMOS SINAPI'!$A:$D,2,0),IF(D105="ORSE",VLOOKUP(E105,'INSUMOS ORSE'!$A:$D,2,0),IF(D105="SEINFRA",VLOOKUP(E105,'INSUMOS SEINFRA'!$A:$D,2,0),))))) -> ADESIVO PLASTICO PARA PVC, BISNAGA COM 75 GR | G105: =IF(C105="SERVIÇO",IF(D105="SINAPI",VLOOKUP(E105,'SERVIÇOS SINAPI'!$A:$D,3,0),IF(D105="ORSE",VLOOKUP(E105,'SERVIÇOS ORSE'!$A:$D,3,0),IF(D105="SEINFRA",VLOOKUP(E105,'SERVIÇOS SEINFRA'!$A:$D,3,0)))),IF(C105="INSUMO",IF(D105="SINAPI",VLOOKUP(E105,'INSUMOS SINAPI'!$A:$D,3,0),IF(D105="ORSE",VLOOKUP(E105,'INSUMOS ORSE'!$A:$D,3,0),IF(D105="SEINFRA",VLOOKUP(E105,'INSUMOS SEINFRA'!$A:$D,3,0),))))) -> UN | H105: 1 | I105: =IF(C105="SERVIÇO",IF(D105="SINAPI",VLOOKUP(E105,'SERVIÇOS SINAPI'!$A:$D,4,0),IF(D105="ORSE",VLOOKUP(E105,'SERVIÇOS ORSE'!$A:$D,4,0),IF(D105="SEINFRA",VLOOKUP(E105,'SERVIÇOS SEINFRA'!$A:$D,4,0)))),IF(C105="INSUMO",IF(D105="SINAPI",VLOOKUP(E105,'INSUMOS SINAPI'!$A:$D,4,0),IF(D105="ORSE",VLOOKUP(E105,'INSUMOS ORSE'!$A:$D,4,0),IF(D105="SEINFRA",VLOOKUP(E105,'INSUMOS SEINFRA'!$A:$D,4,0),))))) -> 7.5 | J105: 8.36 | K105: 8.36 | L105: 7
B106: 10.4 | C106: INSUMO | D106: SINAPI | E106: 4335 | F106: =IF(C106="SERVIÇO",IF(D106="SINAPI",VLOOKUP(E106,'SERVIÇOS SINAPI'!$A:$D,2,0),IF(D106="ORSE",VLOOKUP(E106,'SERVIÇOS ORSE'!$A:$D,2,0),IF(D106="SEINFRA",VLOOKUP(E106,'SERVIÇOS SEINFRA'!$A:$D,2,0)))),IF(C106="INSUMO",IF(D106="SINAPI",VLOOKUP(E106,'INSUMOS SINAPI'!$A:$D,2,0),IF(D106="ORSE",VLOOKUP(E106,'INSUMOS ORSE'!$A:$D,2,0),IF(D106="SEINFRA",VLOOKUP(E106,'INSUMOS SEINFRA'!$A:$D,2,0),))))) -> PARAFUSO FRANCES ZINCADO, DIAMETRO 1/2", COMPRIMENTO 12", COM PORCA E ARRUELA LISA MEDIA | G106: =IF(C106="SERVIÇO",IF(D106="SINAPI",VLOOKUP(E106,'SERVIÇOS SINAPI'!$A:$D,3,0),IF(D106="ORSE",VLOOKUP(E106,'SERVIÇOS ORSE'!$A:$D,3,0),IF(D106="SEINFRA",VLOOKUP(E106,'SERVIÇOS SEINFRA'!$A:$D,3,0)))),IF(C106="INSUMO",IF(D106="SINAPI",VLOOKUP(E106,'INSUMOS SINAPI'!$A:$D,3,0),IF(D106="ORSE",VLOOKUP(E106,'INSUMOS ORSE'!$A:$D,3,0),IF(D106="SEINFRA",VLOOKUP(E106,'INSUMOS SEINFRA'!$A:$D,3,0),))))) -> UN | H106: 1 | I106: =IF(C106="SERVIÇO",IF(D106="SINAPI",VLOOKUP(E106,'SERVIÇOS SINAPI'!$A:$D,4,0),IF(D106="ORSE",VLOOKUP(E106,'SERVIÇOS ORSE'!$A:$D,4,0),IF(D106="SEINFRA",VLOOKUP(E106,'SERVIÇOS SEINFRA'!$A:$D,4,0)))),IF(C106="INSUMO",IF(D106="SINAPI",VLOOKUP(E106,'INSUMOS SINAPI'!$A:$D,4,0),IF(D106="ORSE",VLOOKUP(E106,'INSUMOS ORSE'!$A:$D,4,0),IF(D106="SEINFRA",VLOOKUP(E106,'INSUMOS SEINFRA'!$A:$D,4,0),))))) -> 18.07 | J106: 20.14 | K106: 20.14 | L106: 5
B107: 10.5 | C107: INSUMO | D107: SINAPI | E107: 441 | F107: =IF(C107="SERVIÇO",IF(D107="SINAPI",VLOOKUP(E107,'SERVIÇOS SINAPI'!$A:$D,2,0),IF(D107="ORSE",VLOOKUP(E107,'SERVIÇOS ORSE'!$A:$D,2,0),IF(D107="SEINFRA",VLOOKUP(E107,'SERVIÇOS SEINFRA'!$A:$D,2,0)))),IF(C107="INSUMO",IF(D107="SINAPI",VLOOKUP(E107,'INSUMOS SINAPI'!$A:$D,2,0),IF(D107="ORSE",VLOOKUP(E107,'INSUMOS ORSE'!$A:$D,2,0),IF(D107="SEINFRA",VLOOKUP(E107,'INSUMOS SEINFRA'!$A:$D,2,0),))))) -> PARAFUSO M16 EM ACO GALVANIZADO, COMPRIMENTO = 150 MM, DIAMETRO = 16 MM, ROSCA MAQUINA, CABECA QUADRADA | G107: =IF(C107="SERVIÇO",IF(D107="SINAPI",VLOOKUP(E107,'SERVIÇOS SINAPI'!$A:$D,3,0),IF(D107="ORSE",VLOOKUP(E107,'SERVIÇOS ORSE'!$A:$D,3,0),IF(D107="SEINFRA",VLOOKUP(E107,'SERVIÇOS SEINFRA'!$A:$D,3,0)))),IF(C107="INSUMO",IF(D107="SINAPI",VLOOKUP(E107,'INSUMOS SINAPI'!$A:$D,3,0),IF(D107="ORSE",VLOOKUP(E107,'INSUMOS ORSE'!$A:$D,3,0),IF(D107="SEINFRA",VLOOKUP(E107,'INSUMOS SEINFRA'!$A:$D,3,0),))))) -> UN | H107: 6 | I107: =IF(C107="SERVIÇO",IF(D107="SINAPI",VLOOKUP(E107,'SERVIÇOS SINAPI'!$A:$D,4,0),IF(D107="ORSE",VLOOKUP(E107,'SERVIÇOS ORSE'!$A:$D,4,0),IF(D107="SEINFRA",VLOOKUP(E107,'SERVIÇOS SEINFRA'!$A:$D,4,0)))),IF(C107="INSUMO",IF(D107="SINAPI",VLOOKUP(E107,'INSUMOS SINAPI'!$A:$D,4,0),IF(D107="ORSE",VLOOKUP(E107,'INSUMOS ORSE'!$A:$D,4,0),IF(D107="SEINFRA",VLOOKUP(E107,'INSUMOS SEINFRA'!$A:$D,4,0),))))) -> 13.05 | J107: 14.54 | K107: 87.24 | L107: 5
B108: 10.6 | C108: INSUMO | D108: SINAPI | E108: 43130 | F108: =IF(C108="SERVIÇO",IF(D108="SINAPI",VLOOKUP(E108,'SERVIÇOS SINAPI'!$A:$D,2,0),IF(D108="ORSE",VLOOKUP(E108,'SERVIÇOS ORSE'!$A:$D,2,0),IF(D108="SEINFRA",VLOOKUP(E108,'SERVIÇOS SEINFRA'!$A:$D,2,0)))),IF(C108="INSUMO",IF(D108="SINAPI",VLOOKUP(E108,'INSUMOS SINAPI'!$A:$D,2,0),IF(D108="ORSE",VLOOKUP(E108,'INSUMOS ORSE'!$A:$D,2,0),IF(D108="SEINFRA",VLOOKUP(E108,'INSUMOS SEINFRA'!$A:$D,2,0),))))) -> ARAME GALVANIZADO 12 BWG, D = 2,76 MM (0,048 KG/M) OU 14 BWG, D = 2,11 MM (0,026 KG/M) | G108: =IF(C108="SERVIÇO",IF(D108="SINAPI",VLOOKUP(E108,'SERVIÇOS SINAPI'!$A:$D,3,0),IF(D108="ORSE",VLOOKUP(E108,'SERVIÇOS ORSE'!$A:$D,3,0),IF(D108="SEINFRA",VLOOKUP(E108,'SERVIÇOS SEINFRA'!$A:$D,3,0)))),IF(C108="INSUMO",IF(D108="SINAPI",VLOOKUP(E108,'INSUMOS SINAPI'!$A:$D,3,0),IF(D108="ORSE",VLOOKUP(E108,'INSUMOS ORSE'!$A:$D,3,0),IF(D108="SEINFRA",VLOOKUP(E108,'INSUMOS SEINFRA'!$A:$D,3,0),))))) -> KG | H108: 0.5 | I108: =IF(C108="SERVIÇO",IF(D108="SINAPI",VLOOKUP(E108,'SERVIÇOS SINAPI'!$A:$D,4,0),IF(D108="ORSE",VLOOKUP(E108,'SERVIÇOS ORSE'!$A:$D,4,0),IF(D108="SEINFRA",VLOOKUP(E108,'SERVIÇOS SEINFRA'!$A:$D,4,0)))),IF(C108="INSUMO",IF(D108="SINAPI",VLOOKUP(E108,'INSUMOS SINAPI'!$A:$D,4,0),IF(D108="ORSE",VLOOKUP(E108,'INSUMOS ORSE'!$A:$D,4,0),IF(D108="SEINFRA",VLOOKUP(E108,'INSUMOS SEINFRA'!$A:$D,4,0),))))) -> 25.3 | J108: 28.19 | K108: 14.1 | L108: 5
B109: 10.7 | C109: INSUMO | D109: SINAPI | E109: 3143 | F109: =IF(C109="SERVIÇO",IF(D109="SINAPI",VLOOKUP(E109,'SERVIÇOS SINAPI'!$A:$D,2,0),IF(D109="ORSE",VLOOKUP(E109,'SERVIÇOS ORSE'!$A:$D,2,0),IF(D109="SEINFRA",VLOOKUP(E109,'SERVIÇOS SEINFRA'!$A:$D,2,0)))),IF(C109="INSUMO",IF(D109="SINAPI",VLOOKUP(E109,'INSUMOS SINAPI'!$A:$D,2,0),IF(D109="ORSE",VLOOKUP(E109,'INSUMOS ORSE'!$A:$D,2,0),IF(D109="SEINFRA",VLOOKUP(E109,'INSUMOS SEINFRA'!$A:$D,2,0),))))) -> FITA VEDA ROSCA EM ROLOS DE 18 MM X 25 M (L X C) | G109: =IF(C109="SERVIÇO",IF(D109="SINAPI",VLOOKUP(E109,'SERVIÇOS SINAPI'!$A:$D,3,0),IF(D109="ORSE",VLOOKUP(E109,'SERVIÇOS ORSE'!$A:$D,3,0),IF(D109="SEINFRA",VLOOKUP(E109,'SERVIÇOS SEINFRA'!$A:$D,3,0)))),IF(C109="INSUMO",IF(D109="SINAPI",VLOOKUP(E109,'INSUMOS SINAPI'!$A:$D,3,0),IF(D109="ORSE",VLOOKUP(E109,'INSUMOS ORSE'!$A:$D,3,0),IF(D109="SEINFRA",VLOOKUP(E109,'INSUMOS SEINFRA'!$A:$D,3,0),))))) -> UN | H109: 1 | I109: =IF(C109="SERVIÇO",IF(D109="SINAPI",VLOOKUP(E109,'SERVIÇOS SINAPI'!$A:$D,4,0),IF(D109="ORSE",VLOOKUP(E109,'SERVIÇOS ORSE'!$A:$D,4,0),IF(D109="SEINFRA",VLOOKUP(E109,'SERVIÇOS SEINFRA'!$A:$D,4,0)))),IF(C109="INSUMO",IF(D109="SINAPI",VLOOKUP(E109,'INSUMOS SINAPI'!$A:$D,4,0),IF(D109="ORSE",VLOOKUP(E109,'INSUMOS ORSE'!$A:$D,4,0),IF(D109="SEINFRA",VLOOKUP(E109,'INSUMOS SEINFRA'!$A:$D,4,0),))))) -> 6.82 | J109: 7.6 | K109: 7.6 | L109: 7
B110: 10.8 | C110: INSUMO | D110: ORSE | E110: 207 | F110: =IF(C110="SERVIÇO",IF(D110="SINAPI",VLOOKUP(E110,'SERVIÇOS SINAPI'!$A:$D,2,0),IF(D110="ORSE",VLOOKUP(E110,'SERVIÇOS ORSE'!$A:$D,2,0),IF(D110="SEINFRA",VLOOKUP(E110,'SERVIÇOS SEINFRA'!$A:$D,2,0)))),IF(C110="INSUMO",IF(D110="SINAPI",VLOOKUP(E110,'INSUMOS SINAPI'!$A:$D,2,0),IF(D110="ORSE",VLOOKUP(E110,'INSUMOS ORSE'!$A:$D,2,0),IF(D110="SEINFRA",VLOOKUP(E110,'INSUMOS SEINFRA'!$A:$D,2,0),))))) -> ARRUELA DE ALUMÍNIO P/ELETRODUTO D= 3/4" | G110: =IF(C110="SERVIÇO",IF(D110="SINAPI",VLOOKUP(E110,'SERVIÇOS SINAPI'!$A:$D,3,0),IF(D110="ORSE",VLOOKUP(E110,'SERVIÇOS ORSE'!$A:$D,3,0),IF(D110="SEINFRA",VLOOKUP(E110,'SERVIÇOS SEINFRA'!$A:$D,3,0)))),IF(C110="INSUMO",IF(D110="SINAPI",VLOOKUP(E110,'INSUMOS SINAPI'!$A:$D,3,0),IF(D110="ORSE",VLOOKUP(E110,'INSUMOS ORSE'!$A:$D,3,0),IF(D110="SEINFRA",VLOOKUP(E110,'INSUMOS SEINFRA'!$A:$D,3,0),))))) -> UN | H110: 4 | I110: =IF(C110="SERVIÇO",IF(D110="SINAPI",VLOOKUP(E110,'SERVIÇOS SINAPI'!$A:$D,4,0),IF(D110="ORSE",VLOOKUP(E110,'SERVIÇOS ORSE'!$A:$D,4,0),IF(D110="SEINFRA",VLOOKUP(E110,'SERVIÇOS SEINFRA'!$A:$D,4,0)))),IF(C110="INSUMO",IF(D110="SINAPI",VLOOKUP(E110,'INSUMOS SINAPI'!$A:$D,4,0),IF(D110="ORSE",VLOOKUP(E110,'INSUMOS ORSE'!$A:$D,4,0),IF(D110="SEINFRA",VLOOKUP(E110,'INSUMOS SEINFRA'!$A:$D,4,0),))))) -> 0.6 | J110: 0.67 | K110: 2.68 | L110: 5
B111: 10.9 | C111: INSUMO | D111: SINAPI | E111: 39961 | F111: =IF(C111="SERVIÇO",IF(D111="SINAPI",VLOOKUP(E111,'SERVIÇOS SINAPI'!$A:$D,2,0),IF(D111="ORSE",VLOOKUP(E111,'SERVIÇOS ORSE'!$A:$D,2,0),IF(D111="SEINFRA",VLOOKUP(E111,'SERVIÇOS SEINFRA'!$A:$D,2,0)))),IF(C111="INSUMO",IF(D111="SINAPI",VLOOKUP(E111,'INSUMOS SINAPI'!$A:$D,2,0),IF(D111="ORSE",VLOOKUP(E111,'INSUMOS ORSE'!$A:$D,2,0),IF(D111="SEINFRA",VLOOKUP(E111,'INSUMOS SEINFRA'!$A:$D,2,0),))))) -> SILICONE ACETICO USO GERAL INCOLOR 280 G | G111: =IF(C111="SERVIÇO",IF(D111="SINAPI",VLOOKUP(E111,'SERVIÇOS SINAPI'!$A:$D,3,0),IF(D111="ORSE",VLOOKUP(E111,'SERVIÇOS ORSE'!$A:$D,3,0),IF(D111="SEINFRA",VLOOKUP(E111,'SERVIÇOS SEINFRA'!$A:$D,3,0)))),IF(C111="INSUMO",IF(D111="SINAPI",VLOOKUP(E111,'INSUMOS SINAPI'!$A:$D,3,0),IF(D111="ORSE",VLOOKUP(E111,'INSUMOS ORSE'!$A:$D,3,0),IF(D111="SEINFRA",VLOOKUP(E111,'INSUMOS SEINFRA'!$A:$D,3,0),))))) -> UN | H111: 1 | I111: =IF(C111="SERVIÇO",IF(D111="SINAPI",VLOOKUP(E111,'SERVIÇOS SINAPI'!$A:$D,4,0),IF(D111="ORSE",VLOOKUP(E111,'SERVIÇOS ORSE'!$A:$D,4,0),IF(D111="SEINFRA",VLOOKUP(E111,'SERVIÇOS SEINFRA'!$A:$D,4,0)))),IF(C111="INSUMO",IF(D111="SINAPI",VLOOKUP(E111,'INSUMOS SINAPI'!$A:$D,4,0),IF(D111="ORSE",VLOOKUP(E111,'INSUMOS ORSE'!$A:$D,4,0),IF(D111="SEINFRA",VLOOKUP(E111,'INSUMOS SEINFRA'!$A:$D,4,0),))))) -> 24.75 | J111: 27.58 | K111: 27.58 | L111: 7
B112: 10.10 | C112: INSUMO | D112: SINAPI | E112: 5104 | F112: =IF(C112="SERVIÇO",IF(D112="SINAPI",VLOOKUP(E112,'SERVIÇOS SINAPI'!$A:$D,2,0),IF(D112="ORSE",VLOOKUP(E112,'SERVIÇOS ORSE'!$A:$D,2,0),IF(D112="SEINFRA",VLOOKUP(E112,'SERVIÇOS SEINFRA'!$A:$D,2,0)))),IF(C112="INSUMO",IF(D112="SINAPI",VLOOKUP(E112,'INSUMOS SINAPI'!$A:$D,2,0),IF(D112="ORSE",VLOOKUP(E112,'INSUMOS ORSE'!$A:$D,2,0),IF(D112="SEINFRA",VLOOKUP(E112,'INSUMOS SEINFRA'!$A:$D,2,0),))))) -> REBITE DE ALUMINIO VAZADO DE REPUXO, 3,2 X 8 MM (1KG = 1025 UNIDADES) | G112: =IF(C112="SERVIÇO",IF(D112="SINAPI",VLOOKUP(E112,'SERVIÇOS SINAPI'!$A:$D,3,0),IF(D112="ORSE",VLOOKUP(E112,'SERVIÇOS ORSE'!$A:$D,3,0),IF(D112="SEINFRA",VLOOKUP(E112,'SERVIÇOS SEINFRA'!$A:$D,3,0)))),IF(C112="INSUMO",IF(D112="SINAPI",VLOOKUP(E112,'INSUMOS SINAPI'!$A:$D,3,0),IF(D112="ORSE",VLOOKUP(E112,'INSUMOS ORSE'!$A:$D,3,0),IF(D112="SEINFRA",VLOOKUP(E112,'INSUMOS SEINFRA'!$A:$D,3,0),))))) -> KG | H112: 0.1 | I112: =IF(C112="SERVIÇO",IF(D112="SINAPI",VLOOKUP(E112,'SERVIÇOS SINAPI'!$A:$D,4,0),IF(D112="ORSE",VLOOKUP(E112,'SERVIÇOS ORSE'!$A:$D,4,0),IF(D112="SEINFRA",VLOOKUP(E112,'SERVIÇOS SEINFRA'!$A:$D,4,0)))),IF(C112="INSUMO",IF(D112="SINAPI",VLOOKUP(E112,'INSUMOS SINAPI'!$A:$D,4,0),IF(D112="ORSE",VLOOKUP(E112,'INSUMOS ORSE'!$A:$D,4,0),IF(D112="SEINFRA",VLOOKUP(E112,'INSUMOS SEINFRA'!$A:$D,4,0),))))) -> 61.41 | J112: 68.43 | K112: 6.84 | L112: 5
B113: 10.11 | C113: INSUMO | D113: ORSE | E113: 2758 | F113: =IF(C113="SERVIÇO",IF(D113="SINAPI",VLOOKUP(E113,'SERVIÇOS SINAPI'!$A:$D,2,0),IF(D113="ORSE",VLOOKUP(E113,'SERVIÇOS ORSE'!$A:$D,2,0),IF(D113="SEINFRA",VLOOKUP(E113,'SERVIÇOS SEINFRA'!$A:$D,2,0)))),IF(C113="INSUMO",IF(D113="SINAPI",VLOOKUP(E113,'INSUMOS SINAPI'!$A:$D,2,0),IF(D113="ORSE",VLOOKUP(E113,'INSUMOS ORSE'!$A:$D,2,0),IF(D113="SEINFRA",VLOOKUP(E113,'INSUMOS SEINFRA'!$A:$D,2,0),))))) -> TELA DE NYLON, FIO 30-36 (3,6MM), MALHA 10X10CM | G113: =IF(C113="SERVIÇO",IF(D113="SINAPI",VLOOKUP(E113,'SERVIÇOS SINAPI'!$A:$D,3,0),IF(D113="ORSE",VLOOKUP(E113,'SERVIÇOS ORSE'!$A:$D,3,0),IF(D113="SEINFRA",VLOOKUP(E113,'SERVIÇOS SEINFRA'!$A:$D,3,0)))),IF(C113="INSUMO",IF(D113="SINAPI",VLOOKUP(E113,'INSUMOS SINAPI'!$A:$D,3,0),IF(D113="ORSE",VLOOKUP(E113,'INSUMOS ORSE'!$A:$D,3,0),IF(D113="SEINFRA",VLOOKUP(E113,'INSUMOS SEINFRA'!$A:$D,3,0),))))) -> M² | H113: =1.5*0.8 -> 1.2 | I113: =IF(C113="SERVIÇO",IF(D113="SINAPI",VLOOKUP(E113,'SERVIÇOS SINAPI'!$A:$D,4,0),IF(D113="ORSE",VLOOKUP(E113,'SERVIÇOS ORSE'!$A:$D,4,0),IF(D113="SEINFRA",VLOOKUP(E113,'SERVIÇOS SEINFRA'!$A:$D,4,0)))),IF(C113="INSUMO",IF(D113="SINAPI",VLOOKUP(E113,'INSUMOS SINAPI'!$A:$D,4,0),IF(D113="ORSE",VLOOKUP(E113,'INSUMOS ORSE'!$A:$D,4,0),IF(D113="SEINFRA",VLOOKUP(E113,'INSUMOS SEINFRA'!$A:$D,4,0),))))) -> 14.63 | J113: 16.3 | K113: 19.56 | L113: 7
B114: 10.12 | C114: INSUMO | D114: SINAPI | E114: 6193 | F114: =IF(C114="SERVIÇO",IF(D114="SINAPI",VLOOKUP(E114,'SERVIÇOS SINAPI'!$A:$D,2,0),IF(D114="ORSE",VLOOKUP(E114,'SERVIÇOS ORSE'!$A:$D,2,0),IF(D114="SEINFRA",VLOOKUP(E114,'SERVIÇOS SEINFRA'!$A:$D,2,0)))),IF(C114="INSUMO",IF(D114="SINAPI",VLOOKUP(E114,'INSUMOS SINAPI'!$A:$D,2,0),IF(D114="ORSE",VLOOKUP(E114,'INSUMOS ORSE'!$A:$D,2,0),IF(D114="SEINFRA",VLOOKUP(E114,'INSUMOS SEINFRA'!$A:$D,2,0),))))) -> TABUA NAO APARELHADA *2,5 X 20* CM, EM MACARANDUBA, ANGELIM OU EQUIVALENTE DA REGIAO - BRUTA | G114: =IF(C114="SERVIÇO",IF(D114="SINAPI",VLOOKUP(E114,'SERVIÇOS SINAPI'!$A:$D,3,0),IF(D114="ORSE",VLOOKUP(E114,'SERVIÇOS ORSE'!$A:$D,3,0),IF(D114="SEINFRA",VLOOKUP(E114,'SERVIÇOS SEINFRA'!$A:$D,3,0)))),IF(C114="INSUMO",IF(D114="SINAPI",VLOOKUP(E114,'INSUMOS SINAPI'!$A:$D,3,0),IF(D114="ORSE",VLOOKUP(E114,'INSUMOS ORSE'!$A:$D,3,0),IF(D114="SEINFRA",VLOOKUP(E114,'INSUMOS SEINFRA'!$A:$D,3,0),))))) -> M | H114: 2 | I114: =IF(C114="SERVIÇO",IF(D114="SINAPI",VLOOKUP(E114,'SERVIÇOS SINAPI'!$A:$D,4,0),IF(D114="ORSE",VLOOKUP(E114,'SERVIÇOS ORSE'!$A:$D,4,0),IF(D114="SEINFRA",VLOOKUP(E114,'SERVIÇOS SEINFRA'!$A:$D,4,0)))),IF(C114="INSUMO",IF(D114="SINAPI",VLOOKUP(E114,'INSUMOS SINAPI'!$A:$D,4,0),IF(D114="ORSE",VLOOKUP(E114,'INSUMOS ORSE'!$A:$D,4,0),IF(D114="SEINFRA",VLOOKUP(E114,'INSUMOS SEINFRA'!$A:$D,4,0),))))) -> 21.9 | J114: 24.4 | K114: 48.8 | L114: 2
B115: 10.13 | C115: INSUMO | D115: SINAPI | E115: 4491 | F115: =IF(C115="SERVIÇO",IF(D115="SINAPI",VLOOKUP(E115,'SERVIÇOS SINAPI'!$A:$D,2,0),IF(D115="ORSE",VLOOKUP(E115,'SERVIÇOS ORSE'!$A:$D,2,0),IF(D115="SEINFRA",VLOOKUP(E115,'SERVIÇOS SEINFRA'!$A:$D,2,0)))),IF(C115="INSUMO",IF(D115="SINAPI",VLOOKUP(E115,'INSUMOS SINAPI'!$A:$D,2,0),IF(D115="ORSE",VLOOKUP(E115,'INSUMOS ORSE'!$A:$D,2,0),IF(D115="SEINFRA",VLOOKUP(E115,'INSUMOS SEINFRA'!$A:$D,2,0),))))) -> PONTALETE *7,5 X 7,5* CM EM PINUS, MISTA OU EQUIVALENTE DA REGIAO - BRUTA | G115: =IF(C115="SERVIÇO",IF(D115="SINAPI",VLOOKUP(E115,'SERVIÇOS SINAPI'!$A:$D,3,0),IF(D115="ORSE",VLOOKUP(E115,'SERVIÇOS ORSE'!$A:$D,3,0),IF(D115="SEINFRA",VLOOKUP(E115,'SERVIÇOS SEINFRA'!$A:$D,3,0)))),IF(C115="INSUMO",IF(D115="SINAPI",VLOOKUP(E115,'INSUMOS SINAPI'!$A:$D,3,0),IF(D115="ORSE",VLOOKUP(E115,'INSUMOS ORSE'!$A:$D,3,0),IF(D115="SEINFRA",VLOOKUP(E115,'INSUMOS SEINFRA'!$A:$D,3,0),))))) -> M | H115: 9 | I115: =IF(C115="SERVIÇO",IF(D115="SINAPI",VLOOKUP(E115,'SERVIÇOS SINAPI'!$A:$D,4,0),IF(D115="ORSE",VLOOKUP(E115,'SERVIÇOS ORSE'!$A:$D,4,0),IF(D115="SEINFRA",VLOOKUP(E115,'SERVIÇOS SEINFRA'!$A:$D,4,0)))),IF(C115="INSUMO",IF(D115="SINAPI",VLOOKUP(E115,'INSUMOS SINAPI'!$A:$D,4,0),IF(D115="ORSE",VLOOKUP(E115,'INSUMOS ORSE'!$A:$D,4,0),IF(D115="SEINFRA",VLOOKUP(E115,'INSUMOS SEINFRA'!$A:$D,4,0),))))) -> 10.66 | J115: 11.88 | K115: 106.92 | L115: 2
B116: 10.14 | C116: INSUMO | D116: ORSE | E116: 13661 | F116: =IF(C116="SERVIÇO",IF(D116="SINAPI",VLOOKUP(E116,'SERVIÇOS SINAPI'!$A:$D,2,0),IF(D116="ORSE",VLOOKUP(E116,'SERVIÇOS ORSE'!$A:$D,2,0),IF(D116="SEINFRA",VLOOKUP(E116,'SERVIÇOS SEINFRA'!$A:$D,2,0)))),IF(C116="INSUMO",IF(D116="SINAPI",VLOOKUP(E116,'INSUMOS SINAPI'!$A:$D,2,0),IF(D116="ORSE",VLOOKUP(E116,'INSUMOS ORSE'!$A:$D,2,0),IF(D116="SEINFRA",VLOOKUP(E116,'INSUMOS SEINFRA'!$A:$D,2,0),))))) -> VÁLVULA DE SEGURANÇA POR PRESSÃO DE 1/2" | G116: =IF(C116="SERVIÇO",IF(D116="SINAPI",VLOOKUP(E116,'SERVIÇOS SINAPI'!$A:$D,3,0),IF(D116="ORSE",VLOOKUP(E116,'SERVIÇOS ORSE'!$A:$D,3,0),IF(D116="SEINFRA",VLOOKUP(E116,'SERVIÇOS SEINFRA'!$A:$D,3,0)))),IF(C116="INSUMO",IF(D116="SINAPI",VLOOKUP(E116,'INSUMOS SINAPI'!$A:$D,3,0),IF(D116="ORSE",VLOOKUP(E116,'INSUMOS ORSE'!$A:$D,3,0),IF(D116="SEINFRA",VLOOKUP(E116,'INSUMOS SEINFRA'!$A:$D,3,0),))))) -> UN | H116: 1 | I116: =IF(C116="SERVIÇO",IF(D116="SINAPI",VLOOKUP(E116,'SERVIÇOS SINAPI'!$A:$D,4,0),IF(D116="ORSE",VLOOKUP(E116,'SERVIÇOS ORSE'!$A:$D,4,0),IF(D116="SEINFRA",VLOOKUP(E116,'SERVIÇOS SEINFRA'!$A:$D,4,0)))),IF(C116="INSUMO",IF(D116="SINAPI",VLOOKUP(E116,'INSUMOS SINAPI'!$A:$D,4,0),IF(D116="ORSE",VLOOKUP(E116,'INSUMOS ORSE'!$A:$D,4,0),IF(D116="SEINFRA",VLOOKUP(E116,'INSUMOS SEINFRA'!$A:$D,4,0),))))) -> 105.49 | J116: 117.55 | K116: 117.55 | L116: 7
B117: 10.15 | C117: INSUMO | D117: SINAPI | E117: 107 | F117: =IF(C117="SERVIÇO",IF(D117="SINAPI",VLOOKUP(E117,'SERVIÇOS SINAPI'!$A:$D,2,0),IF(D117="ORSE",VLOOKUP(E117,'SERVIÇOS ORSE'!$A:$D,2,0),IF(D117="SEINFRA",VLOOKUP(E117,'SERVIÇOS SEINFRA'!$A:$D,2,0)))),IF(C117="INSUMO",IF(D117="SINAPI",VLOOKUP(E117,'INSUMOS SINAPI'!$A:$D,2,0),IF(D117="ORSE",VLOOKUP(E117,'INSUMOS ORSE'!$A:$D,2,0),IF(D117="SEINFRA",VLOOKUP(E117,'INSUMOS SEINFRA'!$A:$D,2,0),))))) -> ADAPTADOR PVC SOLDAVEL CURTO COM BOLSA E ROSCA, 20 MM X 1/2", PARA AGUA FRIA | G117: =IF(C117="SERVIÇO",IF(D117="SINAPI",VLOOKUP(E117,'SERVIÇOS SINAPI'!$A:$D,3,0),IF(D117="ORSE",VLOOKUP(E117,'SERVIÇOS ORSE'!$A:$D,3,0),IF(D117="SEINFRA",VLOOKUP(E117,'SERVIÇOS SEINFRA'!$A:$D,3,0)))),IF(C117="INSUMO",IF(D117="SINAPI",VLOOKUP(E117,'INSUMOS SINAPI'!$A:$D,3,0),IF(D117="ORSE",VLOOKUP(E117,'INSUMOS ORSE'!$A:$D,3,0),IF(D117="SEINFRA",VLOOKUP(E117,'INSUMOS SEINFRA'!$A:$D,3,0),))))) -> UN | H117: 2 | I117: =IF(C117="SERVIÇO",IF(D117="SINAPI",VLOOKUP(E117,'SERVIÇOS SINAPI'!$A:$D,4,0),IF(D117="ORSE",VLOOKUP(E117,'SERVIÇOS ORSE'!$A:$D,4,0),IF(D117="SEINFRA",VLOOKUP(E117,'SERVIÇOS SEINFRA'!$A:$D,4,0)))),IF(C117="INSUMO",IF(D117="SINAPI",VLOOKUP(E117,'INSUMOS SINAPI'!$A:$D,4,0),IF(D117="ORSE",VLOOKUP(E117,'INSUMOS ORSE'!$A:$D,4,0),IF(D117="SEINFRA",VLOOKUP(E117,'INSUMOS SEINFRA'!$A:$D,4,0),))))) -> 0.81 | J117: 0.9 | K117: 1.8 | L117: 4
B118: 10.16 | C118: INSUMO | D118: SINAPI | E118: 55 | F118: =IF(C118="SERVIÇO",IF(D118="SINAPI",VLOOKUP(E118,'SERVIÇOS SINAPI'!$A:$D,2,0),IF(D118="ORSE",VLOOKUP(E118,'SERVIÇOS ORSE'!$A:$D,2,0),IF(D118="SEINFRA",VLOOKUP(E118,'SERVIÇOS SEINFRA'!$A:$D,2,0)))),IF(C118="INSUMO",IF(D118="SINAPI",VLOOKUP(E118,'INSUMOS SINAPI'!$A:$D,2,0),IF(D118="ORSE",VLOOKUP(E118,'INSUMOS ORSE'!$A:$D,2,0),IF(D118="SEINFRA",VLOOKUP(E118,'INSUMOS SEINFRA'!$A:$D,2,0),))))) -> ADAPTADOR DE COMPRESSAO EM POLIPROPILENO (PP), PARA TUBO EM PEAD, 20 MM X 1/2", PARA LIGACAO PREDIAL DE AGUA (NTS 179) | G118: =IF(C118="SERVIÇO",IF(D118="SINAPI",VLOOKUP(E118,'SERVIÇOS SINAPI'!$A:$D,3,0),IF(D118="ORSE",VLOOKUP(E118,'SERVIÇOS ORSE'!$A:$D,3,0),IF(D118="SEINFRA",VLOOKUP(E118,'SERVIÇOS SEINFRA'!$A:$D,3,0)))),IF(C118="INSUMO",IF(D118="SINAPI",VLOOKUP(E118,'INSUMOS SINAPI'!$A:$D,3,0),IF(D118="ORSE",VLOOKUP(E118,'INSUMOS ORSE'!$A:$D,3,0),IF(D118="SEINFRA",VLOOKUP(E118,'INSUMOS SEINFRA'!$A:$D,3,0),))))) -> UN | H118: 1 | I118: =IF(C118="SERVIÇO",IF(D118="SINAPI",VLOOKUP(E118,'SERVIÇOS SINAPI'!$A:$D,4,0),IF(D118="ORSE",VLOOKUP(E118,'SERVIÇOS ORSE'!$A:$D,4,0),IF(D118="SEINFRA",VLOOKUP(E118,'SERVIÇOS SEINFRA'!$A:$D,4,0)))),IF(C118="INSUMO",IF(D118="SINAPI",VLOOKUP(E118,'INSUMOS SINAPI'!$A:$D,4,0),IF(D118="ORSE",VLOOKUP(E118,'INSUMOS ORSE'!$A:$D,4,0),IF(D118="SEINFRA",VLOOKUP(E118,'INSUMOS SEINFRA'!$A:$D,4,0),))))) -> 4.48 | J118: 4.99 | K118: 4.99 | L118: 4
B119: 10.17 | C119: INSUMO | D119: ORSE | E119: 11830 | F119: =IF(C119="SERVIÇO",IF(D119="SINAPI",VLOOKUP(E119,'SERVIÇOS SINAPI'!$A:$D,2,0),IF(D119="ORSE",VLOOKUP(E119,'SERVIÇOS ORSE'!$A:$D,2,0),IF(D119="SEINFRA",VLOOKUP(E119,'SERVIÇOS SEINFRA'!$A:$D,2,0)))),IF(C119="INSUMO",IF(D119="SINAPI",VLOOKUP(E119,'INSUMOS SINAPI'!$A:$D,2,0),IF(D119="ORSE",VLOOKUP(E119,'INSUMOS ORSE'!$A:$D,2,0),IF(D119="SEINFRA",VLOOKUP(E119,'INSUMOS SEINFRA'!$A:$D,2,0),))))) -> MANGUEIRA METÁLICA PARA GÁS D=1/2" X 120CM | G119: =IF(C119="SERVIÇO",IF(D119="SINAPI",VLOOKUP(E119,'SERVIÇOS SINAPI'!$A:$D,3,0),IF(D119="ORSE",VLOOKUP(E119,'SERVIÇOS ORSE'!$A:$D,3,0),IF(D119="SEINFRA",VLOOKUP(E119,'SERVIÇOS SEINFRA'!$A:$D,3,0)))),IF(C119="INSUMO",IF(D119="SINAPI",VLOOKUP(E119,'INSUMOS SINAPI'!$A:$D,3,0),IF(D119="ORSE",VLOOKUP(E119,'INSUMOS ORSE'!$A:$D,3,0),IF(D119="SEINFRA",VLOOKUP(E119,'INSUMOS SEINFRA'!$A:$D,3,0),))))) -> UN | H119: 1 | I119: =IF(C119="SERVIÇO",IF(D119="SINAPI",VLOOKUP(E119,'SERVIÇOS SINAPI'!$A:$D,4,0),IF(D119="ORSE",VLOOKUP(E119,'SERVIÇOS ORSE'!$A:$D,4,0),IF(D119="SEINFRA",VLOOKUP(E119,'SERVIÇOS SEINFRA'!$A:$D,4,0)))),IF(C119="INSUMO",IF(D119="SINAPI",VLOOKUP(E119,'INSUMOS SINAPI'!$A:$D,4,0),IF(D119="ORSE",VLOOKUP(E119,'INSUMOS ORSE'!$A:$D,4,0),IF(D119="SEINFRA",VLOOKUP(E119,'INSUMOS SEINFRA'!$A:$D,4,0),))))) -> 40.46 | J119: 45.08 | K119: 45.08 | L119: 7
B120: 10.18 | C120: INSUMO | D120: SINAPI | E120: 4177 | F120: =IF(C120="SERVIÇO",IF(D120="SINAPI",VLOOKUP(E120,'SERVIÇOS SINAPI'!$A:$D,2,0),IF(D120="ORSE",VLOOKUP(E120,'SERVIÇOS ORSE'!$A:$D,2,0),IF(D120="SEINFRA",VLOOKUP(E120,'SERVIÇOS SEINFRA'!$A:$D,2,0)))),IF(C120="INSUMO",IF(D120="SINAPI",VLOOKUP(E120,'INSUMOS SINAPI'!$A:$D,2,0),IF(D120="ORSE",VLOOKUP(E120,'INSUMOS ORSE'!$A:$D,2,0),IF(D120="SEINFRA",VLOOKUP(E120,'INSUMOS SEINFRA'!$A:$D,2,0),))))) -> NIPLE DE FERRO GALVANIZADO, COM ROSCA BSP, DE 1/2" | G120: =IF(C120="SERVIÇO",IF(D120="SINAPI",VLOOKUP(E120,'SERVIÇOS SINAPI'!$A:$D,3,0),IF(D120="ORSE",VLOOKUP(E120,'SERVIÇOS ORSE'!$A:$D,3,0),IF(D120="SEINFRA",VLOOKUP(E120,'SERVIÇOS SEINFRA'!$A:$D,3,0)))),IF(C120="INSUMO",IF(D120="SINAPI",VLOOKUP(E120,'INSUMOS SINAPI'!$A:$D,3,0),IF(D120="ORSE",VLOOKUP(E120,'INSUMOS ORSE'!$A:$D,3,0),IF(D120="SEINFRA",VLOOKUP(E120,'INSUMOS SEINFRA'!$A:$D,3,0),))))) -> UN | H120: 1 | I120: =IF(C120="SERVIÇO",IF(D120="SINAPI",VLOOKUP(E120,'SERVIÇOS SINAPI'!$A:$D,4,0),IF(D120="ORSE",VLOOKUP(E120,'SERVIÇOS ORSE'!$A:$D,4,0),IF(D120="SEINFRA",VLOOKUP(E120,'SERVIÇOS SEINFRA'!$A:$D,4,0)))),IF(C120="INSUMO",IF(D120="SINAPI",VLOOKUP(E120,'INSUMOS SINAPI'!$A:$D,4,0),IF(D120="ORSE",VLOOKUP(E120,'INSUMOS ORSE'!$A:$D,4,0),IF(D120="SEINFRA",VLOOKUP(E120,'INSUMOS SEINFRA'!$A:$D,4,0),))))) -> 6.16 | J120: 6.86 | K120: 6.86 | L120: 4
B121: TOTAL GERAL DA OBRA COM BDI (R$): | K121: =K11+K16+K19+K23+K26+K44+K65+K77+K82+K102 -> 13681.7
N124: PARÂMETROS PARA REAJUSTAMENTO DE PREÇOS
N125: N1 | O125: N2 | P125: N3 | Q125: N4 | R125: N5 | S125: N6 | T125: N7 | U125: TOTAL
N127: =SUMIF($L$12:$L$121,1,$K$12:$K$121) -> 1426.75 | O127: =SUMIF($L$12:$L$121,2,$K$12:$K$121) -> 4514.89 | P127: =SUMIF($L$12:$L$121,3,$K$12:$K$121) -> 873.04 | Q127: =SUMIF($L$12:$L$121,4,$K$12:$K$121) -> 4132.89 | R127: =SUMIF($L$12:$L$121,5,$K$12:$K$121) -> 1204.67 | S127: =SUMIF($L$12:$L$121,6,$K$12:$K$121) -> 1262.01 | T127: =SUMIF($L$12:$L$121,7,$K$12:$K$121) -> 417.33 | U127: =SUM(N127:T127) -> 13831.58
B129: OBRA DA ADMINISTRAÇÃO LOCAL | F129: =J15 -> 750.73
B130: OBRA SEM ADL | F130: =K121-F129 -> 12930.97 | N130: =N127/K121 -> 0.104 | O130: =O127/K121 -> 0.33 | P130: =P127/K121 -> 0.064 | Q130: =Q127/K121 -> 0.302 | R130: =R127/K121 -> 0.088 | S130: =S127/K121 -> 0.092 | T130: =T127/K121 -> 0.031 | U130: =SUM(N130:T130) -> 1.011
E131: REFLEXO | F131: =F129/F130 -> 0.0581
C135: TCU | E135: VALOR DA ADM com BDI
C136: 1 QUARTIL | D136: 0.0413 | E136: =D136*$F$130 -> 534.05 | F136: =E136/(1+$J$3) -> 534.05
C137: 2 QUARTIL | D137: 0.0774 | E137: 1000.86 | F137: =E137/(1+$J$3) -> 1000.86
C138: 3 QUARTIL | D138: 0.1089 | E138: 1408.18 | F138: =E138/(1+$J$3) -> 1408.18

Sheet Composições
B2: CODEVASF | C2: ITEM | D2: TIPO | E2: COMPOSIÇÃO DE PREÇO UNITÁRIO | F2: ='Planilha Orçamentária'!$J$4 -> JULHO DE 2023 | H2: UNIDADE: | I2: UN
B3: COMPOSIÇÃO | C3: ='Planilha Orçamentária'!B15 -> 1.4 | D3: SERVIÇO / MATERIAL: | E3: ='Planilha Orçamentária'!F15 -> LOCAÇÃO, ADMINISTRAÇÃO E MANUTENÇÃO DE CANTEIRO | F3: COMP. DE REFERÊNCIA: | H3: CÓDIGO: | I3: CODV01
E4: MATERIAIS / MÃO DE OBRA
B5: TIPO | C5: REFER. | D5: CÓDIGO | E5: DISCRIMINAÇÃO | F5: UNID. | G5: QUANT. | H5: P.UNIT. | I5: P.TOTAL
B6: INSUMO | C6: ANTT / ARPE | E6: PASSAGEM | F6: UNID. | G6: 0 | H6: =ROUND(0.185708*414.4+6.3,2) -> 83.26 | I6: =H6*G6 -> 0 | J6: INSUMO
H7: SUB-TOTAL | I7: =SUM(I6:I6) -> 0
E8: SERVIÇOS / EQUIPAMENTOS
B9: TIPO | C9: REFER. | D9: CÓDIGO | E9: DISCRIMINAÇÃO | F9: UNID. | G9: QUANT. | H9: P.UNIT. | I9: P.TOTAL
B10: SERVIÇO | C10: SEINFRA | D10: C4990 | E10: =IF(B10="SERVIÇO",IF(C10="SINAPI",VLOOKUP(D10,'SERVIÇOS SINAPI'!$A:$D,2,0),IF(C10="ORSE",VLOOKUP(D10,'SERVIÇOS ORSE'!$A:$D,2,0),IF(C10="SEINFRA",VLOOKUP(D10,'SERVIÇOS SEINFRA'!$A:$D,2,0)))),IF(B10="INSUMO",IF(C10="SINAPI",VLOOKUP(D10,'INSUMOS SINAPI'!$A:$D,2,0),IF(C10="ORSE",VLOOKUP(D10,'INSUMOS ORSE'!$A:$D,2,0),IF(C10="SEINFRA",VLOOKUP(D10,'INSUMOS SEINFRA'!$A:$D,2,0),))))) -> MOBILIZAÇÃO DE EQUIPAMENTOS EM CAMINHÃO EQUIPADO COM GUINDASTE | F10: =IF(B10="SERVIÇO",IF(C10="SINAPI",VLOOKUP(D10,'SERVIÇOS SINAPI'!$A:$D,3,0),IF(C10="ORSE",VLOOKUP(D10,'SERVIÇOS ORSE'!$A:$D,3,0),IF(C10="SEINFRA",VLOOKUP(D10,'SERVIÇOS SEINFRA'!$A:$D,3,0)))),IF(B10="INSUMO",IF(C10="SINAPI",VLOOKUP(D10,'INSUMOS SINAPI'!$A:$D,3,0),IF(C10="ORSE",VLOOKUP(D10,'INSUMOS ORSE'!$A:$D,3,0),IF(C10="SEINFRA",VLOOKUP(D10,'INSUMOS SEINFRA'!$A:$D,3,0),))))) -> KM | G10: 30 | H10: =IF(B10="SERVIÇO",IF(C10="SINAPI",VLOOKUP(D10,'SERVIÇOS SINAPI'!$A:$D,4,0),IF(C10="ORSE",VLOOKUP(D10,'SERVIÇOS ORSE'!$A:$D,4,0),IF(C10="SEINFRA",VLOOKUP(D10,'SERVIÇOS SEINFRA'!$A:$D,4,0)))),IF(B10="INSUMO",IF(C10="SINAPI",VLOOKUP(D10,'INSUMOS SINAPI'!$A:$D,4,0),IF(C10="ORSE",VLOOKUP(D10,'INSUMOS ORSE'!$A:$D,4,0),IF(C10="SEINFRA",VLOOKUP(D10,'INSUMOS SEINFRA'!$A:$D,4,0),))))) -> 2.39 | I10: 71.7
B11: SERVIÇO | C11: SINAPI | D11: 67826 | E11: =IF(B11="SERVIÇO",IF(C11="SINAPI",VLOOKUP(D11,'SERVIÇOS SINAPI'!$A:$D,2,0),IF(C11="ORSE",VLOOKUP(D11,'SERVIÇOS ORSE'!$A:$D,2,0),IF(C11="SEINFRA",VLOOKUP(D11,'SERVIÇOS SEINFRA'!$A:$D,2,0)))),IF(B11="INSUMO",IF(C11="SINAPI",VLOOKUP(D11,'INSUMOS SINAPI'!$A:$D,2,0),IF(C11="ORSE",VLOOKUP(D11,'INSUMOS ORSE'!$A:$D,2,0),IF(C11="SEINFRA",VLOOKUP(D11,'INSUMOS SEINFRA'!$A:$D,2,0),))))) -> CAMINHÃO BASCULANTE 6 M3 TOCO, PESO BRUTO TOTAL 16.000 KG, CARGA ÚTIL MÁXIMA 11.130 KG, DISTÂNCIA ENTRE EIXOS 5,36 M, POTÊNCIA 185 CV, INCLUSIVE CAÇAMBA METÁLICA - CHP DIURNO. AF_06/2014 | F11: =IF(B11="SERVIÇO",IF(C11="SINAPI",VLOOKUP(D11,'SERVIÇOS SINAPI'!$A:$D,3,0),IF(C11="ORSE",VLOOKUP(D11,'SERVIÇOS ORSE'!$A:$D,3,0),IF(C11="SEINFRA",VLOOKUP(D11,'SERVIÇOS SEINFRA'!$A:$D,3,0)))),IF(B11="INSUMO",IF(C11="SINAPI",VLOOKUP(D11,'INSUMOS SINAPI'!$A:$D,3,0),IF(C11="ORSE",VLOOKUP(D11,'INSUMOS ORSE'!$A:$D,3,0),IF(C11="SEINFRA",VLOOKUP(D11,'INSUMOS SEINFRA'!$A:$D,3,0),))))) -> CHP | G11: 0.45 | H11: =IF(B11="SERVIÇO",IF(C11="SINAPI",VLOOKUP(D11,'SERVIÇOS SINAPI'!$A:$D,4,0),IF(C11="ORSE",VLOOKUP(D11,'SERVIÇOS ORSE'!$A:$D,4,0),IF(C11="SEINFRA",VLOOKUP(D11,'SERVIÇOS SEINFRA'!$A:$D,4,0)))),IF(B11="INSUMO",IF(C11="SINAPI",VLOOKUP(D11,'INSUMOS SINAPI'!$A:$D,4,0),IF(C11="ORSE",VLOOKUP(D11,'INSUMOS ORSE'!$A:$D,4,0),IF(C11="SEINFRA",VLOOKUP(D11,'INSUMOS SEINFRA'!$A:$D,4,0),))))) -> 167.46 | I11: 75.36
B12: SERVIÇO | C12: SINAPI | D12: 73467 | E12: =IF(B12="SERVIÇO",IF(C12="SINAPI",VLOOKUP(D12,'SERVIÇOS SINAPI'!$A:$D,2,0),IF(C12="ORSE",VLOOKUP(D12,'SERVIÇOS ORSE'!$A:$D,2,0),IF(C12="SEINFRA",VLOOKUP(D12,'SERVIÇOS SEINFRA'!$A:$D,2,0)))),IF(B12="INSUMO",IF(C12="SINAPI",VLOOKUP(D12,'INSUMOS SINAPI'!$A:$D,2,0),IF(C12="ORSE",VLOOKUP(D12,'INSUMOS ORSE'!$A:$D,2,0),IF(C12="SEINFRA",VLOOKUP(D12,'INSUMOS SEINFRA'!$A:$D,2,0),))))) -> CAMINHÃO TOCO, PBT 14.300 KG, CARGA ÚTIL MÁX. 9.710 KG, DIST. ENTRE EIXOS 3,56 M, POTÊNCIA 185 CV, INCLUSIVE CARROCERIA FIXA ABERTA DE MADEIRA P/ TRANSPORTE GERAL DE CARGA SECA, DIMEN. APROX. 2,50 X 6,50 X 0,50 M - CHP DIURNO. AF_06/2014 | F12: =IF(B12="SERVIÇO",IF(C12="SINAPI",VLOOKUP(D12,'SERVIÇOS SINAPI'!$A:$D,3,0),IF(C12="ORSE",VLOOKUP(D12,'SERVIÇOS ORSE'!$A:$D,3,0),IF(C12="SEINFRA",VLOOKUP(D12,'SERVIÇOS SEINFRA'!$A:$D,3,0)))),IF(B12="INSUMO",IF(C12="SINAPI",VLOOKUP(D12,'INSUMOS SINAPI'!$A:$D,3,0),IF(C12="ORSE",VLOOKUP(D12,'INSUMOS ORSE'!$A:$D,3,0),IF(C12="SEINFRA",VLOOKUP(D12,'INSUMOS SEINFRA'!$A:$D,3,0),))))) -> CHP | G12: 0.45 | H12: =IF(B12="SERVIÇO",IF(C12="SINAPI",VLOOKUP(D12,'SERVIÇOS SINAPI'!$A:$D,4,0),IF(C12="ORSE",VLOOKUP(D12,'SERVIÇOS ORSE'!$A:$D,4,0),IF(C12="SEINFRA",VLOOKUP(D12,'SERVIÇOS SEINFRA'!$A:$D,4,0)))),IF(B12="INSUMO",IF(C12="SINAPI",VLOOKUP(D12,'INSUMOS SINAPI'!$A:$D,4,0),IF(C12="ORSE",VLOOKUP(D12,'INSUMOS ORSE'!$A:$D,4,0),IF(C12="SEINFRA",VLOOKUP(D12,'INSUMOS SEINFRA'!$A:$D,4,0),))))) -> 214.94 | I12: 96.72
H13: SUB-TOTAL | I13: =SUM(I10:I12) -> 243.78
F14: TOTAL DO SERVIÇO - R$ | I14: =I13+I7 -> 243.78
B16: CODEVASF | C16: ITEM | D16: TIPO | E16: COMPOSIÇÃO DE PREÇO UNITÁRIO | F16: ='Planilha Orçamentária'!$J$4 -> JULHO DE 2023 | H16: UNIDADE: | I16: UN
B17: COMPOSIÇÃO | C17: ='Planilha Orçamentária'!#REF! ->  | D17: SERVIÇO / MATERIAL: | E17: ='Planilha Orçamentária'!#REF! ->  | F17: COMP. DE REFERÊNCIA: | H17: CÓDIGO: | I17: CODV02
E18: MATERIAIS / MÃO DE OBRA
B19: TIPO | C19: REFER. | D19: CÓDIGO | E19: DISCRIMINAÇÃO | F19: UNID. | G19: QUANT. | H19: P.UNIT. | I19: P.TOTAL
B20: INSUMO | C20: ANTT / ARPE | E20: PASSAGEM | F20: UNID. | G20: =G6 -> 0 | H20: =H6 -> 83.26 | I20: =H20*G20 -> 0 | J20: INSUMO
H21: SUB-TOTAL | I21: =SUM(I20:I20) -> 0
E22: SERVIÇOS / EQUIPAMENTOS
B23: TIPO | C23: REFER. | D23: CÓDIGO | E23: DISCRIMINAÇÃO | F23: UNID. | G23: QUANT. | H23: P.UNIT. | I23: P.TOTAL
B24: SERVIÇO | C24: SEINFRA | D24: C4991 | E24: =IF(B24="SERVIÇO",IF(C24="SINAPI",VLOOKUP(D24,'SERVIÇOS SINAPI'!$A:$D,2,0),IF(C24="ORSE",VLOOKUP(D24,'SERVIÇOS ORSE'!$A:$D,2,0),IF(C24="SEINFRA",VLOOKUP(D24,'SERVIÇOS SEINFRA'!$A:$D,2,0)))),IF(B24="INSUMO",IF(C24="SINAPI",VLOOKUP(D24,'INSUMOS SINAPI'!$A:$D,2,0),IF(C24="ORSE",VLOOKUP(D24,'INSUMOS ORSE'!$A:$D,2,0),IF(C24="SEINFRA",VLOOKUP(D24,'INSUMOS SEINFRA'!$A:$D,2,0),))))) -> DESMOBILIZAÇÃO DE EQUIPAMENTOS EM CAMINHÃO EQUIPADO COM GUINDASTE | F24: =IF(B24="SERVIÇO",IF(C24="SINAPI",VLOOKUP(D24,'SERVIÇOS SINAPI'!$A:$D,3,0),IF(C24="ORSE",VLOOKUP(D24,'SERVIÇOS ORSE'!$A:$D,3,0),IF(C24="SEINFRA",VLOOKUP(D24,'SERVIÇOS SEINFRA'!$A:$D,3,0)))),IF(B24="INSUMO",IF(C24="SINAPI",VLOOKUP(D24,'INSUMOS SINAPI'!$A:$D,3,0),IF(C24="ORSE",VLOOKUP(D24,'INSUMOS ORSE'!$A:$D,3,0),IF(C24="SEINFRA",VLOOKUP(D24,'INSUMOS SEINFRA'!$A:$D,3,0),))))) -> KM | G24: 30 | H24: =IF(B24="SERVIÇO",IF(C24="SINAPI",VLOOKUP(D24,'SERVIÇOS SINAPI'!$A:$D,4,0),IF(C24="ORSE",VLOOKUP(D24,'SERVIÇOS ORSE'!$A:$D,4,0),IF(C24="SEINFRA",VLOOKUP(D24,'SERVIÇOS SEINFRA'!$A:$D,4,0)))),IF(B24="INSUMO",IF(C24="SINAPI",VLOOKUP(D24,'INSUMOS SINAPI'!$A:$D,4,0),IF(C24="ORSE",VLOOKUP(D24,'INSUMOS ORSE'!$A:$D,4,0),IF(C24="SEINFRA",VLOOKUP(D24,'INSUMOS SEINFRA'!$A:$D,4,0),))))) -> 2.39 | I24: 71.7
B25: SERVIÇO | C25: SINAPI | D25: 67826 | E25: =IF(B25="SERVIÇO",IF(C25="SINAPI",VLOOKUP(D25,'SERVIÇOS SINAPI'!$A:$D,2,0),IF(C25="ORSE",VLOOKUP(D25,'SERVIÇOS ORSE'!$A:$D,2,0),IF(C25="SEINFRA",VLOOKUP(D25,'SERVIÇOS SEINFRA'!$A:$D,2,0)))),IF(B25="INSUMO",IF(C25="SINAPI",VLOOKUP(D25,'INSUMOS SINAPI'!$A:$D,2,0),IF(C25="ORSE",VLOOKUP(D25,'INSUMOS ORSE'!$A:$D,2,0),IF(C25="SEINFRA",VLOOKUP(D25,'INSUMOS SEINFRA'!$A:$D,2,0),))))) -> CAMINHÃO BASCULANTE 6 M3 TOCO, PESO BRUTO TOTAL 16.000 KG, CARGA ÚTIL MÁXIMA 11.130 KG, DISTÂNCIA ENTRE EIXOS 5,36 M, POTÊNCIA 185 CV, INCLUSIVE CAÇAMBA METÁLICA - CHP DIURNO. AF_06/2014 | F25: =IF(B25="SERVIÇO",IF(C25="SINAPI",VLOOKUP(D25,'SERVIÇOS SINAPI'!$A:$D,3,0),IF(C25="ORSE",VLOOKUP(D25,'SERVIÇOS ORSE'!$A:$D,3,0),IF(C25="SEINFRA",VLOOKUP(D25,'SERVIÇOS SEINFRA'!$A:$D,3,0)))),IF(B25="INSUMO",IF(C25="SINAPI",VLOOKUP(D25,'INSUMOS SINAPI'!$A:$D,3,0),IF(C25="ORSE",VLOOKUP(D25,'INSUMOS ORSE'!$A:$D,3,0),IF(C25="SEINFRA",VLOOKUP(D25,'INSUMOS SEINFRA'!$A:$D,3,0),))))) -> CHP | G25: 0.45 | H25: =IF(B25="SERVIÇO",IF(C25="SINAPI",VLOOKUP(D25,'SERVIÇOS SINAPI'!$A:$D,4,0),IF(C25="ORSE",VLOOKUP(D25,'SERVIÇOS ORSE'!$A:$D,4,0),IF(C25="SEINFRA",VLOOKUP(D25,'SERVIÇOS SEINFRA'!$A:$D,4,0)))),IF(B25="INSUMO",IF(C25="SINAPI",VLOOKUP(D25,'INSUMOS SINAPI'!$A:$D,4,0),IF(C25="ORSE",VLOOKUP(D25,'INSUMOS ORSE'!$A:$D,4,0),IF(C25="SEINFRA",VLOOKUP(D25,'INSUMOS SEINFRA'!$A:$D,4,0),))))) -> 167.46 | I25: 75.36
B26: SERVIÇO | C26: SINAPI | D26: 73467 | E26: =IF(B26="SERVIÇO",IF(C26="SINAPI",VLOOKUP(D26,'SERVIÇOS SINAPI'!$A:$D,2,0),IF(C26="ORSE",VLOOKUP(D26,'SERVIÇOS ORSE'!$A:$D,2,0),IF(C26="SEINFRA",VLOOKUP(D26,'SERVIÇOS SEINFRA'!$A:$D,2,0)))),IF(B26="INSUMO",IF(C26="SINAPI",VLOOKUP(D26,'INSUMOS SINAPI'!$A:$D,2,0),IF(C26="ORSE",VLOOKUP(D26,'INSUMOS ORSE'!$A:$D,2,0),IF(C26="SEINFRA",VLOOKUP(D26,'INSUMOS SEINFRA'!$A:$D,2,0),))))) -> CAMINHÃO TOCO, PBT 14.300 KG, CARGA ÚTIL MÁX. 9.710 KG, DIST. ENTRE EIXOS 3,56 M, POTÊNCIA 185 CV, INCLUSIVE CARROCERIA FIXA ABERTA DE MADEIRA P/ TRANSPORTE GERAL DE CARGA SECA, DIMEN. APROX. 2,50 X 6,50 X 0,50 M - CHP DIURNO. AF_06/2014 | F26: =IF(B26="SERVIÇO",IF(C26="SINAPI",VLOOKUP(D26,'SERVIÇOS SINAPI'!$A:$D,3,0),IF(C26="ORSE",VLOOKUP(D26,'SERVIÇOS ORSE'!$A:$D,3,0),IF(C26="SEINFRA",VLOOKUP(D26,'SERVIÇOS SEINFRA'!$A:$D,3,0)))),IF(B26="INSUMO",IF(C26="SINAPI",VLOOKUP(D26,'INSUMOS SINAPI'!$A:$D,3,0),IF(C26="ORSE",VLOOKUP(D26,'INSUMOS ORSE'!$A:$D,3,0),IF(C26="SEINFRA",VLOOKUP(D26,'INSUMOS SEINFRA'!$A:$D,3,0),))))) -> CHP | G26: 0.45 | H26: =IF(B26="SERVIÇO",IF(C26="SINAPI",VLOOKUP(D26,'SERVIÇOS SINAPI'!$A:$D,4,0),IF(C26="ORSE",VLOOKUP(D26,'SERVIÇOS ORSE'!$A:$D,4,0),IF(C26="SEINFRA",VLOOKUP(D26,'SERVIÇOS SEINFRA'!$A:$D,4,0)))),IF(B26="INSUMO",IF(C26="SINAPI",VLOOKUP(D26,'INSUMOS SINAPI'!$A:$D,4,0),IF(C26="ORSE",VLOOKUP(D26,'INSUMOS ORSE'!$A:$D,4,0),IF(C26="SEINFRA",VLOOKUP(D26,'INSUMOS SEINFRA'!$A:$D,4,0),))))) -> 214.94 | I26: 96.72
H27: SUB-TOTAL | I27: =SUM(I24:I26) -> 243.78
F28: TOTAL DO SERVIÇO - R$ | I28: =I27+I21 -> 243.78
B30: CODEVASF | C30: ITEM | D30: TIPO | E30: COMPOSIÇÃO DE PREÇO UNITÁRIO | F30: ='Planilha Orçamentária'!$J$4 -> JULHO DE 2023 | H30: UNIDADE: | I30: UN
B31: COMPOSIÇÃO | C31: ='Planilha Orçamentária'!B16 -> 2 | D31: SERVIÇO / MATERIAL: | E31: ='Planilha Orçamentária'!F15 -> LOCAÇÃO, ADMINISTRAÇÃO E MANUTENÇÃO DE CANTEIRO | F31: COMP. DE REFERÊNCIA: | H31: CÓDIGO: | I31: CODV03
E32: MATERIAIS / MÃO DE OBRA
B33: TIPO | C33: REFER. | D33: CÓDIGO | E33: DISCRIMINAÇÃO | F33: UNID. | G33: QUANT. | H33: P.UNIT. | I33: P.TOTAL
B34: INSUMO | C34: SEINFRA | D34: I8614 | E34: =IF(B34="SERVIÇO",IF(C34="SINAPI",VLOOKUP(D34,'SERVIÇOS SINAPI'!$A:$D,2,0),IF(C34="ORSE",VLOOKUP(D34,'SERVIÇOS ORSE'!$A:$D,2,0),IF(C34="SEINFRA",VLOOKUP(D34,'SERVIÇOS SEINFRA'!$A:$D,2,0)))),IF(B34="INSUMO",IF(C34="SINAPI",VLOOKUP(D34,'INSUMOS SINAPI'!$A:$D,2,0),IF(C34="ORSE",VLOOKUP(D34,'INSUMOS ORSE'!$A:$D,2,0),IF(C34="SEINFRA",VLOOKUP(D34,'INSUMOS SEINFRA'!$A:$D,2,0),))))) -> TELEFONE MÓVEL | F34: =IF(B34="SERVIÇO",IF(C34="SINAPI",VLOOKUP(D34,'SERVIÇOS SINAPI'!$A:$D,3,0),IF(C34="ORSE",VLOOKUP(D34,'SERVIÇOS ORSE'!$A:$D,3,0),IF(C34="SEINFRA",VLOOKUP(D34,'SERVIÇOS SEINFRA'!$A:$D,3,0)))),IF(B34="INSUMO",IF(C34="SINAPI",VLOOKUP(D34,'INSUMOS SINAPI'!$A:$D,3,0),IF(C34="ORSE",VLOOKUP(D34,'INSUMOS ORSE'!$A:$D,3,0),IF(C34="SEINFRA",VLOOKUP(D34,'INSUMOS SEINFRA'!$A:$D,3,0),))))) -> UNxMÊS | G34: 0.1 | H34: =IF(B34="SERVIÇO",IF(C34="SINAPI",VLOOKUP(D34,'SERVIÇOS SINAPI'!$A:$D,4,0),IF(C34="ORSE",VLOOKUP(D34,'SERVIÇOS ORSE'!$A:$D,4,0),IF(C34="SEINFRA",VLOOKUP(D34,'SERVIÇOS SEINFRA'!$A:$D,4,0)))),IF(B34="INSUMO",IF(C34="SINAPI",VLOOKUP(D34,'INSUMOS SINAPI'!$A:$D,4,0),IF(C34="ORSE",VLOOKUP(D34,'INSUMOS ORSE'!$A:$D,4,0),IF(C34="SEINFRA",VLOOKUP(D34,'INSUMOS SEINFRA'!$A:$D,4,0),))))) -> 230 | I34: =H34*G34 -> 23 | J34: INSUMO
B35: INSUMO | C35: SEINFRA | D35: I2321 | E35: =IF(B35="SERVIÇO",IF(C35="SINAPI",VLOOKUP(D35,'SERVIÇOS SINAPI'!$A:$D,2,0),IF(C35="ORSE",VLOOKUP(D35,'SERVIÇOS ORSE'!$A:$D,2,0),IF(C35="SEINFRA",VLOOKUP(D35,'SERVIÇOS SEINFRA'!$A:$D,2,0)))),IF(B35="INSUMO",IF(C35="SINAPI",VLOOKUP(D35,'INSUMOS SINAPI'!$A:$D,2,0),IF(C35="ORSE",VLOOKUP(D35,'INSUMOS ORSE'!$A:$D,2,0),IF(C35="SEINFRA",VLOOKUP(D35,'INSUMOS SEINFRA'!$A:$D,2,0),))))) -> ENERGIA ELETRICA | F35: =IF(B35="SERVIÇO",IF(C35="SINAPI",VLOOKUP(D35,'SERVIÇOS SINAPI'!$A:$D,3,0),IF(C35="ORSE",VLOOKUP(D35,'SERVIÇOS ORSE'!$A:$D,3,0),IF(C35="SEINFRA",VLOOKUP(D35,'SERVIÇOS SEINFRA'!$A:$D,3,0)))),IF(B35="INSUMO",IF(C35="SINAPI",VLOOKUP(D35,'INSUMOS SINAPI'!$A:$D,3,0),IF(C35="ORSE",VLOOKUP(D35,'INSUMOS ORSE'!$A:$D,3,0),IF(C35="SEINFRA",VLOOKUP(D35,'INSUMOS SEINFRA'!$A:$D,3,0),))))) -> KWH | G35: 0.1 | H35: =IF(B35="SERVIÇO",IF(C35="SINAPI",VLOOKUP(D35,'SERVIÇOS SINAPI'!$A:$D,4,0),IF(C35="ORSE",VLOOKUP(D35,'SERVIÇOS ORSE'!$A:$D,4,0),IF(C35="SEINFRA",VLOOKUP(D35,'SERVIÇOS SEINFRA'!$A:$D,4,0)))),IF(B35="INSUMO",IF(C35="SINAPI",VLOOKUP(D35,'INSUMOS SINAPI'!$A:$D,4,0),IF(C35="ORSE",VLOOKUP(D35,'INSUMOS ORSE'!$A:$D,4,0),IF(C35="SEINFRA",VLOOKUP(D35,'INSUMOS SEINFRA'!$A:$D,4,0),))))) -> 0.77 | I35: 0.08 | J35: INSUMO
B36: INSUMO | C36: SEINFRA | D36: I2294 | E36: =IF(B36="SERVIÇO",IF(C36="SINAPI",VLOOKUP(D36,'SERVIÇOS SINAPI'!$A:$D,2,0),IF(C36="ORSE",VLOOKUP(D36,'SERVIÇOS ORSE'!$A:$D,2,0),IF(C36="SEINFRA",VLOOKUP(D36,'SERVIÇOS SEINFRA'!$A:$D,2,0)))),IF(B36="INSUMO",IF(C36="SINAPI",VLOOKUP(D36,'INSUMOS SINAPI'!$A:$D,2,0),IF(C36="ORSE",VLOOKUP(D36,'INSUMOS ORSE'!$A:$D,2,0),IF(C36="SEINFRA",VLOOKUP(D36,'INSUMOS SEINFRA'!$A:$D,2,0),))))) -> ÁGUA | F36: =IF(B36="SERVIÇO",IF(C36="SINAPI",VLOOKUP(D36,'SERVIÇOS SINAPI'!$A:$D,3,0),IF(C36="ORSE",VLOOKUP(D36,'SERVIÇOS ORSE'!$A:$D,3,0),IF(C36="SEINFRA",VLOOKUP(D36,'SERVIÇOS SEINFRA'!$A:$D,3,0)))),IF(B36="INSUMO",IF(C36="SINAPI",VLOOKUP(D36,'INSUMOS SINAPI'!$A:$D,3,0),IF(C36="ORSE",VLOOKUP(D36,'INSUMOS ORSE'!$A:$D,3,0),IF(C36="SEINFRA",VLOOKUP(D36,'INSUMOS SEINFRA'!$A:$D,3,0),))))) -> M³ | G36: 0.5 | H36: =IF(B36="SERVIÇO",IF(C36="SINAPI",VLOOKUP(D36,'SERVIÇOS SINAPI'!$A:$D,4,0),IF(C36="ORSE",VLOOKUP(D36,'SERVIÇOS ORSE'!$A:$D,4,0),IF(C36="SEINFRA",VLOOKUP(D36,'SERVIÇOS SEINFRA'!$A:$D,4,0)))),IF(B36="INSUMO",IF(C36="SINAPI",VLOOKUP(D36,'INSUMOS SINAPI'!$A:$D,4,0),IF(C36="ORSE",VLOOKUP(D36,'INSUMOS ORSE'!$A:$D,4,0),IF(C36="SEINFRA",VLOOKUP(D36,'INSUMOS SEINFRA'!$A:$D,4,0),))))) -> 4.63 | I36: 2.32 | J36: INSUMO
B37: INSUMO | C37: ORSE | D37: 10562 | E37: =IF(B37="SERVIÇO",IF(C37="SINAPI",VLOOKUP(D37,'SERVIÇOS SINAPI'!$A:$D,2,0),IF(C37="ORSE",VLOOKUP(D37,'SERVIÇOS ORSE'!$A:$D,2,0),IF(C37="SEINFRA",VLOOKUP(D37,'SERVIÇOS SEINFRA'!$A:$D,2,0)))),IF(B37="INSUMO",IF(C37="SINAPI",VLOOKUP(D37,'INSUMOS SINAPI'!$A:$D,2,0),IF(C37="ORSE",VLOOKUP(D37,'INSUMOS ORSE'!$A:$D,2,0),IF(C37="SEINFRA",VLOOKUP(D37,'INSUMOS SEINFRA'!$A:$D,2,0),))))) -> MATERIAL DE ESCRITÓRIO | F37: =IF(B37="SERVIÇO",IF(C37="SINAPI",VLOOKUP(D37,'SERVIÇOS SINAPI'!$A:$D,3,0),IF(C37="ORSE",VLOOKUP(D37,'SERVIÇOS ORSE'!$A:$D,3,0),IF(C37="SEINFRA",VLOOKUP(D37,'SERVIÇOS SEINFRA'!$A:$D,3,0)))),IF(B37="INSUMO",IF(C37="SINAPI",VLOOKUP(D37,'INSUMOS SINAPI'!$A:$D,3,0),IF(C37="ORSE",VLOOKUP(D37,'INSUMOS ORSE'!$A:$D,3,0),IF(C37="SEINFRA",VLOOKUP(D37,'INSUMOS SEINFRA'!$A:$D,3,0),))))) -> MÊS | G37: 0.1 | H37: =IF(B37="SERVIÇO",IF(C37="SINAPI",VLOOKUP(D37,'SERVIÇOS SINAPI'!$A:$D,4,0),IF(C37="ORSE",VLOOKUP(D37,'SERVIÇOS ORSE'!$A:$D,4,0),IF(C37="SEINFRA",VLOOKUP(D37,'SERVIÇOS SEINFRA'!$A:$D,4,0)))),IF(B37="INSUMO",IF(C37="SINAPI",VLOOKUP(D37,'INSUMOS SINAPI'!$A:$D,4,0),IF(C37="ORSE",VLOOKUP(D37,'INSUMOS ORSE'!$A:$D,4,0),IF(C37="SEINFRA",VLOOKUP(D37,'INSUMOS SEINFRA'!$A:$D,4,0),))))) -> 30 | I37: 3 | J37: INSUMO
B38: INSUMO | C38: ORSE | D38: 10563 | E38: =IF(B38="SERVIÇO",IF(C38="SINAPI",VLOOKUP(D38,'SERVIÇOS SINAPI'!$A:$D,2,0),IF(C38="ORSE",VLOOKUP(D38,'SERVIÇOS ORSE'!$A:$D,2,0),IF(C38="SEINFRA",VLOOKUP(D38,'SERVIÇOS SEINFRA'!$A:$D,2,0)))),IF(B38="INSUMO",IF(C38="SINAPI",VLOOKUP(D38,'INSUMOS SINAPI'!$A:$D,2,0),IF(C38="ORSE",VLOOKUP(D38,'INSUMOS ORSE'!$A:$D,2,0),IF(C38="SEINFRA",VLOOKUP(D38,'INSUMOS SEINFRA'!$A:$D,2,0),))))) -> MATERIAL DE LIMPEZA | F38: =IF(B38="SERVIÇO",IF(C38="SINAPI",VLOOKUP(D38,'SERVIÇOS SINAPI'!$A:$D,3,0),IF(C38="ORSE",VLOOKUP(D38,'SERVIÇOS ORSE'!$A:$D,3,0),IF(C38="SEINFRA",VLOOKUP(D38,'SERVIÇOS SEINFRA'!$A:$D,3,0)))),IF(B38="INSUMO",IF(C38="SINAPI",VLOOKUP(D38,'INSUMOS SINAPI'!$A:$D,3,0),IF(C38="ORSE",VLOOKUP(D38,'INSUMOS ORSE'!$A:$D,3,0),IF(C38="SEINFRA",VLOOKUP(D38,'INSUMOS SEINFRA'!$A:$D,3,0),))))) -> MÊS | G38: 0.1 | H38: =IF(B38="SERVIÇO",IF(C38="SINAPI",VLOOKUP(D38,'SERVIÇOS SINAPI'!$A:$D,4,0),IF(C38="ORSE",VLOOKUP(D38,'SERVIÇOS ORSE'!$A:$D,4,0),IF(C38="SEINFRA",VLOOKUP(D38,'SERVIÇOS SEINFRA'!$A:$D,4,0)))),IF(B38="INSUMO",IF(C38="SINAPI",VLOOKUP(D38,'INSUMOS SINAPI'!$A:$D,4,0),IF(C38="ORSE",VLOOKUP(D38,'INSUMOS ORSE'!$A:$D,4,0),IF(C38="SEINFRA",VLOOKUP(D38,'INSUMOS SEINFRA'!$A:$D,4,0),))))) -> 123.84 | I38: 12.38 | J38: INSUMO
B39: INSUMO | C39: SEINFRA | D39: I10255 | E39: =IF(B39="SERVIÇO",IF(C39="SINAPI",VLOOKUP(D39,'SERVIÇOS SINAPI'!$A:$D,2,0),IF(C39="ORSE",VLOOKUP(D39,'SERVIÇOS ORSE'!$A:$D,2,0),IF(C39="SEINFRA",VLOOKUP(D39,'SERVIÇOS SEINFRA'!$A:$D,2,0)))),IF(B39="INSUMO",IF(C39="SINAPI",VLOOKUP(D39,'INSUMOS SINAPI'!$A:$D,2,0),IF(C39="ORSE",VLOOKUP(D39,'INSUMOS ORSE'!$A:$D,2,0),IF(C39="SEINFRA",VLOOKUP(D39,'INSUMOS SEINFRA'!$A:$D,2,0),))))) -> PLANO DE TELEFONIA + INTERNET | F39: =IF(B39="SERVIÇO",IF(C39="SINAPI",VLOOKUP(D39,'SERVIÇOS SINAPI'!$A:$D,3,0),IF(C39="ORSE",VLOOKUP(D39,'SERVIÇOS ORSE'!$A:$D,3,0),IF(C39="SEINFRA",VLOOKUP(D39,'SERVIÇOS SEINFRA'!$A:$D,3,0)))),IF(B39="INSUMO",IF(C39="SINAPI",VLOOKUP(D39,'INSUMOS SINAPI'!$A:$D,3,0),IF(C39="ORSE",VLOOKUP(D39,'INSUMOS ORSE'!$A:$D,3,0),IF(C39="SEINFRA",VLOOKUP(D39,'INSUMOS SEINFRA'!$A:$D,3,0),))))) -> MÊS | G39: 0.1 | H39: =IF(B39="SERVIÇO",IF(C39="SINAPI",VLOOKUP(D39,'SERVIÇOS SINAPI'!$A:$D,4,0),IF(C39="ORSE",VLOOKUP(D39,'SERVIÇOS ORSE'!$A:$D,4,0),IF(C39="SEINFRA",VLOOKUP(D39,'SERVIÇOS SEINFRA'!$A:$D,4,0)))),IF(B39="INSUMO",IF(C39="SINAPI",VLOOKUP(D39,'INSUMOS SINAPI'!$A:$D,4,0),IF(C39="ORSE",VLOOKUP(D39,'INSUMOS ORSE'!$A:$D,4,0),IF(C39="SEINFRA",VLOOKUP(D39,'INSUMOS SEINFRA'!$A:$D,4,0),))))) -> 100 | I39: 10 | J39: INSUMO
B40: INSUMO | C40: SINAPI | D40: 43494 | E40: =IF(B40="SERVIÇO",IF(C40="SINAPI",VLOOKUP(D40,'SERVIÇOS SINAPI'!$A:$D,2,0),IF(C40="ORSE",VLOOKUP(D40,'SERVIÇOS ORSE'!$A:$D,2,0),IF(C40="SEINFRA",VLOOKUP(D40,'SERVIÇOS SEINFRA'!$A:$D,2,0)))),IF(B40="INSUMO",IF(C40="SINAPI",VLOOKUP(D40,'INSUMOS SINAPI'!$A:$D,2,0),IF(C40="ORSE",VLOOKUP(D40,'INSUMOS ORSE'!$A:$D,2,0),IF(C40="SEINFRA",VLOOKUP(D40,'INSUMOS SEINFRA'!$A:$D,2,0),))))) -> EPI - FAMILIA ALMOXARIFE - MENSALISTA (ENCARGOS COMPLEMENTARES - COLETADO CAIXA) | F40: MES | G40: 0.05 | H40: =IF(B40="SERVIÇO",IF(C40="SINAPI",VLOOKUP(D40,'SERVIÇOS SINAPI'!$A:$D,4,0),IF(C40="ORSE",VLOOKUP(D40,'SERVIÇOS ORSE'!$A:$D,4,0),IF(C40="SEINFRA",VLOOKUP(D40,'SERVIÇOS SEINFRA'!$A:$D,4,0)))),IF(B40="INSUMO",IF(C40="SINAPI",VLOOKUP(D40,'INSUMOS SINAPI'!$A:$D,4,0),IF(C40="ORSE",VLOOKUP(D40,'INSUMOS ORSE'!$A:$D,4,0),IF(C40="SEINFRA",VLOOKUP(D40,'INSUMOS SEINFRA'!$A:$D,4,0),))))) -> 140.69 | I40: 7.03 | J40: INSUMO
B41: INSUMO | C41: SINAPI | D41: 43499 | E41: =IF(B41="SERVIÇO",IF(C41="SINAPI",VLOOKUP(D41,'SERVIÇOS SINAPI'!$A:$D,2,0),IF(C41="ORSE",VLOOKUP(D41,'SERVIÇOS ORSE'!$A:$D,2,0),IF(C41="SEINFRA",VLOOKUP(D41,'SERVIÇOS SEINFRA'!$A:$D,2,0)))),IF(B41="INSUMO",IF(C41="SINAPI",VLOOKUP(D41,'INSUMOS SINAPI'!$A:$D,2,0),IF(C41="ORSE",VLOOKUP(D41,'INSUMOS ORSE'!$A:$D,2,0),IF(C41="SEINFRA",VLOOKUP(D41,'INSUMOS SEINFRA'!$A:$D,2,0),))))) -> EPI - FAMILIA ENCARREGADO GERAL - MENSALISTA (ENCARGOS COMPLEMENTARES - COLETADO CAIXA) | F41: =IF(B41="SERVIÇO",IF(C41="SINAPI",VLOOKUP(D41,'SERVIÇOS SINAPI'!$A:$D,3,0),IF(C41="ORSE",VLOOKUP(D41,'SERVIÇOS ORSE'!$A:$D,3,0),IF(C41="SEINFRA",VLOOKUP(D41,'SERVIÇOS SEINFRA'!$A:$D,3,0)))),IF(B41="INSUMO",IF(C41="SINAPI",VLOOKUP(D41,'INSUMOS SINAPI'!$A:$D,3,0),IF(C41="ORSE",VLOOKUP(D41,'INSUMOS ORSE'!$A:$D,3,0),IF(C41="SEINFRA",VLOOKUP(D41,'INSUMOS SEINFRA'!$A:$D,3,0),))))) -> MES | G41: 0.05 | H41: =IF(B41="SERVIÇO",IF(C41="SINAPI",VLOOKUP(D41,'SERVIÇOS SINAPI'!$A:$D,4,0),IF(C41="ORSE",VLOOKUP(D41,'SERVIÇOS ORSE'!$A:$D,4,0),IF(C41="SEINFRA",VLOOKUP(D41,'SERVIÇOS SEINFRA'!$A:$D,4,0)))),IF(B41="INSUMO",IF(C41="SINAPI",VLOOKUP(D41,'INSUMOS SINAPI'!$A:$D,4,0),IF(C41="ORSE",VLOOKUP(D41,'INSUMOS ORSE'!$A:$D,4,0),IF(C41="SEINFRA",VLOOKUP(D41,'INSUMOS SEINFRA'!$A:$D,4,0),))))) -> 221.51 | I41: 11.08 | J41: INSUMO
B42: INSUMO | C42: SINAPI | D42: 43498 | E42: =IF(B42="SERVIÇO",IF(C42="SINAPI",VLOOKUP(D42,'SERVIÇOS SINAPI'!$A:$D,2,0),IF(C42="ORSE",VLOOKUP(D42,'SERVIÇOS ORSE'!$A:$D,2,0),IF(C42="SEINFRA",VLOOKUP(D42,'SERVIÇOS SEINFRA'!$A:$D,2,0)))),IF(B42="INSUMO",IF(C42="SINAPI",VLOOKUP(D42,'INSUMOS SINAPI'!$A:$D,2,0),IF(C42="ORSE",VLOOKUP(D42,'INSUMOS ORSE'!$A:$D,2,0),IF(C42="SEINFRA",VLOOKUP(D42,'INSUMOS SEINFRA'!$A:$D,2,0),))))) -> EPI - FAMILIA ENGENHEIRO CIVIL - MENSALISTA (ENCARGOS COMPLEMENTARES - COLETADO CAIXA) | F42: =IF(B42="SERVIÇO",IF(C42="SINAPI",VLOOKUP(D42,'SERVIÇOS SINAPI'!$A:$D,3,0),IF(C42="ORSE",VLOOKUP(D42,'SERVIÇOS ORSE'!$A:$D,3,0),IF(C42="SEINFRA",VLOOKUP(D42,'SERVIÇOS SEINFRA'!$A:$D,3,0)))),IF(B42="INSUMO",IF(C42="SINAPI",VLOOKUP(D42,'INSUMOS SINAPI'!$A:$D,3,0),IF(C42="ORSE",VLOOKUP(D42,'INSUMOS ORSE'!$A:$D,3,0),IF(C42="SEINFRA",VLOOKUP(D42,'INSUMOS SEINFRA'!$A:$D,3,0),))))) -> MES | G42: 0.05 | H42: =IF(B42="SERVIÇO",IF(C42="SINAPI",VLOOKUP(D42,'SERVIÇOS SINAPI'!$A:$D,4,0),IF(C42="ORSE",VLOOKUP(D42,'SERVIÇOS ORSE'!$A:$D,4,0),IF(C42="SEINFRA",VLOOKUP(D42,'SERVIÇOS SEINFRA'!$A:$D,4,0)))),IF(B42="INSUMO",IF(C42="SINAPI",VLOOKUP(D42,'INSUMOS SINAPI'!$A:$D,4,0),IF(C42="ORSE",VLOOKUP(D42,'INSUMOS ORSE'!$A:$D,4,0),IF(C42="SEINFRA",VLOOKUP(D42,'INSUMOS SEINFRA'!$A:$D,4,0),))))) -> 133.45 | I42: 6.67 | J42: INSUMO
B43: INSUMO | C43: SINAPI | D43: 40813 | E43: =IF(B43="SERVIÇO",IF(C43="SINAPI",VLOOKUP(D43,'SERVIÇOS SINAPI'!$A:$D,2,0),IF(C43="ORSE",VLOOKUP(D43,'SERVIÇOS ORSE'!$A:$D,2,0),IF(C43="SEINFRA",VLOOKUP(D43,'SERVIÇOS SEINFRA'!$A:$D,2,0)))),IF(B43="INSUMO",IF(C43="SINAPI",VLOOKUP(D43,'INSUMOS SINAPI'!$A:$D,2,0),IF(C43="ORSE",VLOOKUP(D43,'INSUMOS ORSE'!$A:$D,2,0),IF(C43="SEINFRA",VLOOKUP(D43,'INSUMOS SEINFRA'!$A:$D,2,0),))))) -> ENGENHEIRO CIVIL DE OBRA PLENO (MENSALISTA) | F43: =IF(B43="SERVIÇO",IF(C43="SINAPI",VLOOKUP(D43,'SERVIÇOS SINAPI'!$A:$D,3,0),IF(C43="ORSE",VLOOKUP(D43,'SERVIÇOS ORSE'!$A:$D,3,0),IF(C43="SEINFRA",VLOOKUP(D43,'SERVIÇOS SEINFRA'!$A:$D,3,0)))),IF(B43="INSUMO",IF(C43="SINAPI",VLOOKUP(D43,'INSUMOS SINAPI'!$A:$D,3,0),IF(C43="ORSE",VLOOKUP(D43,'INSUMOS ORSE'!$A:$D,3,0),IF(C43="SEINFRA",VLOOKUP(D43,'INSUMOS SEINFRA'!$A:$D,3,0),))))) -> MES | G43: 0.05 | H43: =IF(B43="SERVIÇO",IF(C43="SINAPI",VLOOKUP(D43,'SERVIÇOS SINAPI'!$A:$D,4,0),IF(C43="ORSE",VLOOKUP(D43,'SERVIÇOS ORSE'!$A:$D,4,0),IF(C43="SEINFRA",VLOOKUP(D43,'SERVIÇOS SEINFRA'!$A:$D,4,0)))),IF(B43="INSUMO",IF(C43="SINAPI",VLOOKUP(D43,'INSUMOS SINAPI'!$A:$D,4,0),IF(C43="ORSE",VLOOKUP(D43,'INSUMOS ORSE'!$A:$D,4,0),IF(C43="SEINFRA",VLOOKUP(D43,'INSUMOS SEINFRA'!$A:$D,4,0),))))) -> 21724.18 | I43: 1086.21 | J43: INSUMO
B44: INSUMO | C44: SINAPI | D44: 40818 | E44: =IF(B44="SERVIÇO",IF(C44="SINAPI",VLOOKUP(D44,'SERVIÇOS SINAPI'!$A:$D,2,0),IF(C44="ORSE",VLOOKUP(D44,'SERVIÇOS ORSE'!$A:$D,2,0),IF(C44="SEINFRA",VLOOKUP(D44,'SERVIÇOS SEINFRA'!$A:$D,2,0)))),IF(B44="INSUMO",IF(C44="SINAPI",VLOOKUP(D44,'INSUMOS SINAPI'!$A:$D,2,0),IF(C44="ORSE",VLOOKUP(D44,'INSUMOS ORSE'!$A:$D,2,0),IF(C44="SEINFRA",VLOOKUP(D44,'INSUMOS SEINFRA'!$A:$D,2,0),))))) -> ENCARREGADO GERAL DE OBRAS (MENSALISTA) | F44: =IF(B44="SERVIÇO",IF(C44="SINAPI",VLOOKUP(D44,'SERVIÇOS SINAPI'!$A:$D,3,0),IF(C44="ORSE",VLOOKUP(D44,'SERVIÇOS ORSE'!$A:$D,3,0),IF(C44="SEINFRA",VLOOKUP(D44,'SERVIÇOS SEINFRA'!$A:$D,3,0)))),IF(B44="INSUMO",IF(C44="SINAPI",VLOOKUP(D44,'INSUMOS SINAPI'!$A:$D,3,0),IF(C44="ORSE",VLOOKUP(D44,'INSUMOS ORSE'!$A:$D,3,0),IF(C44="SEINFRA",VLOOKUP(D44,'INSUMOS SEINFRA'!$A:$D,3,0),))))) -> MES | G44: 0.1 | H44: =IF(B44="SERVIÇO",IF(C44="SINAPI",VLOOKUP(D44,'SERVIÇOS SINAPI'!$A:$D,4,0),IF(C44="ORSE",VLOOKUP(D44,'SERVIÇOS ORSE'!$A:$D,4,0),IF(C44="SEINFRA",VLOOKUP(D44,'SERVIÇOS SEINFRA'!$A:$D,4,0)))),IF(B44="INSUMO",IF(C44="SINAPI",VLOOKUP(D44,'INSUMOS SINAPI'!$A:$D,4,0),IF(C44="ORSE",VLOOKUP(D44,'INSUMOS ORSE'!$A:$D,4,0),IF(C44="SEINFRA",VLOOKUP(D44,'INSUMOS SEINFRA'!$A:$D,4,0),))))) -> 6223.64 | I44: 622.36 | J44: INSUMO
B45: INSUMO | C45: SEINFRA | D45: I8588 | E45: =IF(B45="SERVIÇO",IF(C45="SINAPI",VLOOKUP(D45,'SERVIÇOS SINAPI'!$A:$D,2,0),IF(C45="ORSE",VLOOKUP(D45,'SERVIÇOS ORSE'!$A:$D,2,0),IF(C45="SEINFRA",VLOOKUP(D45,'SERVIÇOS SEINFRA'!$A:$D,2,0)))),IF(B45="INSUMO",IF(C45="SINAPI",VLOOKUP(D45,'INSUMOS SINAPI'!$A:$D,2,0),IF(C45="ORSE",VLOOKUP(D45,'INSUMOS ORSE'!$A:$D,2,0),IF(C45="SEINFRA",VLOOKUP(D45,'INSUMOS SEINFRA'!$A:$D,2,0),))))) -> TÉCNICO DE SEGURANÇA DO TRABALHO | F45: =IF(B45="SERVIÇO",IF(C45="SINAPI",VLOOKUP(D45,'SERVIÇOS SINAPI'!$A:$D,3,0),IF(C45="ORSE",VLOOKUP(D45,'SERVIÇOS ORSE'!$A:$D,3,0),IF(C45="SEINFRA",VLOOKUP(D45,'SERVIÇOS SEINFRA'!$A:$D,3,0)))),IF(B45="INSUMO",IF(C45="SINAPI",VLOOKUP(D45,'INSUMOS SINAPI'!$A:$D,3,0),IF(C45="ORSE",VLOOKUP(D45,'INSUMOS ORSE'!$A:$D,3,0),IF(C45="SEINFRA",VLOOKUP(D45,'INSUMOS SEINFRA'!$A:$D,3,0),))))) -> HxMÊS | G45: 0.02 | H45: =IF(B45="SERVIÇO",IF(C45="SINAPI",VLOOKUP(D45,'SERVIÇOS SINAPI'!$A:$D,4,0),IF(C45="ORSE",VLOOKUP(D45,'SERVIÇOS ORSE'!$A:$D,4,0),IF(C45="SEINFRA",VLOOKUP(D45,'SERVIÇOS SEINFRA'!$A:$D,4,0)))),IF(B45="INSUMO",IF(C45="SINAPI",VLOOKUP(D45,'INSUMOS SINAPI'!$A:$D,4,0),IF(C45="ORSE",VLOOKUP(D45,'INSUMOS ORSE'!$A:$D,4,0),IF(C45="SEINFRA",VLOOKUP(D45,'INSUMOS SEINFRA'!$A:$D,4,0),))))) -> 5099.32 | I45: 101.99 | J45: INSUMO
B46: INSUMO | C46: SINAPI | D46: 40809 | E46: =IF(B46="SERVIÇO",IF(C46="SINAPI",VLOOKUP(D46,'SERVIÇOS SINAPI'!$A:$D,2,0),IF(C46="ORSE",VLOOKUP(D46,'SERVIÇOS ORSE'!$A:$D,2,0),IF(C46="SEINFRA",VLOOKUP(D46,'SERVIÇOS SEINFRA'!$A:$D,2,0)))),IF(B46="INSUMO",IF(C46="SINAPI",VLOOKUP(D46,'INSUMOS SINAPI'!$A:$D,2,0),IF(C46="ORSE",VLOOKUP(D46,'INSUMOS ORSE'!$A:$D,2,0),IF(C46="SEINFRA",VLOOKUP(D46,'INSUMOS SEINFRA'!$A:$D,2,0),))))) -> ALMOXARIFE (MENSALISTA) | F46: =IF(B46="SERVIÇO",IF(C46="SINAPI",VLOOKUP(D46,'SERVIÇOS SINAPI'!$A:$D,3,0),IF(C46="ORSE",VLOOKUP(D46,'SERVIÇOS ORSE'!$A:$D,3,0),IF(C46="SEINFRA",VLOOKUP(D46,'SERVIÇOS SEINFRA'!$A:$D,3,0)))),IF(B46="INSUMO",IF(C46="SINAPI",VLOOKUP(D46,'INSUMOS SINAPI'!$A:$D,3,0),IF(C46="ORSE",VLOOKUP(D46,'INSUMOS ORSE'!$A:$D,3,0),IF(C46="SEINFRA",VLOOKUP(D46,'INSUMOS SEINFRA'!$A:$D,3,0),))))) -> MES | G46: 0.02 | H46: =IF(B46="SERVIÇO",IF(C46="SINAPI",VLOOKUP(D46,'SERVIÇOS SINAPI'!$A:$D,4,0),IF(C46="ORSE",VLOOKUP(D46,'SERVIÇOS ORSE'!$A:$D,4,0),IF(C46="SEINFRA",VLOOKUP(D46,'SERVIÇOS SEINFRA'!$A:$D,4,0)))),IF(B46="INSUMO",IF(C46="SINAPI",VLOOKUP(D46,'INSUMOS SINAPI'!$A:$D,4,0),IF(C46="ORSE",VLOOKUP(D46,'INSUMOS ORSE'!$A:$D,4,0),IF(C46="SEINFRA",VLOOKUP(D46,'INSUMOS SEINFRA'!$A:$D,4,0),))))) -> 3495.42 | I46: 69.91 | J46: INSUMO
B47: INSUMO | C47: SINAPI | D47: 40862 | E47: =IF(B47="SERVIÇO",IF(C47="SINAPI",VLOOKUP(D47,'SERVIÇOS SINAPI'!$A:$D,2,0),IF(C47="ORSE",VLOOKUP(D47,'SERVIÇOS ORSE'!$A:$D,2,0),IF(C47="SEINFRA",VLOOKUP(D47,'SERVIÇOS SEINFRA'!$A:$D,2,0)))),IF(B47="INSUMO",IF(C47="SINAPI",VLOOKUP(D47,'INSUMOS SINAPI'!$A:$D,2,0),IF(C47="ORSE",VLOOKUP(D47,'INSUMOS ORSE'!$A:$D,2,0),IF(C47="SEINFRA",VLOOKUP(D47,'INSUMOS SEINFRA'!$A:$D,2,0),))))) -> ALIMENTACAO - MENSALISTA (COLETADO CAIXA - ENCARGOS COMPLEMENTARES) | F47: =IF(B47="SERVIÇO",IF(C47="SINAPI",VLOOKUP(D47,'SERVIÇOS SINAPI'!$A:$D,3,0),IF(C47="ORSE",VLOOKUP(D47,'SERVIÇOS ORSE'!$A:$D,3,0),IF(C47="SEINFRA",VLOOKUP(D47,'SERVIÇOS SEINFRA'!$A:$D,3,0)))),IF(B47="INSUMO",IF(C47="SINAPI",VLOOKUP(D47,'INSUMOS SINAPI'!$A:$D,3,0),IF(C47="ORSE",VLOOKUP(D47,'INSUMOS ORSE'!$A:$D,3,0),IF(C47="SEINFRA",VLOOKUP(D47,'INSUMOS SEINFRA'!$A:$D,3,0),))))) -> MES | G47: 0.1 | H47: =IF(B47="SERVIÇO",IF(C47="SINAPI",VLOOKUP(D47,'SERVIÇOS SINAPI'!$A:$D,4,0),IF(C47="ORSE",VLOOKUP(D47,'SERVIÇOS ORSE'!$A:$D,4,0),IF(C47="SEINFRA",VLOOKUP(D47,'SERVIÇOS SEINFRA'!$A:$D,4,0)))),IF(B47="INSUMO",IF(C47="SINAPI",VLOOKUP(D47,'INSUMOS SINAPI'!$A:$D,4,0),IF(C47="ORSE",VLOOKUP(D47,'INSUMOS ORSE'!$A:$D,4,0),IF(C47="SEINFRA",VLOOKUP(D47,'INSUMOS SEINFRA'!$A:$D,4,0),))))) -> 429.36 | I47: 42.94 | J47: INSUMO
B48: INSUMO | C48: SINAPI | D48: 40861 | E48: =IF(B48="SERVIÇO",IF(C48="SINAPI",VLOOKUP(D48,'SERVIÇOS SINAPI'!$A:$D,2,0),IF(C48="ORSE",VLOOKUP(D48,'SERVIÇOS ORSE'!$A:$D,2,0),IF(C48="SEINFRA",VLOOKUP(D48,'SERVIÇOS SEINFRA'!$A:$D,2,0)))),IF(B48="INSUMO",IF(C48="SINAPI",VLOOKUP(D48,'INSUMOS SINAPI'!$A:$D,2,0),IF(C48="ORSE",VLOOKUP(D48,'INSUMOS ORSE'!$A:$D,2,0),IF(C48="SEINFRA",VLOOKUP(D48,'INSUMOS SEINFRA'!$A:$D,2,0),))))) -> TRANSPORTE - MENSALISTA (COLETADO CAIXA - ENCARGOS COMPLEMENTARES) | F48: =IF(B48="SERVIÇO",IF(C48="SINAPI",VLOOKUP(D48,'SERVIÇOS SINAPI'!$A:$D,3,0),IF(C48="ORSE",VLOOKUP(D48,'SERVIÇOS ORSE'!$A:$D,3,0),IF(C48="SEINFRA",VLOOKUP(D48,'SERVIÇOS SEINFRA'!$A:$D,3,0)))),IF(B48="INSUMO",IF(C48="SINAPI",VLOOKUP(D48,'INSUMOS SINAPI'!$A:$D,3,0),IF(C48="ORSE",VLOOKUP(D48,'INSUMOS ORSE'!$A:$D,3,0),IF(C48="SEINFRA",VLOOKUP(D48,'INSUMOS SEINFRA'!$A:$D,3,0),))))) -> MES | G48: 0.1 | H48: =IF(B48="SERVIÇO",IF(C48="SINAPI",VLOOKUP(D48,'SERVIÇOS SINAPI'!$A:$D,4,0),IF(C48="ORSE",VLOOKUP(D48,'SERVIÇOS ORSE'!$A:$D,4,0),IF(C48="SEINFRA",VLOOKUP(D48,'SERVIÇOS SEINFRA'!$A:$D,4,0)))),IF(B48="INSUMO",IF(C48="SINAPI",VLOOKUP(D48,'INSUMOS SINAPI'!$A:$D,4,0),IF(C48="ORSE",VLOOKUP(D48,'INSUMOS ORSE'!$A:$D,4,0),IF(C48="SEINFRA",VLOOKUP(D48,'INSUMOS SEINFRA'!$A:$D,4,0),))))) -> 113.81 | I48: 11.38 | J48: INSUMO
H49: SUB-TOTAL | I49: =SUM(I34:I48) -> 2010.35
E50: SERVIÇOS / EQUIPAMENTOS
B51: TIPO | C51: REFER. | D51: CÓDIGO | E51: DISCRIMINAÇÃO | F51: UNID. | G51: QUANT. | H51: P.UNIT. | I51: P.TOTAL
B52: INSUMO | C52: CODEVASF | E52: TIPO SEDAN 1.0 FLEX | F52: MÊS | G52: 0.01 | H52: ='CPU Veículos'!D42 -> 3013.23 | I52: =H52*G52 -> 30.13 | J52: INSUMO
H53: SUB-TOTAL | I53: =SUM(I52:I52) -> 30.13
B54: TOTAL MENSAL DO SERVIÇO - R$ | I54: =I53+I49 -> 2040.48
B56: MESES | I56: 0.3
B57: TOTAL DO SERVIÇO - R$ | I57: =I54*I56 -> 612.14 | J57: =IF(#REF!="INSUMO","INSUMO","") -> 
H58: 4 | J58: =IF(B58="INSUMO","INSUMO","") -> 

Sheet CPU Veículos
A1: ='Planilha Orçamentária'!B3 -> EXECUÇÃO DOS SERVIÇOS RELATIVOS A IMPLANTAÇÃO DE BIODIGESTORES PARA A PRODUÇÃO DE BIOGÁS EM UNIDADES FAMILIARES LOCALIZADAS EM COMUIDADES RURAIS DE MUNICÍPIOS DO ESTADO DE PERNAMBUCO
A2: CODEVASF - COD:CODEVASF (B2)
A3: Cód. | B3: Veículo 1.0 | C3: Un. | D3: Valor
A5: A | B5: Depreciação mensal do equipamento
A6: A1 | B6: Preço de aquisição | C6: R$ | D6: 45461
A7: A2 | B7: Tempo previsto de vida útil (meses) | C7: mês | D7: 36
A8: A3 | B8: Previsão de recuperação na venda do bem usado | D8: 0.4
A9: A4 | B9: Custo mensal [A1-(A3xA1)]/A2 | C9: R$ | D9: =(D6-(D8*D6))/D7 -> 757.68
A11: B | B11: Juros pelo capital empregado
A12: B1 | B12: Taxa mensal de Juros | C12: % | D12: 0.05
A13: B2 | B13: Juros s/depreciação/aluguel (B1xA4) | C13: R$ | D13: =D12*D9 -> 37.88
A15: C | B15: Conservação e manutenção
A16: C1 | B16: Taxa de gastos s/a deprec. Inc. seguros (%) | D16: 1
A17: C2 | B17: Incidência mensal (C1xA4) | D17: =D16*D9 -> 757.68
A19: D | B19: Combustível
A20: D1 | B20: Média mensal de quilômetro por veículo | C20: Km | D20: 3000
A21: D2 | B21: Preço do litro de combustível | C21: R$ | D21: 4.47
A22: D3 | B22: Quilômetros rodados com um litro combustivel | C22: Km | D22: 10
A23: D4 | B23: Combustivel (D1/D3)*D2 | C23: R$ | D23: =(D20/D22)*D21 -> 1341
A25: E | B25: Lubrificantes
A26: E1 | B26: Quilometragem do Contrato | C26: Km | D26: =D20*11 -> 33000
A27: E2 | B27: Franquia por troca de óleo | C27: Km | D27: 5000
A28: E3 | B28: Preço do litro de óleo | C28: R$ | D28: 19
A29: E4 | B29: Quantidade de litros de óleo por troca | C29: l | D29: 3.5
A30: E5 | B30: Quantidade de dias do Contrato | C30: dia | D30: ='Planilha Orçamentária'!$N$17/12*365 -> 334.58
A31: E6 | B31: Lubrificantes E = (E1*E3*E4*30)/(E2*E5) | C31: R$ | D31: =(D26*D28*D29*30)/(D27*D30) -> 39.35
A33: F | B33: Pneus
A34: F1 | B34: Quilometragem do Contrato | C34: Km | D34: =D26 -> 33000
A35: F2 | B35: Vida do Pneu em quilômetros | C35: Km | D35: 45000
A36: F3 | B36: Quantidade de pneus | C36: unid | D36: 5
A37: F4 | B37: Preço do Pneu | C37: R$ | D37: 242.24
A38: F5 | B38: Quantidade de dias do contrato | C38: dia | D38: =D30 -> 334.58
A39: F6 | B39: Pneus F = (F1*F3*F4*30)/(F2*F5) | C39: R$ | D39: =(D34*D36*D37*30)/(D35*D38) -> 79.64
A41: G | B41: Custo mensal
B42: Sem Motorista | C42: R$ | D42: =D39+D31+D23+D17+D13+D9 -> 3013.23
A44: H | B44: Custo Direto p/ km Rodado
B45: Sem Motorista | C45: R$ | D45: =D42/D20 -> 1
H58: 4

Sheet BDI's
B6: DETALHAMENTO DO BDI - SERVIÇOS (ACÓRDÃO Nº 2622/2013 - TCU - PLENÁRIO)
B7: ='Planilha Orçamentária'!B3:K3 -> EXECUÇÃO DOS SERVIÇOS RELATIVOS A IMPLANTAÇÃO DE BIODIGESTORES PARA A PRODUÇÃO DE BIOGÁS EM UNIDADES FAMILIARES LOCALIZADAS EM COMUIDADES RURAIS DE MUNICÍPIOS DO ESTADO DE PERNAMBUCO
B9: Item | C9: Descrição dos Serviços | D9: LIMITE INFERIOR | E9: VALOR MÉDIO | F9: LIMITE SUPERIOR | G9: VALOR ADOTADO
B12: 1 | C12: ADMINISTRAÇÃO CENTRAL (AC) | D12: 0.0343 | E12: 0.0493 | F12: 0.0671 | G12: 0.0343
B14: 2 | C14: TRIBUTOS (T) | D14: =SUM(D15:D18) -> 0.0865 | E14: 0.0865 | F14: 0.0865 | G14: 0.0865
B15: 2.1 | C15: ISS | D15: 0.05 | E15: 0.05 | F15: 0.05 | G15: =E15 -> 0.05
B16: 2.2 | C16: PIS | D16: 0.0065 | E16: 0.0065 | F16: 0.0065 | G16: 0.0065
B17: 2.3 | C17: Cofins | D17: 0.03 | E17: 0.03 | F17: 0.03 | G17: 0.03
B18: 2.4 | C18: CPRB | D18: 0 | E18: 0 | F18: 0 | G18: 0
B20: 3 | C20: SEGUROS, RISCOS E GARANTIAS | D20: =SUM(D21:D22) -> 0.0128 | E20: 0.0188 | F20: 0.0249 | G20: 0.0128
B21: 3.1 | C21: Seguros + Garantias | D21: 0.0028 | E21: 0.0049 | F21: 0.0075 | G21: 0.0028
B22: 3.2 | C22: Riscos | D22: 0.01 | E22: 0.0139 | F22: 0.0174 | G22: 0.01
B24: 4 | C24: DESPESAS FINANCEIRAS (DF) | D24: 0.0094 | E24: 0.0099 | F24: 0.0117 | G24: 0.0094
B26: 5 | C26: LUCRO (L) | D26: 0.0674 | E26: 0.0804 | F26: 0.094 | G26: 0.06
C28: BDI RECOMENDADO | D28: 0.2076 | E28: 0.2418 | F28: 0.2644
C30: BDI CALCULADO | G30: =(((1+G12+G20)*(1+G24)*(1+G26)/(1-G14))-1) -> 0.2264
C31: BDI ADOTADO | G31: =G30 -> 0.2264
B32: ACÓRDÃO Nº 2622/2013 - TCU - PLENÁRIO:
B33: BDI = (( 1 + AC + S + R + G)( 1 + DF)(1 +L) / (1 - I)) - 1
B39: DETALHAMENTO DO BDI - MATERIAIS (ACÓRDÃO Nº 2622/2013 - TCU - PLENÁRIO)
B40: =B7 -> EXECUÇÃO DOS SERVIÇOS RELATIVOS A IMPLANTAÇÃO DE BIODIGESTORES PARA A PRODUÇÃO DE BIOGÁS EM UNIDADES FAMILIARES LOCALIZADAS EM COMUIDADES RURAIS DE MUNICÍPIOS DO ESTADO DE PERNAMBUCO
B42: Item | C42: Descrição dos Serviços | D42: LIMITE INFERIOR | E42: VALOR MÉDIO | F42: LIMITE SUPERIOR | G42: VALOR ADOTADO
B45: 1 | C45: ADMINISTRAÇÃO CENTRAL (AC) | D45: 0.015 | E45: 0.0345 | F45: 0.0449 | G45: 0.02
B47: 2 | C47: TRIBUTOS (T) | D47: =SUM(D48:D51) -> 0.0365 | E47: 0.0365 | F47: 0.0365 | G47: 0.0365
B48: 2.1 | C48: ISS | D48: 0 | E48: 0 | F48: 0 | G48: =E48 -> 0
B49: 2.2 | C49: PIS | D49: 0.0065 | E49: 0.0065 | F49: 0.0065 | G49: 0.0065
B50: 2.3 | C50: Cofins | D50: 0.03 | E50: 0.03 | F50: 0.03 | G50: 0.03
B51: 2.4 | C51: CPRB | D51: 0 | E51: 0 | F51: 0 | G51: 0
B53: 3 | C53: SEGUROS, RISCOS E GARANTIAS | D53: =SUM(D54:D55) -> 0.0086 | E53: 0.0133 | F53: 0.0171 | G53: 0.0086
B54: 3.1 | C54: Seguros + Garantias | D54: 0.003 | E54: 0.0048 | F54: 0.0082 | G54: 0.003
B55: 3.2 | C55: Riscos | D55: 0.0056 | E55: 0.0085 | F55: 0.0089 | G55: 0.0056
B57: 4 | C57: DESPESAS FINANCEIRAS (DF) | D57: 0.0085 | E57: 0.0085 | F57: 0.0111 | G57: 0.0085
H58: 4
B59: 5 | C59: LUCRO (L) | D59: 0.035 | E59: 0.0511 | F59: 0.0622 | G59: 0.035
C61: BDI RECOMENDADO | D61: 0.111 | E61: 0.1402 | F61: 0.168
C63: BDI CALCULADO | G63: =(((1+G45+G53)*(1+G57)*(1+G59)/(1-G47))-1) -> 0.1143
C64: BDI ADOTADO | G64: =G63 -> 0.1143
B65: ACÓRDÃO Nº 2622/2013 - TCU - PLENÁRIO:
B66: BDI = (( 1 + AC + S + R + G)( 1 + DF)(1 +L) / (1 - I)) - 1

Sheet Leis Sociais
A1: ='Planilha Orçamentária'!B3 -> EXECUÇÃO DOS SERVIÇOS RELATIVOS A IMPLANTAÇÃO DE BIODIGESTORES PARA A PRODUÇÃO DE BIOGÁS EM UNIDADES FAMILIARES LOCALIZADAS EM COMUIDADES RURAIS DE MUNICÍPIOS DO ESTADO DE PERNAMBUCO
A2: ENCARGOS SOCIAIS (%)
C3: SEM DESONERAÇÃO
C5: HORISTA | D5: MENSALISTA
A7: GRUPO A
A8: A1 | B8: INSS | C8: 20 | D8: 20
A9: A2 | B9: SESI | C9: 1.5 | D9: 1.5
A10: A3 | B10: SENAI | C10: 1 | D10: 1
A11: A4 | B11: INCRA | C11: 0.2 | D11: 0.2
A12: A5 | B12: SEBRAE | C12: 0.6 | D12: 0.6
A13: A6 | B13: Salário Educação | C13: 2.5 | D13: 2.5
A14: A7 | B14: Seguro Contra Acidentes de Trabalho | C14: 3 | D14: 3
A15: A8 | B15: FGTS | C15: 8 | D15: 8
A16: A9 | B16: SECONCI | C16: 0 | D16: 0
A17: A | B17: Total | C17: =SUM(C8:C16) -> 36.8 | D17: =ROUND(SUM(D8:D16),2) -> 36.8
A18: GRUPO B
A19: B1 | B19: Repouso Semanal Remunerado | C19: 18.06 | D19: -
A20: B2 | B20: Feriados | C20: 4.33 | D20: -
A21: B3 | B21: Auxílio-enfermidade | C21: 0.87 | D21: 0.66
A22: B4 | B22: 13° salário | C22: 11.01 | D22: 8.33
A23: B5 | B23: Licença-paternidade | C23: 0.07 | D23: 0.05
A24: B6 | B24: Faltas Justificadas | C24: 0.73 | D24: 0.56
A25: B7 | B25: Dias de chuva | C25: 2.24 | D25: -
A26: B8 | B26: Auxílio Acidente de Trabalho | C26: 0.11 | D26: 0.08
A27: B9 | B27: Férias Gozadas | C27: 10.11 | D27: 7.66
A28: B10 | B28: Salário Maternidade | C28: 0.04 | D28: 0.03
A29: B | B29: Total | C29: =SUM(C19:C28) -> 47.57 | D29: =ROUND(SUM(D19:D28),2) -> 17.37
A30: GRUPO C
A31: C1 | B31: Aviso Prévio Indenizado | C31: 4.79 | D31: 3.63
A32: C2 | B32: Aviso Prévio Trabalhado | C32: 0.11 | D32: 0.09
A33: C3 | B33: Férias Indenizadas | C33: 3.37 | D33: 2.55
A34: C4 | B34: Depósito Rescisão Sem Justa Causa | C34: 3.03 | D34: 2.3
A35: C5 | B35: Indenização Adicional | C35: 0.4 | D35: 0.31
A36: C | B36: Total | C36: =SUM(C31:C35) -> 11.7 | D36: =ROUND(SUM(D31:D35),2) -> 8.88
A37: GRUPO D
A38: D1 | B38: Reincidência de A sobre B | C38: 17.51 | D38: 6.39
A39: D2 | B39: Reincidência de Grupo A sobre Aviso Prévio Trabalhado e Reincidência do FGTS sobre Aviso Prévio Indenizado | C39: 0.42 | D39: 0.32
A40: D | B40: Total | C40: =SUM(C38:C39) -> 17.93 | D40: =ROUND(SUM(D38:D39),2) -> 6.71
A42: T O T A L (%) | C42: =C40+C36+C29+C17 -> 114 | D42: =D40+D36+D29+D17 -> 69.76
H58: 4

Sheet Cronograma
D1: MINISTÉRIO DO DESENVOLVIMENTO REGIONAL COMPANHIA DE DESENVOLVIMENTO DOS VALES DO SÃO FRANCISCO E DO PARNAÍBA 3ª GRR GERÊNCIA REGIONAL DE REVITALIZAÇÃO DAS BACIAS HIDROGRÁFICAS
A2: ='Planilha Orçamentária'!B3 -> EXECUÇÃO DOS SERVIÇOS RELATIVOS A IMPLANTAÇÃO DE BIODIGESTORES PARA A PRODUÇÃO DE BIOGÁS EM UNIDADES FAMILIARES LOCALIZADAS EM COMUIDADES RURAIS DE MUNICÍPIOS DO ESTADO DE PERNAMBUCO
A4: CRONOGRAMA FÍSICO-FINANCEIRO
A5: ITEM | B5: DESCRIÇÃO | C5: Valor (R$) | D5: M E S E S | O5: TOTAL
D6: 1º | E6: 2º | F6: 3º | G6: 4º | H6: 5º | I6: 6º | J6: 7º | K6: 8º | L6: 9º | M6: 10º | N6: 11º
A7: 1 | B7: ='Planilha Orçamentária'!C11 -> INSTALAÇÕES PRELIMINARES | C7: ='Planilha Orçamentária'!K11 -> 2012.74 | D7: =SUM(D53:D63) -> 1059.93 | E7: =SUM(E53:E63) -> 24.16 | F7: =SUM(F53:F63) -> 33.75 | G7: 42.28 | H7: 149.94 | I7: 152.11 | J7: 101.57 | K7: 55.22 | L7: 28.35 | M7: 25.98 | N7: =SUM(N53:N63)-0.01 -> 339.5 | O7: =SUM(D7:N7) -> 2012.79 | Q7: =C7 -> 2012.74
D8: =D7/$C$7 -> 0.5266 | E8: =E7/$C$7 -> 0.012 | F8: 0.0168 | G8: 0.021 | H8: 0.0745 | I8: 0.0756 | J8: 0.0505 | K8: 0.0274 | L8: 0.0141 | M8: 0.0129 | N8: 0.1687 | O8: =SUM(D8:N8) -> 1.0001 | Q8: =C8 -> 0
Q9: 0
A10: 2 | B10: ='Planilha Orçamentária'!C16 -> LIMPEZA DA ÁREA | C10: ='Planilha Orçamentária'!K16 -> 149.88 | D10: =$C$10*D11 -> 29.98 | E10: =$C$10*E11 -> 29.98 | F10: 29.98 | G10: 14.99 | H10: 14.99 | I10: 7.49 | J10: 7.49 | K10: 7.49 | L10: 7.49 | M10: 0 | N10: 0 | O10: =SUM(D10:N10) -> 149.88 | Q10: 149.88
D11: 0.2 | E11: 0.2 | F11: 0.2 | G11: 0.1 | H11: 0.1 | I11: 0.05 | J11: 0.05 | K11: 0.05 | L11: 0.05 | O11: 1 | Q11: 0
O12: 0 | Q12: 0
A13: 3 | B13: ='Planilha Orçamentária'!C19 -> ESCAVAÇÃO DE SOLO PARA BIODIGESTOR | C13: ='Planilha Orçamentária'!K19 -> 169.35 | D13: =$C$13*D14 -> 0 | E13: =$C$13*E14 -> 0 | F13: 0 | G13: 42.34 | H13: 33.87 | I13: 33.87 | J13: 25.4 | K13: 8.47 | L13: 8.47 | M13: 8.47 | N13: 8.47 | O13: 169.36 | Q13: 169.35
G14: 0.25 | H14: 0.2 | I14: 0.2 | J14: 0.15 | K14: 0.05 | L14: 0.05 | M14: 0.05 | N14: 0.05 | O14: 1 | Q14: 0
O15: 0 | Q15: 0
A16: 4 | B16: ='Planilha Orçamentária'!C23 -> ATERRO E COMPACTAÇÃO | C16: ='Planilha Orçamentária'!K23 -> 184.73 | D16: =$C$16*D17 -> 27.71 | E16: 36.95 | F16: 36.95 | G16: 18.47 | H16: 18.47 | I16: 18.47 | J16: 18.47 | K16: 9.24 | L16: 0 | M16: 0 | N16: 0 | O16: 184.73 | Q16: 184.73
D17: 0.15 | E17: 0.2 | F17: 0.2 | G17: 0.1 | H17: 0.1 | I17: 0.1 | J17: 0.1 | K17: 0.05 | O17: 1 | Q17: 0
O18: 0 | Q18: 0
A19: 5 | B19: ='Planilha Orçamentária'!C26 -> SERVIÇO DE LAJE DE FUNDO, PILARES E CINTA | C19: ='Planilha Orçamentária'!K26 -> 1652.2 | D19: =$C$19*D20 -> 330.44 | E19: =$C$19*E20 -> 330.44 | F19: 495.66 | G19: 330.44 | H19: 165.22 | I19: 0 | J19: 0 | K19: 0 | L19: 0 | M19: 0 | N19: 0 | O19: 1652.2 | Q19: 1652.2
D20: 0.2 | E20: 0.2 | F20: 0.3 | G20: 0.2 | H20: 0.1 | O20: 1 | Q20: 0
O21: 0 | Q21: 0
A22: 6 | B22: ='Planilha Orçamentária'!C44 -> SERVIÇO DE ALVENARIA DA CÂMARA DO BIODIGESTOR | C22: ='Planilha Orçamentária'!K44 -> 4310.8 | D22: =$C$22*D23 -> 0 | E22: 0 | F22: 0 | G22: 0 | H22: 1724.32 | I22: 1724.32 | J22: 862.16 | K22: 0 | L22: 0 | M22: 0 | N22: 0 | O22: 4310.8 | Q22: 4310.8
H23: 0.4 | I23: 0.4 | J23: 0.2 | O23: 1 | Q23: 0
O24: 0 | Q24: 0
A25: 7 | B25: ='Planilha Orçamentária'!C65 -> INSTALAÇÕES HIDRÁULICAS | C25: ='Planilha Orçamentária'!K65 -> 332.61 | D25: =$C$25*D26 -> 0 | E25: =$C$25*E26 -> 0 | F25: 0 | G25: 33.26 | H25: 66.52 | I25: 66.52 | J25: 66.52 | K25: 66.52 | L25: 33.26 | M25: 0 | N25: 0 | O25: 332.6 | Q25: 332.61
G26: 0.1 | H26: 0.2 | I26: 0.2 | J26: 0.2 | K26: 0.2 | L26: 0.1 | O26: 1 | Q26: 0
O27: 0 | Q27: 0
A28: 8 | B28: ='Planilha Orçamentária'!C77 -> CÂMARA DE ARMAZENAMENTO DE GÁS | C28: ='Planilha Orçamentária'!K77 -> 2403.15 | D28: =$C$28*D29 -> 0 | E28: =$C$28*E29 -> 0 | F28: 0 | G28: 0 | H28: 360.47 | I28: 480.63 | J28: 480.63 | K28: 480.63 | L28: 240.32 | M28: 240.32 | N28: 120.16 | O28: 2403.16 | Q28: 2403.15
H29: 0.15 | I29: 0.2 | J29: 0.2 | K29: 0.2 | L29: 0.1 | M29: 0.1 | N29: 0.05 | O29: 1 | Q29: 0
O30: 0 | Q30: 0
A31: 9 | B31: ='Planilha Orçamentária'!C82 -> MATERIAIS HIDÁULICOS | C31: ='Planilha Orçamentária'!K82 -> 1799.77 | D31: =$C$31*D32 -> 0 | E31: =$C$31*E32 -> 0 | F31: 0 | G31: 269.97 | H31: 179.98 | I31: 269.97 | J31: 269.97 | K31: 359.95 | L31: 179.98 | M31: 179.98 | N31: 89.99 | O31: 1799.79 | Q31: 1799.77
G32: 0.15 | H32: 0.1 | I32: 0.15 | J32: 0.15 | K32: 0.2 | L32: 0.1 | M32: 0.1 | N32: 0.05 | O32: 1 | Q32: 0
D33: =D10+D13+D16+D19+D22+D25+D31 -> 388.13 | E33: =E10+E13+E16+E19+E22+E25+E31 -> 397.37 | F33: 562.59 | G33: 709.47 | H33: 2203.37 | I33: 2120.64 | J33: 1250.01 | K33: 451.67 | L33: 229.2 | M33: 188.45 | N33: 98.46 | O33: =SUM(D33:M33) -> 8500.9 | Q33: 0
A34: 10 | B34: ='Planilha Orçamentária'!C102 -> MATERIAIS COMPLEMENTARES | C34: ='Planilha Orçamentária'!K102 -> 666.47 | D34: =$C$31*D35 -> 0 | E34: =$C$31*E35 -> 0 | F34: =$C$31*F35 -> 0 | G34: =$C$34*G35 -> 99.97 | H34: =$C$34*H35 -> 66.65 | I34: 99.97 | J34: 99.97 | K34: 133.29 | L34: 66.65 | M34: 66.65 | N34: 33.32 | O34: =SUM(D34:N34) -> 666.47 | Q34: 666.47
G35: 0.15 | H35: 0.1 | I35: 0.15 | J35: 0.15 | K35: 0.2 | L35: 0.1 | M35: 0.1 | N35: 0.05 | O35: 1 | Q35: =SUM(Q7:Q34) -> 13681.7
C36: =C7+C10+C13+C16+C19+C22+C25+C31+C34+C28 -> 13681.7 | D36: =D7+D10+D13+D16+D19+D22+D25+D28+D31+D34 -> 1448.06 | E36: =E7+E10+E13+E16+E19+E22+E25+E28+E31+E34 -> 421.53 | F36: 596.34 | G36: 851.72 | H36: 2780.43 | I36: 2853.35 | J36: 1932.18 | K36: 1120.81 | L36: 564.52 | M36: 521.4 | N36: 591.44 | O36: 13681.78
B37: TOTAL ACUMULADO | D37: =D36 -> 1448.06 | E37: =D37+E36 -> 1869.59 | F37: 2465.93 | G37: 3317.65 | H37: 6098.08 | I37: 8951.43 | J37: 10883.61 | K37: 12004.42 | L37: 12568.94 | M37: 13090.34 | N37: 13681.78 | O37: =O36 -> 13681.78 | Q37: =O7+O10+O13+O16+O19+O22+O25+O28+O31+O34 -> 13681.78
B38: PERCENTUAL MENSAL | D38: =(D36/$O$37) -> 0.106 | E38: =(E36/$O$37) -> 0.031 | F38: 0.044 | G38: 0.062 | H38: 0.203 | I38: 0.209 | J38: 0.141 | K38: 0.082 | L38: 0.041 | M38: 0.038 | N38: 0.043 | O38: 1 | Q38: ='Planilha Orçamentária'!K121 -> 13681.7
B39: PERCENTUAL MENSAL ACUMULADO | D39: =D38 -> 0.106 | E39: =D39+E38 -> 0.137 | F39: 0.181 | G39: 0.243 | H39: 0.446 | I39: 0.655 | J39: 0.796 | K39: 0.878 | L39: 0.919 | M39: 0.957 | N39: 1 | O39: =O38 -> 1 | Q39: =C36 -> 13681.7
C53: 1.1 | D53: ='Planilha Orçamentária'!$K12 -> 664.07 | E53: 0 | F53: 0 | G53: 0 | H53: 0 | I53: 0 | J53: 0 | K53: 0 | L53: 0 | M53: 0 | N53: 0
C54: 1.2 | D54: ='Planilha Orçamentária'!$K13 -> 298.97 | E54: 0 | F54: 0 | G54: 0 | H54: 0 | I54: 0 | J54: 0 | K54: 0 | L54: 0 | M54: 0 | N54: 0
C55: 1.3 | E55: 0 | F55: 0 | G55: 0 | H55: 0 | I55: 0 | J55: 0 | K55: 0 | L55: 0 | M55: 0 | N55: ='Planilha Orçamentária'!$K14 -> 298.97
C56: 1.4 | E56: 0 | F56: 0 | G56: 0 | H56: 0 | I56: 0 | J56: 0 | K56: 0 | L56: 0 | M56: 0 | N56: 0
C57: 1.5 | D57: 0 | E57: 0 | F57: 0 | G57: 0 | H57: 0 | I57: 0 | J57: 0 | K57: 0 | L57: 0 | M57: 0 | N57: 0
C58: 1.6 | D58: =((D10+D13+D16+D19+D22+D25+D28+D31+D53+D54+N55+D56+D57)/($C36-'Planilha Orçamentária'!$K15))*'Planilha Orçamentária'!$K15 -> 95.8 | E58: =((E10+E13+E16+E19+E22+E25+E28+E31+E53+E54+E55+E56+E57)/($C36-'Planilha Orçamentária'!$K15))*'Planilha Orçamentária'!$K15 -> 23.07 | F58: =((F10+F13+F16+F19+F22+F25+F28+F31+F53+F54+F55+F56+F57)/($C36-'Planilha Orçamentária'!$K15))*'Planilha Orçamentária'!$K15 -> 32.66 | G58: =((G10+G13+G16+G19+G22+G25+G28+G31+G53+G54+G55+G56+G57)/($C36-'Planilha Orçamentária'!$K15))*'Planilha Orçamentária'!$K15 -> 41.19 | H58: =((H10+H13+H16+H19+H22+H25+H28+H31+H53+H54+H55+H56+H57)/($C36-'Planilha Orçamentária'!$K15))*'Planilha Orçamentária'!$K15 -> 148.85 | I58: =((I10+I13+I16+I19+I22+I25+I28+I31+I53+I54+I55+I56+I57)/($C36-'Planilha Orçamentária'!$K15))*'Planilha Orçamentária'!$K15 -> 151.02 | J58: =((J10+J13+J16+J19+J22+J25+J28+J31+J53+J54+J55+J56+J57)/($C36-'Planilha Orçamentária'!$K15))*'Planilha Orçamentária'!$K15 -> 100.48 | K58: =((K10+K13+K16+K19+K22+K25+K28+K31+K53+K54+K55+K56+K57)/($C36-'Planilha Orçamentária'!$K15))*'Planilha Orçamentária'!$K15 -> 54.13 | L58: =((L10+L13+L16+L19+L22+L25+L28+L31+L53+L54+L55+L56+L57)/($C36-'Planilha Orçamentária'!$K15))*'Planilha Orçamentária'!$K15 -> 27.26 | M58: =((M10+M13+M16+M19+M22+M25+M28+M31+M53+M54+M55+M56+M57)/($C36-'Planilha Orçamentária'!$K15))*'Planilha Orçamentária'!$K15 -> 24.89 | N58: =((N10+N13+N16+N19+N22+N25+N28+N31+N53+N54+N54+N56+N57)/($C36-'Planilha Orçamentária'!$K15))*'Planilha Orçamentária'!$K15 -> 12.69
C59: 1.7 | D59: ='Planilha Orçamentária'!$K17/'Planilha Orçamentária'!$N17 -> 1.09 | E59: ='Planilha Orçamentária'!$K17/'Planilha Orçamentária'!$N17 -> 1.09 | F59: ='Planilha Orçamentária'!$K17/'Planilha Orçamentária'!$N17 -> 1.09 | G59: ='Planilha Orçamentária'!$K17/'Planilha Orçamentária'!$N17 -> 1.09 | H59: ='Planilha Orçamentária'!$K17/'Planilha Orçamentária'!$N17 -> 1.09 | I59: ='Planilha Orçamentária'!$K17/'Planilha Orçamentária'!$N17 -> 1.09 | J59: ='Planilha Orçamentária'!$K17/'Planilha Orçamentária'!$N17 -> 1.09 | K59: ='Planilha Orçamentária'!$K17/'Planilha Orçamentária'!$N17 -> 1.09 | L59: ='Planilha Orçamentária'!$K17/'Planilha Orçamentária'!$N17 -> 1.09 | M59: ='Planilha Orçamentária'!$K17/'Planilha Orçamentária'!$N17 -> 1.09 | N59: ='Planilha Orçamentária'!$K17/'Planilha Orçamentária'!$N17 -> 1.09
C60: 1.8 | D60: 0 | E60: 0 | F60: 0 | G60: 0 | H60: 0 | I60: 0 | J60: 0 | K60: 0 | L60: 0 | M60: 0 | N60: 26.76 | O60: ='Planilha Orçamentária'!K11 -> 2012.74
C61: 1.9 | D61: 0 | E61: 0 | F61: 0 | G61: 0 | H61: 0 | I61: 0 | J61: 0 | K61: 0 | L61: 0 | M61: 0 | N61: 0 | O61: =O60-O7 -> -0.05
C62: 1.10 | D62: 0 | E62: 0 | F62: 0 | G62: 0 | H62: 0 | I62: 0 | J62: 0 | K62: 0 | L62: 0 | M62: 0 | N62: 0
C63: 1.11 | E63: 0 | F63: 0 | G63: 0 | H63: 0 | I63: 0 | J63: 0 | K63: 0 | L63: 0 | M63: 0 | N63: 0

Sheet Paramétricas
A1: ='Planilha Orçamentária'!B3 -> EXECUÇÃO DOS SERVIÇOS RELATIVOS A IMPLANTAÇÃO DE BIODIGESTORES PARA A PRODUÇÃO DE BIOGÁS EM UNIDADES FAMILIARES LOCALIZADAS EM COMUIDADES RURAIS DE MUNICÍPIOS DO ESTADO DE PERNAMBUCO
A3: FÓRMULA DE REAJUSTAMENTO
A5: COMPOSIÇÃO DOS ÍNDICES | B5: PARÂMETRO (%)
A6: N1 - Terraplanagem | B6: =ROUND('Planilha Orçamentária'!N130,3) -> 0.104
A7: N2 - Edificações | B7: =ROUND('Planilha Orçamentária'!O130,3) -> 0.33
A8: N3 - Concreto armado | B8: =ROUND('Planilha Orçamentária'!P130,3) -> 0.064
A9: N4 - Materiais plásticos | B9: =ROUND('Planilha Orçamentária'!Q130,3) -> 0.302
A10: N5 - Ferro, aço e derivados | B10: =ROUND('Planilha Orçamentária'!R130,3)-0.001 -> 0.087
A11: N6 - Mão-de-obra especializada | B11: =ROUND('Planilha Orçamentária'!S130,3) -> 0.092
A12: N7 - Produtos industrializados | B12: =ROUND('Planilha Orçamentária'!T130,3)+0.001 -> 0.032
A13: TOTAL | B13: =SUM(B6:B12) -> 1.011
A20: R - Valor de reajuste
A21: V - Valor a reajustar
A23: Ti - Refere-se à coluna 38 da FGV - Terraplanagem, cód. A0157956, correspondente ao mês de aniversário da proposta
A24: To - Refere-se à coluna 38 da FGV - Terraplanagem, cód. A0157956, correspondente a data da apresentação da proposta
A26: Ei - Refere-se à coluna 35 da FGV - Edificações Total, cod. A0159428, correspondente ao mês de aniversário da proposta
A27: Eo - Refere-se à coluna35 da FGV - Edificações Total, cod. A0159428, correspondente à data de apresentação da proposta
A29: CAi - Refere-se à coluna 40 da FGV - Estruturas de Obras em Concreto Armado, cód. AO159665, correspondente ao mês de aniversário da proposta
A30: CAo - Refere-se à coluna 40 da FGV - Estruturas de Obras em Concreto Armado, cód. AO159665, correspondente à data de apresentação da proposta
A32: MPi - Refere-se ao IPA-Origem-OG-DI-Produtos Industriais – Artigos de Borracha e de Material Plástico, cód. AO 1006821, correspondente ao mês de aniversário da proposta
A33: MPo - Refere-se ao IPA-Origem-OG-DI-Produtos Industriais – Artigos de Borracha e de Material Plástico, cód. AO 1006821, correspondente à data de apresentação da proposta
A35: Fi - Refere-se ao IPA-Origem-OG-DI-Produtos Industriais - Indústria de Transformação - Metalúrgica Básica, cód. AO 1006823, correspondente ao mês de aniversário da proposta
A36: Fo - Refere-se ao IPA-Origem-OG-DI-Produtos Industriais - Indústria de Transformação - Metalúrgica Básica, cód. AO 1006823, correspondente à data de apresentação da proposta
A38: MOi - Refere-se à coluna 50 da FGV Mão-de-obra da Construção Civil, cód. AO161309, correspondente ao mês de aniversário da proposta.
A39: MOo - Refere-se à coluna 50 da FGV Mão-de-obra da Construção Civil, cód. AO116309, correspondente à data de apresentação da proposta.
A41: MEi - Refere-se ao IPA - Origem-OG-DI-Produtos Industriais - Indústria de Transformação - Máquinas e Equipamentos, cód. AO 1006825, correspondente ao mês de aniversário da proposta
A42: MEo - Refere-se ao IPA - Origem-OG-DI-Produtos Industriais - Indústria de Transformação - Máquinas e Equipamentos, cód. AO 1006825, correspondente à data de apresentação da proposta

Sheet SERVIÇOS SINAPI
A1: PCI.817.01 - CUSTO DE COMPOSIÇÕES - SINTÉTICO DATA DE EMISSÃO: 13/07/2023 23:51:26 DATA DE RT: 13/07/2023
A2: ENCARGOS SOCIAIS SOBRE PREÇOS DA MÃO-DE-OBRA: 114,55%(HORA) 70,11%(MÊS)
A3: ABRANGÊNCIA : NACIONAL LOCALIDADE : RECIFE DATA DE PREÇO : 06/2023 REFERÊNCIA COLETA : MEDIANO
A5: CODIGO | B5: DESCRICAO DA COMPOSICAO | C5: UNIDADE | D5: CUSTO TOTAL
A7: 97141 | B7: ASSENTAMENTO DE TUBO DE FERRO FUNDIDO PARA REDE DE ÁGUA, DN 80 MM, JUNTA ELÁSTICA, INSTALADO EM LOCAL COM NÍVEL ALTO DE INTERFERÊNCIAS (NÃO INCLUI FORNECIMENTO). AF_11/2017 | C7: M | D7: 9.47
A8: 97142 | B8: ASSENTAMENTO DE TUBO DE FERRO FUNDIDO PARA REDE DE ÁGUA, DN 100 MM, JUNTA ELÁSTICA, INSTALADO EM LOCAL COM NÍVEL ALTO DE INTERFERÊNCIAS (NÃO INCLUI FORNECIMENTO). AF_11/2017 | C8: M | D8: 10.55
A9: 97143 | B9: ASSENTAMENTO DE TUBO DE FERRO FUNDIDO PARA REDE DE ÁGUA, DN 150 MM, JUNTA ELÁSTICA, INSTALADO EM LOCAL COM NÍVEL ALTO DE INTERFERÊNCIAS (NÃO INCLUI FORNECIMENTO). AF_11/2017 | C9: M | D9: 13.22
A10: 97144 | B10: ASSENTAMENTO DE TUBO DE FERRO FUNDIDO PARA REDE DE ÁGUA, DN 200 MM, JUNTA ELÁSTICA, INSTALADO EM LOCAL COM NÍVEL ALTO DE INTERFERÊNCIAS (NÃO INCLUI FORNECIMENTO). AF_11/2017 | C10: M | D10: 15.88
A11: 97145 | B11: ASSENTAMENTO DE TUBO DE FERRO FUNDIDO PARA REDE DE ÁGUA, DN 250 MM, JUNTA ELÁSTICA, INSTALADO EM LOCAL COM NÍVEL ALTO DE INTERFERÊNCIAS (NÃO INCLUI FORNECIMENTO). AF_11/2017 | C11: M | D11: 18.58
A12: 97146 | B12: ASSENTAMENTO DE TUBO DE FERRO FUNDIDO PARA REDE DE ÁGUA, DN 300 MM, JUNTA ELÁSTICA, INSTALADO EM LOCAL COM NÍVEL ALTO DE INTERFERÊNCIAS (NÃO INCLUI FORNECIMENTO). AF_11/2017 | C12: M | D12: 21.26
A13: 97147 | B13: ASSENTAMENTO DE TUBO DE FERRO FUNDIDO PARA REDE DE ÁGUA, DN 350 MM, JUNTA ELÁSTICA, INSTALADO EM LOCAL COM NÍVEL ALTO DE INTERFERÊNCIAS (NÃO INCLUI FORNECIMENTO). AF_11/2017 | C13: M | D13: 23.96
A14: 97148 | B14: ASSENTAMENTO DE TUBO DE FERRO FUNDIDO PARA REDE DE ÁGUA, DN 400 MM, JUNTA ELÁSTICA, INSTALADO EM LOCAL COM NÍVEL ALTO DE INTERFERÊNCIAS (NÃO INCLUI FORNECIMENTO). AF_11/2017 | C14: M | D14: 26.64
A15: 97149 | B15: ASSENTAMENTO DE TUBO DE FERRO FUNDIDO PARA REDE DE ÁGUA, DN 450 MM, JUNTA ELÁSTICA, INSTALADO EM LOCAL COM NÍVEL ALTO DE INTERFERÊNCIAS (NÃO INCLUI FORNECIMENTO). AF_11/2017 | C15: M | D15: 29.37
A16: 97150 | B16: ASSENTAMENTO DE TUBO DE FERRO FUNDIDO PARA REDE DE ÁGUA, DN 500 MM, JUNTA ELÁSTICA, INSTALADO EM LOCAL COM NÍVEL ALTO DE INTERFERÊNCIAS (NÃO INCLUI FORNECIMENTO). AF_11/2017 | C16: M | D16: 35.93
A17: 97151 | B17: ASSENTAMENTO DE TUBO DE FERRO FUNDIDO PARA REDE DE ÁGUA, DN 600 MM, JUNTA ELÁSTICA, INSTALADO EM LOCAL COM NÍVEL ALTO DE INTERFERÊNCIAS (NÃO INCLUI FORNECIMENTO). AF_11/2017 | C17: M | D17: 41.9
A18: 97152 | B18: ASSENTAMENTO DE TUBO DE FERRO FUNDIDO PARA REDE DE ÁGUA, DN 700 MM, JUNTA ELÁSTICA, INSTALADO EM LOCAL COM NÍVEL ALTO DE INTERFERÊNCIAS (NÃO INCLUI FORNECIMENTO). AF_11/2017 | C18: M | D18: 47.64
A19: 97153 | B19: ASSENTAMENTO DE TUBO DE FERRO FUNDIDO PARA REDE DE ÁGUA, DN 800 MM, JUNTA ELÁSTICA, INSTALADO EM LOCAL COM NÍVEL ALTO DE INTERFERÊNCIAS (NÃO INCLUI FORNECIMENTO). AF_11/2017 | C19: M | D19: 53.52
A20: 97154 | B20: ASSENTAMENTO DE TUBO DE FERRO FUNDIDO PARA REDE DE ÁGUA, DN 900 MM, JUNTA ELÁSTICA, INSTALADO EM LOCAL COM NÍVEL ALTO DE INTERFERÊNCIAS (NÃO INCLUI FORNECIMENTO). AF_11/2017 | C20: M | D20: 59.44
A21: 97155 | B21: ASSENTAMENTO DE TUBO DE FERRO FUNDIDO PARA REDE DE ÁGUA, DN 1000 MM, JUNTA ELÁSTICA, INSTALADO EM LOCAL COM NÍVEL ALTO DE INTERFERÊNCIAS (NÃO INCLUI FORNECIMENTO). AF_11/2017 | C21: M | D21: 65.35
A22: 97156 | B22: ASSENTAMENTO DE TUBO DE FERRO FUNDIDO PARA REDE DE ÁGUA, DN 1200 MM, JUNTA ELÁSTICA, INSTALADO EM LOCAL COM NÍVEL ALTO DE INTERFERÊNCIAS (NÃO INCLUI FORNECIMENTO). AF_11/2017 | C22: M | D22: 77.55
A23: 97157 | B23: ASSENTAMENTO DE TUBO DE FERRO FUNDIDO PARA REDE DE ÁGUA, DN 80 MM, JUNTA ELÁSTICA, INSTALADO EM LOCAL COM NÍVEL BAIXO DE INTERFERÊNCIAS (NÃO INCLUI FORNECIMENTO). AF_11/2017 | C23: M | D23: 5.65
A24: 97158 | B24: ASSENTAMENTO DE TUBO DE FERRO FUNDIDO PARA REDE DE ÁGUA, DN 100 MM, JUNTA ELÁSTICA, INSTALADO EM LOCAL COM NÍVEL BAIXO DE INTERFERÊNCIAS (NÃO INCLUI FORNECIMENTO). AF_11/2017 | C24: M | D24: 6.3
A25: 97159 | B25: ASSENTAMENTO DE TUBO DE FERRO FUNDIDO PARA REDE DE ÁGUA, DN 150 MM, JUNTA ELÁSTICA, INSTALADO EM LOCAL COM NÍVEL BAIXO DE INTERFERÊNCIAS (NÃO INCLUI FORNECIMENTO). AF_11/2017 | C25: M | D25: 7.91
A26: 97160 | B26: ASSENTAMENTO DE TUBO DE FERRO FUNDIDO PARA REDE DE ÁGUA, DN 200 MM, JUNTA ELÁSTICA, INSTALADO EM LOCAL COM NÍVEL BAIXO DE INTERFERÊNCIAS (NÃO INCLUI FORNECIMENTO). AF_11/2017 | C26: M | D26: 9.51
A27: 97161 | B27: ASSENTAMENTO DE TUBO DE FERRO FUNDIDO PARA REDE DE ÁGUA, DN 250 MM, JUNTA ELÁSTICA, INSTALADO EM LOCAL COM NÍVEL BAIXO DE INTERFERÊNCIAS (NÃO INCLUI FORNECIMENTO). AF_11/2017 | C27: M | D27: 11.17
A28: 97162 | B28: ASSENTAMENTO DE TUBO DE FERRO FUNDIDO PARA REDE DE ÁGUA, DN 300 MM, JUNTA ELÁSTICA, INSTALADO EM LOCAL COM NÍVEL BAIXO DE INTERFERÊNCIAS (NÃO INCLUI FORNECIMENTO). AF_11/2017 | C28: M | D28: 12.79
A29: 97163 | B29: ASSENTAMENTO DE TUBO DE FERRO FUNDIDO PARA REDE DE ÁGUA, DN 350 MM, JUNTA ELÁSTICA, INSTALADO EM LOCAL COM NÍVEL BAIXO DE INTERFERÊNCIAS (NÃO INCLUI FORNECIMENTO). AF_11/2017 | C29: M | D29: 14.42
A30: 97164 | B30: ASSENTAMENTO DE TUBO DE FERRO FUNDIDO PARA REDE DE ÁGUA, DN 400 MM, JUNTA ELÁSTICA, INSTALADO EM LOCAL COM NÍVEL BAIXO DE INTERFERÊNCIAS (NÃO INCLUI FORNECIMENTO). AF_11/2017 | C30: M | D30: 16.05
A31: 97165 | B31: ASSENTAMENTO DE TUBO DE FERRO FUNDIDO PARA REDE DE ÁGUA, DN 450 MM, JUNTA ELÁSTICA, INSTALADO EM LOCAL COM NÍVEL BAIXO DE INTERFERÊNCIAS (NÃO INCLUI FORNECIMENTO). AF_11/2017 | C31: M | D31: 17.7
A32: 97166 | B32: ASSENTAMENTO DE TUBO DE FERRO FUNDIDO PARA REDE DE ÁGUA, DN 500 MM, JUNTA ELÁSTICA, INSTALADO EM LOCAL COM NÍVEL BAIXO DE INTERFERÊNCIAS (NÃO INCLUI FORNECIMENTO). AF_11/2017 | C32: M | D32: 21.72
A33: 97167 | B33: ASSENTAMENTO DE TUBO DE FERRO FUNDIDO PARA REDE DE ÁGUA, DN 600 MM, JUNTA ELÁSTICA, INSTALADO EM LOCAL COM NÍVEL BAIXO DE INTERFERÊNCIAS (NÃO INCLUI FORNECIMENTO). AF_11/2017 | C33: M | D33: 25.35
A34: 97168 | B34: ASSENTAMENTO DE TUBO DE FERRO FUNDIDO PARA REDE DE ÁGUA, DN 700 MM, JUNTA ELÁSTICA, INSTALADO EM LOCAL COM NÍVEL BAIXO DE INTERFERÊNCIAS (NÃO INCLUI FORNECIMENTO). AF_11/2017 | C34: M | D34: 28.76
A35: 97169 | B35: ASSENTAMENTO DE TUBO DE FERRO FUNDIDO PARA REDE DE ÁGUA, DN 800 MM, JUNTA ELÁSTICA, INSTALADO EM LOCAL COM NÍVEL BAIXO DE INTERFERÊNCIAS (NÃO INCLUI FORNECIMENTO). AF_11/2017 | C35: M | D35: 32.31
A36: 97170 | B36: ASSENTAMENTO DE TUBO DE FERRO FUNDIDO PARA REDE DE ÁGUA, DN 900 MM, JUNTA ELÁSTICA, INSTALADO EM LOCAL COM NÍVEL BAIXO DE INTERFERÊNCIAS (NÃO INCLUI FORNECIMENTO). AF_11/2017 | C36: M | D36: 35.9
A37: 97171 | B37: ASSENTAMENTO DE TUBO DE FERRO FUNDIDO PARA REDE DE ÁGUA, DN 1000 MM, JUNTA ELÁSTICA, INSTALADO EM LOCAL COM NÍVEL BAIXO DE INTERFERÊNCIAS (NÃO INCLUI FORNECIMENTO). AF_11/2017 | C37: M | D37: 39.5
A38: 97172 | B38: ASSENTAMENTO DE TUBO DE FERRO FUNDIDO PARA REDE DE ÁGUA, DN 1200 MM, JUNTA ELÁSTICA, INSTALADO EM LOCAL COM NÍVEL BAIXO DE INTERFERÊNCIAS (NÃO INCLUI FORNECIMENTO). AF_11/2017 | C38: M | D38: 47.03
A39: 97173 | B39: ASSENTAMENTO DE TUBO DE AÇO CARBONO PARA REDE DE ÁGUA, DN 600 MM (24), JUNTA SOLDADA, INSTALADO EM LOCAL COM NÍVEL ALTO DE INTERFERÊNCIAS (NÃO INCLUI FORNECIMENTO). AF_11/2017 | C39: M | D39: 37.04
A40: 97174 | B40: ASSENTAMENTO DE TUBO DE AÇO CARBONO PARA REDE DE ÁGUA, DN 700 MM (28), JUNTA SOLDADA, INSTALADO EM LOCAL COM NÍVEL ALTO DE INTERFERÊNCIAS (NÃO INCLUI FORNECIMENTO). AF_11/2017 | C40: M | D40: 42.82
A41: 97175 | B41: ASSENTAMENTO DE TUBO DE AÇO CARBONO PARA REDE DE ÁGUA, DN 800 MM (32), JUNTA SOLDADA, INSTALADO EM LOCAL COM NÍVEL ALTO DE INTERFERÊNCIAS (NÃO INCLUI FORNECIMENTO). AF_11/2017 | C41: M | D41: 48.61
A42: 97176 | B42: ASSENTAMENTO DE TUBO DE AÇO CARBONO PARA REDE DE ÁGUA, DN 900 MM (36), JUNTA SOLDADA, INSTALADO EM LOCAL COM NÍVEL ALTO DE INTERFERÊNCIAS (NÃO INCLUI FORNECIMENTO). AF_11/2017 | C42: M | D42: 54.4
A43: 97177 | B43: ASSENTAMENTO DE TUBO DE AÇO CARBONO PARA REDE DE ÁGUA, DN 1000 MM (40) OU DN 1100 MM (44), JUNTA SOLDADA, INSTALADO EM LOCAL COM NÍVEL ALTO DE INTERFERÊNCIAS (NÃO INCLUI FORNECIMENTO). AF_11/2017 | C43: M | D43: 65.98
A44: 97178 | B44: ASSENTAMENTO DE TUBO DE AÇO CARBONO PARA REDE DE ÁGUA, DN 1200 MM (48) OU DN 1300 MM (52), JUNTA SOLDADA, INSTALADO EM LOCAL COM NÍVEL ALTO DE INTERFERÊNCIAS (NÃO INCLUI FORNECIMENTO). AF_11/2017 | C44: M | D44: 77.55
A45: 97179 | B45: ASSENTAMENTO DE TUBO DE AÇO CARBONO PARA REDE DE ÁGUA, DN 1400 MM (56'') OU DN 1500 MM (60), JUNTA SOLDADA, INSTALADO EM LOCAL COM NÍVEL ALTO DE INTERFERÊNCIAS (NÃO INCLUI FORNECIMENTO). AF_11/2017 | C45: M | D45: 89.14
A46: 97180 | B46: ASSENTAMENTO DE TUBO DE AÇO CARBONO PARA REDE DE ÁGUA, DN 1600 MM (64) OU DN 1700 MM (68), JUNTA SOLDADA, INSTALADO EM LOCAL COM NÍVEL ALTO DE INTERFERÊNCIAS (NÃO INCLUI FORNECIMENTO). AF_11/2017 | C46: M | D46: 100.71
A47: 97181 | B47: ASSENTAMENTO DE TUBO DE AÇO CARBONO PARA REDE DE ÁGUA, DN 1800 MM (72) OU DN 1900 MM (76), JUNTA SOLDADA, INSTALADO EM LOCAL COM NÍVEL ALTO DE INTERFERÊNCIAS (NÃO INCLUI FORNECIMENTO). AF_11/2017 | C47: M | D47: 116.42
A48: 97182 | B48: ASSENTAMENTO DE TUBO DE AÇO CARBONO PARA REDE DE ÁGUA, DN 2000 MM (80) OU DN 2100 MM (84), JUNTA SOLDADA, INSTALADO EM LOCAL COM NÍVEL ALTO DE INTERFERÊNCIAS (NÃO INCLUI FORNECIMENTO). AF_11/2017 | C48: M | D48: 128.44
A49: 97183 | B49: ASSENTAMENTO DE TUBO DE AÇO CARBONO PARA REDE DE ÁGUA, DN 600 MM (24), JUNTA SOLDADA, INSTALADO EM LOCAL COM NÍVEL BAIXO DE INTERFERÊNCIAS (NÃO INCLUI FORNECIMENTO). AF_11/2017 | C49: M | D49: 29.33
A50: 97184 | B50: ASSENTAMENTO DE TUBO DE AÇO CARBONO PARA REDE DE ÁGUA, DN 700 MM (28), JUNTA SOLDADA, INSTALADO EM LOCAL COM NÍVEL BAIXO DE INTERFERÊNCIAS (NÃO INCLUI FORNECIMENTO). AF_11/2017 | C50: M | D50: 33.98
A51: 97185 | B51: ASSENTAMENTO DE TUBO DE AÇO CARBONO PARA REDE DE ÁGUA, DN 800 MM (32), JUNTA SOLDADA, INSTALADO EM LOCAL COM NÍVEL BAIXO DE INTERFERÊNCIAS (NÃO INCLUI FORNECIMENTO). AF_11/2017 | C51: M | D51: 38.63
A52: 97186 | B52: ASSENTAMENTO DE TUBO DE AÇO CARBONO PARA REDE DE ÁGUA, DN 900 MM (36), JUNTA SOLDADA, INSTALADO EM LOCAL COM NÍVEL BAIXO DE INTERFERÊNCIAS (NÃO INCLUI FORNECIMENTO). AF_11/2017 | C52: M | D52: 43.29
A53: 97187 | B53: ASSENTAMENTO DE TUBO DE AÇO CARBONO PARA REDE DE ÁGUA, DN 1000 MM (40 ) OU DN 1100 MM (44 ), JUNTA SOLDADA, INSTALADO EM LOCAL COM NÍVEL BAIXO DE INTERFERÊNCIAS (NÃO INCLUI FORNECIMENTO). AF_11/2017 | C53: M | D53: 52.6
A54: 97188 | B54: ASSENTAMENTO DE TUBO DE AÇO CARBONO PARA REDE DE ÁGUA, DN 1200 MM (48) OU DN 1300 MM (52), JUNTA SOLDADA, INSTALADO EM LOCAL COM NÍVEL BAIXO DE INTERFERÊNCIAS (NÃO INCLUI FORNECIMENTO). AF_11/2017 | C54: M | D54: 61.9
A55: 97189 | B55: ASSENTAMENTO DE TUBO DE AÇO CARBONO PARA REDE DE ÁGUA, DN 1400 MM (56'') OU DN 1500 MM (60), JUNTA SOLDADA, INSTALADO EM LOCAL COM NÍVEL BAIXO DE INTERFERÊNCIAS (NÃO INCLUI FORNECIMENTO). AF_11/2017 | C55: M | D55: 71.22
A56: 97190 | B56: ASSENTAMENTO DE TUBO DE AÇO CARBONO PARA REDE DE ÁGUA, DN 1600 MM (64) OU DN 1700 MM (68), JUNTA SOLDADA, INSTALADO EM LOCAL COM NÍVEL BAIXO DE INTERFERÊNCIAS (NÃO INCLUI FORNECIMENTO). AF_11/2017 | C56: M | D56: 80.52
A57: 97191 | B57: ASSENTAMENTO DE TUBO DE AÇO CARBONO PARA REDE DE ÁGUA, DN 1800 MM (72) OU DN 1900 MM (76), JUNTA SOLDADA, INSTALADO EM LOCAL COM NÍVEL BAIXO DE INTERFERÊNCIAS (NÃO INCLUI FORNECIMENTO). AF_11/2017 | C57: M | D57: 92.82
A58: 97192 | B58: ASSENTAMENTO DE TUBO DE AÇO CARBONO PARA REDE DE ÁGUA, DN 2000 MM (80) OU DN 2100 MM (84), JUNTA SOLDADA, INSTALADO EM LOCAL COM NÍVEL BAIXO DE INTERFERÊNCIAS (NÃO INCLUI FORNECIMENTO). AF_11/2017 | C58: M | D58: 102.45
A59: 90694 | B59: TUBO DE PVC PARA REDE COLETORA DE ESGOTO DE PAREDE MACIÇA, DN 100 MM, JUNTA ELÁSTICA - FORNECIMENTO E ASSENTAMENTO. AF_01/2021 | C59: M | D59: 50.73
A60: 90695 | B60: TUBO DE PVC PARA REDE COLETORA DE ESGOTO DE PAREDE MACIÇA, DN 150 MM, JUNTA ELÁSTICA - FORNECIMENTO E ASSENTAMENTO. AF_01/2021 | C60: M | D60: 96.37
A61: 90696 | B61: TUBO DE PVC PARA REDE COLETORA DE ESGOTO DE PAREDE MACIÇA, DN 200 MM, JUNTA ELÁSTICA - FORNECIMENTO E ASSENTAMENTO. AF_01/2021 | C61: M | D61: 161.04
A62: 90697 | B62: TUBO DE PVC PARA REDE COLETORA DE ESGOTO DE PAREDE MACIÇA, DN 250 MM, JUNTA ELÁSTICA - FORNECIMENTO E ASSENTAMENTO. AF_01/2021 | C62: M | D62: 249.83
A63: 90698 | B63: TUBO DE PVC PARA REDE COLETORA DE ESGOTO DE PAREDE MACIÇA, DN 300 MM, JUNTA ELÁSTICA, FORNECIMENTO E ASSENTAMENTO. AF_01/2021 | C63: M | D63: 381.89
A64: 90699 | B64: TUBO DE PVC PARA REDE COLETORA DE ESGOTO DE PAREDE MACIÇA, DN 350 MM, JUNTA ELÁSTICA - FORNECIMENTO E ASSENTAMENTO. AF_01/2021 | C64: M | D64: 537.51
A65: 90700 | B65: TUBO DE PVC PARA REDE COLETORA DE ESGOTO DE PAREDE MACIÇA, DN 400 MM, JUNTA ELÁSTICA FORNECIMENTO E ASSENTAMENTO. AF_01/2021 | C65: M | D65: 627.21
A66: 90701 | B66: TUBO DE PVC CORRUGADO DE DUPLA PAREDE PARA REDE COLETORA DE ESGOTO, DN 150 MM, JUNTA ELÁSTICA - FORNECIMENTO E ASSENTAMENTO. AF_01/2021 | C66: M | D66: 76.17
A67: 90702 | B67: TUBO DE PVC CORRUGADO DE DUPLA PAREDE PARA REDE COLETORA DE ESGOTO, DN 200 MM, JUNTA ELÁSTICA - FORNECIMENTO E ASSENTAMENTO. AF_01/2021 | C67: M | D67: 126.03
A68: 90703 | B68: TUBO DE PVC CORRUGADO DE DUPLA PAREDE PARA REDE COLETORA DE ESGOTO, DN 250 MM, JUNTA ELÁSTICA - FORNECIMENTO E ASSENTAMENTO. AF_01/2021 | C68: M | D68: 198.1
A69: 90704 | B69: TUBO DE PVC CORRUGADO DE DUPLA PAREDE PARA REDE COLETORA DE ESGOTO, DN 300 MM, JUNTA ELÁSTICA - FORNECIMENTO E ASSENTAMENTO. AF_01/2021 | C69: M | D69: 295.72
A70: 90705 | B70: TUBO DE PVC CORRUGADO DE DUPLA PAREDE PARA REDE COLETORA DE ESGOTO, DN 350 MM, JUNTA ELÁSTICA - FORNECIMENTO E ASSENTAMENTO. AF_01/2021 | C70: M | D70: 384.27
A71: 90706 | B71: TUBO DE PVC CORRUGADO DE DUPLA PAREDE PARA REDE COLETORA DE ESGOTO, DN 400 MM, JUNTA ELÁSTICA - FORNECIMENTO E ASSENTAMENTO. AF_01/2021 | C71: M | D71: 508.94
A72: 90708 | B72: TUBO DE PEAD CORRUGADO DE DUPLA PAREDE PARA REDE COLETORA DE ESGOTO, DN 600 MM, JUNTA ELÁSTICA INTEGRADA - FORNECIMENTO E ASSENTAMENTO. AF_01/2021 | C72: M | D72: 1426.81
A73: 90724 | B73: JUNTA ARGAMASSADA ENTRE TUBO DN 100 MM E O POÇO DE VISITA/ CAIXA DE CONCRETO OU ALVENARIA EM REDES DE ESGOTO. AF_01/2021 | C73: UN | D73: 27.11
A74: 90725 | B74: JUNTA ARGAMASSADA ENTRE TUBO DN 150 MM E O POÇO DE VISITA/ CAIXA DE CONCRETO OU ALVENARIA EM REDES DE ESGOTO. AF_01/2021 | C74: UN | D74: 33.34
A75: 90726 | B75: JUNTA ARGAMASSADA ENTRE TUBO DN 200 MM E O POÇO/ CAIXA DE CONCRETO OU ALVENARIA EM REDES DE ESGOTO. AF_01/2021 | C75: UN | D75: 39.63
A76: 90727 | B76: JUNTA ARGAMASSADA ENTRE TUBO DN 250 MM E O POÇO DE VISITA/ CAIXA DE CONCRETO OU ALVENARIA EM REDES DE ESGOTO. AF_01/2021 | C76: UN | D76: 45.87
A77: 90728 | B77: JUNTA ARGAMASSADA ENTRE TUBO DN 300 MM E O POÇO DE VISITA/ CAIXA DE CONCRETO OU ALVENARIA EM REDES DE ESGOTO. AF_01/2021 | C77: UN | D77: 52.11
A78: 90729 | B78: JUNTA ARGAMASSADA ENTRE TUBO DN 350 MM E O POÇO DE VISITA/ CAIXA DE CONCRETO OU ALVENARIA EM REDES DE ESGOTO. AF_01/2021 | C78: UN | D78: 58.33
A79: 90730 | B79: JUNTA ARGAMASSADA ENTRE TUBO DN 400 MM E O POÇO DE VISITA/ CAIXA DE CONCRETO OU ALVENARIA EM REDES DE ESGOTO. AF_01/2021 | C79: UN | D79: 64.57
A80: 90731 | B80: JUNTA ARGAMASSADA ENTRE TUBO DN 450 MM E O POÇO DE VISITA/ CAIXA DE CONCRETO OU ALVENARIA EM REDES DE ESGOTO. AF_01/2021 | C80: UN | D80: 70.81
A81: 90732 | B81: JUNTA ARGAMASSADA ENTRE TUBO DN 600 MM E O POÇO DE VISITA/ CAIXA DE CONCRETO OU ALVENARIA EM REDES DE ESGOTO. AF_01/2021 | C81: UN | D81: 89.5
A82: 90733 | B82: ASSENTAMENTO DE TUBO DE PVC PARA REDE COLETORA DE ESGOTO DE PAREDE MACIÇA, DN 100 MM, JUNTA ELÁSTICA (NÃO INCLUI FORNECIMENTO). AF_01/2021 | C82: M | D82: 3.83
A83: 90734 | B83: ASSENTAMENTO DE TUBO DE PVC PARA REDE COLETORA DE ESGOTO DE PAREDE MACIÇA, DN 150 MM, JUNTA ELÁSTICA, (NÃO INCLUI FORNECIMENTO). AF_01/2021 | C83: M | D83: 4.53
A84: 90735 | B84: ASSENTAMENTO DE TUBO DE PVC PARA REDE COLETORA DE ESGOTO DE PAREDE MACIÇA, DN 200 MM, JUNTA ELÁSTICA (NÃO INCLUI FORNECIMENTO). AF_01/2021 | C84: M | D84: 5.24
A85: 90736 | B85: ASSENTAMENTO DE TUBO DE PVC PARA REDE COLETORA DE ESGOTO DE PAREDE MACIÇA, DN 250 MM, JUNTA ELÁSTICA (NÃO INCLUI FORNECIMENTO). AF_01/2021 | C85: M | D85: 5.94
A86: 90737 | B86: ASSENTAMENTO DE TUBO DE PVC PARA REDE COLETORA DE ESGOTO DE PAREDE MACIÇA, DN 300 MM, JUNTA ELÁSTICA (NÃO INCLUI FORNECIMENTO). AF_01/2021 | C86: M | D86: 6.66
A87: 90738 | B87: ASSENTAMENTO DE TUBO DE PVC PARA REDE COLETORA DE ESGOTO DE PAREDE MACIÇA, DN 350 MM, JUNTA ELÁSTICA (NÃO INCLUI FORNECIMENTO). AF_01/2021 | C87: M | D87: 7.36
A88: 90739 | B88: ASSENTAMENTO DE TUBO DE PVC PARA REDE COLETORA DE ESGOTO DE PAREDE MACIÇA, DN 400 MM, JUNTA ELÁSTICA (NÃO INCLUI FORNECIMENTO). AF_01/2021 | C88: M | D88: 9.8
A89: 90740 | B89: ASSENTAMENTO DE TUBO DE PVC CORRUGADO DE DUPLA PAREDE PARA REDE COLETORA DE ESGOTO, DN 150 MM, JUNTA ELÁSTICA (NÃO INCLUI FORNECIMENTO). AF_01/2021 | C89: M | D89: 5.05
A90: 90741 | B90: ASSENTAMENTO DE TUBO DE PVC CORRUGADO DE DUPLA PAREDE PARA REDE COLETORA DE ESGOTO, DN 200 MM, JUNTA ELÁSTICA (NÃO INCLUI FORNECIMENTO). AF_01/2021 | C90: M | D90: 5.75
A91: 90742 | B91: ASSENTAMENTO DE TUBO DE PVC CORRUGADO DE DUPLA PAREDE PARA REDE COLETORA DE ESGOTO, DN 250 MM, JUNTA ELÁSTICA (NÃO INCLUI FORNECIMENTO). AF_01/2021 | C91: M | D91: 6.47
A92: 90743 | B92: ASSENTAMENTO DE TUBO DE PVC CORRUGADO DE DUPLA PAREDE PARA REDE COLETORA DE ESGOTO, DN 300 MM, JUNTA ELÁSTICA (NÃO INCLUI FORNECIMENTO). AF_01/2021 | C92: M | D92: 7.18
A93: 90744 | B93: ASSENTAMENTO DE TUBO DE PVC CORRUGADO DE DUPLA PAREDE PARA REDE COLETORA DE ESGOTO, DN 350 MM, JUNTA ELÁSTICA (NÃO INCLUI FORNECIMENTO). AF_01/2021 | C93: M | D93: 7.88
A94: 90745 | B94: ASSENTAMENTO DE TUBO DE PVC CORRUGADO DE DUPLA PAREDE PARA REDE COLETORA DE ESGOTO, DN 400 MM, JUNTA ELÁSTICA (NÃO INCLUI FORNECIMENTO). AF_01/2021 | C94: M | D94: 10.95
A95: 90746 | B95: ASSENTAMENTO DE TUBO DE PEAD CORRUGADO DE DUPLA PAREDE PARA REDE COLETORA DE ESGOTO, DN 450 MM, JUNTA ELÁSTICA INTEGRADA (NÃO INCLUI FORNECIMENTO). AF_01/2021 | C95: M | D95: 4.14
A96: 90747 | B96: ASSENTAMENTO DE TUBO DE PEAD CORRUGADO DE DUPLA PAREDE PARA REDE COLETORA DE ESGOTO, DN 600 MM, JUNTA ELÁSTICA INTEGRADA (NÃO INCLUI FORNECIMENTO). AF_01/2021 | C96: M | D96: 17.53
A97: 94869 | B97: TUBO DE PEAD CORRUGADO DE DUPLA PAREDE PARA REDE COLETORA DE ESGOTO, DN 250 MM, JUNTA ELÁSTICA INTEGRADA - FORNECIMENTO E ASSENTAMENTO. AF_01/2021 | C97: M | D97: 252.72
A98: 94870 | B98: ASSENTAMENTO DE TUBO DE PEAD CORRUGADO DE DUPLA PAREDE PARA REDE COLETORA DE ESGOTO, DN 250 MM, JUNTA ELÁSTICA INTEGRADA (NÃO INCLUI FORNECIMENTO). AF_01/2021 | C98: M | D98: 1.91
A99: 94871 | B99: TUBO DE PEAD CORRUGADO DE DUPLA PAREDE PARA REDE COLETORA DE ESGOTO, DN 300 MM, JUNTA ELÁSTICA INTEGRADA - FORNECIMENTO E ASSENTAMENTO. AF_01/2021 | C99: M | D99: 395.71
A100: 94872 | B100: ASSENTAMENTO DE TUBO DE PEAD CORRUGADO DE DUPLA PAREDE PARA REDE COLETORA DE ESGOTO, DN 300 MM, JUNTA ELÁSTICA INTEGRADA (NÃO INCLUI FORNECIMENTO). AF_01/2021 | C100: M | D100: 2.76
A101: 94875 | B101: TUBO DE PEAD CORRUGADO DE DUPLA PAREDE PARA REDE COLETORA DE ESGOTO, DN 800 MM, JUNTA ELÁSTICA INTEGRADA - FORNECIMENTO E ASSENTAMENTO. AF_01/2021 | C101: M | D101: 2318.55
A102: 94876 | B102: ASSENTAMENTO DE TUBO DE PEAD CORRUGADO DE DUPLA PAREDE PARA REDE COLETORA DE ESGOTO, DN 800 MM, JUNTA ELÁSTICA INTEGRADA (NÃO INCLUI FORNECIMENTO). AF_01/2021 | C102: M | D102: 29.01
A103: 94878 | B103: ASSENTAMENTO DE TUBO DE PEAD CORRUGADO DE DUPLA PAREDE PARA REDE COLETORA DE ESGOTO, DN 900 MM, JUNTA ELÁSTICA INTEGRADA (NÃO INCLUI FORNECIMENTO). AF_01/2021 | C103: M | D103: 33.62
A104: 94879 | B104: TUBO DE PEAD CORRUGADO DE DUPLA PAREDE PARA REDE COLETORA DE ESGOTO, DN 1000 MM, JUNTA ELÁSTICA INTEGRADA - FORNECIMENTO E ASSENTAMENTO. AF_01/2021 | C104: M | D104: 3570.08
A105: 94880 | B105: ASSENTAMENTO DE TUBO DE PEAD CORRUGADO DE DUPLA PAREDE PARA REDE COLETORA DE ESGOTO, DN 1000 MM, JUNTA ELÁSTICA INTEGRADA (NÃO INCLUI FORNECIMENTO). AF_01/2021 | C105: M | D105: 43.08
A106: 94881 | B106: TUBO DE PEAD CORRUGADO DE DUPLA PAREDE PARA REDE COLETORA DE ESGOTO, DN 1200 MM, JUNTA ELÁSTICA INTEGRADA - FORNECIMENTO E ASSENTAMENTO. AF_01/2021 | C106: M | D106: 4924.7
A107: 94882 | B107: ASSENTAMENTO DE TUBO DE PEAD CORRUGADO DE DUPLA PAREDE PARA REDE COLETORA DE ESGOTO, DN 1200 MM, JUNTA ELÁSTICA INTEGRADA (NÃO INCLUI FORNECIMENTO). AF_01/2021 | C107: M | D107: 50.17
A108: 94884 | B108: ASSENTAMENTO DE TUBO DE PEAD CORRUGADO DE DUPLA PAREDE PARA REDE COLETORA DE ESGOTO, DN 1500 MM, JUNTA ELÁSTICA INTEGRADA (NÃO INCLUI FORNECIMENTO). AF_01/2021 | C108: M | D108: 64.59
A109: 97121 | B109: ASSENTAMENTO DE TUBO DE PVC PBA PARA REDE DE ÁGUA, DN 50 MM, JUNTA ELÁSTICA INTEGRADA, INSTALADO EM LOCAL COM NÍVEL ALTO DE INTERFERÊNCIAS (NÃO INCLUI FORNECIMENTO). AF_11/2017 | C109: M | D109: 2.26
A110: 97122 | B110: ASSENTAMENTO DE TUBO DE PVC PBA PARA REDE DE ÁGUA, DN 75 MM, JUNTA ELÁSTICA INTEGRADA, INSTALADO EM LOCAL COM NÍVEL ALTO DE INTERFERÊNCIAS (NÃO INCLUI FORNECIMENTO). AF_11/2017 | C110: M | D110: 3.12
A111: 97123 | B111: ASSENTAMENTO DE TUBO DE PVC PBA PARA REDE DE ÁGUA, DN 100 MM, JUNTA ELÁSTICA INTEGRADA, INSTALADO EM LOCAL COM NÍVEL ALTO DE INTERFERÊNCIAS (NÃO INCLUI FORNECIMENTO). AF_11/2017 | C111: M | D111: 3.96
A112: 97124 | B112: ASSENTAMENTO DE TUBO DE PVC PBA PARA REDE DE ÁGUA, DN 50 MM, JUNTA ELÁSTICA INTEGRADA, INSTALADO EM LOCAL COM NÍVEL BAIXO DE INTERFERÊNCIAS (NÃO INCLUI FORNECIMENTO). AF_11/2017 | C112: M | D112: 0.99
A113: 97125 | B113: ASSENTAMENTO DE TUBO DE PVC PBA PARA REDE DE ÁGUA, DN 75 MM, JUNTA ELÁSTICA INTEGRADA, INSTALADO EM LOCAL COM NÍVEL BAIXO DE INTERFERÊNCIAS (NÃO INCLUI FORNECIMENTO). AF_11/2017 | C113: M | D113: 1.39
A114: 97126 | B114: ASSENTAMENTO DE TUBO DE PVC PBA PARA REDE DE ÁGUA, DN 100 MM, JUNTA ELÁSTICA INTEGRADA, INSTALADO EM LOCAL COM NÍVEL BAIXO DE INTERFERÊNCIAS (NÃO INCLUI FORNECIMENTO). AF_11/2017 | C114: M | D114: 1.76
A115: 102264 | B115: TUBO DE PVC BRANCO PARA REDE COLETORA DE ESGOTO CONDOMINIAL DE PAREDE MACIÇA, DN 100 MM, JUNTA ELÁSTICA - FORNECIMENTO E ASSENTAMENTO. AF_01/2021 | C115: M | D115: 22.12
A116: 102265 | B116: JUNTA ARGAMASSADA ENTRE TUBO DN 800 MM E O POÇO DE VISITA/ CAIXA DE CONCRETO OU ALVENARIA EM REDES DE ESGOTO. AF_01/2021 | C116: UN | D116: 114.42
A117: 102266 | B117: JUNTA ARGAMASSADA ENTRE TUBO DN 900 MM E O POÇO DE VISITA/ CAIXA DE CONCRETO OU ALVENARIA EM REDES DE ESGOTO. AF_01/2021 | C117: UN | D117: 126.89
A118: 102267 | B118: JUNTA ARGAMASSADA ENTRE TUBO DN 1000 MM E O POÇO DE VISITA/ CAIXA DE CONCRETO OU ALVENARIA EM REDES DE ESGOTO. AF_01/2021 | C118: UN | D118: 145.65
A119: 102268 | B119: JUNTA ARGAMASSADA ENTRE TUBO DN 1200 MM E O POÇO DE VISITA/ CAIXA DE CONCRETO OU ALVENARIA EM REDES DE ESGOTO. AF_01/2021 | C119: UN | D119: 164.35
A120: 102269 | B120: JUNTA ARGAMASSADA ENTRE TUBO DN 1500 MM E O POÇO DE VISITA/ CAIXA DE CONCRETO OU ALVENARIA EM REDES DE ESGOTO. AF_01/2021 | C120: UN | D120: 201.74
A121: 92833 | B121: TUBO DE CONCRETO PARA REDES COLETORAS DE ESGOTO SANITÁRIO, DIÂMETRO DE 300 MM, JUNTA ELÁSTICA, INSTALADO EM LOCAL COM BAIXO NÍVEL DE INTERFERÊNCIAS - FORNECIMENTO E ASSENTAMENTO. AF_12/2015 | C121: M | D121: 171.98
A122: 92834 | B122: ASSENTAMENTO DE TUBO DE CONCRETO PARA REDES COLETORAS DE ESGOTO SANITÁRIO, DIÂMETRO DE 300 MM, JUNTA ELÁSTICA, INSTALADO EM LOCAL COM BAIXO NÍVEL DE INTERFERÊNCIAS (NÃO INCLUI FORNECIMENTO). AF_12/2015 | C122: M | D122: 9.59
A123: 92835 | B123: TUBO DE CONCRETO PARA REDES COLETORAS DE ESGOTO SANITÁRIO, DIÂMETRO DE 400 MM, JUNTA ELÁSTICA, INSTALADO EM LOCAL COM BAIXO NÍVEL DE INTERFERÊNCIAS - FORNECIMENTO E ASSENTAMENTO. AF_12/2015 | C123: M | D123: 181.25
A124: 92836 | B124: ASSENTAMENTO DE TUBO DE CONCRETO PARA REDES COLETORAS DE ESGOTO SANITÁRIO, DIÂMETRO DE 400 MM, JUNTA ELÁSTICA, INSTALADO EM LOCAL COM BAIXO NÍVEL DE INTERFERÊNCIAS (NÃO INCLUI FORNECIMENTO). AF_12/2015 | C124: M | D124: 12.23
A125: 92837 | B125: TUBO DE CONCRETO PARA REDES COLETORAS DE ESGOTO SANITÁRIO, DIÂMETRO DE 500 MM, JUNTA ELÁSTICA, INSTALADO EM LOCAL COM BAIXO NÍVEL DE INTERFERÊNCIAS - FORNECIMENTO E ASSENTAMENTO. AF_12/2015 | C125: M | D125: 315.84
A126: 92838 | B126: ASSENTAMENTO DE TUBO DE CONCRETO PARA REDES COLETORAS DE ESGOTO SANITÁRIO, DIÂMETRO DE 500 MM, JUNTA ELÁSTICA, INSTALADO EM LOCAL COM BAIXO NÍVEL DE INTERFERÊNCIAS (NÃO INCLUI FORNECIMENTO). AF_12/2015 | C126: M | D126: 14.69
A127: 92839 | B127: TUBO DE CONCRETO PARA REDES COLETORAS DE ESGOTO SANITÁRIO, DIÂMETRO DE 600 MM, JUNTA ELÁSTICA, INSTALADO EM LOCAL COM BAIXO NÍVEL DE INTERFERÊNCIAS - FORNECIMENTO E ASSENTAMENTO. AF_12/2015 | C127: M | D127: 386.08
A128: 92840 | B128: ASSENTAMENTO DE TUBO DE CONCRETO PARA REDES COLETORAS DE ESGOTO SANITÁRIO, DIÂMETRO DE 600 MM, JUNTA ELÁSTICA, INSTALADO EM LOCAL COM BAIXO NÍVEL DE INTERFERÊNCIAS (NÃO INCLUI FORNECIMENTO). AF_12/2015 | C128: M | D128: 17.41
A129: 92841 | B129: TUBO DE CONCRETO PARA REDES COLETORAS DE ESGOTO SANITÁRIO, DIÂMETRO DE 700 MM, JUNTA ELÁSTICA, INSTALADO EM LOCAL COM BAIXO NÍVEL DE INTERFERÊNCIAS - FORNECIMENTO E ASSENTAMENTO. AF_12/2015 | C129: M | D129: 502.83
A130: 92842 | B130: ASSENTAMENTO DE TUBO DE CONCRETO PARA REDES COLETORAS DE ESGOTO SANITÁRIO, DIÂMETRO DE 700 MM, JUNTA ELÁSTICA, INSTALADO EM LOCAL COM BAIXO NÍVEL DE INTERFERÊNCIAS (NÃO INCLUI FORNECIMENTO). AF_12/2015 | C130: M | D130: 19.87
A131: 92843 | B131: TUBO DE CONCRETO PARA REDES COLETORAS DE ESGOTO SANITÁRIO, DIÂMETRO DE 800 MM, JUNTA ELÁSTICA, INSTALADO EM LOCAL COM BAIXO NÍVEL DE INTERFERÊNCIAS - FORNECIMENTO E ASSENTAMENTO. AF_12/2015 | C131: M | D131: 523.33
A132: 92844 | B132: ASSENTAMENTO DE TUBO DE CONCRETO PARA REDES COLETORAS DE ESGOTO SANITÁRIO, DIÂMETRO DE 800 MM, JUNTA ELÁSTICA, INSTALADO EM LOCAL COM BAIXO NÍVEL DE INTERFERÊNCIAS (NÃO INCLUI FORNECIMENTO). AF_12/2015 | C132: M | D132: 22.59
A133: 92845 | B133: TUBO DE CONCRETO PARA REDES COLETORAS DE ESGOTO SANITÁRIO, DIÂMETRO DE 900 MM, JUNTA ELÁSTICA, INSTALADO EM LOCAL COM BAIXO NÍVEL DE INTERFERÊNCIAS - FORNECIMENTO E ASSENTAMENTO. AF_12/2015 | C133: M | D133: 769.44
A134: 92846 | B134: ASSENTAMENTO DE TUBO DE CONCRETO PARA REDES COLETORAS DE ESGOTO SANITÁRIO, DIÂMETRO DE 900 MM, JUNTA ELÁSTICA, INSTALADO EM LOCAL COM BAIXO NÍVEL DE INTERFERÊNCIAS (NÃO INCLUI FORNECIMENTO). AF_12/2015 | C134: M | D134: 25.04
A135: 92847 | B135: TUBO DE CONCRETO PARA REDES COLETORAS DE ESGOTO SANITÁRIO, DIÂMETRO DE 1000 MM, JUNTA ELÁSTICA, INSTALADO EM LOCAL COM BAIXO NÍVEL DE INTERFERÊNCIAS - FORNECIMENTO E ASSENTAMENTO. AF_12/2015 | C135: M | D135: 794.44
A136: 92848 | B136: ASSENTAMENTO DE TUBO DE CONCRETO PARA REDES COLETORAS DE ESGOTO SANITÁRIO, DIÂMETRO DE 1000 MM, JUNTA ELÁSTICA, INSTALADO EM LOCAL COM BAIXO NÍVEL DE INTERFERÊNCIAS (NÃO INCLUI FORNECIMENTO). AF_12/2015 | C136: M | D136: 27.79
A137: 92849 | B137: TUBO DE CONCRETO PARA REDES COLETORAS DE ESGOTO SANITÁRIO, DIÂMETRO DE 300 MM, JUNTA ELÁSTICA, INSTALADO EM LOCAL COM ALTO NÍVEL DE INTERFERÊNCIAS - FORNECIMENTO E ASSENTAMENTO. AF_12/2015 | C137: M | D137: 180.52
A138: 92850 | B138: ASSENTAMENTO DE TUBO DE CONCRETO PARA REDES COLETORAS DE ESGOTO SANITÁRIO, DIÂMETRO DE 300 MM, JUNTA ELÁSTICA, INSTALADO EM LOCAL COM ALTO NÍVEL DE INTERFERÊNCIAS (NÃO INCLUI FORNECIMENTO). AF_12/2015 | C138: M | D138: 18.13
A139: 92851 | B139: TUBO DE CONCRETO PARA REDES COLETORAS DE ESGOTO SANITÁRIO, DIÂMETRO DE 400 MM, JUNTA ELÁSTICA, INSTALADO EM LOCAL COM ALTO NÍVEL DE INTERFERÊNCIAS - FORNECIMENTO E ASSENTAMENTO. AF_12/2015 | C139: M | D139: 191.92
A140: 92852 | B140: ASSENTAMENTO DE TUBO DE CONCRETO PARA REDES COLETORAS DE ESGOTO SANITÁRIO, DIÂMETRO DE 400 MM, JUNTA ELÁSTICA, INSTALADO EM LOCAL COM ALTO NÍVEL DE INTERFERÊNCIAS (NÃO INCLUI FORNECIMENTO). AF_12/2015 | C140: M | D140: 22.9
A141: 92853 | B141: TUBO DE CONCRETO PARA REDES COLETORAS DE ESGOTO SANITÁRIO, DIÂMETRO DE 500 MM, JUNTA ELÁSTICA, INSTALADO EM LOCAL COM ALTO NÍVEL DE INTERFERÊNCIAS - FORNECIMENTO E ASSENTAMENTO. AF_12/2015 | C141: M | D141: 329.03
A142: 92854 | B142: ASSENTAMENTO DE TUBO DE CONCRETO PARA REDES COLETORAS DE ESGOTO SANITÁRIO, DIÂMETRO DE 500 MM, JUNTA ELÁSTICA, INSTALADO EM LOCAL COM ALTO NÍVEL DE INTERFERÊNCIAS (NÃO INCLUI FORNECIMENTO). AF_12/2015 | C142: M | D142: 27.88
A143: 92855 | B143: TUBO DE CONCRETO PARA REDES COLETORAS DE ESGOTO SANITÁRIO, DIÂMETRO DE 600 MM, JUNTA ELÁSTICA, INSTALADO EM LOCAL COM ALTO NÍVEL DE INTERFERÊNCIAS - FORNECIMENTO E ASSENTAMENTO. AF_12/2015 | C143: M | D143: 401.53
A144: 92856 | B144: ASSENTAMENTO DE TUBO DE CONCRETO PARA REDES COLETORAS DE ESGOTO SANITÁRIO, DIÂMETRO DE 600 MM, JUNTA ELÁSTICA, INSTALADO EM LOCAL COM ALTO NÍVEL DE INTERFERÊNCIAS (NÃO INCLUI FORNECIMENTO). AF_12/2015 | C144: M | D144: 32.86
A145: 92857 | B145: TUBO DE CONCRETO PARA REDES COLETORAS DE ESGOTO SANITÁRIO, DIÂMETRO DE 700 MM, JUNTA ELÁSTICA, INSTALADO EM LOCAL COM ALTO NÍVEL DE INTERFERÊNCIAS - FORNECIMENTO E ASSENTAMENTO. AF_12/2015 | C145: M | D145: 520.57
A146: 92858 | B146: ASSENTAMENTO DE TUBO DE CONCRETO PARA REDES COLETORAS DE ESGOTO SANITÁRIO, DIÂMETRO DE 700 MM, JUNTA ELÁSTICA, INSTALADO EM LOCAL COM ALTO NÍVEL DE INTERFERÊNCIAS (NÃO INCLUI FORNECIMENTO). AF_12/2015 | C146: M | D146: 37.61
A147: 92859 | B147: TUBO DE CONCRETO PARA REDES COLETORAS DE ESGOTO SANITÁRIO, DIÂMETRO DE 800 MM, JUNTA ELÁSTICA, INSTALADO EM LOCAL COM ALTO NÍVEL DE INTERFERÊNCIAS - FORNECIMENTO E ASSENTAMENTO. AF_12/2015 | C147: M | D147: 543.45
A148: 92860 | B148: ASSENTAMENTO DE TUBO DE CONCRETO PARA REDES COLETORAS DE ESGOTO SANITÁRIO, DIÂMETRO DE 800 MM, JUNTA ELÁSTICA, INSTALADO EM LOCAL COM ALTO NÍVEL DE INTERFERÊNCIAS (NÃO INCLUI FORNECIMENTO). AF_12/2015 | C148: M | D148: 42.71
A149: 92861 | B149: TUBO DE CONCRETO PARA REDES COLETORAS DE ESGOTO SANITÁRIO, DIÂMETRO DE 900 MM, JUNTA ELÁSTICA, INSTALADO EM LOCAL COM ALTO NÍVEL DE INTERFERÊNCIAS - FORNECIMENTO E ASSENTAMENTO. AF_12/2015 | C149: M | D149: 792.06
A150: 92862 | B150: ASSENTAMENTO DE TUBO DE CONCRETO PARA REDES COLETORAS DE ESGOTO SANITÁRIO, DIÂMETRO DE 900 MM, JUNTA ELÁSTICA, INSTALADO EM LOCAL COM ALTO NÍVEL DE INTERFERÊNCIAS (NÃO INCLUI FORNECIMENTO). AF_12/2015 | C150: M | D150: 47.66
A151: 92863 | B151: TUBO DE CONCRETO PARA REDES COLETORAS DE ESGOTO SANITÁRIO, DIÂMETRO DE 1000 MM, JUNTA ELÁSTICA, INSTALADO EM LOCAL COM ALTO NÍVEL DE INTERFERÊNCIAS - FORNECIMENTO E ASSENTAMENTO. AF_12/2015 | C151: M | D151: 819.29
A152: 92864 | B152: ASSENTAMENTO DE TUBO DE CONCRETO PARA REDES COLETORAS DE ESGOTO SANITÁRIO, DIÂMETRO DE 1000 MM, JUNTA ELÁSTICA, INSTALADO EM LOCAL COM ALTO NÍVEL DE INTERFERÊNCIAS (NÃO INCLUI FORNECIMENTO). AF_12/2015 | C152: M | D152: 52.64
A153: 92210 | B153: TUBO DE CONCRETO PARA REDES COLETORAS DE ÁGUAS PLUVIAIS, DIÂMETRO DE 400 MM, JUNTA RÍGIDA, INSTALADO EM LOCAL COM BAIXO NÍVEL DE INTERFERÊNCIAS - FORNECIMENTO E ASSENTAMENTO. AF_12/2015 | C153: M | D153: 148.53
A154: 92211 | B154: TUBO DE CONCRETO PARA REDES COLETORAS DE ÁGUAS PLUVIAIS, DIÂMETRO DE 500 MM, JUNTA RÍGIDA, INSTALADO EM LOCAL COM BAIXO NÍVEL DE INTERFERÊNCIAS - FORNECIMENTO E ASSENTAMENTO. AF_12/2015 | C154: M | D154: 178.74
A155: 92212 | B155: TUBO DE CONCRETO PARA REDES COLETORAS DE ÁGUAS PLUVIAIS, DIÂMETRO DE 600 MM, JUNTA RÍGIDA, INSTALADO EM LOCAL COM BAIXO NÍVEL DE INTERFERÊNCIAS - FORNECIMENTO E ASSENTAMENTO. AF_12/2015 | C155: M | D155: 260.55
A156: 92213 | B156: TUBO DE CONCRETO PARA REDES COLETORAS DE ÁGUAS PLUVIAIS, DIÂMETRO DE 700 MM, JUNTA RÍGIDA, INSTALADO EM LOCAL COM BAIXO NÍVEL DE INTERFERÊNCIAS - FORNECIMENTO E ASSENTAMENTO. AF_12/2015 | C156: M | D156: 338.67
A157: 92214 | B157: TUBO DE CONCRETO PARA REDES COLETORAS DE ÁGUAS PLUVIAIS, DIÂMETRO DE 800 MM, JUNTA RÍGIDA, INSTALADO EM LOCAL COM BAIXO NÍVEL DE INTERFERÊNCIAS - FORNECIMENTO E ASSENTAMENTO. AF_12/2015 | C157: M | D157: 407.77
A158: 92215 | B158: TUBO DE CONCRETO PARA REDES COLETORAS DE ÁGUAS PLUVIAIS, DIÂMETRO DE 900 MM, JUNTA RÍGIDA, INSTALADO EM LOCAL COM BAIXO NÍVEL DE INTERFERÊNCIAS - FORNECIMENTO E ASSENTAMENTO. AF_12/2015 | C158: M | D158: 468.04
A159: 92216 | B159: TUBO DE CONCRETO PARA REDES COLETORAS DE ÁGUAS PLUVIAIS, DIÂMETRO DE 1000 MM, JUNTA RÍGIDA, INSTALADO EM LOCAL COM BAIXO NÍVEL DE INTERFERÊNCIAS - FORNECIMENTO E ASSENTAMENTO. AF_12/2015 | C159: M | D159: 492.79
A160: 92219 | B160: TUBO DE CONCRETO PARA REDES COLETORAS DE ÁGUAS PLUVIAIS, DIÂMETRO DE 400 MM, JUNTA RÍGIDA, INSTALADO EM LOCAL COM ALTO NÍVEL DE INTERFERÊNCIAS - FORNECIMENTO E ASSENTAMENTO. AF_12/2015 | C160: M | D160: 159.2
A161: 92220 | B161: TUBO DE CONCRETO PARA REDES COLETORAS DE ÁGUAS PLUVIAIS, DIÂMETRO DE 500 MM, JUNTA RÍGIDA, INSTALADO EM LOCAL COM ALTO NÍVEL DE INTERFERÊNCIAS - FORNECIMENTO E ASSENTAMENTO. AF_12/2015 | C161: M | D161: 191.93
A162: 92221 | B162: TUBO DE CONCRETO PARA REDES COLETORAS DE ÁGUAS PLUVIAIS, DIÂMETRO DE 600 MM, JUNTA RÍGIDA, INSTALADO EM LOCAL COM ALTO NÍVEL DE INTERFERÊNCIAS - FORNECIMENTO E ASSENTAMENTO. AF_12/2015 | C162: M | D162: 276
A163: 92222 | B163: TUBO DE CONCRETO PARA REDES COLETORAS DE ÁGUAS PLUVIAIS, DIÂMETRO DE 700 MM, JUNTA RÍGIDA, INSTALADO EM LOCAL COM ALTO NÍVEL DE INTERFERÊNCIAS - FORNECIMENTO E ASSENTAMENTO. AF_12/2015 | C163: M | D163: 356.63
A164: 92223 | B164: TUBO DE CONCRETO PARA REDES COLETORAS DE ÁGUAS PLUVIAIS, DIÂMETRO DE 800 MM, JUNTA RÍGIDA, INSTALADO EM LOCAL COM ALTO NÍVEL DE INTERFERÊNCIAS - FORNECIMENTO E ASSENTAMENTO. AF_12/2015 | C164: M | D164: 427.88
A165: 92224 | B165: TUBO DE CONCRETO PARA REDES COLETORAS DE ÁGUAS PLUVIAIS, DIÂMETRO DE 900 MM, JUNTA RÍGIDA, INSTALADO EM LOCAL COM ALTO NÍVEL DE INTERFERÊNCIAS - FORNECIMENTO E ASSENTAMENTO. AF_12/2015 | C165: M | D165: 490.35
A166: 92226 | B166: TUBO DE CONCRETO PARA REDES COLETORAS DE ÁGUAS PLUVIAIS, DIÂMETRO DE 1000 MM, JUNTA RÍGIDA, INSTALADO EM LOCAL COM ALTO NÍVEL DE INTERFERÊNCIAS - FORNECIMENTO E ASSENTAMENTO. AF_12/2015 | C166: M | D166: 517.76
A167: 92808 | B167: ASSENTAMENTO DE TUBO DE CONCRETO PARA REDES COLETORAS DE ÁGUAS PLUVIAIS, DIÂMETRO DE 300 MM, JUNTA RÍGIDA, INSTALADO EM LOCAL COM BAIXO NÍVEL DE INTERFERÊNCIAS (NÃO INCLUI FORNECIMENTO). AF_12/2015 | C167: M | D167: 43.18
A168: 92809 | B168: ASSENTAMENTO DE TUBO DE CONCRETO PARA REDES COLETORAS DE ÁGUAS PLUVIAIS, DIÂMETRO DE 400 MM, JUNTA RÍGIDA, INSTALADO EM LOCAL COM BAIXO NÍVEL DE INTERFERÊNCIAS (NÃO INCLUI FORNECIMENTO). AF_12/2015 | C168: M | D168: 55.38
A169: 92810 | B169: ASSENTAMENTO DE TUBO DE CONCRETO PARA REDES COLETORAS DE ÁGUAS PLUVIAIS, DIÂMETRO DE 500 MM, JUNTA RÍGIDA, INSTALADO EM LOCAL COM BAIXO NÍVEL DE INTERFERÊNCIAS (NÃO INCLUI FORNECIMENTO). AF_12/2015 | C169: M | D169: 67.42
A170: 92811 | B170: ASSENTAMENTO DE TUBO DE CONCRETO PARA REDES COLETORAS DE ÁGUAS PLUVIAIS, DIÂMETRO DE 600 MM, JUNTA RÍGIDA, INSTALADO EM LOCAL COM BAIXO NÍVEL DE INTERFERÊNCIAS (NÃO INCLUI FORNECIMENTO). AF_12/2015 | C170: M | D170: 80.3
A171: 92812 | B171: ASSENTAMENTO DE TUBO DE CONCRETO PARA REDES COLETORAS DE ÁGUAS PLUVIAIS, DIÂMETRO DE 700 MM, JUNTA RÍGIDA, INSTALADO EM LOCAL COM BAIXO NÍVEL DE INTERFERÊNCIAS (NÃO INCLUI FORNECIMENTO). AF_12/2015 | C171: M | D171: 93
A172: 92813 | B172: ASSENTAMENTO DE TUBO DE CONCRETO PARA REDES COLETORAS DE ÁGUAS PLUVIAIS, DIÂMETRO DE 800 MM, JUNTA RÍGIDA, INSTALADO EM LOCAL COM BAIXO NÍVEL DE INTERFERÊNCIAS (NÃO INCLUI FORNECIMENTO). AF_12/2015 | C172: M | D172: 107.87
A173: 92814 | B173: ASSENTAMENTO DE TUBO DE CONCRETO PARA REDES COLETORAS DE ÁGUAS PLUVIAIS, DIÂMETRO DE 900 MM, JUNTA RÍGIDA, INSTALADO EM LOCAL COM BAIXO NÍVEL DE INTERFERÊNCIAS (NÃO INCLUI FORNECIMENTO). AF_12/2015 | C173: M | D173: 123.46
A174: 92815 | B174: ASSENTAMENTO DE TUBO DE CONCRETO PARA REDES COLETORAS DE ÁGUAS PLUVIAIS, DIÂMETRO DE 1000 MM, JUNTA RÍGIDA, INSTALADO EM LOCAL COM BAIXO NÍVEL DE INTERFERÊNCIAS (NÃO INCLUI FORNECIMENTO). AF_12/2015 | C174: M | D174: 141.39
A175: 92816 | B175: TUBO DE CONCRETO PARA REDES COLETORAS DE ÁGUAS PLUVIAIS, DIÂMETRO DE 1200 MM, JUNTA RÍGIDA, INSTALADO EM LOCAL COM BAIXO NÍVEL DE INTERFERÊNCIAS - FORNECIMENTO E ASSENTAMENTO. AF_12/2015 | C175: M | D175: 701.76
A176: 92817 | B176: ASSENTAMENTO DE TUBO DE CONCRETO PARA REDES COLETORAS DE ÁGUAS PLUVIAIS, DIÂMETRO DE 1200 MM, JUNTA RÍGIDA, INSTALADO EM LOCAL COM BAIXO NÍVEL DE INTERFERÊNCIAS (NÃO INCLUI FORNECIMENTO). AF_12/2015 | C176: M | D176: 176.93
A177: 92818 | B177: TUBO DE CONCRETO PARA REDES COLETORAS DE ÁGUAS PLUVIAIS, DIÂMETRO DE 1500 MM, JUNTA RÍGIDA, INSTALADO EM LOCAL COM BAIXO NÍVEL DE INTERFERÊNCIAS - FORNECIMENTO E ASSENTAMENTO. AF_12/2015 | C177: M | D177: 998.52
A178: 92819 | B178: ASSENTAMENTO DE TUBO DE CONCRETO PARA REDES COLETORAS DE ÁGUAS PLUVIAIS, DIÂMETRO DE 1500 MM, JUNTA RÍGIDA, INSTALADO EM LOCAL COM BAIXO NÍVEL DE INTERFERÊNCIAS (NÃO INCLUI FORNECIMENTO). AF_12/2015 | C178: M | D178: 238.15
A179: 92820 | B179: ASSENTAMENTO DE TUBO DE CONCRETO PARA REDES COLETORAS DE ÁGUAS PLUVIAIS, DIÂMETRO DE 300 MM, JUNTA RÍGIDA, INSTALADO EM LOCAL COM ALTO NÍVEL DE INTERFERÊNCIAS (NÃO INCLUI FORNECIMENTO). AF_12/2015 | C179: M | D179: 51.51
A180: 92821 | B180: ASSENTAMENTO DE TUBO DE CONCRETO PARA REDES COLETORAS DE ÁGUAS PLUVIAIS, DIÂMETRO DE 400 MM, JUNTA RÍGIDA, INSTALADO EM LOCAL COM ALTO NÍVEL DE INTERFERÊNCIAS (NÃO INCLUI FORNECIMENTO). AF_12/2015 | C180: M | D180: 66.05
A181: 92822 | B181: ASSENTAMENTO DE TUBO DE CONCRETO PARA REDES COLETORAS DE ÁGUAS PLUVIAIS, DIÂMETRO DE 500 MM, JUNTA RÍGIDA, INSTALADO EM LOCAL COM ALTO NÍVEL DE INTERFERÊNCIAS (NÃO INCLUI FORNECIMENTO). AF_12/2015 | C181: M | D181: 80.61
A182: 92824 | B182: ASSENTAMENTO DE TUBO DE CONCRETO PARA REDES COLETORAS DE ÁGUAS PLUVIAIS, DIÂMETRO DE 600 MM, JUNTA RÍGIDA, INSTALADO EM LOCAL COM ALTO NÍVEL DE INTERFERÊNCIAS (NÃO INCLUI FORNECIMENTO). AF_12/2015 | C182: M | D182: 95.75
A183: 92825 | B183: ASSENTAMENTO DE TUBO DE CONCRETO PARA REDES COLETORAS DE ÁGUAS PLUVIAIS, DIÂMETRO DE 700 MM, JUNTA RÍGIDA, INSTALADO EM LOCAL COM ALTO NÍVEL DE INTERFERÊNCIAS (NÃO INCLUI FORNECIMENTO). AF_12/2015 | C183: M | D183: 110.96
A184: 92826 | B184: ASSENTAMENTO DE TUBO DE CONCRETO PARA REDES COLETORAS DE ÁGUAS PLUVIAIS, DIÂMETRO DE 800 MM, JUNTA RÍGIDA, INSTALADO EM LOCAL COM ALTO NÍVEL DE INTERFERÊNCIAS (NÃO INCLUI FORNECIMENTO). AF_12/2015 | C184: M | D184: 127.98
A185: 92827 | B185: ASSENTAMENTO DE TUBO DE CONCRETO PARA REDES COLETORAS DE ÁGUAS PLUVIAIS, DIÂMETRO DE 900 MM, JUNTA RÍGIDA, INSTALADO EM LOCAL COM ALTO NÍVEL DE INTERFERÊNCIAS (NÃO INCLUI FORNECIMENTO). AF_12/2015 | C185: M | D185: 145.77
A186: 92828 | B186: ASSENTAMENTO DE TUBO DE CONCRETO PARA REDES COLETORAS DE ÁGUAS PLUVIAIS, DIÂMETRO DE 1000 MM, JUNTA RÍGIDA, INSTALADO EM LOCAL COM ALTO NÍVEL DE INTERFERÊNCIAS (NÃO INCLUI FORNECIMENTO). AF_12/2015 | C186: M | D186: 166.36
A187: 92829 | B187: TUBO DE CONCRETO PARA REDES COLETORAS DE ÁGUAS PLUVIAIS, DIÂMETRO DE 1200 MM, JUNTA RÍGIDA, INSTALADO EM LOCAL COM ALTO NÍVEL DE INTERFERÊNCIAS - FORNECIMENTO E ASSENTAMENTO. AF_12/2015 | C187: M | D187: 731.2
A188: 92830 | B188: ASSENTAMENTO DE TUBO DE CONCRETO PARA REDES COLETORAS DE ÁGUAS PLUVIAIS, DIÂMETRO DE 1200 MM, JUNTA RÍGIDA, INSTALADO EM LOCAL COM ALTO NÍVEL DE INTERFERÊNCIAS (NÃO INCLUI FORNECIMENTO). AF_12/2015 | C188: M | D188: 206.37
A189: 92831 | B189: TUBO DE CONCRETO PARA REDES COLETORAS DE ÁGUAS PLUVIAIS, DIÂMETRO DE 1500 MM, JUNTA RÍGIDA, INSTALADO EM LOCAL COM ALTO NÍVEL DE INTERFERÊNCIAS - FORNECIMENTO E ASSENTAMENTO. AF_12/2015 | C189: M | D189: 1034.72
A190: 92832 | B190: ASSENTAMENTO DE TUBO DE CONCRETO PARA REDES COLETORAS DE ÁGUAS PLUVIAIS, DIÂMETRO DE 1500 MM, JUNTA RÍGIDA, INSTALADO EM LOCAL COM ALTO NÍVEL DE INTERFERÊNCIAS (NÃO INCLUI FORNECIMENTO). AF_12/2015 | C190: M | D190: 274.35
A191: 95565 | B191: TUBO DE CONCRETO PARA REDES COLETORAS DE ÁGUAS PLUVIAIS, DIÂMETRO DE 300MM, JUNTA RÍGIDA, INSTALADO EM LOCAL COM BAIXO NÍVEL DE INTERFERÊNCIAS - FORNECIMENTO E ASSENTAMENTO. AF_12/2015 | C191: M | D191: 125.72
A192: 95566 | B192: TUBO DE CONCRETO PARA REDES COLETORAS DE ÁGUAS PLUVIAIS, DIÂMETRO DE 300MM, JUNTA RÍGIDA, INSTALADO EM LOCAL COM ALTO NÍVEL DE INTERFERÊNCIAS - FORNECIMENTO E ASSENTAMENTO. AF_12/2015 | C192: M | D192: 134.05
A193: 95567 | B193: TUBO DE CONCRETO (SIMPLES) PARA REDES COLETORAS DE ÁGUAS PLUVIAIS, DIÂMETRO DE 300 MM, JUNTA RÍGIDA, INSTALADO EM LOCAL COM BAIXO NÍVEL DE INTERFERÊNCIAS - FORNECIMENTO E ASSENTAMENTO. AF_12/2015 | C193: M | D193: 104.98
A194: 95568 | B194: TUBO DE CONCRETO (SIMPLES) PARA REDES COLETORAS DE ÁGUAS PLUVIAIS, DIÂMETRO DE 400 MM, JUNTA RÍGIDA, INSTALADO EM LOCAL COM BAIXO NÍVEL DE INTERFERÊNCIAS - FORNECIMENTO E ASSENTAMENTO. AF_12/2015 | C194: M | D194: 128.4
A195: 95569 | B195: TUBO DE CONCRETO (SIMPLES) PARA REDES COLETORAS DE ÁGUAS PLUVIAIS, DIÂMETRO DE 500 MM, JUNTA RÍGIDA, INSTALADO EM LOCAL COM BAIXO NÍVEL DE INTERFERÊNCIAS - FORNECIMENTO E ASSENTAMENTO. AF_12/2015 | C195: M | D195: 176.1
A196: 95570 | B196: TUBO DE CONCRETO (SIMPLES) PARA REDES COLETORAS DE ÁGUAS PLUVIAIS, DIÂMETRO DE 300 MM, JUNTA RÍGIDA, INSTALADO EM LOCAL COM ALTO NÍVEL DE INTERFERÊNCIAS - FORNECIMENTO E ASSENTAMENTO. AF_12/2015 | C196: M | D196: 113.31
A197: 95571 | B197: TUBO DE CONCRETO (SIMPLES) PARA REDES COLETORAS DE ÁGUAS PLUVIAIS, DIÂMETRO DE 400 MM, JUNTA RÍGIDA, INSTALADO EM LOCAL COM ALTO NÍVEL DE INTERFERÊNCIAS - FORNECIMENTO E ASSENTAMENTO. AF_12/2015 | C197: M | D197: 139.07
A198: 95572 | B198: TUBO DE CONCRETO (SIMPLES) PARA REDES COLETORAS DE ÁGUAS PLUVIAIS, DIÂMETRO DE 500 MM, JUNTA RÍGIDA, INSTALADO EM LOCAL COM ALTO NÍVEL DE INTERFERÊNCIAS - FORNECIMENTO E ASSENTAMENTO. AF_12/2015 | C198: M | D198: 189.29
A199: 97127 | B199: ASSENTAMENTO DE TUBO DE PVC DEFOFO OU PRFV OU RPVC PARA REDE DE ÁGUA, DN 150 MM, JUNTA ELÁSTICA INTEGRADA, INSTALADO EM LOCAL COM NÍVEL ALTO DE INTERFERÊNCIAS (NÃO INCLUI FORNECIMENTO). AF_11/2017 | C199: M | D199: 5.69
A200: 97128 | B200: ASSENTAMENTO DE TUBO DE PVC DEFOFO OU PRFV OU RPVC PARA REDE DE ÁGUA, DN 200 MM, JUNTA ELÁSTICA INTEGRADA, INSTALADO EM LOCAL COM NÍVEL ALTO DE INTERFERÊNCIAS (NÃO INCLUI FORNECIMENTO). AF_11/2017 | C200: M | D200: 11.53
A201: 97129 | B201: ASSENTAMENTO DE TUBO DE PVC DEFOFO OU PRFV OU RPVC PARA REDE DE ÁGUA, DN 250 MM, JUNTA ELÁSTICA INTEGRADA, INSTALADO EM LOCAL COM NÍVEL ALTO DE INTERFERÊNCIAS (NÃO INCLUI FORNECIMENTO). AF_11/2017 | C201: M | D201: 14.17
A202: 97130 | B202: ASSENTAMENTO DE TUBO DE PVC DEFOFO OU PRFV OU RPVC PARA REDE DE ÁGUA, DN 300 MM, JUNTA ELÁSTICA INTEGRADA, INSTALADO EM LOCAL COM NÍVEL ALTO DE INTERFERÊNCIAS (NÃO INCLUI FORNECIMENTO). AF_11/2017 | C202: M | D202: 16.8
... 7325 more rows

Sheet INSUMOS SINAPI
A1: PRECOS DE INSUMOS
A3: MES DE COLETA: 06/2020
A4: LOCALIDADE: 1250 - RECIFE
A5: ENCARGOS SOCIAIS (%) HORISTA 112,77 MENSALISTA 69,42
A7: CODIGO | B7: DESCRICAO DO INSUMO | C7: UNIDADE | D7: PRECO MEDIANO R$
A8: 38605 | B8: ABERTURA PARA ENCAIXE DE CUBA OU LAVATORIO EM BANCADA DE MARMORE/ GRANITO OU OUTRO TIPO DE PEDRA NATURAL | C8: UN | D8: 149.26
A9: 11270 | B9: ABRACADEIRA DE LATAO PARA FIXACAO DE CABO PARA-RAIO, DIMENSOES 32 X 24 X 24 MM | C9: UN | D9: 3.4
A10: 412 | B10: ABRACADEIRA DE NYLON PARA AMARRACAO DE CABOS, COMPRIMENTO DE *230* X *7,6* MM | C10: UN | D10: 1.13
A11: 414 | B11: ABRACADEIRA DE NYLON PARA AMARRACAO DE CABOS, COMPRIMENTO DE 100 X 2,5 MM | C11: UN | D11: 0.07
A12: 410 | B12: ABRACADEIRA DE NYLON PARA AMARRACAO DE CABOS, COMPRIMENTO DE 150 X *3,6* MM | C12: UN | D12: 0.17
A13: 411 | B13: ABRACADEIRA DE NYLON PARA AMARRACAO DE CABOS, COMPRIMENTO DE 200 X *4,6* MM | C13: UN | D13: 0.22
A14: 408 | B14: ABRACADEIRA DE NYLON PARA AMARRACAO DE CABOS, COMPRIMENTO DE 390 X *4,6* MM | C14: UN | D14: 1.09
A15: 39131 | B15: ABRACADEIRA EM ACO PARA AMARRACAO DE ELETRODUTOS, TIPO D, COM 1 1/2" E CUNHA DE FIXACAO | C15: UN | D15: 4.93
A16: 394 | B16: ABRACADEIRA EM ACO PARA AMARRACAO DE ELETRODUTOS, TIPO D, COM 1 1/2" E PARAFUSO DE FIXACAO | C16: UN | D16: 4.99
A17: 39130 | B17: ABRACADEIRA EM ACO PARA AMARRACAO DE ELETRODUTOS, TIPO D, COM 1 1/4" E CUNHA DE FIXACAO | C17: UN | D17: 4.5
A18: 395 | B18: ABRACADEIRA EM ACO PARA AMARRACAO DE ELETRODUTOS, TIPO D, COM 1 1/4" E PARAFUSO DE FIXACAO | C18: UN | D18: 4.81
A19: 39127 | B19: ABRACADEIRA EM ACO PARA AMARRACAO DE ELETRODUTOS, TIPO D, COM 1/2" E CUNHA DE FIXACAO | C19: UN | D19: 2.37
A20: 392 | B20: ABRACADEIRA EM ACO PARA AMARRACAO DE ELETRODUTOS, TIPO D, COM 1/2" E PARAFUSO DE FIXACAO | C20: UN | D20: 2.43
A21: 39129 | B21: ABRACADEIRA EM ACO PARA AMARRACAO DE ELETRODUTOS, TIPO D, COM 1" E CUNHA DE FIXACAO | C21: UN | D21: 2.77
A22: 393 | B22: ABRACADEIRA EM ACO PARA AMARRACAO DE ELETRODUTOS, TIPO D, COM 1" E PARAFUSO DE FIXACAO | C22: UN | D22: 2.9
A23: 39133 | B23: ABRACADEIRA EM ACO PARA AMARRACAO DE ELETRODUTOS, TIPO D, COM 2 1/2" E CUNHA DE FIXACAO | C23: UN | D23: 6.47
A24: 397 | B24: ABRACADEIRA EM ACO PARA AMARRACAO DE ELETRODUTOS, TIPO D, COM 2 1/2" E PARAFUSO DE FIXACAO | C24: UN | D24: 7.15
A25: 39132 | B25: ABRACADEIRA EM ACO PARA AMARRACAO DE ELETRODUTOS, TIPO D, COM 2" E CUNHA DE FIXACAO | C25: UN | D25: 5.18
A26: 396 | B26: ABRACADEIRA EM ACO PARA AMARRACAO DE ELETRODUTOS, TIPO D, COM 2" E PARAFUSO DE FIXACAO | C26: UN | D26: 5.55
A27: 39135 | B27: ABRACADEIRA EM ACO PARA AMARRACAO DE ELETRODUTOS, TIPO D, COM 3 1/2" E CUNHA DE FIXACAO | C27: UN | D27: 10.36
A28: 39128 | B28: ABRACADEIRA EM ACO PARA AMARRACAO DE ELETRODUTOS, TIPO D, COM 3/4" E CUNHA DE FIXACAO | C28: UN | D28: 2.59
A29: 400 | B29: ABRACADEIRA EM ACO PARA AMARRACAO DE ELETRODUTOS, TIPO D, COM 3/4" E PARAFUSO DE FIXACAO | C29: UN | D29: 2.52
A30: 39125 | B30: ABRACADEIRA EM ACO PARA AMARRACAO DE ELETRODUTOS, TIPO D, COM 3/8" E PARAFUSO DE FIXACAO | C30: UN | D30: 2.59
A31: 39134 | B31: ABRACADEIRA EM ACO PARA AMARRACAO DE ELETRODUTOS, TIPO D, COM 3" E CUNHA DE FIXACAO | C31: UN | D31: 8.63
A32: 398 | B32: ABRACADEIRA EM ACO PARA AMARRACAO DE ELETRODUTOS, TIPO D, COM 3" E PARAFUSO DE FIXACAO | C32: UN | D32: 7.95
A33: 39126 | B33: ABRACADEIRA EM ACO PARA AMARRACAO DE ELETRODUTOS, TIPO D, COM 4" E CUNHA DE FIXACAO | C33: UN | D33: 11.66
A34: 399 | B34: ABRACADEIRA EM ACO PARA AMARRACAO DE ELETRODUTOS, TIPO D, COM 4" E PARAFUSO DE FIXACAO | C34: UN | D34: 10.27
A35: 39158 | B35: ABRACADEIRA EM ACO PARA AMARRACAO DE ELETRODUTOS, TIPO ECONOMICA (GOTA), COM 8" | C35: UN | D35: 27.58
A36: 39141 | B36: ABRACADEIRA EM ACO PARA AMARRACAO DE ELETRODUTOS, TIPO U SIMPLES, COM 1 1/2" | C36: UN | D36: 2
A37: 39140 | B37: ABRACADEIRA EM ACO PARA AMARRACAO DE ELETRODUTOS, TIPO U SIMPLES, COM 1 1/4" | C37: UN | D37: 1.82
A38: 39137 | B38: ABRACADEIRA EM ACO PARA AMARRACAO DE ELETRODUTOS, TIPO U SIMPLES, COM 1/2" | C38: UN | D38: 1.04
A39: 39139 | B39: ABRACADEIRA EM ACO PARA AMARRACAO DE ELETRODUTOS, TIPO U SIMPLES, COM 1" | C39: UN | D39: 1.51
A40: 39143 | B40: ABRACADEIRA EM ACO PARA AMARRACAO DE ELETRODUTOS, TIPO U SIMPLES, COM 2 1/2" | C40: UN | D40: 4.13
A41: 39142 | B41: ABRACADEIRA EM ACO PARA AMARRACAO DE ELETRODUTOS, TIPO U SIMPLES, COM 2" | C41: UN | D41: 2.96
A42: 39138 | B42: ABRACADEIRA EM ACO PARA AMARRACAO DE ELETRODUTOS, TIPO U SIMPLES, COM 3/4" | C42: UN | D42: 1.11
A43: 39136 | B43: ABRACADEIRA EM ACO PARA AMARRACAO DE ELETRODUTOS, TIPO U SIMPLES, COM 3/8" | C43: UN | D43: 0.74
A44: 39144 | B44: ABRACADEIRA EM ACO PARA AMARRACAO DE ELETRODUTOS, TIPO U SIMPLES, COM 3" | C44: UN | D44: 4.81
A45: 39145 | B45: ABRACADEIRA EM ACO PARA AMARRACAO DE ELETRODUTOS, TIPO U SIMPLES, COM 4" | C45: UN | D45: 7.92
A46: 12615 | B46: ABRACADEIRA PVC, PARA CALHA PLUVIAL, DIAMETRO ENTRE *80 E 100* MM, PARA DRENAGEM PLUVIAL PREDIAL | C46: UN | D46: 13.85
A47: 11927 | B47: ABRACADEIRA, GALVANIZADA/ZINCADA, ROSCA SEM FIM, PARAFUSO INOX, LARGURA FITA *12,6 A *14 MM, D = 2" A 2 1/2" | C47: UN | D47: 10.17
A48: 11928 | B48: ABRACADEIRA, GALVANIZADA/ZINCADA, ROSCA SEM FIM, PARAFUSO INOX, LARGURA FITA *12,6 A *14 MM, D = 3" A 3 3/4" | C48: UN | D48: 11.65
A49: 11929 | B49: ABRACADEIRA, GALVANIZADA/ZINCADA, ROSCA SEM FIM, PARAFUSO INOX, LARGURA FITA *12,6 A *14 MM, D = 4" A 4 3/4" | C49: UN | D49: 18.02
A50: 36801 | B50: ACABAMENTO DE METAL CROMADO PARA REGISTRO PEQUENO, DE PAREDE, 1/2 " OU 3/4 " | C50: UN | D50: 32.5
A51: 36246 | B51: ACABAMENTO SIMPLES/CONVENCIONAL PARA FORRO PVC, TIPO "U" OU "C", COR BRANCA, COMPRIMENTO 6 M | C51: M | D51: 4.07
A52: 37600 | B52: ACESSORIO DE LIGACAO NAO ELETRICO PARA CARGAS EXPLOSIVAS, TUBO DE 6 M | C52: UN | D52: 107.57
A53: 37599 | B53: ACESSORIO INICIADOR NAO ELETRICO, TUBO DE 6 M, TEMPO DE RETARDO DE *160* MS | C53: UN | D53: 100.12
A54: 1 | B54: ACETILENO (RECARGA DE GAS ACETILENO PARA CILINDRO DE CONJUNTO OXICORTE GRANDE) NAO INCLUI TROCA/MANUTENCAO DO CILINDRO | C54: KG | D54: 78.5
A55: 3 | B55: ACIDO CLORIDRICO / ACIDO MURIATICO, DILUICAO 10% A 12% PARA USO EM LIMPEZA | C55: L | D55: 23.31
A56: 43054 | B56: ACO CA-25, 10,0 MM, OU 12,5 MM, OU 16,0 MM, OU 20,0 MM, OU 25,0 MM, VERGALHAO | C56: KG | D56: 10.95
A57: 42402 | B57: ACO CA-25, 16,0 MM, BARRA DE TRANSFERENCIA | C57: KG | D57: 10.47
A58: 42403 | B58: ACO CA-25, 20,0 MM, BARRA DE TRANSFERENCIA | C58: KG | D58: 13.43
A59: 42404 | B59: ACO CA-25, 25,0 MM, BARRA DE TRANSFERENCIA | C59: KG | D59: 13.35
A60: 42405 | B60: ACO CA-25, 32,0 MM, BARRA DE TRANSFERENCIA | C60: KG | D60: 14.22
A61: 34341 | B61: ACO CA-25, 32,0 MM, VERGALHAO | C61: KG | D61: 12.34
A62: 43053 | B62: ACO CA-25, 6,3 MM OU 8,0 MM, VERGALHAO | C62: KG | D62: 9.78
A63: 43058 | B63: ACO CA-50, 10,0 MM, OU 12,5 MM, OU 16,0 MM, OU 20,0 MM, DOBRADO E CORTADO | C63: KG | D63: 10.14
A64: 34 | B64: ACO CA-50, 10,0 MM, VERGALHAO | C64: KG | D64: 10.19
A65: 43055 | B65: ACO CA-50, 12,5 MM OU 16,0 MM, VERGALHAO | C65: KG | D65: 8.83
A66: 43056 | B66: ACO CA-50, 20,0 MM OU 25,0 MM, VERGALHAO | C66: KG | D66: 10.18
A67: 43057 | B67: ACO CA-50, 32,0 MM, VERGALHAO | C67: KG | D67: 11.19
A68: 34449 | B68: ACO CA-50, 6,3 MM, DOBRADO E CORTADO | C68: KG | D68: 11.96
A69: 32 | B69: ACO CA-50, 6,3 MM, VERGALHAO | C69: KG | D69: 10.75
A70: 33 | B70: ACO CA-50, 8,0 MM, VERGALHAO | C70: KG | D70: 10.81
A71: 43061 | B71: ACO CA-60, 4,2 MM OU 5,0 MM, DOBRADO E CORTADO | C71: KG | D71: 10.11
A72: 43059 | B72: ACO CA-60, 4,2 MM, OU 5,0 MM, OU 6,0 MM, OU 7,0 MM, VERGALHAO | C72: KG | D72: 9.65
A73: 43062 | B73: ACO CA-60, 6,0 MM OU 7,0 MM, DOBRADO E CORTADO | C73: KG | D73: 10.69
A74: 43060 | B74: ACO CA-60, 8,0 MM OU 9,5 MM, VERGALHAO | C74: KG | D74: 8.4
A75: 40410 | B75: ACOPLAMENTO RIGIDO EM FERRO FUNDIDO PARA SISTEMA DE TUBULACAO RANHURADA, DN 50 MM (2") | C75: UN | D75: 23.71
A76: 40411 | B76: ACOPLAMENTO RIGIDO EM FERRO FUNDIDO PARA SISTEMA DE TUBULACAO RANHURADA, DN 65 MM (2 1/2") | C76: UN | D76: 25.73
A77: 40412 | B77: ACOPLAMENTO RIGIDO EM FERRO FUNDIDO PARA SISTEMA DE TUBULACAO RANHURADA, DN 80 MM (3") | C77: UN | D77: 28.88
A78: 44254 | B78: ADAPTADOR CPVC, ROSCAVEL, COM FLANGES E ANEL DE VEDACAO, 15 MM, CAIXA D'AGUA PARA AGUA QUENTE | C78: UN | D78: 26.51
A79: 44255 | B79: ADAPTADOR CPVC, ROSCAVEL, COM FLANGES E ANEL DE VEDACAO, 22 MM, CAIXA D'AGUA PARA AGUA QUENTE | C79: UN | D79: 29.38
A80: 44256 | B80: ADAPTADOR CPVC, ROSCAVEL, COM FLANGES E ANEL DE VEDACAO, 28 MM, CAIXA D'AGUA PARA AGUA QUENTE | C80: UN | D80: 33.19
A81: 44257 | B81: ADAPTADOR CPVC, ROSCAVEL, COM FLANGES E ANEL DE VEDACAO, 35 MM, CAIXA D'AGUA PARA AGUA QUENTE | C81: UN | D81: 52.5
A82: 44258 | B82: ADAPTADOR CPVC, ROSCAVEL, COM FLANGES E ANEL DE VEDACAO, 42 MM, CAIXA D'AGUA PARA AGUA QUENTE | C82: UN | D82: 60
A83: 44259 | B83: ADAPTADOR CPVC, ROSCAVEL, COM FLANGES E ANEL DE VEDACAO, 54 MM, CAIXA D'AGUA PARA AGUA QUENTE | C83: UN | D83: 82.36
A84: 37997 | B84: ADAPTADOR CPVC, SOLDAVEL, 15 MM, PARA AGUA QUENTE | C84: UN | D84: 15.8
A85: 37998 | B85: ADAPTADOR CPVC, SOLDAVEL, 22 MM, PARA AGUA QUENTE | C85: UN | D85: 21.14
A86: 55 | B86: ADAPTADOR DE COMPRESSAO EM POLIPROPILENO (PP), PARA TUBO EM PEAD, 20 MM X 1/2", PARA LIGACAO PREDIAL DE AGUA (NTS 179) | C86: UN | D86: 4.48
A87: 61 | B87: ADAPTADOR DE COMPRESSAO EM POLIPROPILENO (PP), PARA TUBO EM PEAD, 20 MM X 3/4", PARA LIGACAO PREDIAL DE AGUA (NTS 179) | C87: UN | D87: 4.23
A88: 62 | B88: ADAPTADOR DE COMPRESSAO EM POLIPROPILENO (PP), PARA TUBO EM PEAD, 32 MM X 1", PARA LIGACAO PREDIAL DE AGUA (NTS 179) | C88: UN | D88: 8.78
A89: 10899 | B89: ADAPTADOR EM LATAO, ENGATE RAPIDO 2 1/2" X ROSCA INTERNA 5 FIOS 2 1/2", PARA INSTALACAO PREDIAL DE COMBATE A INCENDIO | C89: UN | D89: 108.42
A90: 10900 | B90: ADAPTADOR EM LATAO, ENGATE RAPIDO1 1/2" X ROSCA INTERNA 5 FIOS 2 1/2", PARA INSTALACAO PREDIAL DE COMBATE A INCENDIO | C90: UN | D90: 84.85
A91: 103 | B91: ADAPTADOR PVC SOLDAVEL CURTO COM BOLSA E ROSCA, 110 MM X 4", PARA AGUA FRIA | C91: UN | D91: 43.33
A92: 107 | B92: ADAPTADOR PVC SOLDAVEL CURTO COM BOLSA E ROSCA, 20 MM X 1/2", PARA AGUA FRIA | C92: UN | D92: 0.81
A93: 65 | B93: ADAPTADOR PVC SOLDAVEL CURTO COM BOLSA E ROSCA, 25 MM X 3/4", PARA AGUA FRIA | C93: UN | D93: 0.89
A94: 108 | B94: ADAPTADOR PVC SOLDAVEL CURTO COM BOLSA E ROSCA, 32 MM X 1", PARA AGUA FRIA | C94: UN | D94: 1.79
A95: 110 | B95: ADAPTADOR PVC SOLDAVEL CURTO COM BOLSA E ROSCA, 40 MM X 1 1/2", PARA AGUA FRIA | C95: UN | D95: 6.23
A96: 109 | B96: ADAPTADOR PVC SOLDAVEL CURTO COM BOLSA E ROSCA, 40 MM X 1 1/4", PARA AGUA FRIA | C96: UN | D96: 3.71
A97: 111 | B97: ADAPTADOR PVC SOLDAVEL CURTO COM BOLSA E ROSCA, 50 MM X 1 1/4", PARA AGUA FRIA | C97: UN | D97: 8.43
A98: 112 | B98: ADAPTADOR PVC SOLDAVEL CURTO COM BOLSA E ROSCA, 50 MM X1 1/2", PARA AGUA FRIA | C98: UN | D98: 4.47
A99: 113 | B99: ADAPTADOR PVC SOLDAVEL CURTO COM BOLSA E ROSCA, 60 MM X 2", PARA AGUA FRIA | C99: UN | D99: 11.19
A100: 104 | B100: ADAPTADOR PVC SOLDAVEL CURTO COM BOLSA E ROSCA, 75 MM X 2 1/2", PARA AGUA FRIA | C100: UN | D100: 19.47
A101: 102 | B101: ADAPTADOR PVC SOLDAVEL CURTO COM BOLSA E ROSCA, 85 MM X 3", PARA AGUA FRIA | C101: UN | D101: 26.85
A102: 95 | B102: ADAPTADOR PVC SOLDAVEL, COM FLANGE E ANEL DE VEDACAO, 20 MM X 1/2", PARA CAIXA D'AGUA | C102: UN | D102: 11.34
A103: 96 | B103: ADAPTADOR PVC SOLDAVEL, COM FLANGE E ANEL DE VEDACAO, 25 MM X 3/4", PARA CAIXA D'AGUA | C103: UN | D103: 12.34
A104: 97 | B104: ADAPTADOR PVC SOLDAVEL, COM FLANGE E ANEL DE VEDACAO, 32 MM X 1", PARA CAIXA D'AGUA | C104: UN | D104: 18.57
A105: 98 | B105: ADAPTADOR PVC SOLDAVEL, COM FLANGE E ANEL DE VEDACAO, 40 MM X 1 1/4", PARA CAIXA D'AGUA | C105: UN | D105: 27.79
A106: 99 | B106: ADAPTADOR PVC SOLDAVEL, COM FLANGE E ANEL DE VEDACAO, 50 MM X 1 1/2", PARA CAIXA D'AGUA | C106: UN | D106: 26.27
A107: 100 | B107: ADAPTADOR PVC SOLDAVEL, COM FLANGES E ANEL DE VEDACAO, 60 MM X 2", PARA CAIXA D' AGUA | C107: UN | D107: 45.89
A108: 75 | B108: ADAPTADOR PVC SOLDAVEL, COM FLANGES LIVRES, 110 MM X 4", PARA CAIXA D' AGUA | C108: UN | D108: 267.57
A109: 83 | B109: ADAPTADOR PVC SOLDAVEL, COM FLANGES LIVRES, 75 MM X 2 1/2", PARA CAIXA D' AGUA | C109: UN | D109: 213.91
A110: 74 | B110: ADAPTADOR PVC SOLDAVEL, COM FLANGES LIVRES, 85 MM X 3", PARA CAIXA D' AGUA | C110: UN | D110: 305.84
A111: 106 | B111: ADAPTADOR PVC SOLDAVEL, LONGO, COM FLANGE LIVRE, 110 MM X 4", PARA CAIXA D' AGUA | C111: UN | D111: 386.75
A112: 88 | B112: ADAPTADOR PVC SOLDAVEL, LONGO, COM FLANGE LIVRE, 32 MM X 1", PARA CAIXA D' AGUA | C112: UN | D112: 10.87
A113: 82 | B113: ADAPTADOR PVC SOLDAVEL, LONGO, COM FLANGE LIVRE, 75 MM X 2 1/2", PARA CAIXA D' AGUA | C113: UN | D113: 203.52
A114: 105 | B114: ADAPTADOR PVC SOLDAVEL, LONGO, COM FLANGE LIVRE, 85 MM X 3", PARA CAIXA D' AGUA | C114: UN | D114: 288.39
A115: 60 | B115: ADAPTADOR PVC, COM REGISTRO, PARA PEAD, 20 MM X 3/4", PARA LIGACAO PREDIAL DE AGUA | C115: UN | D115: 5.81
A116: 72 | B116: ADAPTADOR PVC, ROSCAVEL, COM FLANGES E ANEL DE VEDACAO, 1 1/2", PARA CAIXA D'AGUA | C116: UN | D116: 50.38
A117: 67 | B117: ADAPTADOR PVC, ROSCAVEL, COM FLANGES E ANEL DE VEDACAO, 1/2", PARA CAIXA D' AGUA | C117: UN | D117: 16.29
A118: 71 | B118: ADAPTADOR PVC, ROSCAVEL, COM FLANGES E ANEL DE VEDACAO, 1", PARA CAIXA D' AGUA | C118: UN | D118: 31.11
A119: 73 | B119: ADAPTADOR PVC, ROSCAVEL, COM FLANGES E ANEL DE VEDACAO, 3/4", PARA CAIXA D' AGUA | C119: UN | D119: 15.59
A120: 46 | B120: ADAPTADOR, PVC PBA, BOLSA/ROSCA, JE, DN 75 / DE 85 MM | C120: UN | D120: 44.92
A121: 47 | B121: ADAPTADOR, PVC PBA, BOLSA/ROSCA, JE, DN 100 / DE 110 MM | C121: UN | D121: 76.81
A122: 48 | B122: ADAPTADOR, PVC PBA, BOLSA/ROSCA, JE, DN 50 / DE 60 MM | C122: UN | D122: 20.03
A123: 52 | B123: ADAPTADOR, PVC PBA, PONTA/ROSCA, JE, DN 50 / DE 60 MM | C123: UN | D123: 15.22
A124: 43 | B124: ADAPTADOR, PVC PBA, PONTA/ROSCA, JE, DN 75 / DE 85 MM | C124: UN | D124: 51.37
A125: 39719 | B125: ADESIVO / COLA DE CONTATO LIQUIDO, A BASE DE RESINAS, PARA COLAGEM DE ESPUMA PARA ISOLAMENTO TERMICO FLEXIVEL | C125: L | D125: 150.11
A126: 3410 | B126: ADESIVO / COLA PARA EPS (ISOPOR) E OUTROS MATERIAIS | C126: KG | D126: 33.76
A127: 4791 | B127: ADESIVO ACRILICO DE BASE AQUOSA / COLA DE CONTATO | C127: KG | D127: 46.7
A128: 157 | B128: ADESIVO ESTRUTURAL A BASE DE RESINA EPOXI PARA INJECAO EM TRINCAS, BICOMPONENTE, BAIXA VISCOSIDADE | C128: KG | D128: 162.57
A129: 156 | B129: ADESIVO ESTRUTURAL A BASE DE RESINA EPOXI, BICOMPONENTE, FLUIDO | C129: KG | D129: 57.88
A130: 131 | B130: ADESIVO ESTRUTURAL A BASE DE RESINA EPOXI, BICOMPONENTE, PASTOSO (TIXOTROPICO) | C130: KG | D130: 49.5
A131: 21114 | B131: ADESIVO PARA TUBOS CPVC, *75* G | C131: UN | D131: 29.59
A132: 119 | B132: ADESIVO PLASTICO PARA PVC, BISNAGA COM 75 GR | C132: UN | D132: 7.5
A133: 122 | B133: ADESIVO PLASTICO PARA PVC, FRASCO COM *850* GR | C133: UN | D133: 57.7
A134: 20080 | B134: ADESIVO PLASTICO PARA PVC, FRASCO COM 175 GR | C134: UN | D134: 18.83
A135: 124 | B135: ADITIVO ACELERADOR DE PEGA E ENDURECIMENTO PARA ARGAMASSAS E CONCRETOS, LIQUIDO E ISENTO DE CLORETOS | C135: L | D135: 19.09
A136: 7334 | B136: ADITIVO ADESIVO LIQUIDO PARA ARGAMASSAS DE REVESTIMENTOS CIMENTICIOS | C136: L | D136: 16.08
A137: 123 | B137: ADITIVO IMPERMEABILIZANTE DE PEGA NORMAL PARA ARGAMASSAS E CONCRETOS SEM ARMACAO, LIQUIDO E ISENTO DE CLORETOS | C137: L | D137: 7.81
A138: 127 | B138: ADITIVO IMPERMEABILIZANTE DE PEGA ULTRARRAPIDA, LIQUIDO E ISENTO DE CLORETOS | C138: L | D138: 18.64
A139: 41373 | B139: ADITIVO LIQUIDO IMPERMEABILIZANTE CRISTALIZANTE | C139: L | D139: 25.98
A140: 133 | B140: ADITIVO LIQUIDO INCORPORADOR DE AR PARA CONCRETO E ARGAMASSA, LIQUIDO E ISENTO DE CLORETOS | C140: L | D140: 7.74
A141: 43617 | B141: ADITIVO PLASTIFICANTE E ESTABILIZADOR PARA ARGAMASSAS DE ASSENTAMENTO E REBOCO, LIQUIDO E ISENTO DE CLORETOS | C141: L | D141: 8.65
A142: 132 | B142: ADITIVO PLASTIFICANTE RETARDADOR DE PEGA E REDUTOR DE AGUA PARA CONCRETO, LIQUIDO E ISENTO DE CLORETOS | C142: L | D142: 8.03
A143: 43618 | B143: ADITIVO SUPERPLASTIFICANTE DE PEGA NORMAL PARA CONCRETO, LIQUIDO E ISENTO DE CLORETOS | C143: KG | D143: 20.21
A144: 37476 | B144: ADUELA/ GALERIA PRE-MOLDADA DE CONCRETO ARMADO, SECAO QUADRADA INTERNA DE 1,50 X 1,50 M (L X A), MISULA DE 20 X 20 CM, C = 1,00 M, ESPESSURA MIN = 15 CM, TB-45 E FCK DO CONCRETO = 30 MPA | C144: UN | D144: 2911.76
A145: 37478 | B145: ADUELA/ GALERIA PRE-MOLDADA DE CONCRETO ARMADO, SECAO RETANGULAR INTERNA DE 2,00 X 2,00 M (L X A), MISULA DE 20 X 20 CM, C = 1,00 M, ESPESSURA MIN = 15 CM, TB-45 E FCK DO CONCRETO = 30 MPA | C145: UN | D145: 3647.05
A146: 37477 | B146: ADUELA/ GALERIA PRE-MOLDADA DE CONCRETO ARMADO, SECAO RETANGULAR INTERNA DE 2,50 X 2,50 M (L X A), MISULA DE 20 X 20 CM, C = 1,00 M, ESPESSURA MIN = 15 CM, TB-45 E FCK DO CONCRETO = 30 MPA | C146: UN | D146: 4941.17
A147: 37479 | B147: ADUELA/ GALERIA PRE-MOLDADA DE CONCRETO ARMADO, SECAO RETANGULAR INTERNA DE 3,00 X 3,00 M (L X A), MISULA DE 20 X 20 CM, C = 1.00 M, ESPESSURA MIN = 20 CM, TB-45 E FCK DO CONCRETO = 30 MPA | C147: UN | D147: 5860.29
A148: 4319 | B148: AFASTADOR PARA TELHA DE FIBROCIMENTO CANALETE 90 OU KALHETAO | C148: UN | D148: 1.44
A149: 42409 | B149: AGENTE DE CURA, PROTETOR DA EVAPORACAO DA AGUA DE HIDRATACAO DO CONCRETO | C149: KG | D149: 12.73
A150: 40553 | B150: AGREGADO RECICLADO, TIPO RACHAO RECICLADO CINZA, CLASSE A | C150: M³ | D150: 51
A151: 6114 | B151: AJUDANTE DE ARMADOR (HORISTA) | C151: H | D151: 15.06
A152: 40912 | B152: AJUDANTE DE ARMADOR (MENSALISTA) | C152: MES | D152: 2627.68
A153: 247 | B153: AJUDANTE DE ELETRICISTA (HORISTA) | C153: H | D153: 14.24
A154: 40919 | B154: AJUDANTE DE ELETRICISTA (MENSALISTA) | C154: MES | D154: 2487.85
A155: 40984 | B155: AJUDANTE DE ESTRUTURAS METALICAS (MENSALISTA) | C155: MES | D155: 3125.55
A156: 44499 | B156: AJUDANTE DE ESTRUTURAS METALICAS HORISTA | C156: H | D156: 17.91
A157: 248 | B157: AJUDANTE DE OPERACAO EM GERAL (HORISTA) | C157: H | D157: 17.59
A158: 41086 | B158: AJUDANTE DE OPERACAO EM GERAL (MENSALISTA) | C158: MES | D158: 3072.39
A159: 34466 | B159: AJUDANTE DE PINTOR (HORISTA) | C159: H | D159: 15.03
A160: 41083 | B160: AJUDANTE DE PINTOR (MENSALISTA) | C160: MES | D160: 2627.12
A161: 252 | B161: AJUDANTE DE SERRALHEIRO (HORISTA) | C161: H | D161: 17.59
A162: 40909 | B162: AJUDANTE DE SERRALHEIRO (MENSALISTA) | C162: MES | D162: 3072.39
A163: 242 | B163: AJUDANTE ESPECIALIZADO (HORISTA) | C163: H | D163: 17.57
A164: 41085 | B164: AJUDANTE ESPECIALIZADO (MENSALISTA) | C164: MES | D164: 3065.68
A165: 427 | B165: ALCA PREFORMADA DE CONTRA POSTE, EM ACO GALVANIZADO, PARA CABO 3/16", COMPRIMENTO *860* MM | C165: UN | D165: 6.93
A166: 417 | B166: ALCA PREFORMADA DE DISTRIBUICAO, EM ACO GALVANIZADO, PARA CABO DE ALUMINIO DIAMETRO 16 A 25 MM | C166: UN | D166: 3.26
A167: 11273 | B167: ALCA PREFORMADA DE DISTRIBUICAO, EM ACO GALVANIZADO, PARA CONDUTORES DE ALUMINIO AWG 1/0 (CAA 6/1 OU CA 7 FIOS) | C167: UN | D167: 10.13
A168: 11272 | B168: ALCA PREFORMADA DE DISTRIBUICAO, EM ACO GALVANIZADO, PARA CONDUTORES DE ALUMINIO AWG 2 (CAA 6/1 OU CA 7 FIOS) | C168: UN | D168: 6.12
A169: 11275 | B169: ALCA PREFORMADA DE SERVICO, EM ACO GALVANIZADO, PARA CONDUTORES DE ALUMINIO AWG 4 (CAA 6/1) | C169: UN | D169: 2.45
A170: 11274 | B170: ALCA PREFORMADA DE SERVICO, EM ACO GALVANIZADO, PARA CONDUTORES DE ALUMINIO AWG 6 (CAA 6/1) | C170: UN | D170: 1.87
A171: 38470 | B171: ALICATE DE CORTE DIAGONAL 6 " COM ISOLAMENTO | C171: UN | D171: 42
A172: 38547 | B172: ALICATE DE CRIMPAR RJ11, RJ12 E RJ45 | C172: UN | D172: 114.61
A173: 38469 | B173: ALICATE DE PRESSAO PARA SOLDA DE CHAPA 18 " | C173: UN | D173: 123.24
A174: 38467 | B174: ALICATE DE PRESSAO 11 " PARA SOLDA, TIPO C | C174: UN | D174: 69.34
A175: 38468 | B175: ALICATE DE PRESSAO 11 " PARA SOLDA, TIPO U | C175: UN | D175: 76.3
A176: 38471 | B176: ALICATE PARA ANEIS DE PISTAO, CAPACIDADE 50 A 100 MM | C176: UN | D176: 99.09
A177: 37370 | B177: ALIMENTACAO - HORISTA (COLETADO CAIXA - ENCARGOS COMPLEMENTARES) | C177: H | D177: 2.28
A178: 40862 | B178: ALIMENTACAO - MENSALISTA (COLETADO CAIXA - ENCARGOS COMPLEMENTARES) | C178: MES | D178: 429.36
A179: 10658 | B179: ALISADORA DE CONCRETO COM MOTOR A GASOLINA DE 5,5 HP, PESO COM MOTOR DE 78 KG, 4 PAS | C179: UN | D179: 8189.5
A180: 253 | B180: ALMOXARIFE (HORISTA) | C180: H | D180: 20.03
A181: 40809 | B181: ALMOXARIFE (MENSALISTA) | C181: MES | D181: 3495.42
A182: 42428 | B182: ALONGADOR COM TRES ALTURAS, EM TUBO DE ACO CARBONO, PINTURA NO PROCESSO ELETROSTATICO - EQUIPAMENTO DE GINASTICA PARA ACADEMIA AO AR LIVRE / ACADEMIA DA TERCEIRA IDADE - ATI | C182: UN | D182: 2271
A183: 583 | B183: ALUMINIO ANODIZADO | C183: KG | D183: 37.13
A184: 301 | B184: ANEL BORRACHA PARA TUBO ESGOTO PREDIAL, DN 100 MM (NBR 5688) | C184: UN | D184: 4
A185: 296 | B185: ANEL BORRACHA PARA TUBO ESGOTO PREDIAL, DN 50 MM (NBR 5688) | C185: UN | D185: 2.26
A186: 297 | B186: ANEL BORRACHA PARA TUBO ESGOTO PREDIAL, DN 75 MM (NBR 5688) | C186: UN | D186: 3.32
A187: 299 | B187: ANEL BORRACHA, DN 100 MM, PARA TUBO SERIE REFORCADA ESGOTO PREDIAL | C187: UN | D187: 4.69
A188: 300 | B188: ANEL BORRACHA, DN 150 MM, PARA TUBO SERIE REFORCADA ESGOTO PREDIAL | C188: UN | D188: 16.24
A189: 20085 | B189: ANEL BORRACHA, DN 50 MM, PARA TUBO SERIE REFORCADA ESGOTO PREDIAL | C189: UN | D189: 2.97
A190: 298 | B190: ANEL BORRACHA, DN 75 MM, PARA TUBO SERIE REFORCADA ESGOTO PREDIAL | C190: UN | D190: 3.61
A191: 311 | B191: ANEL BORRACHA, PARA TUBO PVC DEFOFO, DN 100 MM (NBR 7665) | C191: UN | D191: 13.39
A192: 318 | B192: ANEL BORRACHA, PARA TUBO PVC DEFOFO, DN 150 MM (NBR 7665) | C192: UN | D192: 26.97
A193: 319 | B193: ANEL BORRACHA, PARA TUBO PVC DEFOFO, DN 200 MM (NBR 7665) | C193: UN | D193: 42.28
A194: 303 | B194: ANEL BORRACHA, PARA TUBO PVC, REDE COLETOR ESGOTO, DN 100 MM (NBR 7362) | C194: UN | D194: 4.43
A195: 305 | B195: ANEL BORRACHA, PARA TUBO PVC, REDE COLETOR ESGOTO, DN 150 MM (NBR 7362) | C195: UN | D195: 13.94
A196: 306 | B196: ANEL BORRACHA, PARA TUBO PVC, REDE COLETOR ESGOTO, DN 200 MM (NBR 7362) | C196: UN | D196: 21.14
A197: 307 | B197: ANEL BORRACHA, PARA TUBO PVC, REDE COLETOR ESGOTO, DN 250 MM (NBR 7362) | C197: UN | D197: 53.41
A198: 309 | B198: ANEL BORRACHA, PARA TUBO PVC, REDE COLETOR ESGOTO, DN 350 MM (NBR 7362) | C198: UN | D198: 87.49
A199: 310 | B199: ANEL BORRACHA, PARA TUBO PVC, REDE COLETOR ESGOTO, DN 400 MM (NBR 7362) | C199: UN | D199: 121.26
A200: 328 | B200: ANEL BORRACHA, PARA TUBO/CONEXAO PVC PBA, DN 100 MM, PARA REDE AGUA | C200: UN | D200: 10.6
A201: 325 | B201: ANEL BORRACHA, PARA TUBO/CONEXAO PVC PBA, DN 50 MM, PARA REDE AGUA | C201: UN | D201: 3.13
A202: 20326 | B202: ANEL BORRACHA, PARA TUBO/CONEXAO PVC PBA, DN 60 MM, PARA REDE AGUA | C202: UN | D202: 5.72
... 4749 more rows

Sheet SERVIÇOS ORSE
A1: Ref: | B1: 2023-04-01
A2: CÓDIGO | B2: DESCRIÇÃO | C2: UN | D2: CUSTO UNIT
A3: 3126 | B3: FORNECIMENTO DE ALIMENTAÇÃO (QUENTINHA) A PESSOAL DIRETO DE OBRA | C3: UN | D3: 14
A4: 3131 | B4: AVENTAL DE COURO | C4: UN | D4: 19.58
A5: 3128 | B5: BOTA DE BORRACHA | C5: PA | D5: 69.9
A6: 3127 | B6: BOTA DE COURO | C6: PA | D6: 60
A7: 3129 | B7: CAPACETE | C7: UN | D7: 12.5
A8: 3132 | B8: FARDAMENTO | C8: UN | D8: 181.51
A9: 3130 | B9: LUVA DE RASPA | C9: PA | D9: 11.25
A10: 3133 | B10: MÁSCARA CONTRA POEIRA | C10: UN | D10: 1.4
A11: 3134 | B11: MÁSCARA PARA SOLDA | C11: UN | D11: 69.34
A12: 3136 | B12: ÓCULOS DE PROTEÇÃO | C12: UN | D12: 6.35
A13: 3125 | B13: FORNECIMENTO DE VALES TRANSPORTE A PESSOAL DIRETO DE OBRA | C13: UN | D13: 4.5
A14: 3472 | B14: ESCORAMENTO EM MADEIRA P/ EDIFICAÇÕES C/ VIGAS E LAJES MACIÇAS, 01 USO | C14: M² | D14: 68.62
A15: 3473 | B15: ESCORAMENTO EM MADEIRA P/ EDIFICAÇÕES C/ VIGAS E LAJES MACIÇAS, 02 USOS | C15: M² | D15: 36.26
A16: 3474 | B16: ESCORAMENTO EM MADEIRA P/ EDIFICAÇÕES C/ VIGAS E LAJES MACIÇAS, 03 USOS | C16: M² | D16: 25.45
A17: 7389 | B17: ESCORAMENTO EM MADEIRA P/ EDIFICAÇÕES C/ VIGAS E LAJES MACIÇAS, 04 USOS | C17: M² | D17: 20.07
A18: 3475 | B18: ESCORAMENTO EM MADEIRA P/ EDIFICAÇÕES C/ VIGAS E LAJES MACIÇAS, 05 USOS | C18: M² | D18: 16.8
A19: 7390 | B19: ESCORAMENTO EM MADEIRA P/ EDIFICAÇÕES C/ VIGAS E LAJES MACIÇAS, 06 USOS | C19: M² | D19: 14.67
A20: 7391 | B20: ESCORAMENTO EM MADEIRA P/ EDIFICAÇÕES C/ VIGAS E LAJES MACIÇAS, 07 USOS | C20: M² | D20: 13.1
A21: 3720 | B21: ESCORAMENTO EM MADEIRA P/ EDIFICAÇÕES C/ VIGAS E LAJES MACIÇAS, 10 USOS | C21: M² | D21: 10.34
A22: 7392 | B22: ESCORAMENTO EM MADEIRA P/ EDIFICAÇÕES C/ VIGAS E LAJES MACIÇAS, 12 USOS | C22: M² | D22: 9.26
A23: 3091 | B23: ESCORAMENTO EM MADEIRA P/ RESERVATÓRIOS ELEVADOS OU ESTRUTURAS C/ FORMA VERTI CAL, 01 USO | C23: M³ | D23: 69.8
A24: 8185 | B24: ESCORAMENTO EM MADEIRA PARA PONTILHÕES, PONTES E VIADUTOS DE CONCRETO ARMADO | C24: M³ | D24: 77.93
A25: 7339 | B25: ESCORAMENTO MISTO (METÁLICO H=3,80M E MADEIRA) PARA LAJES E VIGAS, INCLUSIVE MONTAGEM E DESMONTAGEM EM MADEIRA P/ EDIFICAÇÕES C/ VIGAS E LAJES MACIÇAS, 10 USOS | C25: M² | D25: 47.1
A26: 3085 | B26: CONCRETO SIMPLES USINADO FCK=35MPA, BOMBEADO E PROJETADO EM PAREDES | C26: M³ | D26: 1053.45
A27: 3086 | B27: CONCRETO SIMPLES USINADO FCK=35MPA, BOMBEADO E PROJETADO EM TETOS | C27: M³ | D27: 1208.95
A28: 3088 | B28: REVESTIMENTO EM PAREDES COM ARGAMASSA PROJETADA, TRAÇO T-1 (1:3) - CIMENTO / AREIA | C28: M³ | D28: 1336.25
A29: 3087 | B29: REVESTIMENTO EM TETOS COM ARGAMASSA PROJETADA, TRAÇO T-1 (1:3) - CIMENTO / AR EIA | C29: M³ | D29: 1464.87
A30: 3080 | B30: ENROCAMENTO COM PEDRA BRUTA ARRUMADA MANUALMENTE | C30: M³ | D30: 366.53
A31: 3079 | B31: ENROCAMENTO COM PEDRA BRUTA LANÇADA | C31: M³ | D31: 208.38
A32: 3082 | B32: ENROCAMENTO COM PEDRA DE MÃO ARRUMADA MANUALMENTE | C32: M³ | D32: 366.53
A33: 3081 | B33: ENROCAMENTO COM PEDRA DE MÃO LANÇADA | C33: M³ | D33: 208.38
A34: 4115 | B34: BOMBEAMENTO PARA ESGOTAMENTO DE VALAS COM DURAÇÃO DE 24 HORAS POR DIA (CONTÍN UO) | C34: H | D34: 4.35
A35: 3090 | B35: BOMBEAMENTO PARA ESGOTAMENTO DE VALAS COM DURAÇÃO DE 8 HORAS POR DIA | C35: H | D35: 6.17
A36: 4553 | B36: ESCORAMENTO DE VALAS TIPO CONTÍNUO ESPECIAL | C36: M² | D36: 88.96
A37: 7301 | B37: ESCORAMENTO DE VALAS TIPO CONTÍNUO SIMPLES | C37: M² | D37: 50.68
A38: 7302 | B38: ESCORAMENTO DE VALAS TIPO PONTALETE | C38: M² | D38: 19.65
A39: 3089 | B39: ESCORAMENTO EM MADEIRA P/ VALAS, H<2,00M ,DESCONTÍNUO, COM PRANCHÕES, LONGARI NAS E ESTRONCAS DE MADEIRA | C39: M² | D39: 34.54
A40: 7134 | B40: ESCORAMENTO METÁLICO P/ VALAS, 2,50M<=H<=4.00 M, COM PRANCHAS METÁLICAS DE 4, 7 MM X 30 CM E LONGARINAS E TRANSVERSINAS EM PERFIS DE AÇO, REAPROVEITAMENTO : 60 VEZES | C40: M² | D40: 65.36
A41: 7135 | B41: ESCORAMENTO METÁLICO P/ VALAS, 4,00M<=H<=6,00 M, COM PRANCHAS METÁLICAS DE 4, 7 MM X 30 CM E LONGARINAS E TRANSVERSINAS EM PERFIS METÁLICOS, REAPROVEITAMEN TO : 60 VEZES | C41: M² | D41: 75.76
A42: 7133 | B42: ESCORAMENTO METÁLICO P/ VALAS, H<=2.50 M, COM PRANCHAS METÁLICAS DE 4,7 MM X 30 CM E LONGARINAS EM PEÇAS DE MADEIRA DE 3"X6", REAPROVEITAMENTO : 60 VEZES | C42: M² | D42: 32.36
A43: 3078 | B43: GABIÃO COM TELA DE ARAME GALVANIZADO, FIO 2,7MM, MALHA HEXAGONAL 8 X 10CM, TI PO CAIXA | C43: M³ | D43: 753.37
A44: 3076 | B44: GABIÃO COM TELA DE ARAME GALVANIZADO, FIO 2,7MM, MALHA HEXAGONAL 8 X 10CM, TI PO CAIXA C/ DIMENSÕES 1,50 X 1,00 X 1,00M, P/UN (INCLUSIVE PEDRA GRANÍTICA) | C44: UN | D44: 1060.6
A45: 3077 | B45: GABIÃO COM TELA DE ARAME GALVANIZADO, FIO 2,7MM, MALHA HEXAGONAL 8 X 10CM, TI PO CAIXA C/ DIMENSÕES 3,00 X 1,00 X 1,00M, P/UN (INCLUSIVE PEDRA GRANÍTICA) | C45: UN | D45: 2121.48
A46: 10017 | B46: GABIÃO COM TELA DE ARAME GALVANIZADO, FIO 2,7MM, MALHA HEXAGONAL 8 X 10CM, TI PO CAIXA, SEM FORNECIMENTO DO GABIÃO | C46: M³ | D46: 265.87
A47: 9798 | B47: GABIÃO DE PEDRA GRANÍTICA SEM FORNECIMENTO DE TELA COM FRETE DA PEDRA | C47: M³ | D47: 220.16
A48: 9791 | B48: GABIÃO SEM FORNECIMENTO DE TELA | C48: M³ | D48: 232.48
A49: 9888 | B49: GABIÃO TIPO COLCHÃO RENO, REVESTIDO EM PVC, MALHA 8 X 10 CM, H=0,30M | C49: M² | D49: 250.28
A50: 9153 | B50: FORNECIMENTO E APLICAÇÃO DE GEOGRELHA TECIDA DE POLIESTER REVESTIDA C/PVC, RE F.MACGRID WG-200, MACCAFERRI OU SIMILAR | C50: M² | D50: 126.07
A51: 3083 | B51: IMPERMEABILIZAÇÃO - FORNECIMENTO E APLICAÇÃO DE MANTA GEOTEXTIL RT-10, RESIST ENCIA A TRAÇÃO=10KN/M (ANTIGO BIDIM OP-20 OU SIMILAR) EM COLCHÕES DRENANTES | C51: M² | D51: 18.64
A52: 9802 | B52: IMPERMEABILIZAÇÃO - FORNECIMENTO E APLICAÇÃO DE MANTA GEOTÉXTIL RT-16, RESIST ENCIA A TRAÇÃO=16 KN/M (ANTIGO BIDIM OP-30 OU SIMILAR) EM COLCHÕES DRENANTES | C52: M² | D52: 25.03
A53: 9154 | B53: IMPERMEABILIZAÇÃO - FORNECIMENTO E APLICAÇÃO DE MANTA GEOTÉXTIL RT-21, RESIST ENCIA A TRAÇÃO=21 KN/M (ANTIGO BIDIM OP-40 OU SIMILAR) EM COLCHÕES DRENANTES | C53: M² | D53: 31.58
A54: 10067 | B54: MANTA GEOTEX 70G/M² PARA SEPARAÇÃO, PROTEÇÃO, REFORÇO E DRENAGEM EM ESTRUTURA S, FORNECIMENTO E APLICAÇÃO | C54: M² | D54: 26.24
A55: 3092 | B55: REBAIXAMENTO COM PONTEIRAS FILTRANTES (01 CONJUNTO), EXCLUSIVE GRUPO GERADOR - ALUGUEL MENSAL | C55: MS | D55: 5500
A56: 3093 | B56: REBAIXAMENTO COM PONTEIRAS FILTRANTES (01 CONJUNTO), INCLUSIVE GRUPO GERADOR 80 KVA - ALUGUEL MENSAL | C56: MS | D56: 8175.93
A57: 12083 | B57: BOMBA SUBMERSÍVEL, MARCA ABS, MODELO AFP-102/425 2/3/4/7V STD PROPULSOR-230 A BS E ACESSÓRIOS(TUBO DE AÇOD2 AZ, CORRENTE 5/16, MANILHA 3/8 RETA ZINCADA, CE NTRAL ELETRO COMANDO E MONITOR E PEDESTAL DN 100/ASA - TUBO 2) OU SIMILAR - F ORNEC. E INSTALAÇÃO | C57: UN | D57: 83871.44
A58: 12949 | B58: FORNECIMENTO E MONTAGEM DE MEDIDOR DE VAZÃO DO TIPO CALHA PARSHALL GARGANTA W 3, EM FIBRA DE VIDRO | C58: UN | D58: 971.02
A59: 9248 | B59: INSTALAÇÃO DE MEDIDOR DE VAZÃO DO TIPO CALHA PARSHALL GARGANTA W3, EM FIBRA D E VIDRO | C59: UN | D59: 104.02
A60: 2643 | B60: COLOCAÇÃO DE BRITA 04 EM FILTRO | C60: M³ | D60: 95.91
A61: 13071 | B61: BOMBA AUTOASPIRANTE SCHNEIDER BCA-40 2" 3CV TRIFÁSICO OU SIMILAR INSTALADA | C61: UN | D61: 5587.46
A62: 13070 | B62: BOMBA CENTRÍFUGA MONOESTÁGIO SCHNEIDER BC-92S R 2 1/2" 3CV 220/380V TRIFÁSICO - BOMBA CENTRÍFUGA MONOESTÁGIO SCHNEIDER BC-92S R 2 1/2 3CV 127/220V TRIFÁSIC O OU SIMILAR | C62: UN | D62: 3296.55
A63: 2653 | B63: CONJUNTO MOTO-BOMBA COM MOTOR DE 1 1/2 CV, TRIFÁSICO, BOMBA CENTRÍFUGA, SUCÇÃ O=1 1/4", RECALQUE=1", PR. MÁX. 30 MCA, ALT. SUCÇÃO 8 MCA. FAIXAS HM (M) - Q (M3/H) : (26-5,3)(23-7,7)(20-9,6)(17-11,3)(14-12,8)(11-14,2)(8-15,5) INCL. CH AVE DE P. DIRETA | C63: UN | D63: 2376.46
A64: 2648 | B64: CONJUNTO MOTO-BOMBA COM MOTOR DE 1 CV, MONOFÁSICO, BOMBA CENTRÍFUGA, SUCÇÃO=1 ", RECALQUE=1", PR. MÁX. 28 MCA, ALT. SUCÇÃO 8 MCA. FAIXAS HM (M) - Q (M3/H) : (26-2,5)(23-4,2)(20-5,2)(17-6,3)(14-7,0), INCLUSIVE CHAVE DE PARTIDA DIRETA | C64: UN | D64: 2709.2
A65: 2652 | B65: CONJUNTO MOTO-BOMBA COM MOTOR DE 1 CV, TRIFÁSICO, BOMBA CENTRÍFUGA, SUCÇÃO=1" , RECALQUE=1", PR. MÁX. 28 MCA, ALT. SUCÇÃO 8 MCA. FAIXAS HM (M) - Q (M3/H) : (26-2,5)(23-4,2)(20-5,2)(17-6,3)(14-7,0), INCLUSIVE CHAVE DE PARTIDA DIRETA | C65: UN | D65: 2237.92
A66: 2646 | B66: CONJUNTO MOTO-BOMBA COM MOTOR DE 1/2 CV, MONOFÁSICO, BOMBA CENTRÍFUGA, SUCÇÃO =3/4", RECALQUE=3/4", PR. MÁX. 23 MCA, ALT. SUCÇÃO 8 MCA. FAIXAS HM (M) - Q ( M3/H) : (20-2,1)(17-2,9)(14-3,4)(11-3,9)(8-4,3)(5-4,7), INCLUSIVE CHAVE DE PA RTIDA DIRETA | C66: UN | D66: 1455.18
A67: 2650 | B67: CONJUNTO MOTO-BOMBA COM MOTOR DE 1/2 CV, TRIFÁSICO, BOMBA CENTRÍFUGA, SUCÇÃO= 1", RECALQUE=3/4", PR. MÁX. 23 MCA, ALT. SUCÇÃO 8 MCA. FAIXAS HM (M) - Q (M3/ H) : (20-3,4)(17-4,9)(14-6,0)(11-6,9)(8-8,3), INCLUSIVE CHAVE DE PARTIDA DIRE TA | C67: UN | D67: 2115.47
A68: 2645 | B68: CONJUNTO MOTO-BOMBA COM MOTOR DE 1/3 CV, MONOFÁSICO, BOMBA CENTRÍFUGA, SUCÇÃO =3/4", RECALQUE=3/4", PR. MÁX. 18 MCA, ALT. SUCÇÃO 8 MCA. FAIXAS HM (M) - Q ( M3/H) : (17-1,5)(14-2,6)(11-3,3)(8-3,9)(5-4,3)(2-4,8), INCLUSIVE CHAVE DE PAR TIDA DIRETA | C68: UN | D68: 1486.56
A69: 2649 | B69: CONJUNTO MOTO-BOMBA COM MOTOR DE 1/3 CV, TRIFÁSICO, BOMBA CENTRÍFUGA, SUCÇÃO= 3/4", RECALQUE=3/4", PR. MÁX. 18 MCA, ALT. SUCÇÃO 8 MCA. FAIXAS HM (M) - Q (M 3/H) : (17-1,8)(14-4,1)(11-5,6)(8-6,9)(5-8,0), INCLUSIVE CHAVE DE PARTIDA DIR ETA | C69: UN | D69: 1397.97
A70: 2644 | B70: CONJUNTO MOTO-BOMBA COM MOTOR DE 1/4 CV, MONOFÁSICO, BOMBA CENTRÍFUGA, SUCÇÃO =3/4", RECALQUE=3/4", PR. MÁX. 15 MCA, ALT. SUCÇÃO 8 MCA. FAIXAS HM (M) - Q ( M3/H) : (14-1,5)(11-2,6)(8-3,3)(5-3,9)(2-4,4), INCLUSIVE CHAVE DE PARTIDA DIR ETA | C70: UN | D70: 2095.11
A71: 2654 | B71: CONJUNTO MOTO-BOMBA COM MOTOR DE 2 CV, TRIFÁSICO, BOMBA CENTRÍFUGA, SUCÇÃO=1 1/4", RECALQUE=1", PR. MÁX. 36 MCA, ALT. SUCÇÃO 8 MCA. FAIXAS HM (M) - Q (M3/ H) : (30-7,3)(26-10,0)(23-11,7)(20-13,2)(17-14,6)(14-15,9) INCLUSIVE CHAVE DE PARTIDA DIRETA | C71: UN | D71: 6567.3
A72: 2655 | B72: CONJUNTO MOTO-BOMBA COM MOTOR DE 3 CV, TRIFÁSICO, BOMBA CENTRÍFUGA, SUCÇÃO=1 1/4", RECALQUE=1", PR. MÁX. 42 MCA, ALT. SUCÇÃO 8 MCA. FAIXAS HM (M) - Q (M3/ H) : (38-7,2)(34-9,9)(30-12,1)(26-13,9)(23-15,1)(20-16,3), INCLUSIVE CHAVE DE PARTIDA DIRETA | C72: UN | D72: 3532.82
A73: 2647 | B73: CONJUNTO MOTO-BOMBA COM MOTOR DE 3/4 CV, MONOFÁSICO, BOMBA CENTRÍFUGA, SUCÇÃO =1", RECALQUE=1", PR. MÁX. 26 MCA, ALT. SUCÇÃO 8 MCA. FAIXAS HM (M) - Q (M3/H ) : (23-3,4)(20-4,7)(17-5,7)(14-6,6)(11-7,3), INCLUSIVE CHAVE DE PARTIDA DIRE TA | C73: UN | D73: 2264.14
A74: 2651 | C74: UN | D74: 2536.23
B75: CONJUNTO MOTO-BOMBA COM MOTOR DE 3/4 CV, TRIFÁSICO, BOMBA CENTRÍFUGA, SUCÇÃO= 1", RECALQUE=1", PR. MÁX. 26 MCA, ALT. SUCÇÃO 8 MCA. FAIXAS HM (M) - Q (M3/H) : (23-3,4)(20-4,7)(17-5,7)(14-6,6)(11-7,3), INCLUSIVE CHAVE DE PARTIDA DIRETA
A76: 8220 | B76: CONJUNTO MOTO-BOMBA SCHNEIDER MOTOR 10CV, À GASOLINA, TRIFÁSICO (OU SIMILAR) | C76: UN | D76: 14409.04
A77: 8219 | B77: CONJUNTO MOTO-BOMBA SCHNEIDER MOTOR 10CV, TRIFÁSICO (OU SIMILAR) | C77: UN | D77: 11455.16
A78: 10324 | B78: CONJUNTO MOTO-BOMBA SUBMERSÍVEL, SCHNEIDER, MOD. BCS-205, 2CV, TRIFÁSICA, (OU SIMILAR) | C78: UN | D78: 7743.05
A79: 8722 | B79: HIPOCLORADOR / BOMBA DOSADORA ANALÓGICA DE SOLUÇÕES, VAZÃO DE 0,5 À 15 L/H E PRESÃO DE 0 À 15 BAR | C79: UN | D79: 721.86
A80: 13001 | B80: MOTOBOMBA CENTO MONOESTÁGIO P/ INCÊNDIO 12,5 CV - 3,0/ 220/380 V. MODELO BPI - 22 R, TRIFÁSICA SCHNEIDER OU SIMILAR | C80: UN | D80: 12927.48
A81: 13002 | B81: MOTOBOMBA CENTRO MONOESTÁGIO P/ INCÊNDIO SERIE SH MODELO BPI-22 R, 3600, 13,0 CV MOTOR COMBUST. TRIFÁSICA. SCHNEIDER OU SIMILAR | C81: UN | D81: 15779.24
A82: 9225 | B82: INSTALAÇÃO E MONTAGEM DE BOMBA CENTRIFUGA 1,5CV | C82: UN | D82: 18.03
A83: 9226 | B83: INSTALAÇÃO E MONTAGEM DE BOMBA CENTRIFUGA 2CV | C83: UN | D83: 18.03
A84: 9223 | B84: INSTALAÇÃO E MONTAGEM DE BOMBA CENTRIFUGA 4CV | C84: UN | D84: 331.71
A85: 9224 | B85: INSTALAÇÃO E MONTAGEM DE BOMBA CENTRIFUGA 5CV | C85: UN | D85: 178.81
A86: 11129 | B86: REMOÇÃO DE BOMBA CENTRIFUGA 3/4 CV | C86: UN | D86: 18.03
A87: 2589 | B87: BASE COM SOLO-CIMENTO, MISTURADO EM USINA (EXCLUSIVE MATERIAL DE BASE, INCLUS IVE CIMENTO - 176KG/M3) | C87: M³ | D87: 187.62
A88: 2591 | B88: BASE COM SOLO-CIMENTO, MISTURADO EM USINA, COM MATERIAL DA PRÓPRIA ESCAVAÇÃO, INCLUSIVE CIMENTO - 140KG/M3 | C88: M³ | D88: 126.73
A89: 2588 | B89: BASE COM SOLO-CIMENTO, MISTURADO NA PISTA (EXCLUSIVE MATERIAL DE BASE, INCLUS IVE CIMENTO - 130KG/M3) | C89: M³ | D89: 137.66
A90: 2590 | B90: BASE COM SOLO-CIMENTO, MISTURADO NA PISTA, COM MATERIAL DA PRÓPRIA ESCAVAÇÃO, INCLUSIVE CIMENTO - 130KG/M3 | C90: M³ | D90: 119.24
A91: 2614 | B91: BASE DE MACADAME HIDRÁULICO | C91: M³ | D91: 187.5
A92: 10514 | B92: BASE COM BRITA GRADUADA RECICLADA - FAIXA "C" - (EXCLUSIVE TRANSPORTE DA BRIT A) | C92: M³ | D92: 224.02
A93: 9032 | B93: BASE COM BRITA GRADUADA, EXCLUSIVE PÓ DE PEDRA E TRANSPORTE DA BRITA) | C93: M³ | D93: 164.23
A94: 2582 | B94: BASE COM BRITA GRADUADA, EXCLUSIVE TRANSPORTE DA BRITA | C94: M³ | D94: 197.39
A95: 2587 | B95: BASE COM SOLO-BRITA MISTURADO EM USINA, COM MATERIAL DA PRÓPRIA ESCAVAÇÃO, EX CLUSIVE TRANSPORTE DA BRITA | C95: M³ | D95: 105.81
A96: 2586 | B96: BASE COM SOLO-BRITA MISTURADO NA PISTA, COM MATERIAL DA PRÓPRIA ESCAVAÇÃO, SE M TRANSPORTE DA BRITA | C96: M³ | D96: 54.8
A97: 4640 | B97: BASE COM SOLO-BRITA, MISTURADO EM USINA (EXCLUSIVE MATERIAL DE BASE E TRANSPO RTE DA BRITA) | C97: M³ | D97: 111.46
A98: 2583 | B98: BASE COM SOLO-BRITA, MISTURADO NA PISTA (EXCLUSIVE MATERIAL DE BASE E TRANSPO RTE DA BRITA) | C98: M³ | D98: 62.79
A99: 2581 | B99: BASE ESTABILIZADA GRANULOMETRICAMENTE COM MISTURA SOLO-AREIA NA PISTA (EXCLUS IVE MATERIAL DE BASE E AREIA) | C99: M³ | D99: 22.05
A100: 2585 | B100: BASE ESTABILIZADA GRANULOMETRICAMENTE COM MISTURA SOLO-AREIA NA PISTA, COM MA TERIAL DA PRÓPRIA ESCAVAÇÃO, EXCLUSIVE AREIA | C100: M³ | D100: 8.4
A101: 10006 | B101: BASE ESTABILIZADA GRANULOMETRICAMENTE SEM MISTURA (EXCLUSIVE MATERIAL DE BASE ) | C101: M³ | D101: 28.82
A102: 10516 | B102: USINAGEM DE BRITA GRADUADA RECICLADA - FAIXA "C" (EXCLUSIVE MATERIAL) | C102: M³ | D102: 7.41
A103: 2562 | B103: CONCRETO ASFÁLTICO PRÉ-MISTURADO A FRIO - USINAGEM, COM MATERIAL, EXCLUSIVE T RASNPORTE - REV 02 | C103: T | D103: 262.2
A104: 8812 | B104: REMOÇÃO MECANIZADA DE REVESTIMENTO ASFÁLTICO - REV 01 | C104: M³ | D104: 15.45
A105: 7197 | B105: CONTROLE TECNOLÓGICO DE CONCRETO "COM" MOLDAGEM DE CORPOS DE PROVA, DISTANCIA 101 A 150 KM | C105: DIA | D105: 1857.85
A106: 7191 | B106: CONTROLE TECNOLÓGICO DE CONCRETO "COM" MOLDAGEM DE CORPOS DE PROVA, DISTANCIA 31 A 60 KM | C106: DIA | D106: 1001.68
A107: 7194 | B107: CONTROLE TECNOLÓGICO DE CONCRETO "COM" MOLDAGEM DE CORPOS DE PROVA, DISTANCIA 61 A 100 KM | C107: DIA | D107: 1384.17
A108: 7189 | B108: CONTROLE TECNOLÓGICO DE CONCRETO "COM" MOLDAGEM DE CORPOS DE PROVA, DISTANCIA ATÉ 30 KM | C108: DIA | D108: 710.22
A109: 7199 | B109: CONTROLE TECNOLÓGICO DE CONCRETO "COM" MOLDAGEM DE CORPOS DE PROVA, DISTANCIA MAIOR QUE 150 KM | C109: DIA | D109: 2331.38
A110: 11105 | B110: MOLDAGEM DE CORPOS DE PROVA | C110: UN | D110: 3.69
A111: 2629 | B111: FORNECIMENTO DE ASFALTO DILUÍDO CM-30 | C111: T | D111: 8920
A112: 2634 | B112: FORNECIMENTO DE EMULSÃO ASFÁLTICA RR-1C, EXCLUSIVE TRANSPORTE | C112: T | D112: 3430.81
A113: 2592 | B113: IMPRIMAÇÃO - EXECUÇÃO COM FORNECIMENTO DE MATERIAL | C113: M² | D113: 11.01
A114: 2626 | B114: CARGA E DESCARGA DE MEIO-FIO SIMPLES (SEM SARGETA) | C114: M | D114: 2.47
A115: 8190 | B115: GUARDA - CORPO DE PONTE EM CONCRETO MOLDADO NO LOCAL | C115: M | D115: 469.52
A116: 2621 | B116: MEIO-FIO DE CONCRETO SIMPLES COM SARJETA CONJUGADA COM ACABAMENTO LISO (TIPO 02), REJUNTADO COM ARGAMASSA DE CIMENTO E AREIA TRAÇO 1:3 | C116: M | D116: 69.18
A117: 4960 | B117: MEIO-FIO GRANÍTICO, REJUNTADO COM ARGAMASSA DE CIMENTO E AREIA NO TRAÇO 1:3 | C117: M | D117: 42.69
A118: 2622 | B118: MEIO-FIO GRANÍTICO, SOBRE BASE DE CONCRETO SIMPLES E REJUNTADO COM ARGAMASSA DE CIMENTO E AREIA NO TRAÇO 1:3 | C118: M | D118: 48.28
A119: 13170 | B119: MEIO-FIO OU GUIA DE CONCRETO PRE-MOLDADO, TIPO CHAPEU PARA BOCA DE LOBO, DIME NSOES *1,20* X 0,15 X 0,30 M, REJUNTADO COM ARGAMASSA DE CIMENTO E AREIA NO T RAÇO 1:3 | C119: M | D119: 42.21
A120: 4555 | B120: MEIO-FIO PRÉ MOLDADO DE CONCRETO SIMPLES (0,12 X 0,30 X 1,00M), REJUNTADO COM ARGAMASSA DE CIMENTO E AREIA NO TRAÇO 1:3 | C120: M | D120: 32.89
A121: 2620 | B121: MEIO-FIO PRÉ-MOLDADO DE CONCRETO SIMPLES (0,12 X 0,30 X 1,00M), SOBRE BASE DE CONCRETO SIMPLES E REJUNTADO COM ARGAMASSA DE CIMENTO E AREIA TRAÇO 1:3 | C121: M | D121: 36.99
A122: 2625 | B122: REASSENTAMENTO DE MEIO FIO | C122: M | D122: 9.85
A123: 2624 | B123: REMOÇÃO E REPOSIÇÃO DE MEIO-FIO | C123: M | D123: 16.85
A124: 3606 | B124: AREIA-ASFALTO USINADO À QUENTE (A.A.U.Q.), FORNECIDO E APLICADO PELA EMURB, E XCLUSIVE TRANSPORTE | C124: T | D124: 639.46
A125: 3427 | B125: CAUQ - CONCRETO ASFÁLTICO USINADO À QUENTE, APLICADO EM EXECUÇÃO DE RODOVIAS (PROD. = 75T/H), SEM FORNECIMENTO DE MATERIAL, SEM TRANSPORTE E SEM USINAGEM | C125: T | D125: 16.56
A126: 3442 | B126: CONCRETO ASFÁLTICO USINADO À QUENTE (CAUQ), APLICADO EM OBRAS DE RECUPERAÇÃO DE PAVIMENTOS (PROD. = 30T/H), SEM FORNECIMENTO DE MATERIAL, E SEM TRANSPORT E | C126: T | D126: 31.77
A127: 2599 | B127: CONCRETO ASFÁLTICO USINADO À QUENTE (CAUQ), FORNECIDO E APLICADO PELA EMURB ( CAPA ASFÁLTICA), EXCLUSIVE TRANSPORTE | C127: T | D127: 558.29
A128: 10957 | B128: FORNECIMENTO DE CONCRETO ASFÁLTICO USINADO À QUENTE (CAUQ), (CAPA ASFÁLTICA), EXCLUSIVE TRANSPORTE | C128: T | D128: 524.36
A129: 2600 | B129: REPOSIÇÃO DE PAVIMENTAÇÃO ASFÁLTICA, INCLUINDO PINTURA DE LIGAÇÃO, FORNECIMEN TO E APLICAÇÃO DE CAUQ | C129: M² | D129: 68.59
A130: 7178 | B130: USINAGEM DE CAUQ (CAPA DE ROLAMENTO), EXCLUSIVE CAP | C130: T | D130: 137.05
A131: 11466 | B131: PAVIMENTO EM CONCRETO ARMADO FCK=25MPA, DESEMPOLADO, E=10CM, P/ SOBRECARGAS D E ATÉ 4T/M2 C/ TELA SOLDADA Q138 | C131: M² | D131: 108.95
A132: 11467 | B132: PAVIMENTO EM CONCRETO ARMADO FCK=25MPA, DESEMPOLADO, E=12CM, P/ SOBRECARGAS D E ATÉ 6T/M2 C/ TELA SOLDADA Q138 | C132: M² | D132: 123.22
A133: 11468 | B133: PAVIMENTO EM CONCRETO ARMADO FCK=25MPA, DESEMPOLADO, E=14CM, P/ SOBRECARGAS D E ATÉ 8T/M2 C/ TELA SOLDADA Q138 | C133: M² | D133: 148.73
A134: 4712 | B134: LIMPEZA DE PAVIMENTAÇÃO EM PARALEPÍPEDO E EXECUÇÃO DE REJUNTAMENTO COM ARGAM ASSA CIMENTO E AREIA 1:3 | C134: M² | D134: 21.36
A135: 2605 | B135: LOCAÇÃO DE SERVIÇOS DE PAVIMENTAÇÃO | C135: M² | D135: 1.44
A136: 11462 | B136: PAVIMENTAÇÃO EM BLOCO DE CONCRETO VIBROPRENSADO, INTERTRAVADO, COLORIDO, 10X2 0CM, E=10CM, 46UN/M2, NBR9781, FCK(MIN)=35MPA, SOB COXIM AREIA GROSSA COMPACT ADA C/ PLACA VIBRATÓRIA, E(COMP.)=6CM, REJUNTADO C/ AREIA FINA. | C136: M² | D136: 84.99
A137: 11460 | B137: PAVIMENTAÇÃO EM BLOCO DE CONCRETO VIBROPRENSADO, INTERTRAVADO, COLORIDO, 10X2 0CM, E=6CM, 46UN/M2, NBR9781, FCK(MIN)=35MPA, SOB COXIM AREIA GROSSA COMPACTA DA C/ PLACA VIBRATÓRIA, E(COMP.)=6CM, REJUNTADO C/ AREIA FINA. | C137: M² | D137: 78.12
A138: 11461 | B138: PAVIMENTAÇÃO EM BLOCO DE CONCRETO VIBROPRENSADO, INTERTRAVADO, COLORIDO, 10X2 0CM, E=8CM, 46UN/M2, NBR9781, FCK(MIN)=35MPA, SOB COXIM AREIA GROSSA COMPACTA DA C/ PLACA VIBRATÓRIA, E(COMP.)=6CM, REJUNTADO C/ AREIA FINA. | C138: M² | D138: 87.64
A139: 11456 | B139: PAVIMENTAÇÃO EM BLOCO DE CONCRETO VIBROPRENSADO, INTERTRAVADO, COLORIDO, 16 F ACES, 11X22CM, E=10CM, 39UN/M2, NBR9781, FCK(MIN)=35MPA, SOB COXIM AREIA GROS SA COMPACTADA C/ PLACA VIBRATÓRIA, E(COMP.)=6CM, REJUNTADO C/ AREIA FINA. | C139: M² | D139: 110.08
A140: 11454 | B140: PAVIMENTAÇÃO EM BLOCO DE CONCRETO VIBROPRENSADO, INTERTRAVADO, COLORIDO, 16 F ACES, 11X22CM, E=6CM, 39UN/M2, NBR9781, FCK(MIN)=35MPA, SOB COXIM AREIA GROSS A COMPACTADA C/ PLACA VIBRATÓRIA, E(COMP.)=6CM, REJUNTADO C/ AREIA FINA. | C140: M² | D140: 81.73
A141: 11455 | B141: PAVIMENTAÇÃO EM BLOCO DE CONCRETO VIBROPRENSADO, INTERTRAVADO, COLORIDO, 16 F ACES, 11X22CM, E=8CM, 39UN/M2, NBR9781, FCK(MIN)=35MPA, SOB COXIM AREIA GROSS A COMPACTADA C/ PLACA VIBRATÓRIA, E(COMP.)=6CM, REJUNTADO C/ AREIA FINA. | C141: M² | D141: 89.43
A142: 11459 | B142: PAVIMENTAÇÃO EM BLOCO DE CONCRETO VIBROPRENSADO, INTERTRAVADO, COR NATURAL, 1 0X20CM, E=10CM, 46UN/M2, NBR9781, FCK(MIN)=35MPA, SOB COXIM AREIA GROSSA COMP ACTADA C/ PLACA VIBRATÓRIA, E(COMP.)=6CM, REJUNTADO C/ AREIA FINA. | C142: M² | D142: 91.87
A143: 11457 | B143: PAVIMENTAÇÃO EM BLOCO DE CONCRETO VIBROPRENSADO, INTERTRAVADO, COR NATURAL, 1 0X20CM, E=6CM, 46UN/M2, NBR9781, FCK(MIN)=35MPA, SOB COXIM AREIA GROSSA COMPA CTADA C/ PLACA VIBRATÓRIA, E(COMP.)=6CM, REJUNTADO C/ AREIA FINA. | C143: M² | D143: 72.08
A144: 11458 | B144: PAVIMENTAÇÃO EM BLOCO DE CONCRETO VIBROPRENSADO, INTERTRAVADO, COR NATURAL, 1 0X20CM, E=8CM, 46UN/M2, NBR9781, FCK(MIN)=35MPA, SOB COXIM AREIA GROSSA COMPA CTADA C/ PLACA VIBRATÓRIA, E(COMP.)=6CM, REJUNTADO C/ AREIA FINA. | C144: M² | D144: 82.58
A145: 11453 | B145: PAVIMENTAÇÃO EM BLOCO DE CONCRETO VIBROPRENSADO, INTERTRAVADO, COR NATURAL, 1 6 FACES, 11X22CM, E=10CM, 39UN/M2, NBR9781, FCK(MIN)=35MPA, SOB COXIM AREIA G ROSSA COMPACTADA C/ PLACA VIBRATÓRIA, E(COMP.)=6CM, REJUNTADO C/ AREIA FINA. | C145: M² | D145: 87.98
A146: 11451 | B146: PAVIMENTAÇÃO EM BLOCO DE CONCRETO VIBROPRENSADO, INTERTRAVADO, COR NATURAL, 1 6 FACES, 11X22CM, E=6CM, 39UN/M2, NBR9781, FCK(MIN)=35MPA, SOB COXIM AREIA GR OSSA COMPACTADA C/ PLACA VIBRATÓRIA, E(COMP.)=6CM, REJUNTADO C/ AREIA FINA. | C146: M² | D146: 86.07
A147: 11452 | C147: M² | D147: 81.45
B148: PAVIMENTAÇÃO EM BLOCO DE CONCRETO VIBROPRENSADO, INTERTRAVADO, COR NATURAL, 1 6 FACES, 11X22CM, E=8CM, 39UN/M2, NBR9781, FCK(MIN)=35MPA, SOB COXIM AREIA GR OSSA COMPACTADA C/ PLACA VIBRATÓRIA, E(COMP.)=6CM, REJUNTADO C/ AREIA FINA.
A149: 11465 | B149: PAVIMENTAÇÃO EM BLOCO DE CONCRETO VIBROPRENSADO, INTERTRAVADO, COR NATURAL, H EXAGONAL, E=10CM, 18UN/M2, NBR9781, FCK(MIN)=35MPA, SOB COXIM AREIA GROSSA C OMPACTADA C/ PLACA VIBRATÓRIA, E(COMP.)=6CM, REJUNTADO C/ AREIA FINA. | C149: M² | D149: 87.01
A150: 11464 | B150: PAVIMENTAÇÃO EM BLOCO DE CONCRETO VIBROPRENSADO, INTERTRAVADO, COR NATURAL, H EXAGONAL, E=8CM, 18UN/M2, NBR9781, FCK(MIN)=35MPA, SOB COXIM AREIA GROSSA CO MPACTADA C/ PLACA VIBRATÓRIA, E(COMP.)=6CM, REJUNTADO C/ AREIA FINA. | C150: M² | D150: 77.19
A151: 11463 | B151: PAVIMENTAÇÃO EM BLOCO DE CONCRETO VIBROPRENSADO, INTERTRAVADO, COR NATURAL, H EXAGONAL, 25X29CM, E=6CM, 18UN/M2, NBR9781, FCK(MIN)=35MPA, SOB COXIM AREIA G ROSSA COMPACTADA C/ PLACA VIBRATÓRIA, E(COMP.)=6CM, REJUNTADO C/ AREIA FINA. | C151: M² | D151: 66.95
A152: 9104 | B152: PAVIMENTAÇÃO EM PARALELEPÍPEDO GRANÍTICO SOBRE COLCHÃO DE AREIA, REJUNTADO CO M ARGAMASSA DE CIMENTO E AREIA TRAÇO 1:3, INCLUSIVE FRETE DO PARALELEPÍPEDO G RANÍTICO | C152: M² | D152: 102.36
A153: 11706 | B153: PAVIMENTAÇÃO EM PRE-MOLDADO TIPO CONCREGRAMA, MODELO PAVI-GRADE, DIM:45 X 60C M, E=9,5CM, SOBRE COLCHÃO DE AREIA, COM PREENCHIMENTO DOS VÃOS COM GRAMA | C153: M² | D153: 184.8
A154: 2607 | B154: PISO DE BLOCOS (LAJOTA) HEXAGONAIS (SEXTAVADO) DE CONCRETO FCK=15MPA E = 10CM CONCRETO SOBRE COLCHÃO DE AREIA | C154: M² | D154: 98.25
A155: 2608 | B155: PISO DE BLOCOS (LAJOTA) HEXAGONAIS (SEXTAVADO) DE CONCRETO FCK=15MPA E = 5CM CONCRETO SOBRE COLCHÃO DE AREIA | C155: M² | D155: 78.81
A156: 2604 | B156: PISO DE BLOCOS (LAJOTA) HEXAGONAIS (SEXTAVADO) DE CONCRETO FCK=15MPA E = 8CM CONCRETO SOBRE COLCHÃO DE AREIA | C156: M² | D156: 88.71
A157: 2602 | B157: REMOÇÃO E REASSENTAMENTO DE PARALELEPÍPEDO SOBRE COLCHÃO DE AREIA | C157: M² | D157: 59.64
A158: 2606 | B158: REPOSIÇÃO DE PAVIMENTAÇÃO EM PARALELEPÍPEDO GRANÍTICO, EXCLUSIVE PARALELOS, I NCLUSIVE COLCHÃO DE AREIA DE 0.13 M E REJ. ARG. CIMENTO E AREIA 1:3 | C158: M² | D158: 43.13
A159: 7176 | B159: EXECUÇÃO DE PINTURA ASFÁLTICA DE LIGAÇÃO, EXCLUSIVE FORNECIMENTO DE LIGANTE | C159: M² | D159: 0.24
A160: 2593 | B160: EXECUÇÃO DE PINTURA ASFÁLTICA DE LIGAÇÃO, INCLUSIVE FORNECIMENTO DE LIGANTE, EXCLUSIVE TRANSPORTE | C160: M² | D160: 1.6
A161: 2561 | B161: SOLO-BRITA - USINAGEM | C161: M³ | D161: 7.5
A162: 2560 | B162: SOLO-CIMENTO - USINAGEM | C162: M³ | D162: 7.61
A163: 10513 | B163: USINAGEM DE BRITA GRADUADA RECICLADA - FAIXA "C" | C163: M³ | D163: 207.7
A164: 4641 | B164: USINAGEM DE BRITA GRADUADA, EXCLUSIVE MATERIAL | C164: M³ | D164: 7.57
A165: 12100 | B165: REFORÇO DO SUB-LEITO | C165: M³ | D165: 31.26
A166: 2559 | B166: REFORÇO DO SUB-LEITO COM ADIÇÃO DE MATERIAL DE JAZIDA P/ ATERRO OU AREIA FINA , COMPACTADO, AQUISIÇÃO, EXCLUSIVE AQUISIÇÃO DE MATERIAL E TRANPORTE | C166: M³ | D166: 25.03
A167: 2558 | B167: REGULARIZAÇÃO, GRADEAMENTO, E COMPACTAÇÃO DE SUB-LEITO, COM ROLO DE PNEUS PÉ DE CARNEIRO E DE PNEUS 25T | C167: M² | D167: 1.25
A168: 10233 | B168: SARJETA DE PARALELEPÍPEDO REJUNTADOS, EXCLUSIVE FRETE | C168: M² | D168: 102.36
A169: 2576 | B169: SUB-BASE DE SOLO CIMENTO, COM MISTURA EM USINA (EXCLUSIVE MATERIAL DE SUB-BAS E, INCLUSIVE CIMENTO) | C169: M³ | D169: 147.21
A170: 2578 | B170: SUB-BASE DE SOLO CIMENTO, COM MISTURA EM USINA E MATERIAL DA PRÓPRIA ESCAVAÇÃ O | C170: M³ | D170: 121.18
A171: 2577 | B171: SUB-BASE DE SOLO CIMENTO, COM MISTURA NA PISTA (EXCLUSIVE MATERIAL DE SUB-BAS E, INCLUSIVE CIMENTO) | C171: M³ | D171: 135.45
A172: 2579 | B172: SUB-BASE DE SOLO CIMENTO, COM MISTURA NA PISTA E MATERIAL DA PRÓPRIA ESCAVAÇÃ O | C172: M³ | D172: 117.03
A173: 10195 | B173: MISTURA SOLO NA PISTA, COM MATERIAL DA PRÓPRIA ESCAVAÇÃO, EXCLUSIVE SOLO | C173: M³ | D173: 1.29
A174: 2571 | B174: SUB-BASE DE SOLO-BRITA MISTURADO EM USINA, COM MATERIAL DA PRÓPRIA ESCAVAÇÃO, EXCLUSIVE TRANSPORTE DA BRITA | C174: M³ | D174: 82.9
A175: 2570 | B175: SUB-BASE DE SOLO-BRITA MISTURADO NA PISTA, COM MATERIAL DA PRÓPRIA ESCAVAÇÃO (40% DE BRITA), EXCLUSIVE TRANSPORTE DA BRITA | C175: M³ | D175: 87.85
A176: 2575 | B176: SUB-BASE DE SOLO-BRITA MISTURADO NA PISTA, COM MATERIAL DA PRÓPRIA ESCAVAÇÃO (50% DE SOLO, 20% DE AREIA E 30% DE BRITA), EXCLUSIVE AREIA E TRANSPORTE DA B RITA | C176: M³ | D176: 68.34
A177: 2573 | B177: SUB-BASE DE SOLO-BRITA MISTURADO NA PISTA, COM MATERIAL DA PRÓPRIA ESCAVAÇÃO (60% DE SOLO, 15% DE AREIA E 25% DE BRITA), EXCLUSIVE AREIA E TRANSPORTE DA B RITA | C177: M³ | D177: 58.58
A178: 2574 | B178: SUB-BASE DE SOLO-BRITA MISTURADO NA PISTA, COM MATERIAL DA PRÓPRIA ESCAVAÇÃO (60% DE SOLO, 20% DE AREIA E 20% DE BRITA), EXCLUSIVE AREIA E TRANSPORTE DA B RITA | C178: M³ | D178: 48.83
A179: 2572 | B179: SUB-BASE DE SOLO-BRITA MISTURADO NA PISTA, COM MATERIAL DA PRÓPRIA ESCAVAÇÃO (65% DE SOLO, 15% DE AREIA E 20% DE BRITA), EXCLUSIVE AREIA E TRANSPORTE DA B RITA | C179: M³ | D179: 48.83
A180: 2564 | B180: SUB-BASE ESTABILIZADA GRANULOMETRICAMENTE COM MISTURA DE SOLO NA PISTA (EXCLU SIVE MATERIAL DE SUB-BASE) | C180: M³ | D180: 25.51
A181: 2565 | C181: M³ | D181: 24.23
B182: SUB-BASE ESTABILIZADA GRANULOMETRICAMENTE COM MISTURA SOLO-AREIA NA PISTA (EX CLUSIVE MATERIAL DE SUB-BASE E AREIA))
A183: 2569 | B183: SUB-BASE ESTABILIZADA GRANULOMETRICAMENTE COM MISTURA SOLO-AREIA NA PISTA, CO M MATERIAL DA PRÓPRIA ESCAVAÇÃO, EXCLUSIVE AREIA) | C183: M³ | D183: 8.4
A184: 2563 | B184: SUB-BASE ESTABILIZADA GRANULOMETRICAMENTE SEM MISTURA (EXCLUSIVE MATERIAL DE SUB-BASE) | C184: M³ | D184: 25.46
A185: 9176 | B185: SUB-BASE ESTABILIZADA GRANULOMETRICAMENTE SEM MISTURA (SEM TRANSPORTE) E SEM FORNECIMENTO DE MATERIAL - REV 01 | C185: M³ | D185: 7.78
A186: 2596 | B186: TRATAMENTO SUPERFICIAL DUPLO COM CIMENTO ASFÁLTICO (CAP), EXCLUSIVE LIGANTE | C186: M² | D186: 6.4
A187: 2594 | B187: TRATAMENTO SUPERFICIAL SIMPLES COM CIMENTO ASFÁLTICO (CAP), EXCLUSIVE LIGANTE | C187: M² | D187: 3.19
A188: 13335 | B188: LIMPEZA DE POÇO ARTESIANO ATÉ 80M DE PROFUNDIDADE | C188: UN | D188: 11785.83
A189: 13003 | B189: CIMENTAÇÃO ANELAR - POÇO COM TUBO DE 14.3/4" E PERFURAÇÃO DE 22", EM PASTA DE CIMENTO E AREIA TRAÇO 1:3 COM ADITIVO ACELERADOR DE PEGA | C189: M | D189: 359.54
A190: 11683 | B190: CIMENTAÇÃO ANELAR - POÇO COM TUBO DE 6" E PERFURAÇÃO DE 12.1/4", EM PASTA DE CIMENTO COM ADITIVO ACELERADOR DE PEGA | C190: M | D190: 27.34
A191: 11681 | B191: CIMENTAÇÃO ANELAR - POÇO COM TUBO DE 6" E PERFURAÇÃO DE 12.1/4", EM PASTA DE CIMENTO E AREIA TRAÇO 1:3 COM ADITIVO ACELERADOR DE PEGA | C191: M | D191: 60.75
A192: 5912 | B192: ASSENTAMENTO DE ADAPTADOR DE FLANGE DE GRANDE TOLERÂNCIA "ULTRA QUICK", EM FE RRO FUNDIDO, DN 50MM - TIPO A E DN 80MM - TIPO B | C192: UN | D192: 5.36
A193: 5913 | B193: ASSENTAMENTO DE ADAPTADOR DE FLANGE DE GRANDE TOLERÂNCIA "ULTRA QUICK", EM FE RRO FUNDIDO, DN 80MM - TIPO C | C193: UN | D193: 6.32
A194: 5914 | B194: ASSENTAMENTO DE ADAPTADOR DE FLANGE DE GRANDE TOLERÂNCIA "ULTRA QUICK", EM FE RRO FUNDIDO, DN 100MM - TIPO D | C194: UN | D194: 7.26
A195: 5915 | B195: ASSENTAMENTO DE ADAPTADOR DE FLANGE DE GRANDE TOLERÂNCIA "ULTRA QUICK", EM FE RRO FUNDIDO, DN 150MM - TIPO E E TIPO F | C195: UN | D195: 11.28
A196: 5916 | B196: ASSENTAMENTO DE ADAPTADOR DE FLANGE DE GRANDE TOLERÂNCIA "ULTRA QUICK", EM FE RRO FUNDIDO, DN 200MM - TIPO H | C196: UN | D196: 16.84
A197: 5917 | B197: ASSENTAMENTO DE ADAPTADOR DE FLANGE DE GRANDE TOLERÂNCIA "ULTRA QUICK", EM FE RRO FUNDIDO, DN 250MM - TIPO J | C197: UN | D197: 22.48
A198: 5918 | B198: ASSENTAMENTO DE ADAPTADOR DE FLANGE DE GRANDE TOLERÂNCIA "ULTRA QUICK", EM FE RRO FUNDIDO, DN 300MM - TIPO K | C198: UN | D198: 30.37
A199: 5919 | B199: ASSENTAMENTO DE JUNTA GIBAULT EM FERRO FUNDIDO, DN 50MM | C199: UN | D199: 6.44
A200: 5920 | B200: ASSENTAMENTO DE JUNTA GIBAULT EM FERRO FUNDIDO, DN 80MM | C200: UN | D200: 7.56
... 9230 more rows

Sheet INSUMOS ORSE
A1: Ref : | B1: 2023-04-01
A2: CÓDIGO | B2: DESCRIÇÃO | C2: UN | D2: CUSTO UNIT
A3: 8792 | B3: EQUIPAMENTO DE SONDAGEM A PERCUSSÃO | C3: UN | D3: 25349.44
A4: 4246 | B4: ALUGUEL DE ROLO COMPACTADOR DYNAPAC CA- 250P PÉ DE CARNEIRO AUTOP. 11,25 T V IBRAT | C4: H | D4: 108.44
A5: 6701 | B5: APLICADOR DE MATERIAL TERMOPLÁSTICO POR EXTRUSÃO, ELGIMAQ OU SIMILAR | C5: H | D5: 12.12
A6: 2450 | B6: CAMINHÃO BASC. 15,0T/10,0M3 ( M. BENZ LK 1418 -170,0KW OU EQUIVALENTE) | C6: H | D6: 66.39
A7: 2451 | B7: CAMINHAO BASC. 9 T/6,0 M3 (M. BENZ - 1315 -150,0 KW) | C7: H | D7: 47.16
A8: 4994 | B8: CAMINHÃO BASCULANTE : MERCEDES BENZ : ATEGO 1518/36 - 5 M3 - 8,8 T | C8: H | D8: 47.16
A9: 8488 | B9: CAMINHÃO CARROCERIA - DE MADEIRA 15 T (170 KW)- FONTE:DNIT | C9: H | D9: 139.65
A10: 10434 | B10: CAMINHÃO CARROCERIA DE MADEIRA 9 T - FONTE:DNIT | C10: H | D10: 96.04
A11: 2454 | B11: CAMINHAO GUINDAUTO 11,5 T (M.BENZ - L 1620/57 - 184,0 HP) | C11: H | D11: 143.72
A12: 2456 | B12: CAMINHÃO GUINDAUTO 6,5 T ( M. BENZ - L1620/51 - 143,0 HP) | C12: H | D12: 113.16
A13: 2457 | B13: CAMINHÃO GUINDAUTO 8,5 T (M.BENZ - L 1620/51- 1840 HP | C13: H | D13: 129.31
A14: 2452 | B14: CAMINHAO TOCO, PBT = 9700KG, COM CARROCERIA DE MADEIRA 2,50X7,00X0,50M, POTÊN CIA 160 CV | C14: H | D14: 48.65
A15: 4233 | B15: COMPRESSOR DE AR 60 PCM | C15: H | D15: 10.03
A16: 4236 | B16: DISTRIBUIDOR DE AGREGADO AUTOPROPELIDO ROMANELI - DAR 5000 | C16: H | D16: 133.46
A17: 4237 | B17: DISTRIBUIDOR DE AGREGADO DE PNEUS REBOCÁVEL CMV | C17: H | D17: 17.64
A18: 2465 | B18: ESCAVADEIRA COM DRAG-LINE 760L | C18: H | D18: 177.06
A19: 4680 | B19: ESCAVADEIRA HIDRAÚLICA SOBRE ESTEIRA, CATERPILLAR: 320DL - CAP 600L P/ LONGO ALCANCE | C19: H | D19: 110.65
A20: 11046 | B20: ESCAVADEIRA HIDRAÚLICA SOBRE ESTEIRA, CATERPILLAR: 320DL - CAP 600L P/ LONGO ALCANCE, COM ROMPEDOR HIDRAÚLICO | C20: H | D20: 231.48
A21: 9725 | B21: FORNECIMENTO E MONTAGEM DO SISTEMA DE ABASTECIMENTO DE COMBUSTÍVEL - TERMINAL PESQUEIRO DE ARACAJU | C21: H | D21: 30594.41
A22: 4239 | B22: GRUPO GERADOR 110 KVA (88 KW) | C22: H | D22: 18
A23: 4241 | B23: GRUPO GERADOR 40 KVA (32KW) | C23: H | D23: 11.08
A24: 2475 | B24: MOTONIVELADORA 15000 KG COM ESCARIFICADOR (CAT - 140M - 185,0 HP OU EQUIVALEN TE) | C24: H | D24: 150.88
A25: 4242 | B25: MOTONIVELADORA COM ESCARIFICADOR (CAT - 120H - 0 HP OU EQUIVALENTE) | C25: H | D25: 138.64
A26: 13523 | B26: MOTOSCRAPER 304KW - 407 HP | C26: H | D26: 180.81
A27: 2477 | B27: PÁ - CARREGADEIRA DE ESTEIRA 1,53M3 (CAT - 953 - 130,0 HP) | C27: H | D27: 160.11
A28: 2478 | B28: PA CARREG. S/ PNEUS CATERPILAR - 950 G H | C28: H | D28: 165.96
A29: 4244 | B29: PA CARREGADEIRA SOBRE PNEUS CATERPILLAR - 924 G | C29: H | D29: 132.74
A30: 2479 | B30: PERFURATRIZ PNEUMÁTICA (ATLAS COPCO -RH 571 5L) | C30: H | D30: 3.1
A31: 4245 | B31: PERFURATRIZ SOBRE ESTEIRAS : ATLAS COPCO : ROC 442PC -CRAWIER DRILL | C31: H | D31: 60
A32: 2481 | B32: PULVINIX A. PROP. 25 M3/H (T-TERRA - SS PRM 7 - 188,0 HP OU EQUIVALENTE) | C32: H | D32: 128.31
A33: 2482 | B33: RETROESCAVADEIRA PNEUS (MASSEY FERGUSON MF - 86 HF OU EQUIVALENTE) | C33: H | D33: 76.57
A34: 2485 | B34: ROLO LISO VIB. A. PROP. 10,0 T (T-TERRA - SPV 84 LISO - 130,0 HP) | C34: H | D34: 95.56
A35: 2487 | B35: ROLO PE CARNEIRO A. PROP. (DYNAPAC: CA - 250P OU EQUIVALENTE) | C35: H | D35: 96.62
A36: 4247 | B36: ROLO PNEU A PROP. 21 T (T-TERRA SP 8000 - 97 KW OU EQUIVALENTE) | C36: H | D36: 96.62
A37: 2488 | B37: ROLO PNEU A. PROP. 25 T (CATERPILLAR - PS -360 - 145,0 HP OU EQUIVALENTE) | C37: H | D37: 118.11
A38: 2489 | B38: ROLO TANDEM A. PROP. 10,0 T (MULLER - RT 82H - 58,5 HP) | C38: H | D38: 48.21
A39: 2486 | B39: ROLO TANDEM PARA ASFALTO/SOLOS DYNAPAC CC900 OU SIMILAR | C39: H | D39: 75.15
A40: 4248 | B40: ROLO TANDEM VIB. A. PROP. 10,9 T (DYNAPAC CC-422C - 112 KW) | C40: H | D40: 158.16
A41: 11862 | B41: ROMPEDOR HIDRAÚLICO (36 TONELADAS) - MONTADO EM ESCAVADEIRA HIDRAÚLICA, INCLU SIVE OPERADOR, COMBUSTÍVEL E ALIMENTAÇÃO DO OPERADOR | C41: H | D41: 293.36
A42: 10031 | B42: TANQUE CILÍNDRICO AÉREO, PLENO, CAPACIDADE 15.000 LITROS EM AÇO CARBONO, NBR 15461, INCLUSIVE ESCADA METÁLICO | C42: UN | D42: 10142.26
A43: 9719 | B43: TANQUE CILÍNDRICO AÉREO, PLENO, CAPACIDADE 30.000 LITROS EM AÇO CARBONO, DES. 90000421 D.I.1.2.550 PADRÃO NBR 15461, INCLUSIVE ESCADA E BERÇO METÁLICO | C43: H | D43: 23625.8
A44: 4249 | B44: TANQUE ESTACIONÁRIO 20.000 L | C44: H | D44: 3.41
A45: 2499 | B45: TRATOR AGRÍCOLA PNEU (MASSEY FERGUSON - MF 292/4 - 105,0 HP) | C45: H | D45: 84.86
A46: 2500 | B46: TRATOR ESTEIRA (CAT - D4E - 75,0 HP OU EQUIVALENTE) | C46: H | D46: 165.01
A47: 2501 | B47: TRATOR ESTEIRA (CAT - D6M - XL - 163-6A NACIONAL 140,0 HP OU EQUIVALENTE) | C47: H | D47: 196.71
A48: 2502 | B48: TRATOR ESTEIRA D8R -PS - 183 + 85 - NACIONAL | C48: H | D48: 196.71
A49: 2503 | B49: TRATOR RIPPER (CAT - D8K - 300,0 HP OU EQUIVALENTE) | C49: H | D49: 249.18
A50: 4234 | B50: VIBRO-ACABADORA DE ASFALTO SOBRE ESTEIRA 74KW | C50: H | D50: 139.38
A51: 9476 | B51: ALUGUEL DE CAMINHAO GUINDAUTO ATÉ 10,0 T | C51: DIÁRIA | D51: 900
A52: 5935 | B52: ALUGUEL DE LIXADEIRA | C52: H | D52: 0.83
A53: 6798 | B53: ALUGUEL DE MARTELETE 5,9KG 220/ | C53: H | D53: 1.87
A54: 13175 | B54: ALUGUEL DE MARTELETE ROTATIVO E ROMPEDOR MAKITA OU SIMILAR 780/800W 3,9KG 110 V | C54: DIA | D54: 30
A55: 6799 | B55: ALUGUEL DE MARTELO 15KG 220V | C55: H | D55: 35
A56: 5893 | B56: CAMINHAO GUINDAUTO 15,0 T (M.BENZ - L 1313 - 152,0 HP / MADAL MD 20504 OU EQU IVALENTE) | C56: H | D56: 70
A57: 5894 | C57: H | D57: 70
B58: CAMINHAO GUINDAUTO 20,0 T (M.BENZ - L 1313 - 152,0 HP / MADAL MD 40507 OU EQU IVALENTE)
A59: 13195 | B59: MARTELETE ROTATIVO E ROMPEDOR BOSCH OU SIMILAR 820W GBH2-24D 110V/220 | C59: UND | D59: 789
A60: 5895 | B60: TALHA MANUAL 0,5 T, ELEV.=5,0 M | C60: UN | D60: 490.07
A61: 4415 | B61: VEÍCULO LEVE - VOLKSWAGEN:GOL OU SIMILAR | C61: H | D61: 13.18
A62: 5896 | B62: VEÍCULO TIPO SEDAN OU PICK-UP CAPACIDADE 0,6 TON | C62: H | D62: 8.33
A63: 11720 | B63: ALUGUEL DE ADUBADEIRA MECÂNICA COM CAPACIDADE DE 50 LITROS | C63: MÊS | D63: 160.54
A64: 11717 | B64: ALUGUEL DE AMOLADOR ELÉTRICO PARA LÂMINAS DAS MÁQUINAS HELICOIDAIS | C64: MÊS | D64: 474.56
A65: 6441 | B65: ALUGUEL DE BOMBA PARA TESTE HIDRÓSTÁTICO EM ADUTORAS | C65: H | D65: 3.59
A66: 9732 | B66: ALUGUEL DE CADEIRINHA P/ FACHADA | C66: MÊS | D66: 272.5
A67: 2455 | B67: ALUGUEL DE CAMINHÃO GUINDAUTO 3,0 T ( M. BENZ - 1215 C/48- 143,0 HP | C67: H | D67: 100.9
A68: 2460 | B68: ALUGUEL DE COMPACTADOR PLACA 156 KG (DYNAPAC - CM 13 DIESEL - 4,0 HP) | C68: H | D68: 2.27
A69: 2461 | B69: ALUGUEL DE COMPACTADOR PLACA 415 KG (DYNAPAC - CM 20 DIESEL - 6,0 HP) | C69: H | D69: 2.73
A70: 2462 | B70: ALUGUEL DE COMPACTADOR PNEUMÁTICO (DYNAPAC - LC 71 GASOLINA - 2,5 HP) | C70: H | D70: 2.73
A71: 10764 | B71: ALUGUEL DE FURADEIRA INDUSTRIAL | C71: DIA | D71: 0.16
A72: 10765 | B72: ALUGUEL DE FURADEIRA PROFISSIONAL | C72: DIA | D72: 21.52
A73: 9731 | B73: ALUGUEL DE GUINCHO VELOX ( FOGUETINHO ) | C73: MÊS | D73: 785.96
A74: 4182 | B74: ALUGUEL DE LIXADEIRA INDUSTRIAL MARCA BOSCH | C74: H | D74: 1.25
A75: 2717 | B75: ALUGUEL DE MAKITA | C75: DIA | D75: 7.05
A76: 9730 | B76: ALUGUEL DE MAKITÃO | C76: DIA | D76: 50.45
A77: 9733 | B77: ALUGUEL DE MAKITÃO | C77: QUIZ | D77: 504.66
A78: 9734 | B78: ALUGUEL DE MAKITÃO | C78: MÊS | D78: 807.44
A79: 2871 | B79: ALUGUEL DE MÁQUINA ACABADORA DE SUPERFÍCIE DE CONCRETO (TRIFÁSICA) COM 1 JOG O DE PÁS E DISCO DE ACABAMENTO | C79: H | D79: 7.56
A80: 11714 | B80: ALUGUEL DE MÁQUINA DE PODAR GRAMA COM HELICOIDAL NAS DIMENSÕES 0,80X1,00M, CO M 09 LÂMINAS E COLETOR DE GRAMA | C80: MÊS | D80: 1406.3
A81: 10575 | B81: ALUGUEL DE MÁQUINA DESBOBINADEIRA DE AÇO | C81: DIA | D81: 0.26
A82: 4178 | B82: ALUGUEL DE MÁQUINA LAVAJATO PRESSÃO MÍNIMA 1200LB COM MANGUEIRA E BICO DIREC IONAL | C82: H | D82: 1.85
A83: 11718 | B83: ALUGUEL DE MÁQUINA PARA MARCAÇÃO DE GRAMADOS (PINTURA DAS ÁREAS DE JOGOS) | C83: MÊS | D83: 313.01
A84: 2790 | B84: ALUGUEL DE MÁQUINA PARA PINTURA DE FAIXA A QUENTE P/ MATERIAL TERMOPLÁSTICO | C84: H | D84: 40.38
A85: 8863 | B85: ALUGUEL DE MÁQUINA SOLDA - 250AMP - 8KW | C85: H | D85: 0.08
A86: 2474 | B86: ALUGUEL DE MÁQUINA SOLDA - 300AMP/220/380V TRIFÁSICA : CAPACIDADE - PEQUENA | C86: H | D86: 1.89
A87: 8250 | B87: ALUGUEL DE MÁQUINA SOLDA - 475A TRIFÁSICA : CAPACIDADE - GRANDE | C87: H | D87: 3.79
A88: 11716 | B88: ALUGUEL DE PULVERIZADOR MOTORIZADO COM 03 BICOS COM CAPACIDADE DE 120 LITROS | C88: MÊS | D88: 318.49
A89: 11719 | B89: ALUGUEL DE ROLO NIVELADOR E COMPACTADOR COM CAPACIDADE DE 500KG | C89: MÊS | D89: 269.48
A90: 10576 | B90: ALUGUEL DE SERRA CIRCULAR ESTACIONÁRIA | C90: DIA | D90: 0.57
A91: 10224 | B91: ALUGUEL DE SERRA CIRCULAR PORTÁTIL | C91: DIA | D91: 0.16
A92: 11721 | B92: ALUGUEL DE TRATOR TRAP 24HP COM 03 LÂMINAS DE 0,80M | C92: MÊS | D92: 1106.45
A93: 11722 | B93: ALUGUEL DE VARREDOR MECÂNICO PARA GRAMADOS E JARDINS, PARA LIMPEZA DE FOLHAS E PALHAS | C93: MÊS | D93: 180.6
A94: 4812 | B94: BATE ESTACA-MARTELO ATE 3,0T DIESEL 160 HP TORRE 15 M MAGAN IM 1520 BS | C94: H | D94: 84.95
A95: 4176 | B95: BICOS E CALAFATE | C95: UN | D95: 9.98
A96: 12015 | B96: BOMBA PARA INCÊNDIO A DIESEL 10 CV, VAZÃO DE 38,00 M³/H E HMAN= 50 M.C.A | C96: UN | D96: 6211.91
A97: 13147 | B97: BOMBA PARA INCÊNDIO À DIESEL 5 CV, AUTO ESCOVANTE, VAZÃO MAX. DE 36,00 M³/H, HMAN = 8 M.C.A. | C97: UN | D97: 2675.97
A98: 14007 | B98: BOMBA PARA INCÊNDIO JOCKEY 1 1/2" CV | C98: UN | D98: 2816
A99: 12017 | B99: BOMBA PARA INCÊNDIO JOCKEY 2CV | C99: UN | D99: 1579.56
A100: 2463 | B100: COMPRESSOR 250 PCM (ATLAS COPCO - XA-120DD - 94,0 HP OU EQUIVALENTE) | C100: H | D100: 12.59
A101: 2464 | B101: COMPRESSOR 762 PCM (ATLAS COPCO - XA-360SD - 180,0 HP OU EQUIVALENTE) | C101: H | D101: 26.68
A102: 7897 | B102: COMPRESSOR CHIAPERINI AR DIRETO G3 COM KIT PINTURA, LIMPEZA, ENCHER E CALIBRA R PNEUS | C102: H | D102: 0.34
A103: 11420 | B103: COMPRESSOR DE AR P/ PINTURA C/ FILTRO (2 KW) | C103: H | D103: 6.45
A104: 6789 | B104: DISCO DE DESBASTE 7", PARA FERRO | C104: UN | D104: 8
A105: 10184 | B105: ELEVADOR DE OBRA - CREMALHEIRA | C105: MÊS | D105: 4037.16
A106: 7255 | B106: EQUIP. PARA SOLDA : MAX BANTAM : 2000 - TRANSFORMADOR | C106: H | D106: 0.08
A107: 5897 | B107: EQUIPAMENTO HIDROJATO | C107: H | D107: 16.26
A108: 9561 | B108: EQUIPAMENTO PARA HIDROSSEMEADURA - 5.500L (130 KW) | C108: H | D108: 125.04
A109: 6790 | B109: ESMERILHADEIRA 850RPM | C109: MÊS | D109: 131.19
A110: 14094 | B110: ESTAÇÃO TOTAL ELETRÔNICA COM ALCANCE MÁXIMO DE 3.000 M - SICRO | C110: CHP | D110: 4.6
A111: 11081 | B111: FORNECIMENTO E INSTALAÇÃO DE GRUPO GERADOR COM CAPACIDADE DE 55KVA COM QUADRO AUTOMÁTICO, BANCO DE BATERIAS, TANQUE DE ÓLEO DIESEL - COMPLETO | C111: UN | D111: 45418.28
A112: 11248 | B112: FURADEIRA E PARAFUSADEIRA ELETRICA BOSCH OU SIMILAR PROFISSIONAL | C112: UN | D112: 246
A113: 4983 | B113: FURADEIRA INDUSTRIAL | C113: H | D113: 2.69
A114: 2470 | B114: GRUPO GERADOR (STEMAC-AUTOMÁTICO 115/103 KVA OU EQUIVALENTE) - QUADRO COMANDO AUTOMATICO | C114: H | D114: 56.07
A115: 2468 | B115: GRUPO GERADOR 180KVA (144 KW) | C115: H | D115: 21.53
A116: 6670 | B116: GRUPO GERADOR 260 KVA, TRIFÁSICO, 220/127 V, POTÊNCIA DE 362 CV, 60 HZ, COM Q UADRO DE COMANDO E CONTROLE USCA MSXXI, MOTOR DIESEL 6CTAA8.3-G, 6 CILINDROS, CUMMINS OU SIMILAR | C116: UN | D116: 295619.5
A117: 2471 | B117: GRUPO GERADOR 80 KVA (ALUGUEL MENSAL) | C117: MS | D117: 2675.93
A118: 9380 | B118: GRUPO GERADOR STEMAC-AUTOMÁTICO 115/103 KVA OU SIMILAR(PAGAR SOMENTE AS HORAS EFETIVAMENTE TRABALHADAS FACE A ESTAMATIVA DE 200 HORAS) | C118: H | D118: 56.07
A119: 10934 | B119: GRUPO GERADOR, ABERTO, NA POTÊNCIA EMERGENCIAL (STAND-BY) DE 112,5 KVA, E POT ÊNCIA CONTINUA (PRIME) DE 102,3KVA, FATOR DE POÊNCIA 0,8, TRIFÁSICO, 220/127V , DOTADP DE QUADRO DE COMANDO AUTOMÁTICO, MICROPROCESSADO, DA LEON HEIMER OU SIMILAR | C119: UN | D119: 165346.5
A120: 9592 | B120: GRUPO GERADOR, MODELO ATED, MARCA HEIMER OU SIMILAR, POTENCIA STAND-BY DE 75K VA E POTENCIA CONTINUA 68KVA, TENSÃO:220/127V, C/QUADRO COMANDO AUTOMATICO TI PO MICROPROCESSADO MOD.DPC-560, MOTOR DIESEL FIAT NEF45SM1A, POTENCIA 90CV | C120: UN | D120: 120252
A121: 7958 | B121: GRUPO GERADOR, MODELO GEHC-260, HEIMER OU SIMILAR, POTENCIA STAND-BY 260KVA E POTENCIA CONTINUA 234KVA, TENSÃO:220/127V, FREQUENCIA 60 HZ, C/QUADRO COMANDO AUTOMATICO, MOTOR DIESEL 6CTAA8.3-G1, CONSUMO:50 L/H | C121: UN | D121: 295619.5
A122: 12670 | B122: GRUPO GERADOR, POTÊNCIA STAND-BY 625/569 KVA, TRIF. 220/127 V,QUADRO DE COMAN DO AUTOMÁTICO MICROPROCESSADO/DIGITAL, MARCA DEEP SEA/KVA, MOTOR DIESEL POTÊN CIA MÁXIMA DE 772CV, INCL. KIT ATENUADOR DE RUÍDO, DA GERAFORTE OU SIMILAR - FORN.E INSTALAÇÃO | C122: UN | D122: 651365
A123: 11423 | B123: GUILHOTINA DE BANCADA - (4KW) | C123: H | D123: 14.95
A124: 2472 | B124: GUINDASTE KOEHRING BANTAN ES-488 TELEKRUISER 16 TON OU EQUIVALENTE | C124: H | D124: 185.4
A125: 6573 | B125: INSTRUMENTAL DE TOPOGRAFIA | C125: MÊS | D125: 1180.59
A126: 9810 | B126: INSTRUMENTAL DE TOPOGRAFIA - FONTE: TABELA DE PREÇOS DE CONSULTORIA DO DNIT - REF. 04/16 | C126: MÊS | D126: 1836.65
A127: 10186 | B127: JAHU PESADO | C127: M | D127: 403.73
A128: 6589 | B128: LABORATÓRIO DE CONCRETO | C128: MÊS | D128: 2055.44
A129: 9388 | B129: LOCAÇÃO / ALUGUEL DE TARRACHA / ROSQUEDEIRA MANUAL RETROCEDENTE ATÉ Ø 3" | C129: H | D129: 0.12
A130: 13098 | B130: LOCAÇÃO DE ELEVADOR CREMALHEIRA COM 45,50M DE ALTURA, 03 CANCELAS, CABINE SIM PLES - 1.200KG OU 17 PESSOAS. | C130: MÊS | D130: 7135.57
A131: 8904 | B131: MÁQUINA DE SOLDA ELÉTRICA | C131: H | D131: 3.87
A132: 11372 | B132: MÁQUINA P/ CRAVAÇÃO (MÉTODO NÃO DESTRUTIVO) | C132: H | D132: 215.97
A133: 11422 | B133: MÁQUINA UNIVERSAL DE CORTE DE CHAPA, DE BANCADA, 4KW - C-6A | C133: H | D133: 11.91
A134: 9612 | B134: MARTELETE ROMPEDOR 33KG ATLAS COPO TEX32PS | C134: H | D134: 82.71
A135: 6442 | B135: NÍVEL ÓTICO DE PRECISÃO | C135: H | D135: 2.25
A136: 2480 | B136: PICK-UP, CAPACIDADE 1,2 T | C136: H | D136: 10.91
A137: 7008 | B137: POLITRIZ PNEUMÁTICA 7" 2500RPM FÚRIO AT880B | C137: H | D137: 4.93
A138: 11421 | B138: PRENSA EXCÊNTRICA - (1KW) | C138: H | D138: 13.02
A139: 2490 | B139: ROMPEDOR 56,0 PCM / 1150 IPM (ATLAS COPCO -TEX 11 OU EQUIVALENTE) | C139: H | D139: 6.12
A140: 11249 | B140: SERRA CIRCULAR ELETRICA PORTATIL | C140: UN | D140: 518
A141: 2491 | B141: TALHA COMPACTA NT CAP. 500 KG C/ 5,00M DE ELEVAÇÃO | C141: H | D141: 7.56
A142: 12317 | B142: TALHA MANUAL 1,0 T, ELEV.= 5,0 M | C142: UN | D142: 540.41
A143: 2492 | B143: TALHA MANUAL 1,0 T, ELEV.= 5,0 M ("KOCH" OU EQUIVALENTE) | C143: H | D143: 20.68
A144: 2493 | B144: TALHA MANUAL 2,0 T, ELEV.= 5,0 M ("KOCH" OU EQUIVALENTE) | C144: H | D144: 20.68
A145: 2494 | B145: TALHA MANUAL 3,0 T, ELEV.= 5,0 M ("KOCH" OU EQUIVALENTE) | C145: H | D145: 20.68
A146: 2495 | B146: TALHA MANUAL 5,0 T, ELEV.= 5,0 M ("KOCH" OU EQUIVALENTE) | C146: H | D146: 31.04
A147: 6443 | B147: TEODOLITO | C147: H | D147: 2.25
A148: 2497 | B148: TIRFOR 1,6 T - 20M DE CABO | C148: H | D148: 1.36
A149: 2498 | B149: TIRFOR 3,2 T - 20M DE CABO | C149: H | D149: 1.44
A150: 2789 | B150: VEÍCULO LEVE - PICK UP (97KW) | C150: H | D150: 10.19
A151: 6791 | B151: ALUGUEL DE ALISADORA DE CONCRETO Á GASOLINA | C151: MÊS | D151: 650
A152: 2448 | B152: ALUGUEL DE BETONEIRA 400 L COM MOTOR 220/380V (COM CARREGADOR) | C152: H | D152: 1.5
A153: 6792 | B153: ALUGUEL DE BETONEIRA 400 L COM MOTOR À DÍESEL (COM CARREGADOR) | C153: MÊS | D153: 450
A154: 6793 | B154: ALUGUEL DE BETONEIRA 400 L COM MOTOR À GASOLINA (COM CARREGADOR) | C154: MÊS | D154: 350
A155: 9432 | B155: ALUGUEL DE CILINDRO DE GÁS | C155: MÊS | D155: 0.5
A156: 6800 | B156: ALUGUEL DE SERRA CIRCULAR DE BANCADA | C156: H | D156: 30
A157: 4777 | B157: BOLA DE LIMPEZA | C157: UN | D157: 18.65
A158: 4778 | B158: BOMBA INJETORA MANUAL, INCLUINDO TANQUE, PARA CALDA DE CIMENTO, COM PALHETA M ISTURADORA | C158: UN | D158: 57600.76
A159: 4779 | B159: CONJUNTO ACOPLADO PARA MONÔMETRO, PARA BOMBA INJETORA MANUAL PUTZMEISTER OU S IMILAR | C159: UN | D159: 373.02
A160: 4780 | B160: CONJUNTO DE MONÔMETRO O-100 BAR, PARA BOMBA INJETORA MANUAL DE PUTZMEISTER OU SIMILAR | C160: UN | D160: 599.36
A161: 4776 | B161: FIXAÇÃO - GANCHO DE MANGUEIRA, PARA BOMBA INJETORA MANUAL PUTZMEISTER OU SIMI LAR | C161: UN | D161: 171
A162: 4782 | B162: MANGUEIRA PARA BOMBA INJETORA MANUAL DE 10M, DIÂMETRO NOMINAL DE 50MM, PUTZME ISTER OU SIMILAR | C162: UN | D162: 1513.78
A163: 4783 | C163: UN | D163: 1429.15
B164: MANGUEIRA PARA BOMBA INJETORA MANUAL DE 10M, DIÂMETRO NOMINAL DE 50MM, PUTZME ISTER OU SIMILAR
A165: 4781 | B165: MANGUEIRA PARA BOMBA INJETORA MANUAL DE 40M, DIÂMETRO NOMINAL DE 1/2", PUTZME ISTER OU SIMILAR | C165: UN | D165: 1017
A166: 2473 | B166: MAQ. PROJETAR CONCRETO - MULTIJET - SHEIKAN | C166: H | D166: 11.64
A167: 8625 | B167: MARTELETE ROMPEDOR ELÉTRICO, 220V, 16KG | C167: DIA | D167: 70
A168: 4784 | B168: PISTOLA DE INJEÇÃO PARA BOMBA INJETORA MANUAL, PUTZMEISTER OU SIMILAR | C168: UN | D168: 936.71
A169: 4723 | B169: VIBRADOR DE IMERSÃO (COM MANGOTE) | C169: H | D169: 1.25
A170: 11086 | B170: AERADOR VERTICAL DE FLUXO DESCENDENTE AFDV- 3CV, DA DESPURIFIL OU SIMILAR | C170: UN | D170: 8805.9
A171: 2449 | B171: ALUGUEL DE BOMBA DE DRENAGEM - "DARKA" - DIAMETRO 4" - ,POTÊNCIA = 5 CV | C171: H | D171: 5.33
A172: 1077 | B172: GRUPO GERADOR SINCRONO, AUTOMÁTICO 350 KVA - 220/127V | C172: UN | D172: 514077.96
A173: 4904 | B173: GRUPO GERADOR180 KVA / 215 KW - POTÊNCIA DE 294 KW - 60 HZ COM MOTOR DC965-A, 5 CILINDROS TURBO CHARGED - SCANIA , MOD. GEHS - 356,LEON HEIMER OU SIMILAR | C173: UN | D173: 305843.85
A174: 8634 | B174: GRUPO MOTOR GERADOR150 KVA MODELO: GEHM 150 COM USCA (QTA.) | C174: UN | D174: 174500.43
A175: 8521 | B175: GRUPO MOTOR GERADOR150 KVA SEM QUADRO | C175: UN | D175: 153964.62
A176: 8554 | B176: USINA DIESEL GERADORA COMPOSTA POR 02 (DOIS) GRUPOS MOTOR DIESEL GERADORES, M ARCA: "HEIMER OU SIMILAR", NA CAPACIDADE DE POTÊNCIA STAND-BY (PRIME) DE 500 KVA/400KW COM ATENUADOR DE RUIDO | C176: UN | D176: 692549.13
A177: 12749 | B177: ALUGUEL DE MÁQUINA DE CORTE EM ASFALTO/CONCRETO UTILIZANDO DISCO DIAMANTADO D IAM. 350 MM (NÃO INCLUI O DISCO) | C177: D | D177: 80
A178: 4821 | B178: AQUECEDOR DE FLUIDO TÉRMICO : TENGE : TH III | C178: H | D178: 55.43
A179: 2788 | B179: CAMINHÃO CARROC. MADEIRA 4,0 T ( 94,0 KW OU EQUIVALENTE) | C179: H | D179: 44.5
A180: 2453 | B180: CAMINHAO ESPARG. ASF. 6000 L | C180: H | D180: 69.19
A181: 2458 | B181: CAMINHAO TANQUE (PIPA)10000 L (M. BENZ - 2423 K - 184,0 HP OU EQUIVALENTE) | C181: H | D181: 77.84
A182: 2459 | B182: CAMINHAO TANQUE 6000 L (M. BENZ - ATEGO 1418/42 - 136,0 HP OU EQUIVALENTE) | C182: H | D182: 69.19
A183: 2466 | B183: DISTRIBUIDOR DE AGREGADO DE PNEUS AUTOPROPULSOR -" CIBER" , SS - 31, 400TPH - SPREADER - 90 HP. | C183: H | D183: 168.85
A184: 2467 | B184: ESPALH. AGREG. REBOC. 1,30 M3 (CONSMAQ - EA OU EQUIVALENTE) | C184: H | D184: 5.46
A185: 4277 | B185: ESTABILIZADORA E RECICLADORA A FRIO | C185: H | D185: 837.64
A186: 2469 | B186: GRADE DISCO GA 24 X 24 (MARCHESAN OU EQUIVALENTE) | C186: H | D186: 15.35
A187: 2483 | B187: ROLO LISO AUTOPROP. 10,0 T (DYNAPAC - CA 25D - 118,0 HP) | C187: H | D187: 77.7
A188: 2484 | B188: ROLO LISO VIB. AUTOPROP. 9,0T (DYNAPAC - CK-50 - 84,0 HP) | C188: H | D188: 63.88
A189: 2496 | B189: TANQUE ESTACIONÁRIO 30.000 L (PRE-AQUECEDOR TAA-SERPENTINA OU EQUIVALENTE) | C189: H | D189: 17.68
A190: 2504 | B190: USINA DE ASFALTO À FRIO CIFALI CAP. 60/100 TON/H, 43 KW | C190: H | D190: 28.86
A191: 4252 | B191: USINA DE ASFALTO A QUENTE 90/120 T/H, 188 KW | C191: H | D191: 788.79
A192: 4253 | B192: USINA DE SOLOS CIFALI 350/600 TON 99 KW OU EQUIVALENTE | C192: H | D192: 83.11
A193: 2506 | B193: USINA DE SOLOS, DOSADORES TRIPLOS, CALHA VIBRATÓRIA, 200/500 TON, 75 KW, OU E QUIVALENTE | C193: H | D193: 121.2
A194: 2507 | B194: VASSOURA MECÂNICA CMV: VM 7 REBOCÁVEL OU EQUIVALENTE | C194: H | D194: 14.37
A195: 2447 | B195: VIBRO-ACABADORA DE ASFALTO PNEU, 105,0 HP, 300 T/H OU EQUIVALENTE | C195: H | D195: 164.96
A196: 4980 | B196: ALUGUEL DE HIDROJATEADORA CINOJET 250/15 | C196: H | D196: 12.32
A197: 2702 | B197: ALUGUEL DE HIDROJATEADORA CINOJET 350/18 | C197: H | D197: 12.43
A198: 10567 | B198: ALUGUEL DE RELÓGIO DE PONTO | C198: MÊS | D198: 12.16
A199: 4899 | B199: CADEIRA DE PINTOR | C199: H | D199: 2.73
A200: 7327 | B200: CÂMERA SPEED DOME - VSD 1000 26X - INTELBRAS SIMILAR | C200: UN | D200: 13500
... 8820 more rows

Sheet SERVIÇOS SEINFRA
B1: TABELA UNIFICADA SEINFRA | D1: Data de Emissão: 23/03/2021 08:58
B2: Versão: 027 - ENC. SOCIAIS 112,76%
A4: CÓDIGO | B4: DESCRIÇÃO | C4: UNIDADE | D4: PREÇO UNITÁRIO
A5: SERVICOS PRELIMINARES | D5: 104943.74
A6: SONDAGENS | D6: 5127.85
A7: C2820 | B7: EXECUÇÃO DE SONDAGEM ELÉTRICA VERTICAL AB/2 ATÉ 150m - SEV | C7: UN | D7: 521.32
A8: C2818 | B8: EXECUÇÃO DE SONDAGEM ELÉTRICA VERTICAL AB/2 >150m a 500m-SEV | C8: UN | D8: 666.87
A9: C2819 | B9: EXECUÇÃO DE SONDAGEM ELÉTRICA VERTICAL AB/2 >500m - SEV | C9: UN | D9: 855.5
A10: C2833 | B10: FOTOGEOLOGIA | C10: UN | D10: 376.52
A11: C0053 | B11: LEVANTAMENTO BATIMÉTRICO | C11: M² | D11: 0.44
A12: C2937 | B12: RELATÓRIO FINAL DE SONDAGEM | C12: UN | D12: 1129.56
A13: C0333 | B13: SERVIÇOS DE SONDAGEM GEOTÉCNICA MISTA EM ROCHA | C13: M | D13: 981.33
A14: C0143 | B14: SERVIÇOS DE SONDAGEM GEOTÉCNICA MISTA EM SOLOS | C14: M | D14: 235.12
A15: C2290 | B15: SONDAGEM À PERCUSSÃO P/RECONHECIMENTO DO SUBSOLO | C15: M | D15: 54.52
A16: C3955 | B16: SONDAGEM ROTATIVA P/ RECONHECIMENTO DO SUBSOLO | C16: M | D16: 306.67
A17: CADASTRO | D17: 253.8
A18: C0580 | B18: CADASTRO DE ADUTORA | C18: M | D18: 1.52
A19: C0581 | B19: CADASTRO DE LIGAÇÃO | C19: UN | D19: 2.86
A20: C0582 | B20: CADASTRO DE OBRAS LOCALIZADAS | C20: M² | D20: 47.9
A21: C0583 | B21: CADASTRO DE REDE DE ÁGUA (MEIO MAGNÉTICO) | C21: M | D21: 1.16
A22: C0584 | B22: CADASTRO DE REDE DE ESGOTO/EMISSÁRIO/DRENAGEM (MEIO MAGNÉTICO) | C22: M | D22: 1.75
